Workbook

Sheet Titelblad
B2: Titelblad
B13: Over dit bestand
B15: Zaaknummer | C15: ACM/19/035360
B16: Titel | C16: GAW model GTS 2022-2026
B17: Ondertitel
B18: Hoort bij besluit(en): | C18: Methodebesluit GTS 2022-2026; X-factorbesluit GTS 2022-2026
B19: Hoort bij onderzoek/publicatie ACM: | C19: n.v.t.
B20: Kenmerk besluit(en) | C20: ACM/UIT/547588; ACM/UIT/547904
B21: Samenhang met andere rekenbestanden | C21: Zie tabblad Toelichting
B22: Overig opmerkingen | C22: n.v.t.
B25: Over de status van dit bestand
B27: Definitief? (j/n) | C27: j
B28: Is of wordt gepubliceerd? (j/n) | C28: j
B29: Juridisch integraal onderdeel van bovenstaande besluit(en) (j/n)? | C29: n
B30: Bevat bedrijfsvertrouwelijke gegevens? (j/n) | C30: n
B31: Opmerkingen openbare versiegeschiedenis | C31: n.v.t.
B32: Overig opmerkingen | C32: n.v.t.

Sheet Toelichting
B2: Toelichting bij dit bestand
B4: Toelichting bij de werking van dit model
B6: In dit bestand berekent de ACM de afschrijvingen en gestandaardiseerde activawaarde (GAW) van GTS. Elke investering per jaar per activacategorie is in een losse regel gezet. Elke regel bevat de volgende informatie:
B8: Volgnummer | C8: Parameter die alle regels in de dataset een uniek nummer geeft
B9: Bijzonderheden | C9: Parameter die aangeeft of dit een normale investering is of een bijschatting (dus niet een gerealiseerde investering van GTS).
B10: Vervanging / uitbreiding | C10: Dit geeft aan hoe de investering is geclassificeerd (als VVI, RUI of WUI), voor zover die informatie beschikbaar is
B11: Activacategorie | C11: Deze kolom geeft aan welk type investeringen het zijn. Uit deze parameter volgt ook de relevante wettelijke taak en de afschrijvingstermijn.
B12: Jaar begin afschrijven | C12: Het jaar waarin begonnen is met afschrijven
B13: Investeringsbedrag | C13: Het investeringsbedrag in euro's, zoals opgegeven in de reguleringsdata. Nog niet gecorrigeerd voor statische efficiëntie
B15: Aan de hand van deze data berekent de ACM de jaarlijkse investeringen, de nominale afschrijvingen, de afschrijvingen voor de GAW en de GAW. Het bestand is daarbij zo opgezet dat het mogelijk is regels aan of uit te vinken voor de berekening. Op het tabblad resultaat kan de gebruiker van dit bestand voor verschillende parameters selecteren welke mee moet worden genomen in de berekening. Op dit tabblad kunnen ook schattingen voor het bijschatten worden meegenomen.
B17: Samenhang van dit bestand met andere bestanden
D22: Kostenbestand | H22: GAW model | L22: X-factormodel
B25: Schematische weergave en/of inhoudsopgave van de werking van dit model
B27: Toelichting samenhang tabbladen:
D29: Inputs | H29: Berekeningen | P29: Resultaat
D32: 2. Reguleringsparameters | H32: 4. CPI-tabel
H37: 5. CPI-tabel nominaal
D42: 3. Investeringen
H43: 6. Selectie | P43: 1. Resultaat
L48: 7. Investeringen per jaar
L53: 8. Bijschatten
L60: 9. Nominale afschrijvingen
L65: 10. Afschrijvingen voor GAW
L70: 11. GAW
B73: Legenda voor gebruik van celkleuren en tabkleuren
B75: Celkleur getallen | D75: Beschrijving
B77: 123 | D77: Data en input (bron wordt vermeld)
B78: =B77 -> 123 | D78: Waarde die zonder berekening wordt overgenomen uit een andere cel
B79: =B78+B77 -> 246 | D79: Berekende waarde
B80: =B78+B79 -> 369 | D80: Berekende waarde die wordt opgehaald op een ander tabblad, incl. (eind)resultaat van berekening
D81: Cel is niet van toepassing (dus leeg, niet nul), maar er wordt door een formule wel naar verwezen
B83: Bijzonderheden:
B84: =B80+16 -> 385 | D84: Waarde of berekening die speciale aandacht vraagt (zie toelichting in opmerking)
B85: =B78*PI() -> 386.4158964 | D85: Ingevoerde waarde of berekening die nog niet juist is (indien van toepassing)
B87: Eventueel te gebruiken:
B88: 123 | D88: Deze kleur wordt uitsluitend gebruikt bij een informatieverzoek: cellen die door de ontvanger van het dataverzoek moeten worden ingevuld
B89: 124 | D89: Een kader kan worden gebruikt om aan te geven dat een bepaald veld input bevat, maar deze input automatisch wordt ingeladen, bijvoorbeeld door middel van een macro (dus niet handmatig in te vullen)
B90: =B88-B89 -> -1 | D90: Grijze cijfers geven de uitkomt van een check berekening; dit is geen resultaat waarmee verder wordt gerekend
B93: Tabkleur
B95: Tabbladen die het model vormen
B96: Resultaat | D96: Tabblad met resultaten/output
B97: Data | D97: Tabblad met input
B98: Berekening | D98: Tabblad met berekeningen
B99: Berekening | D99: Tabblad dat als geheel nog onjuist of niet up to date is
B101: Tabbladen ten behoeve van begrip
B102: Input --> | D102: Leeg tabblad dat wordt gebruikt als index/markering voor een serie tabbladen (kleur: licht grijs)
B103: Toelichting | D103: Gestandaardiseerde tabbladen, omvat tenminste: 'Titelblad', 'Toelichting' en 'Bronnen en toepassingen' (kleur: ACM-lichtpaars)

Sheet Bronnen en toepassingen
B2: Bronnenoverzicht en specifieke toepassingen
B4: Bronnenoverzicht
B6: In onderstaand overzicht houdt ACM bij welke bronnen gebruikt zijn voor de data en berekeningen in dit bestand.
B7: Ieder inputblad heeft een kolom 'bronverwijzing', waarin gebruikte bronnen met een verkorte naam worden aangeduid. Deze bronnen worden verder toegelicht in deze tabel.
B9: Nr. | C9: Verkorte naam | D9: Naam bestand extern | E9: Zaaknummer en/of kenmerk ACM | F9: Aanvullende gegevens bestand extern
C10: Zoals gebruikt in dit bestand | D10: Exacte bestandsnaam | E10: Indien van toepassing | F10: Datum ontvangst, versie nr., opmerkingen
B11: 1 | C11: Kostenbestand | D11: Kostenbestand GTS MB2022-2026
B12: 2 | C12: CBS | D12: CBS Statline Jaarmutatie consumentenprijsindex | E12: N.v.t.
B13: 3 | C13: Tarievenbesluit GTS 2020 | D13: Tarievenbesluit GTS 2020 | E13: ACM/18/033801, kenmerk ACM/UIT/508383
B14: 4 | C14: Methodebesluit GTS | D14: Methodebesluit GTS 2022-2026 | E14: ACM/19/035346, kenmerk ACM/UIT/547588
B17: Duiding van specifieke Excel-toepassingen en overige bijzonderheden
B19: In rekenmodellen probeert ACM zoveel mogelijk eenvoudige navolgbare berekeningen te maken en geen ingewikkelde functies of toepassingen te gebruiken.
B20: Wanneer toch gebruik wordt gemaakt van cel- en rangenamen, macro's of andere bijzondere functies in Excel wordt de werking ervan hier toegelicht
B22: In het tabblad Resultaat gebruikt de ACM macroknoppen die voor wat betreft de jaren, taken en bijzonderheden automatisch de juiste selectie van investeringen invoert om de output te genereren die de ACM gebruikt in het x-factormodel. Wanneer de gebruiker van dit bestand op de knop klikt, voert dit bestand de macro uit om tot de gewenste selectie te komen.
B24: In het tabblad Selectie gebruikt de ACM meerdere keren de "Vergelijken" functie, in combinatie met de "Index" functie. De vergelijken functie neemt een matrix, en kijkt welke rij in die functie overeenkomt met de input. Met de index functie kan je een matrix aangeven, en daar dan een waarde uit een specifieke rij en kolom selecteren. In cel M100 wordt bijvoorbeeld een matrix met alle mogelijke bijzonderheden geselecteer (Normaal, desinvestering, etcetera). Met de vergelijken functie wordt gekeken welk van deze bijzonderheden voor die specifieke regel relevant is. De index functie zorgt dan dat de relevante 1 of 0 geselecteerd wordt.

Sheet 1. Resultaat
B2: Tabel 1 - Resultaat
B4: Beschrijving resultaat
B5: De gebruiker van dit bestand kan via de groene cellen op dit tabblad aangeven van welke jaren, taken, bijzonderheden (normale investering of bijgeschatte investering), type investeringen en activaklassen zij of hij de input wil meenemen in de berekening van de GAW-waarde en afschrijvingen van GTS. De typen investeringen zijn vervangingsinvesteringen (VVI), reguliere uitbreidingsinvesteringen (RUI) en wettelijk uitgezonderde investeringen (WUI). De WUI stonden voorheen bekend als niet reguliere uitbreidingsinvesteringen (NRUI). In de jaren 2005-2012 maakte de ACM nog geen onderscheid tussen NRUI en RUI, dus deze zijn geclassificeerd als WUI/RUI. Investeringen van voor 2005 en bijgeschatte investeringen zijn niet geclassificeerd als VVI, RUI of WUI. Die zijn hier geclassificeerd als "Restcategorie (VVI/UI)".
B7: Toelichting bij bijzonderheden
B8: In dit tabblad zijn macroknoppen opgenomen die voor wat betreft de jaren, taken en bijzonderheden automatische de juiste selectie van investeringen invoeren om de output te genereren die de ACM gebruikt in het x-factormodel. Daarbij is het wel nodig dat de gebruiker van dit bestand alle typen investeringen en alle activacategorieën selecteert.
B10: Selectie van investeringen
B12: Van jaar … t/m jaar … | I12: Selecteren van output die de ACM gebruikt in het x-factormodel:
B13: Activeringen vanaf jaar | C13: 1946
B14: Activeringen tot en met jaar | C14: 2026
B16: Taak
B17: Transporttaak (TT-BT-AT) | C17: 1
B18: Kwaliteitsconversie (KC) | C18: 1
B20: Bijzonderheden
B21: Normaal | C21: 1
B22: Bijschatten | C22: 1
B24: Type investering
B25: VVI | C25: 1
B26: RUI | C26: 1
B27: WUI | C27: 1
B28: WUI/RUI | C28: 1
B29: Restcategorie (VVI/UI) | C29: 1
B31: Activacategorie
B32: 01 Regionale leidingen | C32: 1
B33: 01 Regionale leidingen (Waterkruisingen) | C33: 1
B34: 01 Regionale leidingen (gaschromatografen en comptabele meters) | C34: 1
B35: 02 Gasontvangststations | C35: 1
B36: 02 Gasontvangststations (EHD) | C36: 1
B37: 03 Verremeting | C37: 1
B38: 04 Terreinen | C38: 1
B39: 04 Terreinen (EHD) | C39: 1
B40: 05 Wegen en terreinvoorzieningen | C40: 1
B41: 05 Wegen en terreinvoorzieningen (LNG) | C41: 1
B42: 06 Utiliteitsgebouwen | C42: 1
B43: 06 Utiliteitsgebouwen (EHD) | C43: 1
B44: 06 Utiliteitsgebouwen (LNG) | C44: 1
B45: 07 Dienstwoningen | C45: 1
B46: 08 Inrichting gebouwen | C46: 1
B47: 09 Bedrijfsinventaris | C47: 1
B48: 10 Gereedschap | C48: 1
B49: 10 Gereedschap (LNG) | C49: 1
B50: 10 Gereedschap (odorisatie) | C50: 1
B51: 10 Gereedschap (gaschromatografen en comptabele meters) | C51: 1
B52: 11 Werktuigen | C52: 1
B53: 11 Werktuigen (gaschromatografen en comptabele meters) | C53: 1
B54: 11 Werktuigen (odorisatie) | C54: 1
B55: 11 Werktuigen (KC) | C55: 1
B56: 12 Motorvoertuigen | C56: 1
B57: 13 Aanhangwagens | C57: 1
B58: 13 Aanhangwagens (gaschromatografen en comptabele meters) | C58: 1
B59: 14 Overig rollend materieel | C59: 1
B60: 14 Overig rollend materieel (odorisatie) | C60: 1
B61: 14 Overig rollend materieel (gaschromatografen en comptabele meters) | C61: 1
B62: 15 Compressorstations (TT-BT-AT) | C62: 1
B63: 15 Compressorstations (TT-BT-AT) (gaschromatografen en comptabele meters) | C63: 1
B64: 15 Compressorstations (KC) | C64: 1
B65: 16 LNG installaties | C65: 1
B66: 17 Mengstations | C66: 1
B67: 18 Ijkinstallaties | C67: 1
B68: 19 Stortgasinstallaties | C68: 1
B69: 20 Kantoorgebouwen | C69: 1
B70: 21 Hoofdtransportleiding | C70: 1
B71: 21 Hoofdtransportleiding (waterkruisingen) | C71: 1
B72: 21 Hoofdtransportleiding (gaschromatografen en comptabele meting) | C72: 1
B73: 21 Hoofdtransportleiding (EHD) | C73: 1
B74: 22 Regionaal hoofdtransportnet | C74: 1
B75: 23 Brigittaleiding | C75: 1
B76: 32 M&R stations | C76: 1
B77: 32 M&R stations (gaschromatografen en comptabele meting) | C77: 1
B78: 32 M&R stations (odorisatie) | C78: 1
B79: 33 Exportstations | C79: 1
B80: 33 Exportstations (gaschromatografen en comptabele meting) | C80: 1
B81: 34 Reduceerstations | C81: 1
B82: 34 Reduceerstations (gaschromatografen en comptabele meting) | C82: 1
B83: 34 Reduceerstations (EHD) | C83: 1
B84: 35 Injectiestations | C84: 1
B85: 36 Luchtscheidingsunit | C85: 1
B86: 37 ICT middelen 1 | C86: 1
B87: 37 ICT middelen 1 (transparency) | C87: 1
B88: 37 ICT middelen 1 (gaschromatografen en comptabele meting) | C88: 1
B89: 37 ICT middelen 1 (KC) | C89: 1
B90: 37 ICT middelen 1 (balancering) | C90: 1
B91: 38 ICT middelen 2 | C91: 1
B92: 39 ICT middelen 3 | C92: 1
B93: 39 ICT middelen 3 (KC) | C93: 1
B94: 39 ICT middelen 3 (balancering) | C94: 1
B95: 40 Aansluitpunten | C95: 1
B96: 41 Stikstofbuffer | C96: 1
B97: 42 Vulgas | C97: 1
B98: 42 Vulgas (EHD) | C98: 1
B99: 43 Stikstof | C99: 1
B100: 44 Stikstofleiding | C100: 1
B101: 45 Groen gas booster | C101: 1
B103: Investeringsjaar | G103: Investeringen | I103: Totale afschrijvingen | J103: Totale GAW | L103: Binnen scope afschrijvingen | M103: Binnen scope GAW | O103: Buiten scope afschrijvingen | P103: Buiten scope GAW | R103: Bijgeschatte investeringen binnen scope | T103: Bijgeschatte investeringen buiten scope
B105: 1946 | G105: =INDEX('7. Investeringen per jaar'!$O$12:$CQ$12,1,B105-1945) -> 836988.0792 | I105: =INDEX('10. Afschrijvingen voor GAW'!$FO$12:$IQ$12,1,B105-1945) -> 7608.982538 | J105: =INDEX('11. GAW'!$CN$13:$FP$13,1,B105-1945) -> 829379.0967 | L105: =INDEX('10. Afschrijvingen voor GAW'!$IS$12:$LU$12,1,B105-1945) -> 7608.982538 | M105: =INDEX('11. GAW'!$FR$13:$IT$13,1,B105-1945) -> 829379.0967 | O105: =INDEX('10. Afschrijvingen voor GAW'!$LW$12:$OY$12,1,B105-1945) -> 0 | P105: =INDEX('11. GAW'!$IV$13:$LX$13,1,B105-1945) -> 0
B106: 1947 | G106: =INDEX('7. Investeringen per jaar'!$O$12:$CQ$12,1,B106-1945) -> 2145958.86 | I106: =INDEX('10. Afschrijvingen voor GAW'!$FO$12:$IQ$12,1,B106-1945) -> 35278.40901 | J106: =INDEX('11. GAW'!$CN$13:$FP$13,1,B106-1945) -> 2970128.67 | L106: =INDEX('10. Afschrijvingen voor GAW'!$IS$12:$LU$12,1,B106-1945) -> 35278.40901 | M106: =INDEX('11. GAW'!$FR$13:$IT$13,1,B106-1945) -> 2970128.67 | O106: =INDEX('10. Afschrijvingen voor GAW'!$LW$12:$OY$12,1,B106-1945) -> 0 | P106: =INDEX('11. GAW'!$IV$13:$LX$13,1,B106-1945) -> 0
B107: 1948 | G107: =INDEX('7. Investeringen per jaar'!$O$12:$CQ$12,1,B107-1945) -> 1127514.959 | I107: =INDEX('10. Afschrijvingen voor GAW'!$FO$12:$IQ$12,1,B107-1945) -> 66975.13795 | J107: =INDEX('11. GAW'!$CN$13:$FP$13,1,B107-1945) -> 4135724.946 | L107: =INDEX('10. Afschrijvingen voor GAW'!$IS$12:$LU$12,1,B107-1945) -> 66975.13795 | M107: =INDEX('11. GAW'!$FR$13:$IT$13,1,B107-1945) -> 4135724.946 | O107: =INDEX('10. Afschrijvingen voor GAW'!$LW$12:$OY$12,1,B107-1945) -> 0 | P107: =INDEX('11. GAW'!$IV$13:$LX$13,1,B107-1945) -> 0
B108: 1949 | G108: =INDEX('7. Investeringen per jaar'!$O$12:$CQ$12,1,B108-1945) -> 4659013.21 | I108: =INDEX('10. Afschrijvingen voor GAW'!$FO$12:$IQ$12,1,B108-1945) -> 124454.9104 | J108: =INDEX('11. GAW'!$CN$13:$FP$13,1,B108-1945) -> 8931357.601 | L108: =INDEX('10. Afschrijvingen voor GAW'!$IS$12:$LU$12,1,B108-1945) -> 124454.9104 | M108: =INDEX('11. GAW'!$FR$13:$IT$13,1,B108-1945) -> 8931357.601 | O108: =INDEX('10. Afschrijvingen voor GAW'!$LW$12:$OY$12,1,B108-1945) -> 0 | P108: =INDEX('11. GAW'!$IV$13:$LX$13,1,B108-1945) -> 0
B109: 1950 | G109: =INDEX('7. Investeringen per jaar'!$O$12:$CQ$12,1,B109-1945) -> 2501486.579 | I109: =INDEX('10. Afschrijvingen voor GAW'!$FO$12:$IQ$12,1,B109-1945) -> 204757.2436 | J109: =INDEX('11. GAW'!$CN$13:$FP$13,1,B109-1945) -> 12042297.32 | L109: =INDEX('10. Afschrijvingen voor GAW'!$IS$12:$LU$12,1,B109-1945) -> 204757.2436 | M109: =INDEX('11. GAW'!$FR$13:$IT$13,1,B109-1945) -> 12042297.32 | O109: =INDEX('10. Afschrijvingen voor GAW'!$LW$12:$OY$12,1,B109-1945) -> 0 | P109: =INDEX('11. GAW'!$IV$13:$LX$13,1,B109-1945) -> 0
B110: 1951 | G110: =INDEX('7. Investeringen per jaar'!$O$12:$CQ$12,1,B110-1945) -> 2005811.55 | I110: =INDEX('10. Afschrijvingen voor GAW'!$FO$12:$IQ$12,1,B110-1945) -> 267652.3058 | J110: =INDEX('11. GAW'!$CN$13:$FP$13,1,B110-1945) -> 14940741.94 | L110: =INDEX('10. Afschrijvingen voor GAW'!$IS$12:$LU$12,1,B110-1945) -> 267652.3058 | M110: =INDEX('11. GAW'!$FR$13:$IT$13,1,B110-1945) -> 14940741.94 | O110: =INDEX('10. Afschrijvingen voor GAW'!$LW$12:$OY$12,1,B110-1945) -> 0 | P110: =INDEX('11. GAW'!$IV$13:$LX$13,1,B110-1945) -> 0
B111: 1952 | G111: =INDEX('7. Investeringen per jaar'!$O$12:$CQ$12,1,B111-1945) -> 183022.7208 | I111: =INDEX('10. Afschrijvingen voor GAW'!$FO$12:$IQ$12,1,B111-1945) -> 287550.7991 | J111: =INDEX('11. GAW'!$CN$13:$FP$13,1,B111-1945) -> 14836213.86 | L111: =INDEX('10. Afschrijvingen voor GAW'!$IS$12:$LU$12,1,B111-1945) -> 287550.7991 | M111: =INDEX('11. GAW'!$FR$13:$IT$13,1,B111-1945) -> 14836213.86 | O111: =INDEX('10. Afschrijvingen voor GAW'!$LW$12:$OY$12,1,B111-1945) -> 0 | P111: =INDEX('11. GAW'!$IV$13:$LX$13,1,B111-1945) -> 0
B112: 1953 | G112: =INDEX('7. Investeringen per jaar'!$O$12:$CQ$12,1,B112-1945) -> 3394596.692 | I112: =INDEX('10. Afschrijvingen voor GAW'!$FO$12:$IQ$12,1,B112-1945) -> 320072.3938 | J112: =INDEX('11. GAW'!$CN$13:$FP$13,1,B112-1945) -> 17910738.16 | L112: =INDEX('10. Afschrijvingen voor GAW'!$IS$12:$LU$12,1,B112-1945) -> 320072.3938 | M112: =INDEX('11. GAW'!$FR$13:$IT$13,1,B112-1945) -> 17910494.16 | O112: =INDEX('10. Afschrijvingen voor GAW'!$LW$12:$OY$12,1,B112-1945) -> 0 | P112: =INDEX('11. GAW'!$IV$13:$LX$13,1,B112-1945) -> 244
B113: 1954 | G113: =INDEX('7. Investeringen per jaar'!$O$12:$CQ$12,1,B113-1945) -> 8268328.86 | I113: =INDEX('10. Afschrijvingen voor GAW'!$FO$12:$IQ$12,1,B113-1945) -> 440258.5228 | J113: =INDEX('11. GAW'!$CN$13:$FP$13,1,B113-1945) -> 26455238.02 | L113: =INDEX('10. Afschrijvingen voor GAW'!$IS$12:$LU$12,1,B113-1945) -> 439984.5228 | M113: =INDEX('11. GAW'!$FR$13:$IT$13,1,B113-1945) -> 26438818.26 | O113: =INDEX('10. Afschrijvingen voor GAW'!$LW$12:$OY$12,1,B113-1945) -> 274 | P113: =INDEX('11. GAW'!$IV$13:$LX$13,1,B113-1945) -> 16419.76
B114: 1955 | G114: =INDEX('7. Investeringen per jaar'!$O$12:$CQ$12,1,B114-1945) -> 5184137.659 | I114: =INDEX('10. Afschrijvingen voor GAW'!$FO$12:$IQ$12,1,B114-1945) -> 572520.2676 | J114: =INDEX('11. GAW'!$CN$13:$FP$13,1,B114-1945) -> 31571896.45 | L114: =INDEX('10. Afschrijvingen voor GAW'!$IS$12:$LU$12,1,B114-1945) -> 571961.8061 | M114: =INDEX('11. GAW'!$FR$13:$IT$13,1,B114-1945) -> 31555721.69 | O114: =INDEX('10. Afschrijvingen voor GAW'!$LW$12:$OY$12,1,B114-1945) -> 558.4615385 | P114: =INDEX('11. GAW'!$IV$13:$LX$13,1,B114-1945) -> 16174.75823
B115: 1956 | G115: =INDEX('7. Investeringen per jaar'!$O$12:$CQ$12,1,B115-1945) -> 2260377.279 | I115: =INDEX('10. Afschrijvingen voor GAW'!$FO$12:$IQ$12,1,B115-1945) -> 652032.2152 | J115: =INDEX('11. GAW'!$CN$13:$FP$13,1,B115-1945) -> 33780368.47 | L115: =INDEX('10. Afschrijvingen voor GAW'!$IS$12:$LU$12,1,B115-1945) -> 650474.8383 | M115: =INDEX('11. GAW'!$FR$13:$IT$13,1,B115-1945) -> 33662900.64 | O115: =INDEX('10. Afschrijvingen voor GAW'!$LW$12:$OY$12,1,B115-1945) -> 1557.376923 | P115: =INDEX('11. GAW'!$IV$13:$LX$13,1,B115-1945) -> 117467.8354
B116: 1957 | G116: =INDEX('7. Investeringen per jaar'!$O$12:$CQ$12,1,B116-1945) -> 3932321.399 | I116: =INDEX('10. Afschrijvingen voor GAW'!$FO$12:$IQ$12,1,B116-1945) -> 752027.8825 | J116: =INDEX('11. GAW'!$CN$13:$FP$13,1,B116-1945) -> 39152413.39 | L116: =INDEX('10. Afschrijvingen voor GAW'!$IS$12:$LU$12,1,B116-1945) -> 749317.0359 | M116: =INDEX('11. GAW'!$FR$13:$IT$13,1,B116-1945) -> 39030034.81 | O116: =INDEX('10. Afschrijvingen voor GAW'!$LW$12:$OY$12,1,B116-1945) -> 2710.846553 | P116: =INDEX('11. GAW'!$IV$13:$LX$13,1,B116-1945) -> 122378.584
B117: 1958 | G117: =INDEX('7. Investeringen per jaar'!$O$12:$CQ$12,1,B117-1945) -> 11037711.4 | I117: =INDEX('10. Afschrijvingen voor GAW'!$FO$12:$IQ$12,1,B117-1945) -> 901718.6799 | J117: =INDEX('11. GAW'!$CN$13:$FP$13,1,B117-1945) -> 49964304.59 | L117: =INDEX('10. Afschrijvingen voor GAW'!$IS$12:$LU$12,1,B117-1945) -> 898961.0353 | M117: =INDEX('11. GAW'!$FR$13:$IT$13,1,B117-1945) -> 49842571 | O117: =INDEX('10. Afschrijvingen voor GAW'!$LW$12:$OY$12,1,B117-1945) -> 2757.644615 | P117: =INDEX('11. GAW'!$IV$13:$LX$13,1,B117-1945) -> 121733.5933
B118: 1959 | G118: =INDEX('7. Investeringen per jaar'!$O$12:$CQ$12,1,B118-1945) -> 4029746.878 | I118: =INDEX('10. Afschrijvingen voor GAW'!$FO$12:$IQ$12,1,B118-1945) -> 1047260.156 | J118: =INDEX('11. GAW'!$CN$13:$FP$13,1,B118-1945) -> 53370745.98 | L118: =INDEX('10. Afschrijvingen voor GAW'!$IS$12:$LU$12,1,B118-1945) -> 1044342.846 | M118: =INDEX('11. GAW'!$FR$13:$IT$13,1,B118-1945) -> 53242720.77 | O118: =INDEX('10. Afschrijvingen voor GAW'!$LW$12:$OY$12,1,B118-1945) -> 2917.310313 | P118: =INDEX('11. GAW'!$IV$13:$LX$13,1,B118-1945) -> 128025.2109
B119: 1960 | G119: =INDEX('7. Investeringen per jaar'!$O$12:$CQ$12,1,B119-1945) -> 3253946.958 | I119: =INDEX('10. Afschrijvingen voor GAW'!$FO$12:$IQ$12,1,B119-1945) -> 1141343.58 | J119: =INDEX('11. GAW'!$CN$13:$FP$13,1,B119-1945) -> 56843702.45 | L119: =INDEX('10. Afschrijvingen voor GAW'!$IS$12:$LU$12,1,B119-1945) -> 1137821.871 | M119: =INDEX('11. GAW'!$FR$13:$IT$13,1,B119-1945) -> 56692517.74 | O119: =INDEX('10. Afschrijvingen voor GAW'!$LW$12:$OY$12,1,B119-1945) -> 3521.70881 | P119: =INDEX('11. GAW'!$IV$13:$LX$13,1,B119-1945) -> 151184.7034
B120: 1961 | G120: =INDEX('7. Investeringen per jaar'!$O$12:$CQ$12,1,B120-1945) -> 3072156.948 | I120: =INDEX('10. Afschrijvingen voor GAW'!$FO$12:$IQ$12,1,B120-1945) -> 1221691.951 | J120: =INDEX('11. GAW'!$CN$13:$FP$13,1,B120-1945) -> 59640648.01 | L120: =INDEX('10. Afschrijvingen voor GAW'!$IS$12:$LU$12,1,B120-1945) -> 1210759.738 | M120: =INDEX('11. GAW'!$FR$13:$IT$13,1,B120-1945) -> 59080574.21 | O120: =INDEX('10. Afschrijvingen voor GAW'!$LW$12:$OY$12,1,B120-1945) -> 10932.21269 | P120: =INDEX('11. GAW'!$IV$13:$LX$13,1,B120-1945) -> 560073.8036
B121: 1962 | G121: =INDEX('7. Investeringen per jaar'!$O$12:$CQ$12,1,B121-1945) -> 1556403 | I121: =INDEX('10. Afschrijvingen voor GAW'!$FO$12:$IQ$12,1,B121-1945) -> 1290957.97 | J121: =INDEX('11. GAW'!$CN$13:$FP$13,1,B121-1945) -> 61052756.34 | L121: =INDEX('10. Afschrijvingen voor GAW'!$IS$12:$LU$12,1,B121-1945) -> 1272726.786 | M121: =INDEX('11. GAW'!$FR$13:$IT$13,1,B121-1945) -> 60493607.63 | O121: =INDEX('10. Afschrijvingen voor GAW'!$LW$12:$OY$12,1,B121-1945) -> 18231.18385 | P121: =INDEX('11. GAW'!$IV$13:$LX$13,1,B121-1945) -> 559148.7133
B122: 1963 | G122: =INDEX('7. Investeringen per jaar'!$O$12:$CQ$12,1,B122-1945) -> 10592525.32 | I122: =INDEX('10. Afschrijvingen voor GAW'!$FO$12:$IQ$12,1,B122-1945) -> 1453363.928 | J122: =INDEX('11. GAW'!$CN$13:$FP$13,1,B122-1945) -> 72523695.11 | L122: =INDEX('10. Afschrijvingen voor GAW'!$IS$12:$LU$12,1,B122-1945) -> 1434436.444 | M122: =INDEX('11. GAW'!$FR$13:$IT$13,1,B122-1945) -> 71919803.41 | O122: =INDEX('10. Afschrijvingen voor GAW'!$LW$12:$OY$12,1,B122-1945) -> 18927.4843 | P122: =INDEX('11. GAW'!$IV$13:$LX$13,1,B122-1945) -> 603891.6992
B123: 1964 | G123: =INDEX('7. Investeringen per jaar'!$O$12:$CQ$12,1,B123-1945) -> 139655399.4 | I123: =INDEX('10. Afschrijvingen voor GAW'!$FO$12:$IQ$12,1,B123-1945) -> 2877795.656 | J123: =INDEX('11. GAW'!$CN$13:$FP$13,1,B123-1945) -> 210679249.1 | L123: =INDEX('10. Afschrijvingen voor GAW'!$IS$12:$LU$12,1,B123-1945) -> 2818578.783 | M123: =INDEX('11. GAW'!$FR$13:$IT$13,1,B123-1945) -> 207355845.3 | O123: =INDEX('10. Afschrijvingen voor GAW'!$LW$12:$OY$12,1,B123-1945) -> 59216.87317 | P123: =INDEX('11. GAW'!$IV$13:$LX$13,1,B123-1945) -> 3323403.768
B124: 1965 | G124: =INDEX('7. Investeringen per jaar'!$O$12:$CQ$12,1,B124-1945) -> 25837833.32 | I124: =INDEX('10. Afschrijvingen voor GAW'!$FO$12:$IQ$12,1,B124-1945) -> 4803153.448 | J124: =INDEX('11. GAW'!$CN$13:$FP$13,1,B124-1945) -> 249410985.9 | L124: =INDEX('10. Afschrijvingen voor GAW'!$IS$12:$LU$12,1,B124-1945) -> 4651481.74 | M124: =INDEX('11. GAW'!$FR$13:$IT$13,1,B124-1945) -> 243262754.9 | O124: =INDEX('10. Afschrijvingen voor GAW'!$LW$12:$OY$12,1,B124-1945) -> 151671.7076 | P124: =INDEX('11. GAW'!$IV$13:$LX$13,1,B124-1945) -> 6148230.977
B125: 1966 | G125: =INDEX('7. Investeringen per jaar'!$O$12:$CQ$12,1,B125-1945) -> 97424347.33 | I125: =INDEX('10. Afschrijvingen voor GAW'!$FO$12:$IQ$12,1,B125-1945) -> 6385296.671 | J125: =INDEX('11. GAW'!$CN$13:$FP$13,1,B125-1945) -> 351174708.9 | L125: =INDEX('10. Afschrijvingen voor GAW'!$IS$12:$LU$12,1,B125-1945) -> 6034673.997 | M125: =INDEX('11. GAW'!$FR$13:$IT$13,1,B125-1945) -> 335959119.3 | O125: =INDEX('10. Afschrijvingen voor GAW'!$LW$12:$OY$12,1,B125-1945) -> 350622.6744 | P125: =INDEX('11. GAW'!$IV$13:$LX$13,1,B125-1945) -> 15215589.61
B126: 1967 | G126: =INDEX('7. Investeringen per jaar'!$O$12:$CQ$12,1,B126-1945) -> 251821173.5 | I126: =INDEX('10. Afschrijvingen voor GAW'!$FO$12:$IQ$12,1,B126-1945) -> 10298243.89 | J126: =INDEX('11. GAW'!$CN$13:$FP$13,1,B126-1945) -> 613065771.7 | L126: =INDEX('10. Afschrijvingen voor GAW'!$IS$12:$LU$12,1,B126-1945) -> 9425324.688 | M126: =INDEX('11. GAW'!$FR$13:$IT$13,1,B126-1945) -> 567256131.1 | O126: =INDEX('10. Afschrijvingen voor GAW'!$LW$12:$OY$12,1,B126-1945) -> 872919.2022 | P126: =INDEX('11. GAW'!$IV$13:$LX$13,1,B126-1945) -> 45809640.61
B127: 1968 | G127: =INDEX('7. Investeringen per jaar'!$O$12:$CQ$12,1,B127-1945) -> 137651195 | I127: =INDEX('10. Afschrijvingen voor GAW'!$FO$12:$IQ$12,1,B127-1945) -> 14562272.26 | J127: =INDEX('11. GAW'!$CN$13:$FP$13,1,B127-1945) -> 760064259.5 | L127: =INDEX('10. Afschrijvingen voor GAW'!$IS$12:$LU$12,1,B127-1945) -> 13159746.4 | M127: =INDEX('11. GAW'!$FR$13:$IT$13,1,B127-1945) -> 705766361.8 | O127: =INDEX('10. Afschrijvingen voor GAW'!$LW$12:$OY$12,1,B127-1945) -> 1402525.857 | P127: =INDEX('11. GAW'!$IV$13:$LX$13,1,B127-1945) -> 54297897.73
B128: 1969 | G128: =INDEX('7. Investeringen per jaar'!$O$12:$CQ$12,1,B128-1945) -> 69568825.78 | I128: =INDEX('10. Afschrijvingen voor GAW'!$FO$12:$IQ$12,1,B128-1945) -> 17350099.3 | J128: =INDEX('11. GAW'!$CN$13:$FP$13,1,B128-1945) -> 837365106.5 | L128: =INDEX('10. Afschrijvingen voor GAW'!$IS$12:$LU$12,1,B128-1945) -> 15642384.85 | M128: =INDEX('11. GAW'!$FR$13:$IT$13,1,B128-1945) -> 774848563.2 | O128: =INDEX('10. Afschrijvingen voor GAW'!$LW$12:$OY$12,1,B128-1945) -> 1707714.454 | P128: =INDEX('11. GAW'!$IV$13:$LX$13,1,B128-1945) -> 62516543.3
B129: 1970 | G129: =INDEX('7. Investeringen per jaar'!$O$12:$CQ$12,1,B129-1945) -> 120490805.8 | I129: =INDEX('10. Afschrijvingen voor GAW'!$FO$12:$IQ$12,1,B129-1945) -> 20950671.92 | J129: =INDEX('11. GAW'!$CN$13:$FP$13,1,B129-1945) -> 994683432.8 | L129: =INDEX('10. Afschrijvingen voor GAW'!$IS$12:$LU$12,1,B129-1945) -> 18814897.23 | M129: =INDEX('11. GAW'!$FR$13:$IT$13,1,B129-1945) -> 919103002.2 | O129: =INDEX('10. Afschrijvingen voor GAW'!$LW$12:$OY$12,1,B129-1945) -> 2135774.683 | P129: =INDEX('11. GAW'!$IV$13:$LX$13,1,B129-1945) -> 75580430.6
B130: 1971 | G130: =INDEX('7. Investeringen per jaar'!$O$12:$CQ$12,1,B130-1945) -> 230190885.1 | I130: =INDEX('10. Afschrijvingen voor GAW'!$FO$12:$IQ$12,1,B130-1945) -> 25972768.68 | J130: =INDEX('11. GAW'!$CN$13:$FP$13,1,B130-1945) -> 1252614455 | L130: =INDEX('10. Afschrijvingen voor GAW'!$IS$12:$LU$12,1,B130-1945) -> 23013997.04 | M130: =INDEX('11. GAW'!$FR$13:$IT$13,1,B130-1945) -> 1130663368 | O130: =INDEX('10. Afschrijvingen voor GAW'!$LW$12:$OY$12,1,B130-1945) -> 2958771.639 | P130: =INDEX('11. GAW'!$IV$13:$LX$13,1,B130-1945) -> 121951086.2
B131: 1972 | G131: =INDEX('7. Investeringen per jaar'!$O$12:$CQ$12,1,B131-1945) -> 258281050.4 | I131: =INDEX('10. Afschrijvingen voor GAW'!$FO$12:$IQ$12,1,B131-1945) -> 33294268.02 | J131: =INDEX('11. GAW'!$CN$13:$FP$13,1,B131-1945) -> 1572799936 | L131: =INDEX('10. Afschrijvingen voor GAW'!$IS$12:$LU$12,1,B131-1945) -> 29315213.57 | M131: =INDEX('11. GAW'!$FR$13:$IT$13,1,B131-1945) -> 1429906937 | O131: =INDEX('10. Afschrijvingen voor GAW'!$LW$12:$OY$12,1,B131-1945) -> 3979054.446 | P131: =INDEX('11. GAW'!$IV$13:$LX$13,1,B131-1945) -> 142892998.6
B132: 1973 | G132: =INDEX('7. Investeringen per jaar'!$O$12:$CQ$12,1,B132-1945) -> 142003774.3 | I132: =INDEX('10. Afschrijvingen voor GAW'!$FO$12:$IQ$12,1,B132-1945) -> 40277882.48 | J132: =INDEX('11. GAW'!$CN$13:$FP$13,1,B132-1945) -> 1790913023 | L132: =INDEX('10. Afschrijvingen voor GAW'!$IS$12:$LU$12,1,B132-1945) -> 35624605.45 | M132: =INDEX('11. GAW'!$FR$13:$IT$13,1,B132-1945) -> 1633443275 | O132: =INDEX('10. Afschrijvingen voor GAW'!$LW$12:$OY$12,1,B132-1945) -> 4653277.026 | P132: =INDEX('11. GAW'!$IV$13:$LX$13,1,B132-1945) -> 157469747.2
B133: 1974 | G133: =INDEX('7. Investeringen per jaar'!$O$12:$CQ$12,1,B133-1945) -> 120326995.4 | I133: =INDEX('10. Afschrijvingen voor GAW'!$FO$12:$IQ$12,1,B133-1945) -> 46768683.51 | J133: =INDEX('11. GAW'!$CN$13:$FP$13,1,B133-1945) -> 2009535289 | L133: =INDEX('10. Afschrijvingen voor GAW'!$IS$12:$LU$12,1,B133-1945) -> 41455669.51 | M133: =INDEX('11. GAW'!$FR$13:$IT$13,1,B133-1945) -> 1835213787 | O133: =INDEX('10. Afschrijvingen voor GAW'!$LW$12:$OY$12,1,B133-1945) -> 5313014.005 | P133: =INDEX('11. GAW'!$IV$13:$LX$13,1,B133-1945) -> 174321502.5
B134: 1975 | G134: =INDEX('7. Investeringen per jaar'!$O$12:$CQ$12,1,B134-1945) -> 228613871.3 | I134: =INDEX('10. Afschrijvingen voor GAW'!$FO$12:$IQ$12,1,B134-1945) -> 55207458.3 | J134: =INDEX('11. GAW'!$CN$13:$FP$13,1,B134-1945) -> 2379876161 | L134: =INDEX('10. Afschrijvingen voor GAW'!$IS$12:$LU$12,1,B134-1945) -> 49055994.92 | M134: =INDEX('11. GAW'!$FR$13:$IT$13,1,B134-1945) -> 2183038535 | O134: =INDEX('10. Afschrijvingen voor GAW'!$LW$12:$OY$12,1,B134-1945) -> 6151463.383 | P134: =INDEX('11. GAW'!$IV$13:$LX$13,1,B134-1945) -> 196837626
B135: 1976 | G135: =INDEX('7. Investeringen per jaar'!$O$12:$CQ$12,1,B135-1945) -> 70932323.52 | I135: =INDEX('10. Afschrijvingen voor GAW'!$FO$12:$IQ$12,1,B135-1945) -> 64087674.02 | J135: =INDEX('11. GAW'!$CN$13:$FP$13,1,B135-1945) -> 2641367559 | L135: =INDEX('10. Afschrijvingen voor GAW'!$IS$12:$LU$12,1,B135-1945) -> 56678013.98 | M135: =INDEX('11. GAW'!$FR$13:$IT$13,1,B135-1945) -> 2387245867 | O135: =INDEX('10. Afschrijvingen voor GAW'!$LW$12:$OY$12,1,B135-1945) -> 7409660.041 | P135: =INDEX('11. GAW'!$IV$13:$LX$13,1,B135-1945) -> 254121692.7
B136: 1977 | G136: =INDEX('7. Investeringen per jaar'!$O$12:$CQ$12,1,B136-1945) -> 182577053.1 | I136: =INDEX('10. Afschrijvingen voor GAW'!$FO$12:$IQ$12,1,B136-1945) -> 72420177.95 | J136: =INDEX('11. GAW'!$CN$13:$FP$13,1,B136-1945) -> 2970757942 | L136: =INDEX('10. Afschrijvingen voor GAW'!$IS$12:$LU$12,1,B136-1945) -> 62658335.23 | M136: =INDEX('11. GAW'!$FR$13:$IT$13,1,B136-1945) -> 2627510515 | O136: =INDEX('10. Afschrijvingen voor GAW'!$LW$12:$OY$12,1,B136-1945) -> 9761842.721 | P136: =INDEX('11. GAW'!$IV$13:$LX$13,1,B136-1945) -> 343247426.7
B137: 1978 | G137: =INDEX('7. Investeringen per jaar'!$O$12:$CQ$12,1,B137-1945) -> 281247543.7 | I137: =INDEX('10. Afschrijvingen voor GAW'!$FO$12:$IQ$12,1,B137-1945) -> 82922058.91 | J137: =INDEX('11. GAW'!$CN$13:$FP$13,1,B137-1945) -> 3371094967 | L137: =INDEX('10. Afschrijvingen voor GAW'!$IS$12:$LU$12,1,B137-1945) -> 71000188.28 | M137: =INDEX('11. GAW'!$FR$13:$IT$13,1,B137-1945) -> 3005880758 | O137: =INDEX('10. Afschrijvingen voor GAW'!$LW$12:$OY$12,1,B137-1945) -> 11921870.63 | P137: =INDEX('11. GAW'!$IV$13:$LX$13,1,B137-1945) -> 365214209.2
B138: 1979 | G138: =INDEX('7. Investeringen per jaar'!$O$12:$CQ$12,1,B138-1945) -> 58179282.46 | I138: =INDEX('10. Afschrijvingen voor GAW'!$FO$12:$IQ$12,1,B138-1945) -> 90368011.23 | J138: =INDEX('11. GAW'!$CN$13:$FP$13,1,B138-1945) -> 3480492227 | L138: =INDEX('10. Afschrijvingen voor GAW'!$IS$12:$LU$12,1,B138-1945) -> 77638928.64 | M138: =INDEX('11. GAW'!$FR$13:$IT$13,1,B138-1945) -> 3102608425 | O138: =INDEX('10. Afschrijvingen voor GAW'!$LW$12:$OY$12,1,B138-1945) -> 12729082.59 | P138: =INDEX('11. GAW'!$IV$13:$LX$13,1,B138-1945) -> 377883801.6
B139: 1980 | G139: =INDEX('7. Investeringen per jaar'!$O$12:$CQ$12,1,B139-1945) -> 66392281.93 | I139: =INDEX('10. Afschrijvingen voor GAW'!$FO$12:$IQ$12,1,B139-1945) -> 95520018.44 | J139: =INDEX('11. GAW'!$CN$13:$FP$13,1,B139-1945) -> 3583623195 | L139: =INDEX('10. Afschrijvingen voor GAW'!$IS$12:$LU$12,1,B139-1945) -> 81787395.15 | M139: =INDEX('11. GAW'!$FR$13:$IT$13,1,B139-1945) -> 3180755492 | O139: =INDEX('10. Afschrijvingen voor GAW'!$LW$12:$OY$12,1,B139-1945) -> 13732623.29 | P139: =INDEX('11. GAW'!$IV$13:$LX$13,1,B139-1945) -> 402867702.6
B140: 1981 | G140: =INDEX('7. Investeringen per jaar'!$O$12:$CQ$12,1,B140-1945) -> 15957262.92 | I140: =INDEX('10. Afschrijvingen voor GAW'!$FO$12:$IQ$12,1,B140-1945) -> 103508409.3 | J140: =INDEX('11. GAW'!$CN$13:$FP$13,1,B140-1945) -> 3750509295 | L140: =INDEX('10. Afschrijvingen voor GAW'!$IS$12:$LU$12,1,B140-1945) -> 88323409.37 | M140: =INDEX('11. GAW'!$FR$13:$IT$13,1,B140-1945) -> 3328258700 | O140: =INDEX('10. Afschrijvingen voor GAW'!$LW$12:$OY$12,1,B140-1945) -> 15184999.9 | P140: =INDEX('11. GAW'!$IV$13:$LX$13,1,B140-1945) -> 422250595.6
B141: 1982 | G141: =INDEX('7. Investeringen per jaar'!$O$12:$CQ$12,1,B141-1945) -> 33668393.97 | I141: =INDEX('10. Afschrijvingen voor GAW'!$FO$12:$IQ$12,1,B141-1945) -> 110868041.1 | J141: =INDEX('11. GAW'!$CN$13:$FP$13,1,B141-1945) -> 3913342243 | L141: =INDEX('10. Afschrijvingen voor GAW'!$IS$12:$LU$12,1,B141-1945) -> 94574711.21 | M141: =INDEX('11. GAW'!$FR$13:$IT$13,1,B141-1945) -> 3477288492 | O141: =INDEX('10. Afschrijvingen voor GAW'!$LW$12:$OY$12,1,B141-1945) -> 16293329.86 | P141: =INDEX('11. GAW'!$IV$13:$LX$13,1,B141-1945) -> 436053751
B142: 1983 | G142: =INDEX('7. Investeringen per jaar'!$O$12:$CQ$12,1,B142-1945) -> 84815143.49 | I142: =INDEX('10. Afschrijvingen voor GAW'!$FO$12:$IQ$12,1,B142-1945) -> 118453703.2 | J142: =INDEX('11. GAW'!$CN$13:$FP$13,1,B142-1945) -> 4110590876 | L142: =INDEX('10. Afschrijvingen voor GAW'!$IS$12:$LU$12,1,B142-1945) -> 100933526.3 | M142: =INDEX('11. GAW'!$FR$13:$IT$13,1,B142-1945) -> 3651934002 | O142: =INDEX('10. Afschrijvingen voor GAW'!$LW$12:$OY$12,1,B142-1945) -> 17520176.93 | P142: =INDEX('11. GAW'!$IV$13:$LX$13,1,B142-1945) -> 458656873.9
B143: 1984 | G143: =INDEX('7. Investeringen per jaar'!$O$12:$CQ$12,1,B143-1945) -> 24479756.42 | I143: =INDEX('10. Afschrijvingen voor GAW'!$FO$12:$IQ$12,1,B143-1945) -> 122114720.5 | J143: =INDEX('11. GAW'!$CN$13:$FP$13,1,B143-1945) -> 4119831274 | L143: =INDEX('10. Afschrijvingen voor GAW'!$IS$12:$LU$12,1,B143-1945) -> 103757735.8 | M143: =INDEX('11. GAW'!$FR$13:$IT$13,1,B143-1945) -> 3658337343 | O143: =INDEX('10. Afschrijvingen voor GAW'!$LW$12:$OY$12,1,B143-1945) -> 18356984.67 | P143: =INDEX('11. GAW'!$IV$13:$LX$13,1,B143-1945) -> 461493930.9
B144: 1985 | G144: =INDEX('7. Investeringen per jaar'!$O$12:$CQ$12,1,B144-1945) -> 81966128.81 | I144: =INDEX('10. Afschrijvingen voor GAW'!$FO$12:$IQ$12,1,B144-1945) -> 126324300 | J144: =INDEX('11. GAW'!$CN$13:$FP$13,1,B144-1945) -> 4190828379 | L144: =INDEX('10. Afschrijvingen voor GAW'!$IS$12:$LU$12,1,B144-1945) -> 107070074.5 | M144: =INDEX('11. GAW'!$FR$13:$IT$13,1,B144-1945) -> 3721228514 | O144: =INDEX('10. Afschrijvingen voor GAW'!$LW$12:$OY$12,1,B144-1945) -> 19254225.47 | P144: =INDEX('11. GAW'!$IV$13:$LX$13,1,B144-1945) -> 469599864.5
B145: 1986 | G145: =INDEX('7. Investeringen per jaar'!$O$12:$CQ$12,1,B145-1945) -> 123211955.5 | I145: =INDEX('10. Afschrijvingen voor GAW'!$FO$12:$IQ$12,1,B145-1945) -> 131188228.8 | J145: =INDEX('11. GAW'!$CN$13:$FP$13,1,B145-1945) -> 4279241158 | L145: =INDEX('10. Afschrijvingen voor GAW'!$IS$12:$LU$12,1,B145-1945) -> 110905639.7 | M145: =INDEX('11. GAW'!$FR$13:$IT$13,1,B145-1945) -> 3797735207 | O145: =INDEX('10. Afschrijvingen voor GAW'!$LW$12:$OY$12,1,B145-1945) -> 20282589.12 | P145: =INDEX('11. GAW'!$IV$13:$LX$13,1,B145-1945) -> 481505951.6
B146: 1987 | G146: =INDEX('7. Investeringen per jaar'!$O$12:$CQ$12,1,B146-1945) -> 73599989.26 | I146: =INDEX('10. Afschrijvingen voor GAW'!$FO$12:$IQ$12,1,B146-1945) -> 132298542.6 | J146: =INDEX('11. GAW'!$CN$13:$FP$13,1,B146-1945) -> 4199146399 | L146: =INDEX('10. Afschrijvingen voor GAW'!$IS$12:$LU$12,1,B146-1945) -> 111535482.4 | M146: =INDEX('11. GAW'!$FR$13:$IT$13,1,B146-1945) -> 3726830380 | O146: =INDEX('10. Afschrijvingen voor GAW'!$LW$12:$OY$12,1,B146-1945) -> 20763060.28 | P146: =INDEX('11. GAW'!$IV$13:$LX$13,1,B146-1945) -> 472316019.5
B147: 1988 | G147: =INDEX('7. Investeringen per jaar'!$O$12:$CQ$12,1,B147-1945) -> 130940592.9 | I147: =INDEX('10. Afschrijvingen voor GAW'!$FO$12:$IQ$12,1,B147-1945) -> 134910629.4 | J147: =INDEX('11. GAW'!$CN$13:$FP$13,1,B147-1945) -> 4203574655 | L147: =INDEX('10. Afschrijvingen voor GAW'!$IS$12:$LU$12,1,B147-1945) -> 112343831.3 | M147: =INDEX('11. GAW'!$FR$13:$IT$13,1,B147-1945) -> 3661459872 | O147: =INDEX('10. Afschrijvingen voor GAW'!$LW$12:$OY$12,1,B147-1945) -> 22566798.1 | P147: =INDEX('11. GAW'!$IV$13:$LX$13,1,B147-1945) -> 542114783.4
B148: 1989 | G148: =INDEX('7. Investeringen per jaar'!$O$12:$CQ$12,1,B148-1945) -> 31394340.95 | I148: =INDEX('10. Afschrijvingen voor GAW'!$FO$12:$IQ$12,1,B148-1945) -> 138402033.3 | J148: =INDEX('11. GAW'!$CN$13:$FP$13,1,B148-1945) -> 4134399135 | L148: =INDEX('10. Afschrijvingen voor GAW'!$IS$12:$LU$12,1,B148-1945) -> 113811374.2 | M148: =INDEX('11. GAW'!$FR$13:$IT$13,1,B148-1945) -> 3592702924 | O148: =INDEX('10. Afschrijvingen voor GAW'!$LW$12:$OY$12,1,B148-1945) -> 24590659.11 | P148: =INDEX('11. GAW'!$IV$13:$LX$13,1,B148-1945) -> 541696210.8
B149: 1990 | G149: =INDEX('7. Investeringen per jaar'!$O$12:$CQ$12,1,B149-1945) -> 106594179.2 | I149: =INDEX('10. Afschrijvingen voor GAW'!$FO$12:$IQ$12,1,B149-1945) -> 141917132 | J149: =INDEX('11. GAW'!$CN$13:$FP$13,1,B149-1945) -> 4144554573 | L149: =INDEX('10. Afschrijvingen voor GAW'!$IS$12:$LU$12,1,B149-1945) -> 115704269 | M149: =INDEX('11. GAW'!$FR$13:$IT$13,1,B149-1945) -> 3553735696 | O149: =INDEX('10. Afschrijvingen voor GAW'!$LW$12:$OY$12,1,B149-1945) -> 26212862.98 | P149: =INDEX('11. GAW'!$IV$13:$LX$13,1,B149-1945) -> 590818876.4
B150: 1991 | G150: =INDEX('7. Investeringen per jaar'!$O$12:$CQ$12,1,B150-1945) -> 196200202.3 | I150: =INDEX('10. Afschrijvingen voor GAW'!$FO$12:$IQ$12,1,B150-1945) -> 148848640.4 | J150: =INDEX('11. GAW'!$CN$13:$FP$13,1,B150-1945) -> 4291375444 | L150: =INDEX('10. Afschrijvingen voor GAW'!$IS$12:$LU$12,1,B150-1945) -> 120851544.5 | M150: =INDEX('11. GAW'!$FR$13:$IT$13,1,B150-1945) -> 3708560072 | O150: =INDEX('10. Afschrijvingen voor GAW'!$LW$12:$OY$12,1,B150-1945) -> 27997095.81 | P150: =INDEX('11. GAW'!$IV$13:$LX$13,1,B150-1945) -> 582815372
B151: 1992 | G151: =INDEX('7. Investeringen per jaar'!$O$12:$CQ$12,1,B151-1945) -> 120677168.5 | I151: =INDEX('10. Afschrijvingen voor GAW'!$FO$12:$IQ$12,1,B151-1945) -> 159182785.9 | J151: =INDEX('11. GAW'!$CN$13:$FP$13,1,B151-1945) -> 4450273097 | L151: =INDEX('10. Afschrijvingen voor GAW'!$IS$12:$LU$12,1,B151-1945) -> 129067745.8 | M151: =INDEX('11. GAW'!$FR$13:$IT$13,1,B151-1945) -> 3811748933 | O151: =INDEX('10. Afschrijvingen voor GAW'!$LW$12:$OY$12,1,B151-1945) -> 30115040.08 | P151: =INDEX('11. GAW'!$IV$13:$LX$13,1,B151-1945) -> 638524163.9
B152: 1993 | G152: =INDEX('7. Investeringen per jaar'!$O$12:$CQ$12,1,B152-1945) -> 205985275.9 | I152: =INDEX('10. Afschrijvingen voor GAW'!$FO$12:$IQ$12,1,B152-1945) -> 171655569.8 | J152: =INDEX('11. GAW'!$CN$13:$FP$13,1,B152-1945) -> 4640362362 | L152: =INDEX('10. Afschrijvingen voor GAW'!$IS$12:$LU$12,1,B152-1945) -> 138940781.6 | M152: =INDEX('11. GAW'!$FR$13:$IT$13,1,B152-1945) -> 3967204435 | O152: =INDEX('10. Afschrijvingen voor GAW'!$LW$12:$OY$12,1,B152-1945) -> 32714788.25 | P152: =INDEX('11. GAW'!$IV$13:$LX$13,1,B152-1945) -> 673157926.4
B153: 1994 | G153: =INDEX('7. Investeringen per jaar'!$O$12:$CQ$12,1,B153-1945) -> 138569071.6 | I153: =INDEX('10. Afschrijvingen voor GAW'!$FO$12:$IQ$12,1,B153-1945) -> 182646402.5 | J153: =INDEX('11. GAW'!$CN$13:$FP$13,1,B153-1945) -> 4689092278 | L153: =INDEX('10. Afschrijvingen voor GAW'!$IS$12:$LU$12,1,B153-1945) -> 148143216.1 | M153: =INDEX('11. GAW'!$FR$13:$IT$13,1,B153-1945) -> 4019137070 | O153: =INDEX('10. Afschrijvingen voor GAW'!$LW$12:$OY$12,1,B153-1945) -> 34503186.43 | P153: =INDEX('11. GAW'!$IV$13:$LX$13,1,B153-1945) -> 669955208.5
B154: 1995 | G154: =INDEX('7. Investeringen per jaar'!$O$12:$CQ$12,1,B154-1945) -> 253092275.5 | I154: =INDEX('10. Afschrijvingen voor GAW'!$FO$12:$IQ$12,1,B154-1945) -> 194105621.3 | J154: =INDEX('11. GAW'!$CN$13:$FP$13,1,B154-1945) -> 4869995331 | L154: =INDEX('10. Afschrijvingen voor GAW'!$IS$12:$LU$12,1,B154-1945) -> 156586454.1 | M154: =INDEX('11. GAW'!$FR$13:$IT$13,1,B154-1945) -> 4105578289 | O154: =INDEX('10. Afschrijvingen voor GAW'!$LW$12:$OY$12,1,B154-1945) -> 37519167.18 | P154: =INDEX('11. GAW'!$IV$13:$LX$13,1,B154-1945) -> 764417042.4
B155: 1996 | G155: =INDEX('7. Investeringen per jaar'!$O$12:$CQ$12,1,B155-1945) -> 170591546.8 | I155: =INDEX('10. Afschrijvingen voor GAW'!$FO$12:$IQ$12,1,B155-1945) -> 203803501.5 | J155: =INDEX('11. GAW'!$CN$13:$FP$13,1,B155-1945) -> 4909833307 | L155: =INDEX('10. Afschrijvingen voor GAW'!$IS$12:$LU$12,1,B155-1945) -> 164361087.7 | M155: =INDEX('11. GAW'!$FR$13:$IT$13,1,B155-1945) -> 4163311377 | O155: =INDEX('10. Afschrijvingen voor GAW'!$LW$12:$OY$12,1,B155-1945) -> 39442413.82 | P155: =INDEX('11. GAW'!$IV$13:$LX$13,1,B155-1945) -> 746521929.7
B156: 1997 | G156: =INDEX('7. Investeringen per jaar'!$O$12:$CQ$12,1,B156-1945) -> 151911607.4 | I156: =INDEX('10. Afschrijvingen voor GAW'!$FO$12:$IQ$12,1,B156-1945) -> 211226204.1 | J156: =INDEX('11. GAW'!$CN$13:$FP$13,1,B156-1945) -> 4943805543 | L156: =INDEX('10. Afschrijvingen voor GAW'!$IS$12:$LU$12,1,B156-1945) -> 171845811.8 | M156: =INDEX('11. GAW'!$FR$13:$IT$13,1,B156-1945) -> 4203107684 | O156: =INDEX('10. Afschrijvingen voor GAW'!$LW$12:$OY$12,1,B156-1945) -> 39380392.28 | P156: =INDEX('11. GAW'!$IV$13:$LX$13,1,B156-1945) -> 740697859.3
B157: 1998 | G157: =INDEX('7. Investeringen per jaar'!$O$12:$CQ$12,1,B157-1945) -> 110323070 | I157: =INDEX('10. Afschrijvingen voor GAW'!$FO$12:$IQ$12,1,B157-1945) -> 216434857.9 | J157: =INDEX('11. GAW'!$CN$13:$FP$13,1,B157-1945) -> 4966232699 | L157: =INDEX('10. Afschrijvingen voor GAW'!$IS$12:$LU$12,1,B157-1945) -> 176305027.6 | M157: =INDEX('11. GAW'!$FR$13:$IT$13,1,B157-1945) -> 4205902067 | O157: =INDEX('10. Afschrijvingen voor GAW'!$LW$12:$OY$12,1,B157-1945) -> 40129830.31 | P157: =INDEX('11. GAW'!$IV$13:$LX$13,1,B157-1945) -> 760330632
B158: 1999 | G158: =INDEX('7. Investeringen per jaar'!$O$12:$CQ$12,1,B158-1945) -> 78740912.82 | I158: =INDEX('10. Afschrijvingen voor GAW'!$FO$12:$IQ$12,1,B158-1945) -> 219440473.2 | J158: =INDEX('11. GAW'!$CN$13:$FP$13,1,B158-1945) -> 4909959094 | L158: =INDEX('10. Afschrijvingen voor GAW'!$IS$12:$LU$12,1,B158-1945) -> 178412248.5 | M158: =INDEX('11. GAW'!$FR$13:$IT$13,1,B158-1945) -> 4152447216 | O158: =INDEX('10. Afschrijvingen voor GAW'!$LW$12:$OY$12,1,B158-1945) -> 41028224.67 | P158: =INDEX('11. GAW'!$IV$13:$LX$13,1,B158-1945) -> 757511878.4
B159: 2000 | G159: =INDEX('7. Investeringen per jaar'!$O$12:$CQ$12,1,B159-1945) -> 80327515.51 | I159: =INDEX('10. Afschrijvingen voor GAW'!$FO$12:$IQ$12,1,B159-1945) -> 223985369.8 | J159: =INDEX('11. GAW'!$CN$13:$FP$13,1,B159-1945) -> 4893960177 | L159: =INDEX('10. Afschrijvingen voor GAW'!$IS$12:$LU$12,1,B159-1945) -> 182221088.4 | M159: =INDEX('11. GAW'!$FR$13:$IT$13,1,B159-1945) -> 4151815937 | O159: =INDEX('10. Afschrijvingen voor GAW'!$LW$12:$OY$12,1,B159-1945) -> 41764281.33 | P159: =INDEX('11. GAW'!$IV$13:$LX$13,1,B159-1945) -> 742144239.8
B160: 2001 | G160: =INDEX('7. Investeringen per jaar'!$O$12:$CQ$12,1,B160-1945) -> 65994562.38 | I160: =INDEX('10. Afschrijvingen voor GAW'!$FO$12:$IQ$12,1,B160-1945) -> 224945041.1 | J160: =INDEX('11. GAW'!$CN$13:$FP$13,1,B160-1945) -> 4857358702 | L160: =INDEX('10. Afschrijvingen voor GAW'!$IS$12:$LU$12,1,B160-1945) -> 182777053.6 | M160: =INDEX('11. GAW'!$FR$13:$IT$13,1,B160-1945) -> 4111493715 | O160: =INDEX('10. Afschrijvingen voor GAW'!$LW$12:$OY$12,1,B160-1945) -> 42167987.45 | P160: =INDEX('11. GAW'!$IV$13:$LX$13,1,B160-1945) -> 745864987.7
B161: 2002 | G161: =INDEX('7. Investeringen per jaar'!$O$12:$CQ$12,1,B161-1945) -> 111090390.7 | I161: =INDEX('10. Afschrijvingen voor GAW'!$FO$12:$IQ$12,1,B161-1945) -> 233846205.7 | J161: =INDEX('11. GAW'!$CN$13:$FP$13,1,B161-1945) -> 4962898746 | L161: =INDEX('10. Afschrijvingen voor GAW'!$IS$12:$LU$12,1,B161-1945) -> 189796699.6 | M161: =INDEX('11. GAW'!$FR$13:$IT$13,1,B161-1945) -> 4176551155 | O161: =INDEX('10. Afschrijvingen voor GAW'!$LW$12:$OY$12,1,B161-1945) -> 44049506.09 | P161: =INDEX('11. GAW'!$IV$13:$LX$13,1,B161-1945) -> 786347591.7
B162: 2003 | G162: =INDEX('7. Investeringen per jaar'!$O$12:$CQ$12,1,B162-1945) -> 118652995.6 | I162: =INDEX('10. Afschrijvingen voor GAW'!$FO$12:$IQ$12,1,B162-1945) -> 242554266.9 | J162: =INDEX('11. GAW'!$CN$13:$FP$13,1,B162-1945) -> 5002773134 | L162: =INDEX('10. Afschrijvingen voor GAW'!$IS$12:$LU$12,1,B162-1945) -> 196597705.3 | M162: =INDEX('11. GAW'!$FR$13:$IT$13,1,B162-1945) -> 4190571903 | O162: =INDEX('10. Afschrijvingen voor GAW'!$LW$12:$OY$12,1,B162-1945) -> 45956561.55 | P162: =INDEX('11. GAW'!$IV$13:$LX$13,1,B162-1945) -> 812201230.4
B163: 2004 | G163: =INDEX('7. Investeringen per jaar'!$O$12:$CQ$12,1,B163-1945) -> 91777004.08 | I163: =INDEX('10. Afschrijvingen voor GAW'!$FO$12:$IQ$12,1,B163-1945) -> 243517237.3 | J163: =INDEX('11. GAW'!$CN$13:$FP$13,1,B163-1945) -> 4956091136 | L163: =INDEX('10. Afschrijvingen voor GAW'!$IS$12:$LU$12,1,B163-1945) -> 196985861.2 | M163: =INDEX('11. GAW'!$FR$13:$IT$13,1,B163-1945) -> 4165725479 | O163: =INDEX('10. Afschrijvingen voor GAW'!$LW$12:$OY$12,1,B163-1945) -> 46531376.12 | P163: =INDEX('11. GAW'!$IV$13:$LX$13,1,B163-1945) -> 790365657.5
B164: 2005 | G164: =INDEX('7. Investeringen per jaar'!$O$12:$CQ$12,1,B164-1945) -> 120024188.9 | I164: =INDEX('10. Afschrijvingen voor GAW'!$FO$12:$IQ$12,1,B164-1945) -> 243263350.2 | J164: =INDEX('11. GAW'!$CN$13:$FP$13,1,B164-1945) -> 4887368978 | L164: =INDEX('10. Afschrijvingen voor GAW'!$IS$12:$LU$12,1,B164-1945) -> 197105120.8 | M164: =INDEX('11. GAW'!$FR$13:$IT$13,1,B164-1945) -> 4121437885 | O164: =INDEX('10. Afschrijvingen voor GAW'!$LW$12:$OY$12,1,B164-1945) -> 46158229.45 | P164: =INDEX('11. GAW'!$IV$13:$LX$13,1,B164-1945) -> 765931092.3
B165: 2006 | G165: =INDEX('7. Investeringen per jaar'!$O$12:$CQ$12,1,B165-1945) -> 87326004.8 | I165: =INDEX('10. Afschrijvingen voor GAW'!$FO$12:$IQ$12,1,B165-1945) -> 250387658.9 | J165: =INDEX('11. GAW'!$CN$13:$FP$13,1,B165-1945) -> 4812279965 | L165: =INDEX('10. Afschrijvingen voor GAW'!$IS$12:$LU$12,1,B165-1945) -> 203296380.1 | M165: =INDEX('11. GAW'!$FR$13:$IT$13,1,B165-1945) -> 4044060906 | O165: =INDEX('10. Afschrijvingen voor GAW'!$LW$12:$OY$12,1,B165-1945) -> 47091278.77 | P165: =INDEX('11. GAW'!$IV$13:$LX$13,1,B165-1945) -> 768219058.9
B166: 2007 | G166: =INDEX('7. Investeringen per jaar'!$O$12:$CQ$12,1,B166-1945) -> 451582743.7 | I166: =INDEX('10. Afschrijvingen voor GAW'!$FO$12:$IQ$12,1,B166-1945) -> 257434656.7 | J166: =INDEX('11. GAW'!$CN$13:$FP$13,1,B166-1945) -> 5073799972 | L166: =INDEX('10. Afschrijvingen voor GAW'!$IS$12:$LU$12,1,B166-1945) -> 210829775.8 | M166: =INDEX('11. GAW'!$FR$13:$IT$13,1,B166-1945) -> 4213951513 | O166: =INDEX('10. Afschrijvingen voor GAW'!$LW$12:$OY$12,1,B166-1945) -> 46604880.89 | P166: =INDEX('11. GAW'!$IV$13:$LX$13,1,B166-1945) -> 859848458.2
B167: 2008 | G167: =INDEX('7. Investeringen per jaar'!$O$12:$CQ$12,1,B167-1945) -> 160870990.3 | I167: =INDEX('10. Afschrijvingen voor GAW'!$FO$12:$IQ$12,1,B167-1945) -> 262693548.1 | J167: =INDEX('11. GAW'!$CN$13:$FP$13,1,B167-1945) -> 5027789213 | L167: =INDEX('10. Afschrijvingen voor GAW'!$IS$12:$LU$12,1,B167-1945) -> 216860070.7 | M167: =INDEX('11. GAW'!$FR$13:$IT$13,1,B167-1945) -> 4163771036 | O167: =INDEX('10. Afschrijvingen voor GAW'!$LW$12:$OY$12,1,B167-1945) -> 45833477.47 | P167: =INDEX('11. GAW'!$IV$13:$LX$13,1,B167-1945) -> 864018177.1
B168: 2009 | G168: =INDEX('7. Investeringen per jaar'!$O$12:$CQ$12,1,B168-1945) -> 179493833.5 | I168: =INDEX('10. Afschrijvingen voor GAW'!$FO$12:$IQ$12,1,B168-1945) -> 271742038.1 | J168: =INDEX('11. GAW'!$CN$13:$FP$13,1,B168-1945) -> 5096430264 | L168: =INDEX('10. Afschrijvingen voor GAW'!$IS$12:$LU$12,1,B168-1945) -> 223756582.3 | M168: =INDEX('11. GAW'!$FR$13:$IT$13,1,B168-1945) -> 4195590005 | O168: =INDEX('10. Afschrijvingen voor GAW'!$LW$12:$OY$12,1,B168-1945) -> 47985455.79 | P168: =INDEX('11. GAW'!$IV$13:$LX$13,1,B168-1945) -> 900840259
B169: 2010 | G169: =INDEX('7. Investeringen per jaar'!$O$12:$CQ$12,1,B169-1945) -> 1118849185 | I169: =INDEX('10. Afschrijvingen voor GAW'!$FO$12:$IQ$12,1,B169-1945) -> 282909718.2 | J169: =INDEX('11. GAW'!$CN$13:$FP$13,1,B169-1945) -> 5947659021 | L169: =INDEX('10. Afschrijvingen voor GAW'!$IS$12:$LU$12,1,B169-1945) -> 233068580.4 | M169: =INDEX('11. GAW'!$FR$13:$IT$13,1,B169-1945) -> 4909764961 | O169: =INDEX('10. Afschrijvingen voor GAW'!$LW$12:$OY$12,1,B169-1945) -> 49841137.73 | P169: =INDEX('11. GAW'!$IV$13:$LX$13,1,B169-1945) -> 1037894061
B170: 2011 | G170: =INDEX('7. Investeringen per jaar'!$O$12:$CQ$12,1,B170-1945) -> 787018109.3 | I170: =INDEX('10. Afschrijvingen voor GAW'!$FO$12:$IQ$12,1,B170-1945) -> 308701654.1 | J170: =INDEX('11. GAW'!$CN$13:$FP$13,1,B170-1945) -> 6515190362 | L170: =INDEX('10. Afschrijvingen voor GAW'!$IS$12:$LU$12,1,B170-1945) -> 255740009.5 | M170: =INDEX('11. GAW'!$FR$13:$IT$13,1,B170-1945) -> 5428478051 | O170: =INDEX('10. Afschrijvingen voor GAW'!$LW$12:$OY$12,1,B170-1945) -> 52961644.63 | P170: =INDEX('11. GAW'!$IV$13:$LX$13,1,B170-1945) -> 1086712311
B171: 2012 | G171: =INDEX('7. Investeringen per jaar'!$O$12:$CQ$12,1,B171-1945) -> 415577717.8 | I171: =INDEX('10. Afschrijvingen voor GAW'!$FO$12:$IQ$12,1,B171-1945) -> 331721884.6 | J171: =INDEX('11. GAW'!$CN$13:$FP$13,1,B171-1945) -> 6768441145 | L171: =INDEX('10. Afschrijvingen voor GAW'!$IS$12:$LU$12,1,B171-1945) -> 272854139.6 | M171: =INDEX('11. GAW'!$FR$13:$IT$13,1,B171-1945) -> 5507147244 | O171: =INDEX('10. Afschrijvingen voor GAW'!$LW$12:$OY$12,1,B171-1945) -> 58867744.99 | P171: =INDEX('11. GAW'!$IV$13:$LX$13,1,B171-1945) -> 1261293901
B172: 2013 | G172: =INDEX('7. Investeringen per jaar'!$O$12:$CQ$12,1,B172-1945) -> 359525492.9 | I172: =INDEX('10. Afschrijvingen voor GAW'!$FO$12:$IQ$12,1,B172-1945) -> 344773908.4 | J172: =INDEX('11. GAW'!$CN$13:$FP$13,1,B172-1945) -> 6938866875 | L172: =INDEX('10. Afschrijvingen voor GAW'!$IS$12:$LU$12,1,B172-1945) -> 280576115.6 | M172: =INDEX('11. GAW'!$FR$13:$IT$13,1,B172-1945) -> 5649177883 | O172: =INDEX('10. Afschrijvingen voor GAW'!$LW$12:$OY$12,1,B172-1945) -> 64197792.85 | P172: =INDEX('11. GAW'!$IV$13:$LX$13,1,B172-1945) -> 1289688993
B173: 2014 | G173: =INDEX('7. Investeringen per jaar'!$O$12:$CQ$12,1,B173-1945) -> 598545115.1 | I173: =INDEX('10. Afschrijvingen voor GAW'!$FO$12:$IQ$12,1,B173-1945) -> 364280583.1 | J173: =INDEX('11. GAW'!$CN$13:$FP$13,1,B173-1945) -> 7367419680 | L173: =INDEX('10. Afschrijvingen voor GAW'!$IS$12:$LU$12,1,B173-1945) -> 296930981 | M173: =INDEX('11. GAW'!$FR$13:$IT$13,1,B173-1945) -> 6053986316 | O173: =INDEX('10. Afschrijvingen voor GAW'!$LW$12:$OY$12,1,B173-1945) -> 67349602.05 | P173: =INDEX('11. GAW'!$IV$13:$LX$13,1,B173-1945) -> 1313433364
B174: 2015 | G174: =INDEX('7. Investeringen per jaar'!$O$12:$CQ$12,1,B174-1945) -> 235984153.4 | I174: =INDEX('10. Afschrijvingen voor GAW'!$FO$12:$IQ$12,1,B174-1945) -> 377226445.1 | J174: =INDEX('11. GAW'!$CN$13:$FP$13,1,B174-1945) -> 7299851585 | L174: =INDEX('10. Afschrijvingen voor GAW'!$IS$12:$LU$12,1,B174-1945) -> 308295879 | M174: =INDEX('11. GAW'!$FR$13:$IT$13,1,B174-1945) -> 6004003288 | O174: =INDEX('10. Afschrijvingen voor GAW'!$LW$12:$OY$12,1,B174-1945) -> 68930566.06 | P174: =INDEX('11. GAW'!$IV$13:$LX$13,1,B174-1945) -> 1295848297
B175: 2016 | G175: =INDEX('7. Investeringen per jaar'!$O$12:$CQ$12,1,B175-1945) -> 228156581.2 | I175: =INDEX('10. Afschrijvingen voor GAW'!$FO$12:$IQ$12,1,B175-1945) -> 382348369.3 | J175: =INDEX('11. GAW'!$CN$13:$FP$13,1,B175-1945) -> 7204058610 | L175: =INDEX('10. Afschrijvingen voor GAW'!$IS$12:$LU$12,1,B175-1945) -> 312350084.4 | M175: =INDEX('11. GAW'!$FR$13:$IT$13,1,B175-1945) -> 5912314993 | O175: =INDEX('10. Afschrijvingen voor GAW'!$LW$12:$OY$12,1,B175-1945) -> 69998284.94 | P175: =INDEX('11. GAW'!$IV$13:$LX$13,1,B175-1945) -> 1291743616
B176: 2017 | G176: =INDEX('7. Investeringen per jaar'!$O$12:$CQ$12,1,B176-1945) -> 206143799.3 | I176: =INDEX('10. Afschrijvingen voor GAW'!$FO$12:$IQ$12,1,B176-1945) -> 383446532 | J176: =INDEX('11. GAW'!$CN$13:$FP$13,1,B176-1945) -> 7041163994 | L176: =INDEX('10. Afschrijvingen voor GAW'!$IS$12:$LU$12,1,B176-1945) -> 312759497.6 | M176: =INDEX('11. GAW'!$FR$13:$IT$13,1,B176-1945) -> 5774715893 | O176: =INDEX('10. Afschrijvingen voor GAW'!$LW$12:$OY$12,1,B176-1945) -> 70687034.46 | P176: =INDEX('11. GAW'!$IV$13:$LX$13,1,B176-1945) -> 1266448102
B177: 2018 | G177: =INDEX('7. Investeringen per jaar'!$O$12:$CQ$12,1,B177-1945) -> 298464735.1 | I177: =INDEX('10. Afschrijvingen voor GAW'!$FO$12:$IQ$12,1,B177-1945) -> 391314047.7 | J177: =INDEX('11. GAW'!$CN$13:$FP$13,1,B177-1945) -> 7046890977 | L177: =INDEX('10. Afschrijvingen voor GAW'!$IS$12:$LU$12,1,B177-1945) -> 319619654.5 | M177: =INDEX('11. GAW'!$FR$13:$IT$13,1,B177-1945) -> 5751077896 | O177: =INDEX('10. Afschrijvingen voor GAW'!$LW$12:$OY$12,1,B177-1945) -> 71694393.12 | P177: =INDEX('11. GAW'!$IV$13:$LX$13,1,B177-1945) -> 1295813081
B178: 2019 | G178: =INDEX('7. Investeringen per jaar'!$O$12:$CQ$12,1,B178-1945) -> 92945070.05 | I178: =INDEX('10. Afschrijvingen voor GAW'!$FO$12:$IQ$12,1,B178-1945) -> 389049738.3 | J178: =INDEX('11. GAW'!$CN$13:$FP$13,1,B178-1945) -> 6835349001 | L178: =INDEX('10. Afschrijvingen voor GAW'!$IS$12:$LU$12,1,B178-1945) -> 316708630.4 | M178: =INDEX('11. GAW'!$FR$13:$IT$13,1,B178-1945) -> 5569530624 | O178: =INDEX('10. Afschrijvingen voor GAW'!$LW$12:$OY$12,1,B178-1945) -> 72341107.86 | P178: =INDEX('11. GAW'!$IV$13:$LX$13,1,B178-1945) -> 1265818377
B179: 2020 | G179: =INDEX('7. Investeringen per jaar'!$O$12:$CQ$12,1,B179-1945) -> 208937580 | I179: =INDEX('10. Afschrijvingen voor GAW'!$FO$12:$IQ$12,1,B179-1945) -> 388976879.6 | J179: =INDEX('11. GAW'!$CN$13:$FP$13,1,B179-1945) -> 6833028775 | L179: =INDEX('10. Afschrijvingen voor GAW'!$IS$12:$LU$12,1,B179-1945) -> 315398830.7 | M179: =INDEX('11. GAW'!$FR$13:$IT$13,1,B179-1945) -> 5554461065 | O179: =INDEX('10. Afschrijvingen voor GAW'!$LW$12:$OY$12,1,B179-1945) -> 73578048.86 | P179: =INDEX('11. GAW'!$IV$13:$LX$13,1,B179-1945) -> 1278567711 | R179: =SUMPRODUCT(('7. Investeringen per jaar'!$C$1546:$C$1685=2020)*('7. Investeringen per jaar'!$I$1546:$I$1685=1)*('7. Investeringen per jaar'!$CK$1546:$CK$1685)) -> 155521475.3 | T179: =SUMPRODUCT(('7. Investeringen per jaar'!$C$1546:$C$1685=2020)*('7. Investeringen per jaar'!$I$1546:$I$1685=0)*('7. Investeringen per jaar'!$CK$1546:$CK$1685)) -> 53416104.69
B180: 2021 | G180: =INDEX('7. Investeringen per jaar'!$O$12:$CQ$12,1,B180-1945) -> 212068300.7 | I180: =INDEX('10. Afschrijvingen voor GAW'!$FO$12:$IQ$12,1,B180-1945) -> 390810355.2 | J180: =INDEX('11. GAW'!$CN$13:$FP$13,1,B180-1945) -> 6763615181 | L180: =INDEX('10. Afschrijvingen voor GAW'!$IS$12:$LU$12,1,B180-1945) -> 315517217.4 | M180: =INDEX('11. GAW'!$FR$13:$IT$13,1,B180-1945) -> 5485667033 | O180: =INDEX('10. Afschrijvingen voor GAW'!$LW$12:$OY$12,1,B180-1945) -> 75293137.79 | P180: =INDEX('11. GAW'!$IV$13:$LX$13,1,B180-1945) -> 1277948148 | R180: =SUMPRODUCT(('7. Investeringen per jaar'!$C$1546:$C$1685=2021)*('7. Investeringen per jaar'!$I$1546:$I$1685=1)*('7. Investeringen per jaar'!$CL$1546:$CL$1685)) -> 157851809.1 | T180: =SUMPRODUCT(('7. Investeringen per jaar'!$C$1546:$C$1685=2021)*('7. Investeringen per jaar'!$I$1546:$I$1685=0)*('7. Investeringen per jaar'!$CL$1546:$CL$1685)) -> 54216491.6
B181: 2022 | G181: =INDEX('7. Investeringen per jaar'!$O$12:$CQ$12,1,B181-1945) -> 214810767.9 | I181: =INDEX('10. Afschrijvingen voor GAW'!$FO$12:$IQ$12,1,B181-1945) -> 473518730.6 | J181: =INDEX('11. GAW'!$CN$13:$FP$13,1,B181-1945) -> 6504907219 | L181: =INDEX('10. Afschrijvingen voor GAW'!$IS$12:$LU$12,1,B181-1945) -> 377420426 | M181: =INDEX('11. GAW'!$FR$13:$IT$13,1,B181-1945) -> 5268139756 | O181: =INDEX('10. Afschrijvingen voor GAW'!$LW$12:$OY$12,1,B181-1945) -> 96098304.62 | P181: =INDEX('11. GAW'!$IV$13:$LX$13,1,B181-1945) -> 1236767463 | R181: =SUMPRODUCT(('7. Investeringen per jaar'!$C$1546:$C$1685=2022)*('7. Investeringen per jaar'!$I$1546:$I$1685=1)*('7. Investeringen per jaar'!$CM$1546:$CM$1685)) -> 159893148.7 | T181: =SUMPRODUCT(('7. Investeringen per jaar'!$C$1546:$C$1685=2022)*('7. Investeringen per jaar'!$I$1546:$I$1685=0)*('7. Investeringen per jaar'!$CM$1546:$CM$1685)) -> 54917619.27
B182: 2023 | G182: =INDEX('7. Investeringen per jaar'!$O$12:$CQ$12,1,B182-1945) -> 217588700.8 | I182: =INDEX('10. Afschrijvingen voor GAW'!$FO$12:$IQ$12,1,B182-1945) -> 398979609.2 | J182: =INDEX('11. GAW'!$CN$13:$FP$13,1,B182-1945) -> 6323516310 | L182: =INDEX('10. Afschrijvingen voor GAW'!$IS$12:$LU$12,1,B182-1945) -> 314465977.8 | M182: =INDEX('11. GAW'!$FR$13:$IT$13,1,B182-1945) -> 5115634665 | O182: =INDEX('10. Afschrijvingen voor GAW'!$LW$12:$OY$12,1,B182-1945) -> 84513631.42 | P182: =INDEX('11. GAW'!$IV$13:$LX$13,1,B182-1945) -> 1207881645 | R182: =SUMPRODUCT(('7. Investeringen per jaar'!$C$1546:$C$1685=2023)*('7. Investeringen per jaar'!$I$1546:$I$1685=1)*('7. Investeringen per jaar'!$CN$1546:$CN$1685)) -> 161960886.9 | T182: =SUMPRODUCT(('7. Investeringen per jaar'!$C$1546:$C$1685=2023)*('7. Investeringen per jaar'!$I$1546:$I$1685=0)*('7. Investeringen per jaar'!$CN$1546:$CN$1685)) -> 55627813.93
B183: 2024 | G183: =INDEX('7. Investeringen per jaar'!$O$12:$CQ$12,1,B183-1945) -> 220402557.9 | I183: =INDEX('10. Afschrijvingen voor GAW'!$FO$12:$IQ$12,1,B183-1945) -> 380611179.2 | J183: =INDEX('11. GAW'!$CN$13:$FP$13,1,B183-1945) -> 6163307689 | L183: =INDEX('10. Afschrijvingen voor GAW'!$IS$12:$LU$12,1,B183-1945) -> 298799911.2 | M183: =INDEX('11. GAW'!$FR$13:$IT$13,1,B183-1945) -> 4980890119 | O183: =INDEX('10. Afschrijvingen voor GAW'!$LW$12:$OY$12,1,B183-1945) -> 81811268.05 | P183: =INDEX('11. GAW'!$IV$13:$LX$13,1,B183-1945) -> 1182417570 | R183: =SUMPRODUCT(('7. Investeringen per jaar'!$C$1546:$C$1685=2024)*('7. Investeringen per jaar'!$I$1546:$I$1685=1)*('7. Investeringen per jaar'!$CO$1546:$CO$1685)) -> 164055365 | T183: =SUMPRODUCT(('7. Investeringen per jaar'!$C$1546:$C$1685=2024)*('7. Investeringen per jaar'!$I$1546:$I$1685=0)*('7. Investeringen per jaar'!$CO$1546:$CO$1685)) -> 56347192.82
B184: 2025 | G184: =INDEX('7. Investeringen per jaar'!$O$12:$CQ$12,1,B184-1945) -> 223252803.7 | I184: =INDEX('10. Afschrijvingen voor GAW'!$FO$12:$IQ$12,1,B184-1945) -> 367947184.2 | J184: =INDEX('11. GAW'!$CN$13:$FP$13,1,B184-1945) -> 6018613308 | L184: =INDEX('10. Afschrijvingen voor GAW'!$IS$12:$LU$12,1,B184-1945) -> 289391307.9 | M184: =INDEX('11. GAW'!$FR$13:$IT$13,1,B184-1945) -> 4857675740 | O184: =INDEX('10. Afschrijvingen voor GAW'!$LW$12:$OY$12,1,B184-1945) -> 78555876.34 | P184: =INDEX('11. GAW'!$IV$13:$LX$13,1,B184-1945) -> 1160937568 | R184: =SUMPRODUCT(('7. Investeringen per jaar'!$C$1546:$C$1685=2025)*('7. Investeringen per jaar'!$I$1546:$I$1685=1)*('7. Investeringen per jaar'!$CP$1546:$CP$1685)) -> 166176929 | T184: =SUMPRODUCT(('7. Investeringen per jaar'!$C$1546:$C$1685=2025)*('7. Investeringen per jaar'!$I$1546:$I$1685=0)*('7. Investeringen per jaar'!$CP$1546:$CP$1685)) -> 57075874.71
B185: 2026 | G185: =INDEX('7. Investeringen per jaar'!$O$12:$CQ$12,1,B185-1945) -> 226139909 | I185: =INDEX('10. Afschrijvingen voor GAW'!$FO$12:$IQ$12,1,B185-1945) -> 352213740.1 | J185: =INDEX('11. GAW'!$CN$13:$FP$13,1,B185-1945) -> 5892539477 | L185: =INDEX('10. Afschrijvingen voor GAW'!$IS$12:$LU$12,1,B185-1945) -> 277248834.7 | M185: =INDEX('11. GAW'!$FR$13:$IT$13,1,B185-1945) -> 4748752835 | O185: =INDEX('10. Afschrijvingen voor GAW'!$LW$12:$OY$12,1,B185-1945) -> 74964905.45 | P185: =INDEX('11. GAW'!$IV$13:$LX$13,1,B185-1945) -> 1143786643 | R185: =SUMPRODUCT(('7. Investeringen per jaar'!$C$1546:$C$1685=2026)*('7. Investeringen per jaar'!$I$1546:$I$1685=1)*('7. Investeringen per jaar'!$CQ$1546:$CQ$1685)) -> 168325929.1 | T185: =SUMPRODUCT(('7. Investeringen per jaar'!$C$1546:$C$1685=2026)*('7. Investeringen per jaar'!$I$1546:$I$1685=0)*('7. Investeringen per jaar'!$CQ$1546:$CQ$1685)) -> 57813979.93

Sheet Input -->

Sheet 2. Reguleringsparameters
B2: Tabel 2 - Reguleringsparameters
B4: Beschrijving gegevens
B5: Op dit tabblad staat een overzicht van de gegevens voor de activaklassen met de bijbehorende afschrijvingstermijn, wettelijke taak en de mate waarin de activaklasse binnen scope is. De wettelijke taken van GTS zijn: de transporttaak (TT), de balanceringstaak (BT), de aansluittaak (AT) en de kwaliteitsconversietaak (KC). Daarnaast staat op dit tabblad de versnellingsfactor, het percentage van de investeringen dat is uitgezonderd voor versneld afschrijven, de correctiefactor voor het moment van investeren, de CPI en de frontier shift. De parameters worden gebruikt bij de berekening van de GAW-waarde en afschrijvingen van GTS. De bron van de parameters staat naast de parameter vermeld. Indien één van deze parameters op een ander tabblad wordt gebruikt in berekeningen wordt naar dit tabblad (Parameters) verwezen.
B7: Activaklasse | C7: Afschrijvingstermijn | D7: Wettelijke taak | E7: Binnen scope?
B9: 01 Regionale leidingen | C9: 55 | D9: TT-BT-AT | E9: 1
B10: 01 Regionale leidingen (Waterkruisingen) | C10: 55 | D10: TT-BT-AT | E10: 0
B11: 01 Regionale leidingen (gaschromatografen en comptabele meters) | C11: 55 | D11: TT-BT-AT | E11: 0
B12: 02 Gasontvangststations | C12: 30 | D12: TT-BT-AT | E12: 0
B13: 02 Gasontvangststations (EHD) | C13: 30 | D13: TT-BT-AT | E13: 0
B14: 03 Verremeting | C14: 5 | D14: TT-BT-AT | E14: 1
B15: 04 Terreinen | C15: 0 | D15: TT-BT-AT | E15: 0
B16: 04 Terreinen (EHD) | C16: 0 | D16: TT-BT-AT | E16: 0
B17: 05 Wegen en terreinvoorzieningen | C17: 10 | D17: TT-BT-AT | E17: 0
B18: 05 Wegen en terreinvoorzieningen (LNG) | C18: 10 | D18: KC | E18: 0
B19: 06 Utiliteitsgebouwen | C19: 30 | D19: TT-BT-AT | E19: 0
B20: 06 Utiliteitsgebouwen (EHD) | C20: 30 | D20: TT-BT-AT | E20: 0
B21: 06 Utiliteitsgebouwen (LNG) | C21: 30 | D21: KC | E21: 0
B22: 07 Dienstwoningen | C22: 55 | D22: TT-BT-AT | E22: 0
B23: 08 Inrichting gebouwen | C23: 10 | D23: TT-BT-AT | E23: 0
B24: 09 Bedrijfsinventaris | C24: 10 | D24: TT-BT-AT | E24: 1
B25: 10 Gereedschap | C25: 10 | D25: TT-BT-AT | E25: 1
B26: 10 Gereedschap (LNG) | C26: 10 | D26: KC | E26: 0
B27: 10 Gereedschap (odorisatie) | C27: 10 | D27: TT-BT-AT | E27: 0
B28: 10 Gereedschap (gaschromatografen en comptabele meters) | C28: 10 | D28: TT-BT-AT | E28: 0
B29: 11 Werktuigen | C29: 10 | D29: TT-BT-AT | E29: 1
B30: 11 Werktuigen (gaschromatografen en comptabele meters) | C30: 10 | D30: TT-BT-AT | E30: 0
B31: 11 Werktuigen (odorisatie) | C31: 10 | D31: TT-BT-AT | E31: 0
B32: 11 Werktuigen (KC) | C32: 10 | D32: KC | E32: 0
B33: 12 Motorvoertuigen | C33: 10 | D33: TT-BT-AT | E33: 1
B34: 13 Aanhangwagens | C34: 10 | D34: TT-BT-AT | E34: 1
B35: 13 Aanhangwagens (gaschromatografen en comptabele meters) | C35: 10 | D35: TT-BT-AT | E35: 0
B36: 14 Overig rollend materieel | C36: 10 | D36: TT-BT-AT | E36: 1
B37: 14 Overig rollend materieel (odorisatie) | C37: 10 | D37: TT-BT-AT | E37: 0
B38: 14 Overig rollend materieel (gaschromatografen en comptabele meters) | C38: 10 | D38: TT-BT-AT | E38: 0
B39: 15 Compressorstations (TT-BT-AT) | C39: 30 | D39: TT-BT-AT | E39: 1
B40: 15 Compressorstations (TT-BT-AT) (gaschromatografen en comptabele meters) | C40: 30 | D40: TT-BT-AT | E40: 0
B41: 15 Compressorstations (KC) | C41: 30 | D41: KC | E41: 0
B42: 16 LNG installaties | C42: 30 | D42: KC | E42: 0
B43: 17 Mengstations | C43: 30 | D43: KC | E43: 0
B44: 18 Ijkinstallaties | C44: 30 | D44: TT-BT-AT | E44: 1
B45: 19 Stortgasinstallaties | C45: 30 | D45: TT-BT-AT | E45: 1
B46: 20 Kantoorgebouwen | C46: 30 | D46: TT-BT-AT | E46: 0
B47: 21 Hoofdtransportleiding | C47: 55 | D47: TT-BT-AT | E47: 1
B48: 21 Hoofdtransportleiding (waterkruisingen) | C48: 55 | D48: TT-BT-AT | E48: 0
B49: 21 Hoofdtransportleiding (gaschromatografen en comptabele meting) | C49: 55 | D49: TT-BT-AT | E49: 0
B50: 21 Hoofdtransportleiding (EHD) | C50: 55 | D50: TT-BT-AT | E50: 0
B51: 22 Regionaal hoofdtransportnet | C51: 55 | D51: TT-BT-AT | E51: 1
B52: 23 Brigittaleiding | C52: 55 | D52: TT-BT-AT | E52: 1
B53: 32 M&R stations | C53: 30 | D53: TT-BT-AT | E53: 1
B54: 32 M&R stations (gaschromatografen en comptabele meting) | C54: 30 | D54: TT-BT-AT | E54: 0
B55: 32 M&R stations (odorisatie) | C55: 30 | D55: TT-BT-AT | E55: 0
B56: 33 Exportstations | C56: 30 | D56: TT-BT-AT | E56: 1
B57: 33 Exportstations (gaschromatografen en comptabele meting) | C57: 30 | D57: TT-BT-AT | E57: 0
B58: 34 Reduceerstations | C58: 30 | D58: TT-BT-AT | E58: 1
B59: 34 Reduceerstations (gaschromatografen en comptabele meting) | C59: 30 | D59: TT-BT-AT | E59: 0
B60: 34 Reduceerstations (EHD) | C60: 30 | D60: TT-BT-AT | E60: 0
B61: 35 Injectiestations | C61: 30 | D61: TT-BT-AT | E61: 1
B62: 36 Luchtscheidingsunit | C62: 30 | D62: KC | E62: 0
B63: 37 ICT middelen 1 | C63: 5 | D63: TT-BT-AT | E63: 1
B64: 37 ICT middelen 1 (transparency) | C64: 5 | D64: TT-BT-AT | E64: 0
B65: 37 ICT middelen 1 (gaschromatografen en comptabele meting) | C65: 5 | D65: TT-BT-AT | E65: 0
B66: 37 ICT middelen 1 (KC) | C66: 5 | D66: KC | E66: 0
B67: 37 ICT middelen 1 (balancering) | C67: 5 | D67: TT-BT-AT | E67: 0
B68: 38 ICT middelen 2 | C68: 10 | D68: TT-BT-AT | E68: 1
B69: 39 ICT middelen 3 | C69: 15 | D69: TT-BT-AT | E69: 1
B70: 39 ICT middelen 3 (KC) | C70: 15 | D70: KC | E70: 0
B71: 39 ICT middelen 3 (balancering) | C71: 15 | D71: TT-BT-AT | E71: 0
B72: 40 Aansluitpunten | C72: 55 | D72: TT-BT-AT | E72: 1
B73: 41 Stikstofbuffer | C73: 30 | D73: KC | E73: 0
B74: 42 Vulgas | C74: 0 | D74: TT-BT-AT | E74: 0
B75: 42 Vulgas (EHD) | C75: 0 | D75: TT-BT-AT | E75: 0
B76: 43 Stikstof | C76: 0 | D76: KC | E76: 0
B77: 44 Stikstofleiding | C77: 55 | D77: KC | E77: 0
B78: 45 Groen gas booster | C78: 30 | D78: TT-BT-AT | E78: 0
B80: Factor versneld afschrijven | F80: Bron | CG80: Bron
B82: Factor versneld afschrijven
B83: Versnellingsfactor vanaf 2022 | D83: 1.3 | F83: Methodebesluit GTS | CG83: Methodebesluit GTS
B85: Correctie investeringsmoment | H85: Opmerking
B87: Correctie investeringsmoment
B88: Correctiefactor halfjaarlijkse investeringen | D88: 0.5 | H88: De ACM neemt voor alle investeringen aan dat zij halverwege het jaar worden gedaan. Daarom wordt een correctiefactor met waarde 0,5 toegepast.
B90: Percentage investeringen uitgezonderd van versnelling | H90: Opmerking
B92: Percentage investeringen uitgezonderd van versnelling
B93: Percentage investeringen uitgezonderd van versnelling | D93: 0.1 | F93: Methodebesluit GTS
B95: Gemiddelde investeringskosten voor een aansluiting | C95: Eenheid | D95: Constante | F95: Bron
B97: Industrie
B98: Gemiddelde kosten aansluitleiding | C98: EUR, pp 2020 | D98: 1059339 | F98: Tarievenbesluit GTS 2020
B99: Gemiddelde kosten GOS | C99: EUR, pp 2020 | D99: 718787 | F99: Tarievenbesluit GTS 2020
B101: Invoeder
B102: Gemiddelde kosten aansluitleiding | C102: EUR, pp 2020 | D102: 1823110 | F102: Tarievenbesluit GTS 2020
B104: Wijziging aansluiting
B105: Gemiddelde kosten wijziging aansluiting | C105: EUR, pp 2020 | D105: 278000 | F105: Tarievenbesluit GTS 2020
B107: CPI | C107: 1946 | D107: 1947 | E107: 1948 | F107: 1949 | G107: 1950 | H107: 1951 | I107: 1952 | J107: 1953 | K107: 1954 | L107: 1955 | M107: 1956 | N107: 1957 | O107: 1958 | P107: 1959 | Q107: 1960 | R107: 1961 | S107: 1962 | T107: 1963 | U107: 1964 | V107: 1965 | W107: 1966 | X107: 1967 | Y107: 1968 | Z107: 1969 | AA107: 1970 | AB107: 1971 | AC107: 1972 | AD107: 1973 | AE107: 1974 | AF107: 1975 | AG107: 1976 | AH107: 1977 | AI107: 1978 | AJ107: 1979 | AK107: 1980 | AL107: 1981 | AM107: 1982 | AN107: 1983 | AO107: 1984 | AP107: 1985 | AQ107: 1986 | AR107: 1987 | AS107: 1988 | AT107: 1989 | AU107: 1990 | AV107: 1991 | AW107: 1992 | AX107: 1993 | AY107: 1994 | AZ107: 1995 | BA107: 1996 | BB107: 1997 | BC107: 1998 | BD107: 1999 | BE107: 2000 | BF107: 2001 | BG107: 2002 | BH107: 2003 | BI107: 2004 | BJ107: 2005 | BK107: 2006 | BL107: 2007 | BM107: 2008 | BN107: 2009 | BO107: 2010 | BP107: 2011 | BQ107: 2012 | BR107: 2013 | BS107: 2014 | BT107: 2015 | BU107: 2016 | BV107: 2017 | BW107: 2018 | BX107: 2019 | BY107: 2020 | BZ107: 2021 | CA107: 2022 | CB107: 2023 | CC107: 2024 | CD107: 2025 | CE107: 2026
B109: CPI
B110: CPI jaar t | C110: 0.09083007388 | D110: 0.03625498008 | E110: 0.03537101115 | F110: 0.06312662458 | G110: 0.09116311561 | H110: 0.09635083227 | I110: 0 | J110: 0 | K110: 0.04 | L110: 0.01909039865 | M110: 0.01900826446 | N110: 0.06488240065 | O110: 0.01726326479 | P110: 0.008485150986 | Q110: 0.02548874041 | R110: 0.01665057915 | S110: 0.0192262046 | T110: 0.0381928272 | U110: 0.019 | V110: 0.084 | W110: 0.043 | X110: 0.058 | Y110: 0.039 | Z110: 0.033 | AA110: 0.069 | AB110: 0.054 | AC110: 0.076 | AD110: 0.074 | AE110: 0.081 | AF110: 0.098 | AG110: 0.107 | AH110: 0.083 | AI110: 0.068 | AJ110: 0.042 | AK110: 0.038 | AL110: 0.071 | AM110: 0.064 | AN110: 0.059 | AO110: 0.026 | AP110: 0.028 | AQ110: 0.023 | AR110: -0.005 | AS110: 0.002 | AT110: 0.009 | AU110: 0.011 | AV110: 0.024 | AW110: 0.046 | AX110: 0.035 | AY110: 0.02 | AZ110: 0.026 | BA110: 0.015 | BB110: 0.019 | BC110: 0.026 | BD110: 0.017 | BE110: 0.026 | BF110: 0.025 | BG110: 0.047 | BH110: 0.033 | BI110: 0.021 | BJ110: 0.011 | BK110: 0.018 | BL110: 0.014 | BM110: 0.011 | BN110: 0.032 | BO110: 0.003 | BP110: 0.015 | BQ110: 0.026 | BR110: 0.023 | BS110: 0.028 | BT110: 0.01 | BU110: 0.008 | BV110: 0.002 | BW110: 0.014 | BX110: 0.012 | BY110: 0.026 | BZ110: 0.016 | CA110: 0.017 | CB110: 0.017 | CC110: 0.017 | CD110: 0.017 | CE110: 0.017 | CG110: Tot en met 2021: CBS. Vanaf 2022: Methodebesluit GTS
B112: Frontier shift | C112: 1946 | D112: 1947 | E112: 1948 | F112: 1949 | G112: 1950 | H112: 1951 | I112: 1952 | J112: 1953 | K112: 1954 | L112: 1955 | M112: 1956 | N112: 1957 | O112: 1958 | P112: 1959 | Q112: 1960 | R112: 1961 | S112: 1962 | T112: 1963 | U112: 1964 | V112: 1965 | W112: 1966 | X112: 1967 | Y112: 1968 | Z112: 1969 | AA112: 1970 | AB112: 1971 | AC112: 1972 | AD112: 1973 | AE112: 1974 | AF112: 1975 | AG112: 1976 | AH112: 1977 | AI112: 1978 | AJ112: 1979 | AK112: 1980 | AL112: 1981 | AM112: 1982 | AN112: 1983 | AO112: 1984 | AP112: 1985 | AQ112: 1986 | AR112: 1987 | AS112: 1988 | AT112: 1989 | AU112: 1990 | AV112: 1991 | AW112: 1992 | AX112: 1993 | AY112: 1994 | AZ112: 1995 | BA112: 1996 | BB112: 1997 | BC112: 1998 | BD112: 1999 | BE112: 2000 | BF112: 2001 | BG112: 2002 | BH112: 2003 | BI112: 2004 | BJ112: 2005 | BK112: 2006 | BL112: 2007 | BM112: 2008 | BN112: 2009 | BO112: 2010 | BP112: 2011 | BQ112: 2012 | BR112: 2013 | BS112: 2014 | BT112: 2015 | BU112: 2016 | BV112: 2017 | BW112: 2018 | BX112: 2019 | BY112: 2020 | BZ112: 2021 | CA112: 2022 | CB112: 2023 | CC112: 2024 | CD112: 2025 | CE112: 2026
B114: Frontier shift
B115: Frontier shift | BV115: 0.001 | BW115: 0.001 | BX115: 0.001 | BY115: 0.001 | BZ115: 0.001 | CA115: 0.004 | CB115: 0.004 | CC115: 0.004 | CD115: 0.004 | CE115: 0.004 | CG115: Methodebesluit GTS
B117: Aantal nieuwe aansluitpunten GTS | C117: 1946 | D117: 1947 | E117: 1948 | F117: 1949 | G117: 1950 | H117: 1951 | I117: 1952 | J117: 1953 | K117: 1954 | L117: 1955 | M117: 1956 | N117: 1957 | O117: 1958 | P117: 1959 | Q117: 1960 | R117: 1961 | S117: 1962 | T117: 1963 | U117: 1964 | V117: 1965 | W117: 1966 | X117: 1967 | Y117: 1968 | Z117: 1969 | AA117: 1970 | AB117: 1971 | AC117: 1972 | AD117: 1973 | AE117: 1974 | AF117: 1975 | AG117: 1976 | AH117: 1977 | AI117: 1978 | AJ117: 1979 | AK117: 1980 | AL117: 1981 | AM117: 1982 | AN117: 1983 | AO117: 1984 | AP117: 1985 | AQ117: 1986 | AR117: 1987 | AS117: 1988 | AT117: 1989 | AU117: 1990 | AV117: 1991 | AW117: 1992 | AX117: 1993 | AY117: 1994 | AZ117: 1995 | BA117: 1996 | BB117: 1997 | BC117: 1998 | BD117: 1999 | BE117: 2000 | BF117: 2001 | BG117: 2002 | BH117: 2003 | BI117: 2004 | BJ117: 2005 | BK117: 2006 | BL117: 2007 | BM117: 2008 | BN117: 2009 | BO117: 2010 | BP117: 2011 | BQ117: 2012 | BR117: 2013 | BS117: 2014 | BT117: 2015 | BU117: 2016 | BV117: 2017 | BW117: 2018 | BX117: 2019 | BY117: 2020 | BZ117: 2021 | CA117: 2022 | CB117: 2023 | CC117: 2024 | CD117: 2025 | CE117: 2026
B119: Aantal nieuwe aansluitpunten industrie | BV119: 0 | BW119: 0 | BX119: 0 | CG119: Kostenbestand
B120: Aantal nieuwe aansluitpunten invoeders | BV120: 0 | BW120: 2 | BX120: 1 | CG120: Kostenbestand
B122: Aantal gewijzigde aansluitpunten GTS | C122: 1946 | D122: 1947 | E122: 1948 | F122: 1949 | G122: 1950 | H122: 1951 | I122: 1952 | J122: 1953 | K122: 1954 | L122: 1955 | M122: 1956 | N122: 1957 | O122: 1958 | P122: 1959 | Q122: 1960 | R122: 1961 | S122: 1962 | T122: 1963 | U122: 1964 | V122: 1965 | W122: 1966 | X122: 1967 | Y122: 1968 | Z122: 1969 | AA122: 1970 | AB122: 1971 | AC122: 1972 | AD122: 1973 | AE122: 1974 | AF122: 1975 | AG122: 1976 | AH122: 1977 | AI122: 1978 | AJ122: 1979 | AK122: 1980 | AL122: 1981 | AM122: 1982 | AN122: 1983 | AO122: 1984 | AP122: 1985 | AQ122: 1986 | AR122: 1987 | AS122: 1988 | AT122: 1989 | AU122: 1990 | AV122: 1991 | AW122: 1992 | AX122: 1993 | AY122: 1994 | AZ122: 1995 | BA122: 1996 | BB122: 1997 | BC122: 1998 | BD122: 1999 | BE122: 2000 | BF122: 2001 | BG122: 2002 | BH122: 2003 | BI122: 2004 | BJ122: 2005 | BK122: 2006 | BL122: 2007 | BM122: 2008 | BN122: 2009 | BO122: 2010 | BP122: 2011 | BQ122: 2012 | BR122: 2013 | BS122: 2014 | BT122: 2015 | BU122: 2016 | BV122: 2017 | BW122: 2018 | BX122: 2019 | BY122: 2020 | BZ122: 2021 | CA122: 2022 | CB122: 2023 | CC122: 2024 | CD122: 2025 | CE122: 2026
B124: Aantal gewijzigde aansluitpunten | BV124: 0 | BW124: 2 | BX124: 3 | CG124: Kostenbestand

Sheet 3. Investeringen
B2: Tabel 3 - Investeringen
B4: Beschrijving gegevens
B5: Dit tabblad toont de investeringen per activaklasse per jaar. Er bestaat een onderscheid tussen vervangingsinvesteringen (VVI), reguliere uitbreidingsinvesteringen (RUI) en wettelijk uitgezonderde uitbreidingsinvesteringen (WUI). Tot 2005 bestaat geen onderscheid tussen verangingsinvesteringen en uitbreidingsinvesteringen. Alle investeringen van vóór 2005 vallen daarom onder "Restcategorie (VVI/UI)". Tot 2013 bestaat geen onderscheid tussen reguliere en wettelijke uitgezonderde uitbreidingsinvesteringen, en uitbreidingsinvesteringen tot die tijd vallen dus onder "WUI/RUI".
B7: Toelichting bij bijzonderheden
B8: De taak en de afschrijvingstermijn worden automatisch opgehaald van het tabblad 'Parameters'.
B12: Dataset investeringen uit investeringsbestand | G12: Taken voor selectie
B13: Volgnummer | C13: Bijzonderheden | D13: Vervanging / uitbreiding | E13: Activacategorie | F13: Taak | G13: TT-BT-AT | H13: KC | I13: Afschrijvingstermijn | J13: Jaar begin afschrijven | K13: Investeringsbedrag | L13: Binnen scope?
B14: 1 | C14: Normaal | D14: Restcategorie (VVI/UI) | E14: 01 Regionale leidingen | F14: =VLOOKUP('3. Investeringen'!E14,'2. Reguleringsparameters'!$B$9:$D$78,3,FALSE) -> TT-BT-AT | G14: =IF(ISERROR(FIND(G$13,$F14)),0,1) -> 1 | H14: =IF(ISERROR(FIND(H$13,$F14)),0,1) -> 0 | I14: =VLOOKUP(E14,'2. Reguleringsparameters'!$B$9:$C$78,2,FALSE) -> 55 | J14: 1946 | K14: 836988.0792 | L14: =VLOOKUP(E14,'2. Reguleringsparameters'!$B$9:$E$78,4,FALSE) -> 1
B15: 2 | C15: Normaal | D15: Restcategorie (VVI/UI) | E15: 01 Regionale leidingen | F15: =VLOOKUP('3. Investeringen'!E15,'2. Reguleringsparameters'!$B$9:$D$78,3,FALSE) -> TT-BT-AT | G15: =IF(ISERROR(FIND(G$13,$F15)),0,1) -> 1 | H15: 0 | I15: =VLOOKUP(E15,'2. Reguleringsparameters'!$B$9:$C$78,2,FALSE) -> 55 | J15: 1947 | K15: 2145958.86 | L15: =VLOOKUP(E15,'2. Reguleringsparameters'!$B$9:$E$78,4,FALSE) -> 1
B16: 3 | C16: Normaal | D16: Restcategorie (VVI/UI) | E16: 01 Regionale leidingen | F16: =VLOOKUP('3. Investeringen'!E16,'2. Reguleringsparameters'!$B$9:$D$78,3,FALSE) -> TT-BT-AT | G16: 1 | H16: 0 | I16: =VLOOKUP(E16,'2. Reguleringsparameters'!$B$9:$C$78,2,FALSE) -> 55 | J16: 1948 | K16: 1127514.959 | L16: =VLOOKUP(E16,'2. Reguleringsparameters'!$B$9:$E$78,4,FALSE) -> 1
B17: 4 | C17: Normaal | D17: Restcategorie (VVI/UI) | E17: 01 Regionale leidingen | F17: =VLOOKUP('3. Investeringen'!E17,'2. Reguleringsparameters'!$B$9:$D$78,3,FALSE) -> TT-BT-AT | G17: 1 | H17: 0 | I17: =VLOOKUP(E17,'2. Reguleringsparameters'!$B$9:$C$78,2,FALSE) -> 55 | J17: 1949 | K17: 4659013.21 | L17: =VLOOKUP(E17,'2. Reguleringsparameters'!$B$9:$E$78,4,FALSE) -> 1
B18: 5 | C18: Normaal | D18: Restcategorie (VVI/UI) | E18: 01 Regionale leidingen | F18: =VLOOKUP('3. Investeringen'!E18,'2. Reguleringsparameters'!$B$9:$D$78,3,FALSE) -> TT-BT-AT | G18: 1 | H18: 0 | I18: =VLOOKUP(E18,'2. Reguleringsparameters'!$B$9:$C$78,2,FALSE) -> 55 | J18: 1950 | K18: 2501486.579 | L18: =VLOOKUP(E18,'2. Reguleringsparameters'!$B$9:$E$78,4,FALSE) -> 1
B19: 6 | C19: Normaal | D19: Restcategorie (VVI/UI) | E19: 01 Regionale leidingen | F19: =VLOOKUP('3. Investeringen'!E19,'2. Reguleringsparameters'!$B$9:$D$78,3,FALSE) -> TT-BT-AT | G19: 1 | H19: 0 | I19: =VLOOKUP(E19,'2. Reguleringsparameters'!$B$9:$C$78,2,FALSE) -> 55 | J19: 1951 | K19: 2005811.55 | L19: =VLOOKUP(E19,'2. Reguleringsparameters'!$B$9:$E$78,4,FALSE) -> 1
B20: 7 | C20: Normaal | D20: Restcategorie (VVI/UI) | E20: 01 Regionale leidingen | F20: =VLOOKUP('3. Investeringen'!E20,'2. Reguleringsparameters'!$B$9:$D$78,3,FALSE) -> TT-BT-AT | G20: 1 | H20: 0 | I20: =VLOOKUP(E20,'2. Reguleringsparameters'!$B$9:$C$78,2,FALSE) -> 55 | J20: 1952 | K20: 183022.7208 | L20: =VLOOKUP(E20,'2. Reguleringsparameters'!$B$9:$E$78,4,FALSE) -> 1
B21: 8 | C21: Normaal | D21: Restcategorie (VVI/UI) | E21: 01 Regionale leidingen | F21: =VLOOKUP('3. Investeringen'!E21,'2. Reguleringsparameters'!$B$9:$D$78,3,FALSE) -> TT-BT-AT | G21: 1 | H21: 0 | I21: =VLOOKUP(E21,'2. Reguleringsparameters'!$B$9:$C$78,2,FALSE) -> 55 | J21: 1953 | K21: 3394352.692 | L21: =VLOOKUP(E21,'2. Reguleringsparameters'!$B$9:$E$78,4,FALSE) -> 1
B22: 9 | C22: Normaal | D22: Restcategorie (VVI/UI) | E22: 04 Terreinen | F22: =VLOOKUP('3. Investeringen'!E22,'2. Reguleringsparameters'!$B$9:$D$78,3,FALSE) -> TT-BT-AT | G22: 1 | H22: 0 | I22: =VLOOKUP(E22,'2. Reguleringsparameters'!$B$9:$C$78,2,FALSE) -> 0 | J22: 1953 | K22: 244 | L22: =VLOOKUP(E22,'2. Reguleringsparameters'!$B$9:$E$78,4,FALSE) -> 0
B23: 10 | C23: Normaal | D23: Restcategorie (VVI/UI) | E23: 01 Regionale leidingen | F23: =VLOOKUP('3. Investeringen'!E23,'2. Reguleringsparameters'!$B$9:$D$78,3,FALSE) -> TT-BT-AT | G23: 1 | H23: 0 | I23: =VLOOKUP(E23,'2. Reguleringsparameters'!$B$9:$C$78,2,FALSE) -> 55 | J23: 1954 | K23: 8251888.86 | L23: =VLOOKUP(E23,'2. Reguleringsparameters'!$B$9:$E$78,4,FALSE) -> 1
B24: 11 | C24: Normaal | D24: Restcategorie (VVI/UI) | E24: 02 Gasontvangststations | F24: =VLOOKUP('3. Investeringen'!E24,'2. Reguleringsparameters'!$B$9:$D$78,3,FALSE) -> TT-BT-AT | G24: 1 | H24: 0 | I24: =VLOOKUP(E24,'2. Reguleringsparameters'!$B$9:$C$78,2,FALSE) -> 30 | J24: 1954 | K24: 16440 | L24: =VLOOKUP(E24,'2. Reguleringsparameters'!$B$9:$E$78,4,FALSE) -> 0
B25: 12 | C25: Normaal | D25: Restcategorie (VVI/UI) | E25: 01 Regionale leidingen | F25: =VLOOKUP('3. Investeringen'!E25,'2. Reguleringsparameters'!$B$9:$D$78,3,FALSE) -> TT-BT-AT | G25: 1 | H25: 0 | I25: =VLOOKUP(E25,'2. Reguleringsparameters'!$B$9:$C$78,2,FALSE) -> 55 | J25: 1955 | K25: 5184137.659 | L25: =VLOOKUP(E25,'2. Reguleringsparameters'!$B$9:$E$78,4,FALSE) -> 1
B26: 13 | C26: Normaal | D26: Restcategorie (VVI/UI) | E26: 01 Regionale leidingen | F26: =VLOOKUP('3. Investeringen'!E26,'2. Reguleringsparameters'!$B$9:$D$78,3,FALSE) -> TT-BT-AT | G26: 1 | H26: 0 | I26: =VLOOKUP(E26,'2. Reguleringsparameters'!$B$9:$C$78,2,FALSE) -> 55 | J26: 1956 | K26: 2157834.279 | L26: =VLOOKUP(E26,'2. Reguleringsparameters'!$B$9:$E$78,4,FALSE) -> 1
B27: 14 | C27: Normaal | D27: Restcategorie (VVI/UI) | E27: 04 Terreinen | F27: =VLOOKUP('3. Investeringen'!E27,'2. Reguleringsparameters'!$B$9:$D$78,3,FALSE) -> TT-BT-AT | G27: 1 | H27: 0 | I27: =VLOOKUP(E27,'2. Reguleringsparameters'!$B$9:$C$78,2,FALSE) -> 0 | J27: 1956 | K27: 43245 | L27: =VLOOKUP(E27,'2. Reguleringsparameters'!$B$9:$E$78,4,FALSE) -> 0
B28: 15 | C28: Normaal | D28: Restcategorie (VVI/UI) | E28: 06 Utiliteitsgebouwen | F28: =VLOOKUP('3. Investeringen'!E28,'2. Reguleringsparameters'!$B$9:$D$78,3,FALSE) -> TT-BT-AT | G28: 1 | H28: 0 | I28: =VLOOKUP(E28,'2. Reguleringsparameters'!$B$9:$C$78,2,FALSE) -> 30 | J28: 1956 | K28: 59298 | L28: =VLOOKUP(E28,'2. Reguleringsparameters'!$B$9:$E$78,4,FALSE) -> 0
B29: 16 | C29: Normaal | D29: Restcategorie (VVI/UI) | E29: 01 Regionale leidingen | F29: =VLOOKUP('3. Investeringen'!E29,'2. Reguleringsparameters'!$B$9:$D$78,3,FALSE) -> TT-BT-AT | G29: 1 | H29: 0 | I29: =VLOOKUP(E29,'2. Reguleringsparameters'!$B$9:$C$78,2,FALSE) -> 55 | J29: 1957 | K29: 3932321.399 | L29: =VLOOKUP(E29,'2. Reguleringsparameters'!$B$9:$E$78,4,FALSE) -> 1
B30: 17 | C30: Normaal | D30: Restcategorie (VVI/UI) | E30: 01 Regionale leidingen | F30: =VLOOKUP('3. Investeringen'!E30,'2. Reguleringsparameters'!$B$9:$D$78,3,FALSE) -> TT-BT-AT | G30: 1 | H30: 0 | I30: =VLOOKUP(E30,'2. Reguleringsparameters'!$B$9:$C$78,2,FALSE) -> 55 | J30: 1958 | K30: 11037711.4 | L30: =VLOOKUP(E30,'2. Reguleringsparameters'!$B$9:$E$78,4,FALSE) -> 1
B31: 18 | C31: Normaal | D31: Restcategorie (VVI/UI) | E31: 01 Regionale leidingen | F31: =VLOOKUP('3. Investeringen'!E31,'2. Reguleringsparameters'!$B$9:$D$78,3,FALSE) -> TT-BT-AT | G31: 1 | H31: 0 | I31: =VLOOKUP(E31,'2. Reguleringsparameters'!$B$9:$C$78,2,FALSE) -> 55 | J31: 1959 | K31: 4021570.878 | L31: =VLOOKUP(E31,'2. Reguleringsparameters'!$B$9:$E$78,4,FALSE) -> 1
B32: 19 | C32: Normaal | D32: Restcategorie (VVI/UI) | E32: 06 Utiliteitsgebouwen | F32: =VLOOKUP('3. Investeringen'!E32,'2. Reguleringsparameters'!$B$9:$D$78,3,FALSE) -> TT-BT-AT | G32: 1 | H32: 0 | I32: =VLOOKUP(E32,'2. Reguleringsparameters'!$B$9:$C$78,2,FALSE) -> 30 | J32: 1959 | K32: 8176 | L32: =VLOOKUP(E32,'2. Reguleringsparameters'!$B$9:$E$78,4,FALSE) -> 0
B33: 20 | C33: Normaal | D33: Restcategorie (VVI/UI) | E33: 01 Regionale leidingen | F33: =VLOOKUP('3. Investeringen'!E33,'2. Reguleringsparameters'!$B$9:$D$78,3,FALSE) -> TT-BT-AT | G33: 1 | H33: 0 | I33: =VLOOKUP(E33,'2. Reguleringsparameters'!$B$9:$C$78,2,FALSE) -> 55 | J33: 1960 | K33: 3230528.958 | L33: =VLOOKUP(E33,'2. Reguleringsparameters'!$B$9:$E$78,4,FALSE) -> 1
B34: 21 | C34: Normaal | D34: Restcategorie (VVI/UI) | E34: 02 Gasontvangststations | F34: =VLOOKUP('3. Investeringen'!E34,'2. Reguleringsparameters'!$B$9:$D$78,3,FALSE) -> TT-BT-AT | G34: 1 | H34: 0 | I34: =VLOOKUP(E34,'2. Reguleringsparameters'!$B$9:$C$78,2,FALSE) -> 30 | J34: 1960 | K34: 18131 | L34: =VLOOKUP(E34,'2. Reguleringsparameters'!$B$9:$E$78,4,FALSE) -> 0
B35: 22 | C35: Normaal | D35: Restcategorie (VVI/UI) | E35: 06 Utiliteitsgebouwen | F35: =VLOOKUP('3. Investeringen'!E35,'2. Reguleringsparameters'!$B$9:$D$78,3,FALSE) -> TT-BT-AT | G35: 1 | H35: 0 | I35: =VLOOKUP(E35,'2. Reguleringsparameters'!$B$9:$C$78,2,FALSE) -> 30 | J35: 1960 | K35: 5287 | L35: =VLOOKUP(E35,'2. Reguleringsparameters'!$B$9:$E$78,4,FALSE) -> 0
B36: 23 | C36: Normaal | D36: Restcategorie (VVI/UI) | E36: 01 Regionale leidingen | F36: =VLOOKUP('3. Investeringen'!E36,'2. Reguleringsparameters'!$B$9:$D$78,3,FALSE) -> TT-BT-AT | G36: 1 | H36: 0 | I36: =VLOOKUP(E36,'2. Reguleringsparameters'!$B$9:$C$78,2,FALSE) -> 55 | J36: 1961 | K36: 2654852.948 | L36: =VLOOKUP(E36,'2. Reguleringsparameters'!$B$9:$E$78,4,FALSE) -> 1
B37: 24 | C37: Normaal | D37: Restcategorie (VVI/UI) | E37: 06 Utiliteitsgebouwen | F37: =VLOOKUP('3. Investeringen'!E37,'2. Reguleringsparameters'!$B$9:$D$78,3,FALSE) -> TT-BT-AT | G37: 1 | H37: 0 | I37: =VLOOKUP(E37,'2. Reguleringsparameters'!$B$9:$C$78,2,FALSE) -> 30 | J37: 1961 | K37: 417304 | L37: =VLOOKUP(E37,'2. Reguleringsparameters'!$B$9:$E$78,4,FALSE) -> 0
B38: 25 | C38: Normaal | D38: Restcategorie (VVI/UI) | E38: 01 Regionale leidingen | F38: =VLOOKUP('3. Investeringen'!E38,'2. Reguleringsparameters'!$B$9:$D$78,3,FALSE) -> TT-BT-AT | G38: 1 | H38: 0 | I38: =VLOOKUP(E38,'2. Reguleringsparameters'!$B$9:$C$78,2,FALSE) -> 55 | J38: 1962 | K38: 1549865 | L38: =VLOOKUP(E38,'2. Reguleringsparameters'!$B$9:$E$78,4,FALSE) -> 1
B39: 26 | C39: Normaal | D39: Restcategorie (VVI/UI) | E39: 04 Terreinen | F39: =VLOOKUP('3. Investeringen'!E39,'2. Reguleringsparameters'!$B$9:$D$78,3,FALSE) -> TT-BT-AT | G39: 1 | H39: 0 | I39: =VLOOKUP(E39,'2. Reguleringsparameters'!$B$9:$C$78,2,FALSE) -> 0 | J39: 1962 | K39: 6538 | L39: =VLOOKUP(E39,'2. Reguleringsparameters'!$B$9:$E$78,4,FALSE) -> 0
B40: 27 | C40: Normaal | D40: Restcategorie (VVI/UI) | E40: 01 Regionale leidingen | F40: =VLOOKUP('3. Investeringen'!E40,'2. Reguleringsparameters'!$B$9:$D$78,3,FALSE) -> TT-BT-AT | G40: 1 | H40: 0 | I40: =VLOOKUP(E40,'2. Reguleringsparameters'!$B$9:$C$78,2,FALSE) -> 55 | J40: 1963 | K40: 789155.1112 | L40: =VLOOKUP(E40,'2. Reguleringsparameters'!$B$9:$E$78,4,FALSE) -> 1
B41: 28 | C41: Normaal | D41: Restcategorie (VVI/UI) | E41: 04 Terreinen | F41: =VLOOKUP('3. Investeringen'!E41,'2. Reguleringsparameters'!$B$9:$D$78,3,FALSE) -> TT-BT-AT | G41: 1 | H41: 0 | I41: =VLOOKUP(E41,'2. Reguleringsparameters'!$B$9:$C$78,2,FALSE) -> 0 | J41: 1963 | K41: 42315 | L41: =VLOOKUP(E41,'2. Reguleringsparameters'!$B$9:$E$78,4,FALSE) -> 0
B42: 29 | C42: Normaal | D42: Restcategorie (VVI/UI) | E42: 10 Gereedschap | F42: =VLOOKUP('3. Investeringen'!E42,'2. Reguleringsparameters'!$B$9:$D$78,3,FALSE) -> TT-BT-AT | G42: 1 | H42: 0 | I42: =VLOOKUP(E42,'2. Reguleringsparameters'!$B$9:$C$78,2,FALSE) -> 10 | J42: 1963 | K42: 62622.11906 | L42: =VLOOKUP(E42,'2. Reguleringsparameters'!$B$9:$E$78,4,FALSE) -> 1
B43: 30 | C43: Normaal | D43: Restcategorie (VVI/UI) | E43: 21 Hoofdtransportleiding | F43: =VLOOKUP('3. Investeringen'!E43,'2. Reguleringsparameters'!$B$9:$D$78,3,FALSE) -> TT-BT-AT | G43: 1 | H43: 0 | I43: =VLOOKUP(E43,'2. Reguleringsparameters'!$B$9:$C$78,2,FALSE) -> 55 | J43: 1963 | K43: 9698433.088 | L43: =VLOOKUP(E43,'2. Reguleringsparameters'!$B$9:$E$78,4,FALSE) -> 1
B44: 31 | C44: Normaal | D44: Restcategorie (VVI/UI) | E44: 01 Regionale leidingen | F44: =VLOOKUP('3. Investeringen'!E44,'2. Reguleringsparameters'!$B$9:$D$78,3,FALSE) -> TT-BT-AT | G44: 1 | H44: 0 | I44: =VLOOKUP(E44,'2. Reguleringsparameters'!$B$9:$C$78,2,FALSE) -> 55 | J44: 1964 | K44: 4316930.49 | L44: =VLOOKUP(E44,'2. Reguleringsparameters'!$B$9:$E$78,4,FALSE) -> 1
B45: 32 | C45: Normaal | D45: Restcategorie (VVI/UI) | E45: 02 Gasontvangststations | F45: =VLOOKUP('3. Investeringen'!E45,'2. Reguleringsparameters'!$B$9:$D$78,3,FALSE) -> TT-BT-AT | G45: 1 | H45: 0 | I45: =VLOOKUP(E45,'2. Reguleringsparameters'!$B$9:$C$78,2,FALSE) -> 30 | J45: 1964 | K45: 46015 | L45: =VLOOKUP(E45,'2. Reguleringsparameters'!$B$9:$E$78,4,FALSE) -> 0
B46: 33 | C46: Normaal | D46: Restcategorie (VVI/UI) | E46: 04 Terreinen | F46: =VLOOKUP('3. Investeringen'!E46,'2. Reguleringsparameters'!$B$9:$D$78,3,FALSE) -> TT-BT-AT | G46: 1 | H46: 0 | I46: =VLOOKUP(E46,'2. Reguleringsparameters'!$B$9:$C$78,2,FALSE) -> 0 | J46: 1964 | K46: 371469 | L46: =VLOOKUP(E46,'2. Reguleringsparameters'!$B$9:$E$78,4,FALSE) -> 0
B47: 34 | C47: Normaal | D47: Restcategorie (VVI/UI) | E47: 06 Utiliteitsgebouwen | F47: =VLOOKUP('3. Investeringen'!E47,'2. Reguleringsparameters'!$B$9:$D$78,3,FALSE) -> TT-BT-AT | G47: 1 | H47: 0 | I47: =VLOOKUP(E47,'2. Reguleringsparameters'!$B$9:$C$78,2,FALSE) -> 30 | J47: 1964 | K47: 15491 | L47: =VLOOKUP(E47,'2. Reguleringsparameters'!$B$9:$E$78,4,FALSE) -> 0
B48: 35 | C48: Normaal | D48: Restcategorie (VVI/UI) | E48: 10 Gereedschap | F48: =VLOOKUP('3. Investeringen'!E48,'2. Reguleringsparameters'!$B$9:$D$78,3,FALSE) -> TT-BT-AT | G48: 1 | H48: 0 | I48: =VLOOKUP(E48,'2. Reguleringsparameters'!$B$9:$C$78,2,FALSE) -> 10 | J48: 1964 | K48: 5246.611396 | L48: =VLOOKUP(E48,'2. Reguleringsparameters'!$B$9:$E$78,4,FALSE) -> 1
B49: 36 | C49: Normaal | D49: Restcategorie (VVI/UI) | E49: 21 Hoofdtransportleiding | F49: =VLOOKUP('3. Investeringen'!E49,'2. Reguleringsparameters'!$B$9:$D$78,3,FALSE) -> TT-BT-AT | G49: 1 | H49: 0 | I49: =VLOOKUP(E49,'2. Reguleringsparameters'!$B$9:$C$78,2,FALSE) -> 55 | J49: 1964 | K49: 130996231.8 | L49: =VLOOKUP(E49,'2. Reguleringsparameters'!$B$9:$E$78,4,FALSE) -> 1
B50: 37 | C50: Normaal | D50: Restcategorie (VVI/UI) | E50: 32 M&R stations | F50: =VLOOKUP('3. Investeringen'!E50,'2. Reguleringsparameters'!$B$9:$D$78,3,FALSE) -> TT-BT-AT | G50: 1 | H50: 0 | I50: =VLOOKUP(E50,'2. Reguleringsparameters'!$B$9:$C$78,2,FALSE) -> 30 | J50: 1964 | K50: 1569735.51 | L50: =VLOOKUP(E50,'2. Reguleringsparameters'!$B$9:$E$78,4,FALSE) -> 1
B51: 38 | C51: Normaal | D51: Restcategorie (VVI/UI) | E51: 32 M&R stations (odorisatie) | F51: =VLOOKUP('3. Investeringen'!E51,'2. Reguleringsparameters'!$B$9:$D$78,3,FALSE) -> TT-BT-AT | G51: 1 | H51: 0 | I51: =VLOOKUP(E51,'2. Reguleringsparameters'!$B$9:$C$78,2,FALSE) -> 30 | J51: 1964 | K51: 2334280 | L51: =VLOOKUP(E51,'2. Reguleringsparameters'!$B$9:$E$78,4,FALSE) -> 0
B52: 39 | C52: Normaal | D52: Restcategorie (VVI/UI) | E52: 01 Regionale leidingen | F52: =VLOOKUP('3. Investeringen'!E52,'2. Reguleringsparameters'!$B$9:$D$78,3,FALSE) -> TT-BT-AT | G52: 1 | H52: 0 | I52: =VLOOKUP(E52,'2. Reguleringsparameters'!$B$9:$C$78,2,FALSE) -> 55 | J52: 1965 | K52: 21113045.7 | L52: =VLOOKUP(E52,'2. Reguleringsparameters'!$B$9:$E$78,4,FALSE) -> 1
B53: 40 | C53: Normaal | D53: Restcategorie (VVI/UI) | E53: 02 Gasontvangststations | F53: =VLOOKUP('3. Investeringen'!E53,'2. Reguleringsparameters'!$B$9:$D$78,3,FALSE) -> TT-BT-AT | G53: 1 | H53: 0 | I53: =VLOOKUP(E53,'2. Reguleringsparameters'!$B$9:$C$78,2,FALSE) -> 30 | J53: 1965 | K53: 2314286 | L53: =VLOOKUP(E53,'2. Reguleringsparameters'!$B$9:$E$78,4,FALSE) -> 0
B54: 41 | C54: Normaal | D54: Restcategorie (VVI/UI) | E54: 04 Terreinen | F54: =VLOOKUP('3. Investeringen'!E54,'2. Reguleringsparameters'!$B$9:$D$78,3,FALSE) -> TT-BT-AT | G54: 1 | H54: 0 | I54: =VLOOKUP(E54,'2. Reguleringsparameters'!$B$9:$C$78,2,FALSE) -> 0 | J54: 1965 | K54: 45528 | L54: =VLOOKUP(E54,'2. Reguleringsparameters'!$B$9:$E$78,4,FALSE) -> 0
B55: 42 | C55: Normaal | D55: Restcategorie (VVI/UI) | E55: 10 Gereedschap | F55: =VLOOKUP('3. Investeringen'!E55,'2. Reguleringsparameters'!$B$9:$D$78,3,FALSE) -> TT-BT-AT | G55: 1 | H55: 0 | I55: =VLOOKUP(E55,'2. Reguleringsparameters'!$B$9:$C$78,2,FALSE) -> 10 | J55: 1965 | K55: 47061.55075 | L55: =VLOOKUP(E55,'2. Reguleringsparameters'!$B$9:$E$78,4,FALSE) -> 1
B56: 43 | C56: Normaal | D56: Restcategorie (VVI/UI) | E56: 11 Werktuigen | F56: =VLOOKUP('3. Investeringen'!E56,'2. Reguleringsparameters'!$B$9:$D$78,3,FALSE) -> TT-BT-AT | G56: 1 | H56: 0 | I56: =VLOOKUP(E56,'2. Reguleringsparameters'!$B$9:$C$78,2,FALSE) -> 10 | J56: 1965 | K56: 501107.682 | L56: =VLOOKUP(E56,'2. Reguleringsparameters'!$B$9:$E$78,4,FALSE) -> 1
B57: 44 | C57: Normaal | D57: Restcategorie (VVI/UI) | E57: 21 Hoofdtransportleiding | F57: =VLOOKUP('3. Investeringen'!E57,'2. Reguleringsparameters'!$B$9:$D$78,3,FALSE) -> TT-BT-AT | G57: 1 | H57: 0 | I57: =VLOOKUP(E57,'2. Reguleringsparameters'!$B$9:$C$78,2,FALSE) -> 55 | J57: 1965 | K57: 1313613.86 | L57: =VLOOKUP(E57,'2. Reguleringsparameters'!$B$9:$E$78,4,FALSE) -> 1
B58: 45 | C58: Normaal | D58: Restcategorie (VVI/UI) | E58: 32 M&R stations | F58: =VLOOKUP('3. Investeringen'!E58,'2. Reguleringsparameters'!$B$9:$D$78,3,FALSE) -> TT-BT-AT | G58: 1 | H58: 0 | I58: =VLOOKUP(E58,'2. Reguleringsparameters'!$B$9:$C$78,2,FALSE) -> 30 | J58: 1965 | K58: 165671.5287 | L58: =VLOOKUP(E58,'2. Reguleringsparameters'!$B$9:$E$78,4,FALSE) -> 1
B59: 46 | C59: Normaal | D59: Restcategorie (VVI/UI) | E59: 32 M&R stations (odorisatie) | F59: =VLOOKUP('3. Investeringen'!E59,'2. Reguleringsparameters'!$B$9:$D$78,3,FALSE) -> TT-BT-AT | G59: 1 | H59: 0 | I59: =VLOOKUP(E59,'2. Reguleringsparameters'!$B$9:$C$78,2,FALSE) -> 30 | J59: 1965 | K59: 337519 | L59: =VLOOKUP(E59,'2. Reguleringsparameters'!$B$9:$E$78,4,FALSE) -> 0
B60: 47 | C60: Normaal | D60: Restcategorie (VVI/UI) | E60: 01 Regionale leidingen | F60: =VLOOKUP('3. Investeringen'!E60,'2. Reguleringsparameters'!$B$9:$D$78,3,FALSE) -> TT-BT-AT | G60: 1 | H60: 0 | I60: =VLOOKUP(E60,'2. Reguleringsparameters'!$B$9:$C$78,2,FALSE) -> 55 | J60: 1966 | K60: 35755371.92 | L60: =VLOOKUP(E60,'2. Reguleringsparameters'!$B$9:$E$78,4,FALSE) -> 1
B61: 48 | C61: Normaal | D61: Restcategorie (VVI/UI) | E61: 01 Regionale leidingen (Waterkruisingen) | F61: =VLOOKUP('3. Investeringen'!E61,'2. Reguleringsparameters'!$B$9:$D$78,3,FALSE) -> TT-BT-AT | G61: 1 | H61: 0 | I61: =VLOOKUP(E61,'2. Reguleringsparameters'!$B$9:$C$78,2,FALSE) -> 55 | J61: 1966 | K61: 15195.3771 | L61: =VLOOKUP(E61,'2. Reguleringsparameters'!$B$9:$E$78,4,FALSE) -> 0
B62: 49 | C62: Normaal | D62: Restcategorie (VVI/UI) | E62: 02 Gasontvangststations | F62: =VLOOKUP('3. Investeringen'!E62,'2. Reguleringsparameters'!$B$9:$D$78,3,FALSE) -> TT-BT-AT | G62: 1 | H62: 0 | I62: =VLOOKUP(E62,'2. Reguleringsparameters'!$B$9:$C$78,2,FALSE) -> 30 | J62: 1966 | K62: 7359459 | L62: =VLOOKUP(E62,'2. Reguleringsparameters'!$B$9:$E$78,4,FALSE) -> 0
B63: 50 | C63: Normaal | D63: Restcategorie (VVI/UI) | E63: 03 Verremeting | F63: =VLOOKUP('3. Investeringen'!E63,'2. Reguleringsparameters'!$B$9:$D$78,3,FALSE) -> TT-BT-AT | G63: 1 | H63: 0 | I63: =VLOOKUP(E63,'2. Reguleringsparameters'!$B$9:$C$78,2,FALSE) -> 5 | J63: 1966 | K63: 1188180 | L63: =VLOOKUP(E63,'2. Reguleringsparameters'!$B$9:$E$78,4,FALSE) -> 1
B64: 51 | C64: Normaal | D64: Restcategorie (VVI/UI) | E64: 04 Terreinen | F64: =VLOOKUP('3. Investeringen'!E64,'2. Reguleringsparameters'!$B$9:$D$78,3,FALSE) -> TT-BT-AT | G64: 1 | H64: 0 | I64: =VLOOKUP(E64,'2. Reguleringsparameters'!$B$9:$C$78,2,FALSE) -> 0 | J64: 1966 | K64: 379442 | L64: =VLOOKUP(E64,'2. Reguleringsparameters'!$B$9:$E$78,4,FALSE) -> 0
B65: 52 | C65: Normaal | D65: Restcategorie (VVI/UI) | E65: 05 Wegen en terreinvoorzieningen | F65: =VLOOKUP('3. Investeringen'!E65,'2. Reguleringsparameters'!$B$9:$D$78,3,FALSE) -> TT-BT-AT | G65: 1 | H65: 0 | I65: =VLOOKUP(E65,'2. Reguleringsparameters'!$B$9:$C$78,2,FALSE) -> 10 | J65: 1966 | K65: 6327 | L65: =VLOOKUP(E65,'2. Reguleringsparameters'!$B$9:$E$78,4,FALSE) -> 0
B66: 53 | C66: Normaal | D66: Restcategorie (VVI/UI) | E66: 06 Utiliteitsgebouwen | F66: =VLOOKUP('3. Investeringen'!E66,'2. Reguleringsparameters'!$B$9:$D$78,3,FALSE) -> TT-BT-AT | G66: 1 | H66: 0 | I66: =VLOOKUP(E66,'2. Reguleringsparameters'!$B$9:$C$78,2,FALSE) -> 30 | J66: 1966 | K66: 26711 | L66: =VLOOKUP(E66,'2. Reguleringsparameters'!$B$9:$E$78,4,FALSE) -> 0
B67: 54 | C67: Normaal | D67: Restcategorie (VVI/UI) | E67: 11 Werktuigen | F67: =VLOOKUP('3. Investeringen'!E67,'2. Reguleringsparameters'!$B$9:$D$78,3,FALSE) -> TT-BT-AT | G67: 1 | H67: 0 | I67: =VLOOKUP(E67,'2. Reguleringsparameters'!$B$9:$C$78,2,FALSE) -> 10 | J67: 1966 | K67: 239927.2091 | L67: =VLOOKUP(E67,'2. Reguleringsparameters'!$B$9:$E$78,4,FALSE) -> 1
B68: 55 | C68: Normaal | D68: Restcategorie (VVI/UI) | E68: 14 Overig rollend materieel | F68: =VLOOKUP('3. Investeringen'!E68,'2. Reguleringsparameters'!$B$9:$D$78,3,FALSE) -> TT-BT-AT | G68: 1 | H68: 0 | I68: =VLOOKUP(E68,'2. Reguleringsparameters'!$B$9:$C$78,2,FALSE) -> 10 | J68: 1966 | K68: 18065 | L68: =VLOOKUP(E68,'2. Reguleringsparameters'!$B$9:$E$78,4,FALSE) -> 1
B69: 56 | C69: Normaal | D69: Restcategorie (VVI/UI) | E69: 21 Hoofdtransportleiding | F69: =VLOOKUP('3. Investeringen'!E69,'2. Reguleringsparameters'!$B$9:$D$78,3,FALSE) -> TT-BT-AT | G69: 1 | H69: 0 | I69: =VLOOKUP(E69,'2. Reguleringsparameters'!$B$9:$C$78,2,FALSE) -> 55 | J69: 1966 | K69: 41434823.53 | L69: =VLOOKUP(E69,'2. Reguleringsparameters'!$B$9:$E$78,4,FALSE) -> 1
B70: 57 | C70: Normaal | D70: Restcategorie (VVI/UI) | E70: 23 Brigittaleiding | F70: =VLOOKUP('3. Investeringen'!E70,'2. Reguleringsparameters'!$B$9:$D$78,3,FALSE) -> TT-BT-AT | G70: 1 | H70: 0 | I70: =VLOOKUP(E70,'2. Reguleringsparameters'!$B$9:$C$78,2,FALSE) -> 55 | J70: 1966 | K70: 7253855 | L70: =VLOOKUP(E70,'2. Reguleringsparameters'!$B$9:$E$78,4,FALSE) -> 1
B71: 58 | C71: Normaal | D71: Restcategorie (VVI/UI) | E71: 32 M&R stations | F71: =VLOOKUP('3. Investeringen'!E71,'2. Reguleringsparameters'!$B$9:$D$78,3,FALSE) -> TT-BT-AT | G71: 1 | H71: 0 | I71: =VLOOKUP(E71,'2. Reguleringsparameters'!$B$9:$C$78,2,FALSE) -> 30 | J71: 1966 | K71: 1049594.89 | L71: =VLOOKUP(E71,'2. Reguleringsparameters'!$B$9:$E$78,4,FALSE) -> 1
B72: 59 | C72: Normaal | D72: Restcategorie (VVI/UI) | E72: 33 Exportstations | F72: =VLOOKUP('3. Investeringen'!E72,'2. Reguleringsparameters'!$B$9:$D$78,3,FALSE) -> TT-BT-AT | G72: 1 | H72: 0 | I72: =VLOOKUP(E72,'2. Reguleringsparameters'!$B$9:$C$78,2,FALSE) -> 30 | J72: 1966 | K72: 1330922.399 | L72: =VLOOKUP(E72,'2. Reguleringsparameters'!$B$9:$E$78,4,FALSE) -> 1
B73: 60 | C73: Normaal | D73: Restcategorie (VVI/UI) | E73: 32 M&R stations (odorisatie) | F73: =VLOOKUP('3. Investeringen'!E73,'2. Reguleringsparameters'!$B$9:$D$78,3,FALSE) -> TT-BT-AT | G73: 1 | H73: 0 | I73: =VLOOKUP(E73,'2. Reguleringsparameters'!$B$9:$C$78,2,FALSE) -> 30 | J73: 1966 | K73: 1366473 | L73: =VLOOKUP(E73,'2. Reguleringsparameters'!$B$9:$E$78,4,FALSE) -> 0
B74: 61 | C74: Normaal | D74: Restcategorie (VVI/UI) | E74: 01 Regionale leidingen | F74: =VLOOKUP('3. Investeringen'!E74,'2. Reguleringsparameters'!$B$9:$D$78,3,FALSE) -> TT-BT-AT | G74: 1 | H74: 0 | I74: =VLOOKUP(E74,'2. Reguleringsparameters'!$B$9:$C$78,2,FALSE) -> 55 | J74: 1967 | K74: 38400973.8 | L74: =VLOOKUP(E74,'2. Reguleringsparameters'!$B$9:$E$78,4,FALSE) -> 1
B75: 62 | C75: Normaal | D75: Restcategorie (VVI/UI) | E75: 02 Gasontvangststations | F75: =VLOOKUP('3. Investeringen'!E75,'2. Reguleringsparameters'!$B$9:$D$78,3,FALSE) -> TT-BT-AT | G75: =IF(ISERROR(FIND(G$13,$F75)),0,1) -> 1 | H75: 0 | I75: =VLOOKUP(E75,'2. Reguleringsparameters'!$B$9:$C$78,2,FALSE) -> 30 | J75: 1967 | K75: 8551984 | L75: =VLOOKUP(E75,'2. Reguleringsparameters'!$B$9:$E$78,4,FALSE) -> 0
B76: 63 | C76: Normaal | D76: Restcategorie (VVI/UI) | E76: 04 Terreinen | F76: =VLOOKUP('3. Investeringen'!E76,'2. Reguleringsparameters'!$B$9:$D$78,3,FALSE) -> TT-BT-AT | G76: 1 | H76: 0 | I76: =VLOOKUP(E76,'2. Reguleringsparameters'!$B$9:$C$78,2,FALSE) -> 0 | J76: 1967 | K76: 1662784 | L76: =VLOOKUP(E76,'2. Reguleringsparameters'!$B$9:$E$78,4,FALSE) -> 0
B77: 64 | C77: Normaal | D77: Restcategorie (VVI/UI) | E77: 05 Wegen en terreinvoorzieningen | F77: =VLOOKUP('3. Investeringen'!E77,'2. Reguleringsparameters'!$B$9:$D$78,3,FALSE) -> TT-BT-AT | G77: 1 | H77: 0 | I77: =VLOOKUP(E77,'2. Reguleringsparameters'!$B$9:$C$78,2,FALSE) -> 10 | J77: 1967 | K77: 32815 | L77: =VLOOKUP(E77,'2. Reguleringsparameters'!$B$9:$E$78,4,FALSE) -> 0
B78: 65 | C78: Normaal | D78: Restcategorie (VVI/UI) | E78: 06 Utiliteitsgebouwen | F78: =VLOOKUP('3. Investeringen'!E78,'2. Reguleringsparameters'!$B$9:$D$78,3,FALSE) -> TT-BT-AT | G78: 1 | H78: 0 | I78: =VLOOKUP(E78,'2. Reguleringsparameters'!$B$9:$C$78,2,FALSE) -> 30 | J78: 1967 | K78: 139958 | L78: =VLOOKUP(E78,'2. Reguleringsparameters'!$B$9:$E$78,4,FALSE) -> 0
B79: 66 | C79: Normaal | D79: Restcategorie (VVI/UI) | E79: 10 Gereedschap | F79: =VLOOKUP('3. Investeringen'!E79,'2. Reguleringsparameters'!$B$9:$D$78,3,FALSE) -> TT-BT-AT | G79: 1 | H79: 0 | I79: =VLOOKUP(E79,'2. Reguleringsparameters'!$B$9:$C$78,2,FALSE) -> 10 | J79: 1967 | K79: 78807.11164 | L79: =VLOOKUP(E79,'2. Reguleringsparameters'!$B$9:$E$78,4,FALSE) -> 1
B80: 67 | C80: Normaal | D80: Restcategorie (VVI/UI) | E80: 13 Aanhangwagens | F80: =VLOOKUP('3. Investeringen'!E80,'2. Reguleringsparameters'!$B$9:$D$78,3,FALSE) -> TT-BT-AT | G80: 1 | H80: 0 | I80: =VLOOKUP(E80,'2. Reguleringsparameters'!$B$9:$C$78,2,FALSE) -> 10 | J80: 1967 | K80: 1288 | L80: =VLOOKUP(E80,'2. Reguleringsparameters'!$B$9:$E$78,4,FALSE) -> 1
B81: 68 | C81: Normaal | D81: Restcategorie (VVI/UI) | E81: 21 Hoofdtransportleiding | F81: =VLOOKUP('3. Investeringen'!E81,'2. Reguleringsparameters'!$B$9:$D$78,3,FALSE) -> TT-BT-AT | G81: 1 | H81: 0 | I81: =VLOOKUP(E81,'2. Reguleringsparameters'!$B$9:$C$78,2,FALSE) -> 55 | J81: 1967 | K81: 178453987.3 | L81: =VLOOKUP(E81,'2. Reguleringsparameters'!$B$9:$E$78,4,FALSE) -> 1
B82: 69 | C82: Normaal | D82: Restcategorie (VVI/UI) | E82: 21 Hoofdtransportleiding (waterkruisingen) | F82: =VLOOKUP('3. Investeringen'!E82,'2. Reguleringsparameters'!$B$9:$D$78,3,FALSE) -> TT-BT-AT | G82: 1 | H82: 0 | I82: =VLOOKUP(E82,'2. Reguleringsparameters'!$B$9:$C$78,2,FALSE) -> 55 | J82: 1967 | K82: 17949436 | L82: =VLOOKUP(E82,'2. Reguleringsparameters'!$B$9:$E$78,4,FALSE) -> 0
B83: 70 | C83: Normaal | D83: Restcategorie (VVI/UI) | E83: 32 M&R stations | F83: =VLOOKUP('3. Investeringen'!E83,'2. Reguleringsparameters'!$B$9:$D$78,3,FALSE) -> TT-BT-AT | G83: 1 | H83: 0 | I83: =VLOOKUP(E83,'2. Reguleringsparameters'!$B$9:$C$78,2,FALSE) -> 30 | J83: 1967 | K83: 2657382.789 | L83: =VLOOKUP(E83,'2. Reguleringsparameters'!$B$9:$E$78,4,FALSE) -> 1
B84: 71 | C84: Normaal | D84: Restcategorie (VVI/UI) | E84: 33 Exportstations | F84: =VLOOKUP('3. Investeringen'!E84,'2. Reguleringsparameters'!$B$9:$D$78,3,FALSE) -> TT-BT-AT | G84: 1 | H84: 0 | I84: =VLOOKUP(E84,'2. Reguleringsparameters'!$B$9:$C$78,2,FALSE) -> 30 | J84: 1967 | K84: 1607827.259 | L84: =VLOOKUP(E84,'2. Reguleringsparameters'!$B$9:$E$78,4,FALSE) -> 1
B85: 72 | C85: Normaal | D85: Restcategorie (VVI/UI) | E85: 34 Reduceerstations | F85: =VLOOKUP('3. Investeringen'!E85,'2. Reguleringsparameters'!$B$9:$D$78,3,FALSE) -> TT-BT-AT | G85: 1 | H85: 0 | I85: =VLOOKUP(E85,'2. Reguleringsparameters'!$B$9:$C$78,2,FALSE) -> 30 | J85: 1967 | K85: 36441.2695 | L85: =VLOOKUP(E85,'2. Reguleringsparameters'!$B$9:$E$78,4,FALSE) -> 1
B86: 73 | C86: Normaal | D86: Restcategorie (VVI/UI) | E86: 32 M&R stations (odorisatie) | F86: =VLOOKUP('3. Investeringen'!E86,'2. Reguleringsparameters'!$B$9:$D$78,3,FALSE) -> TT-BT-AT | G86: 1 | H86: 0 | I86: =VLOOKUP(E86,'2. Reguleringsparameters'!$B$9:$C$78,2,FALSE) -> 30 | J86: 1967 | K86: 2247489 | L86: =VLOOKUP(E86,'2. Reguleringsparameters'!$B$9:$E$78,4,FALSE) -> 0
B87: 74 | C87: Normaal | D87: Restcategorie (VVI/UI) | E87: 01 Regionale leidingen | F87: =VLOOKUP('3. Investeringen'!E87,'2. Reguleringsparameters'!$B$9:$D$78,3,FALSE) -> TT-BT-AT | G87: 1 | H87: 0 | I87: =VLOOKUP(E87,'2. Reguleringsparameters'!$B$9:$C$78,2,FALSE) -> 55 | J87: 1968 | K87: 26751890.27 | L87: =VLOOKUP(E87,'2. Reguleringsparameters'!$B$9:$E$78,4,FALSE) -> 1
B88: 75 | C88: Normaal | D88: Restcategorie (VVI/UI) | E88: 02 Gasontvangststations | F88: =VLOOKUP('3. Investeringen'!E88,'2. Reguleringsparameters'!$B$9:$D$78,3,FALSE) -> TT-BT-AT | G88: 1 | H88: 0 | I88: =VLOOKUP(E88,'2. Reguleringsparameters'!$B$9:$C$78,2,FALSE) -> 30 | J88: 1968 | K88: 6542027 | L88: =VLOOKUP(E88,'2. Reguleringsparameters'!$B$9:$E$78,4,FALSE) -> 0
B89: 76 | C89: Normaal | D89: Restcategorie (VVI/UI) | E89: 03 Verremeting | F89: =VLOOKUP('3. Investeringen'!E89,'2. Reguleringsparameters'!$B$9:$D$78,3,FALSE) -> TT-BT-AT | G89: 1 | H89: 0 | I89: =VLOOKUP(E89,'2. Reguleringsparameters'!$B$9:$C$78,2,FALSE) -> 5 | J89: 1968 | K89: 426113 | L89: =VLOOKUP(E89,'2. Reguleringsparameters'!$B$9:$E$78,4,FALSE) -> 1
B90: 77 | C90: Normaal | D90: Restcategorie (VVI/UI) | E90: 04 Terreinen | F90: =VLOOKUP('3. Investeringen'!E90,'2. Reguleringsparameters'!$B$9:$D$78,3,FALSE) -> TT-BT-AT | G90: 1 | H90: 0 | I90: =VLOOKUP(E90,'2. Reguleringsparameters'!$B$9:$C$78,2,FALSE) -> 0 | J90: 1968 | K90: 538137 | L90: =VLOOKUP(E90,'2. Reguleringsparameters'!$B$9:$E$78,4,FALSE) -> 0
B91: 78 | C91: Normaal | D91: Restcategorie (VVI/UI) | E91: 05 Wegen en terreinvoorzieningen | F91: =VLOOKUP('3. Investeringen'!E91,'2. Reguleringsparameters'!$B$9:$D$78,3,FALSE) -> TT-BT-AT | G91: 1 | H91: 0 | I91: =VLOOKUP(E91,'2. Reguleringsparameters'!$B$9:$C$78,2,FALSE) -> 10 | J91: 1968 | K91: 267464 | L91: =VLOOKUP(E91,'2. Reguleringsparameters'!$B$9:$E$78,4,FALSE) -> 0
B92: 79 | C92: Normaal | D92: Restcategorie (VVI/UI) | E92: 06 Utiliteitsgebouwen | F92: =VLOOKUP('3. Investeringen'!E92,'2. Reguleringsparameters'!$B$9:$D$78,3,FALSE) -> TT-BT-AT | G92: 1 | H92: 0 | I92: =VLOOKUP(E92,'2. Reguleringsparameters'!$B$9:$C$78,2,FALSE) -> 30 | J92: 1968 | K92: 213989 | L92: =VLOOKUP(E92,'2. Reguleringsparameters'!$B$9:$E$78,4,FALSE) -> 0
B93: 80 | C93: Normaal | D93: Restcategorie (VVI/UI) | E93: 07 Dienstwoningen | F93: =VLOOKUP('3. Investeringen'!E93,'2. Reguleringsparameters'!$B$9:$D$78,3,FALSE) -> TT-BT-AT | G93: 1 | H93: 0 | I93: =VLOOKUP(E93,'2. Reguleringsparameters'!$B$9:$C$78,2,FALSE) -> 55 | J93: 1968 | K93: 17639 | L93: =VLOOKUP(E93,'2. Reguleringsparameters'!$B$9:$E$78,4,FALSE) -> 0
B94: 81 | C94: Normaal | D94: Restcategorie (VVI/UI) | E94: 10 Gereedschap | F94: =VLOOKUP('3. Investeringen'!E94,'2. Reguleringsparameters'!$B$9:$D$78,3,FALSE) -> TT-BT-AT | G94: 1 | H94: 0 | I94: =VLOOKUP(E94,'2. Reguleringsparameters'!$B$9:$C$78,2,FALSE) -> 10 | J94: 1968 | K94: 24702.89194 | L94: =VLOOKUP(E94,'2. Reguleringsparameters'!$B$9:$E$78,4,FALSE) -> 1
B95: 82 | C95: Normaal | D95: Restcategorie (VVI/UI) | E95: 11 Werktuigen | F95: =VLOOKUP('3. Investeringen'!E95,'2. Reguleringsparameters'!$B$9:$D$78,3,FALSE) -> TT-BT-AT | G95: 1 | H95: 0 | I95: =VLOOKUP(E95,'2. Reguleringsparameters'!$B$9:$C$78,2,FALSE) -> 10 | J95: 1968 | K95: 123232.1903 | L95: =VLOOKUP(E95,'2. Reguleringsparameters'!$B$9:$E$78,4,FALSE) -> 1
B96: 83 | C96: Normaal | D96: Restcategorie (VVI/UI) | E96: 21 Hoofdtransportleiding | F96: =VLOOKUP('3. Investeringen'!E96,'2. Reguleringsparameters'!$B$9:$D$78,3,FALSE) -> TT-BT-AT | G96: 1 | H96: 0 | I96: =VLOOKUP(E96,'2. Reguleringsparameters'!$B$9:$C$78,2,FALSE) -> 55 | J96: 1968 | K96: 99924270.44 | L96: =VLOOKUP(E96,'2. Reguleringsparameters'!$B$9:$E$78,4,FALSE) -> 1
B97: 84 | C97: Normaal | D97: Restcategorie (VVI/UI) | E97: 32 M&R stations | F97: =VLOOKUP('3. Investeringen'!E97,'2. Reguleringsparameters'!$B$9:$D$78,3,FALSE) -> TT-BT-AT | G97: 1 | H97: 0 | I97: =VLOOKUP(E97,'2. Reguleringsparameters'!$B$9:$C$78,2,FALSE) -> 30 | J97: 1968 | K97: 2296779.2 | L97: =VLOOKUP(E97,'2. Reguleringsparameters'!$B$9:$E$78,4,FALSE) -> 1
B98: 85 | C98: Normaal | D98: Restcategorie (VVI/UI) | E98: 32 M&R stations (odorisatie) | F98: =VLOOKUP('3. Investeringen'!E98,'2. Reguleringsparameters'!$B$9:$D$78,3,FALSE) -> TT-BT-AT | G98: 1 | H98: 0 | I98: =VLOOKUP(E98,'2. Reguleringsparameters'!$B$9:$C$78,2,FALSE) -> 30 | J98: 1968 | K98: 524951 | L98: =VLOOKUP(E98,'2. Reguleringsparameters'!$B$9:$E$78,4,FALSE) -> 0
B99: 86 | C99: Normaal | D99: Restcategorie (VVI/UI) | E99: 01 Regionale leidingen | F99: =VLOOKUP('3. Investeringen'!E99,'2. Reguleringsparameters'!$B$9:$D$78,3,FALSE) -> TT-BT-AT | G99: 1 | H99: 0 | I99: =VLOOKUP(E99,'2. Reguleringsparameters'!$B$9:$C$78,2,FALSE) -> 55 | J99: 1969 | K99: 15506134.35 | L99: =VLOOKUP(E99,'2. Reguleringsparameters'!$B$9:$E$78,4,FALSE) -> 1
B100: 87 | C100: Normaal | D100: Restcategorie (VVI/UI) | E100: 01 Regionale leidingen (Waterkruisingen) | F100: =VLOOKUP('3. Investeringen'!E100,'2. Reguleringsparameters'!$B$9:$D$78,3,FALSE) -> TT-BT-AT | G100: 1 | H100: 0 | I100: =VLOOKUP(E100,'2. Reguleringsparameters'!$B$9:$C$78,2,FALSE) -> 55 | J100: 1969 | K100: 1650502.4 | L100: =VLOOKUP(E100,'2. Reguleringsparameters'!$B$9:$E$78,4,FALSE) -> 0
B101: 88 | C101: Normaal | D101: Restcategorie (VVI/UI) | E101: 02 Gasontvangststations | F101: =VLOOKUP('3. Investeringen'!E101,'2. Reguleringsparameters'!$B$9:$D$78,3,FALSE) -> TT-BT-AT | G101: 1 | H101: 0 | I101: =VLOOKUP(E101,'2. Reguleringsparameters'!$B$9:$C$78,2,FALSE) -> 30 | J101: 1969 | K101: 5400524 | L101: =VLOOKUP(E101,'2. Reguleringsparameters'!$B$9:$E$78,4,FALSE) -> 0
B102: 89 | C102: Normaal | D102: Restcategorie (VVI/UI) | E102: 03 Verremeting | F102: =VLOOKUP('3. Investeringen'!E102,'2. Reguleringsparameters'!$B$9:$D$78,3,FALSE) -> TT-BT-AT | G102: 1 | H102: 0 | I102: =VLOOKUP(E102,'2. Reguleringsparameters'!$B$9:$C$78,2,FALSE) -> 5 | J102: 1969 | K102: 637444 | L102: =VLOOKUP(E102,'2. Reguleringsparameters'!$B$9:$E$78,4,FALSE) -> 1
B103: 90 | C103: Normaal | D103: Restcategorie (VVI/UI) | E103: 04 Terreinen | F103: =VLOOKUP('3. Investeringen'!E103,'2. Reguleringsparameters'!$B$9:$D$78,3,FALSE) -> TT-BT-AT | G103: 1 | H103: 0 | I103: =VLOOKUP(E103,'2. Reguleringsparameters'!$B$9:$C$78,2,FALSE) -> 0 | J103: 1969 | K103: 348211 | L103: =VLOOKUP(E103,'2. Reguleringsparameters'!$B$9:$E$78,4,FALSE) -> 0
B104: 91 | C104: Normaal | D104: Restcategorie (VVI/UI) | E104: 05 Wegen en terreinvoorzieningen | F104: =VLOOKUP('3. Investeringen'!E104,'2. Reguleringsparameters'!$B$9:$D$78,3,FALSE) -> TT-BT-AT | G104: 1 | H104: 0 | I104: =VLOOKUP(E104,'2. Reguleringsparameters'!$B$9:$C$78,2,FALSE) -> 10 | J104: 1969 | K104: 69088 | L104: =VLOOKUP(E104,'2. Reguleringsparameters'!$B$9:$E$78,4,FALSE) -> 0
B105: 92 | C105: Normaal | D105: Restcategorie (VVI/UI) | E105: 06 Utiliteitsgebouwen | F105: =VLOOKUP('3. Investeringen'!E105,'2. Reguleringsparameters'!$B$9:$D$78,3,FALSE) -> TT-BT-AT | G105: 1 | H105: 0 | I105: =VLOOKUP(E105,'2. Reguleringsparameters'!$B$9:$C$78,2,FALSE) -> 30 | J105: 1969 | K105: 311986 | L105: =VLOOKUP(E105,'2. Reguleringsparameters'!$B$9:$E$78,4,FALSE) -> 0
B106: 93 | C106: Normaal | D106: Restcategorie (VVI/UI) | E106: 10 Gereedschap | F106: =VLOOKUP('3. Investeringen'!E106,'2. Reguleringsparameters'!$B$9:$D$78,3,FALSE) -> TT-BT-AT | G106: 1 | H106: 0 | I106: =VLOOKUP(E106,'2. Reguleringsparameters'!$B$9:$C$78,2,FALSE) -> 10 | J106: 1969 | K106: 63710.28856 | L106: =VLOOKUP(E106,'2. Reguleringsparameters'!$B$9:$E$78,4,FALSE) -> 1
B107: 94 | C107: Normaal | D107: Restcategorie (VVI/UI) | E107: 13 Aanhangwagens | F107: =VLOOKUP('3. Investeringen'!E107,'2. Reguleringsparameters'!$B$9:$D$78,3,FALSE) -> TT-BT-AT | G107: 1 | H107: 0 | I107: =VLOOKUP(E107,'2. Reguleringsparameters'!$B$9:$C$78,2,FALSE) -> 10 | J107: 1969 | K107: 1257 | L107: =VLOOKUP(E107,'2. Reguleringsparameters'!$B$9:$E$78,4,FALSE) -> 1
B108: 95 | C108: Normaal | D108: Restcategorie (VVI/UI) | E108: 14 Overig rollend materieel | F108: =VLOOKUP('3. Investeringen'!E108,'2. Reguleringsparameters'!$B$9:$D$78,3,FALSE) -> TT-BT-AT | G108: 1 | H108: 0 | I108: =VLOOKUP(E108,'2. Reguleringsparameters'!$B$9:$C$78,2,FALSE) -> 10 | J108: 1969 | K108: 33169 | L108: =VLOOKUP(E108,'2. Reguleringsparameters'!$B$9:$E$78,4,FALSE) -> 1
B109: 96 | C109: Normaal | D109: Restcategorie (VVI/UI) | E109: 15 Compressorstations (TT-BT-AT) | F109: =VLOOKUP('3. Investeringen'!E109,'2. Reguleringsparameters'!$B$9:$D$78,3,FALSE) -> TT-BT-AT | G109: 1 | H109: 0 | I109: =VLOOKUP(E109,'2. Reguleringsparameters'!$B$9:$C$78,2,FALSE) -> 30 | J109: 1969 | K109: 17801778.82 | L109: =VLOOKUP(E109,'2. Reguleringsparameters'!$B$9:$E$78,4,FALSE) -> 1
B110: 97 | C110: Normaal | D110: Restcategorie (VVI/UI) | E110: 21 Hoofdtransportleiding | F110: =VLOOKUP('3. Investeringen'!E110,'2. Reguleringsparameters'!$B$9:$D$78,3,FALSE) -> TT-BT-AT | G110: 1 | H110: 0 | I110: =VLOOKUP(E110,'2. Reguleringsparameters'!$B$9:$C$78,2,FALSE) -> 55 | J110: 1969 | K110: 18814317.7 | L110: =VLOOKUP(E110,'2. Reguleringsparameters'!$B$9:$E$78,4,FALSE) -> 1
B111: 98 | C111: Normaal | D111: Restcategorie (VVI/UI) | E111: 23 Brigittaleiding | F111: =VLOOKUP('3. Investeringen'!E111,'2. Reguleringsparameters'!$B$9:$D$78,3,FALSE) -> TT-BT-AT | G111: 1 | H111: 0 | I111: =VLOOKUP(E111,'2. Reguleringsparameters'!$B$9:$C$78,2,FALSE) -> 55 | J111: 1969 | K111: 6960591 | L111: =VLOOKUP(E111,'2. Reguleringsparameters'!$B$9:$E$78,4,FALSE) -> 1
B112: 99 | C112: Normaal | D112: Restcategorie (VVI/UI) | E112: 32 M&R stations | F112: =VLOOKUP('3. Investeringen'!E112,'2. Reguleringsparameters'!$B$9:$D$78,3,FALSE) -> TT-BT-AT | G112: 1 | H112: 0 | I112: =VLOOKUP(E112,'2. Reguleringsparameters'!$B$9:$C$78,2,FALSE) -> 30 | J112: 1969 | K112: 1333606.169 | L112: =VLOOKUP(E112,'2. Reguleringsparameters'!$B$9:$E$78,4,FALSE) -> 1
B113: 100 | C113: Normaal | D113: Restcategorie (VVI/UI) | E113: 33 Exportstations | F113: =VLOOKUP('3. Investeringen'!E113,'2. Reguleringsparameters'!$B$9:$D$78,3,FALSE) -> TT-BT-AT | G113: 1 | H113: 0 | I113: =VLOOKUP(E113,'2. Reguleringsparameters'!$B$9:$C$78,2,FALSE) -> 30 | J113: 1969 | K113: 282288.0506 | L113: =VLOOKUP(E113,'2. Reguleringsparameters'!$B$9:$E$78,4,FALSE) -> 1
B114: 101 | C114: Normaal | D114: Restcategorie (VVI/UI) | E114: 32 M&R stations (odorisatie) | F114: =VLOOKUP('3. Investeringen'!E114,'2. Reguleringsparameters'!$B$9:$D$78,3,FALSE) -> TT-BT-AT | G114: 1 | H114: 0 | I114: =VLOOKUP(E114,'2. Reguleringsparameters'!$B$9:$C$78,2,FALSE) -> 30 | J114: 1969 | K114: 354218 | L114: =VLOOKUP(E114,'2. Reguleringsparameters'!$B$9:$E$78,4,FALSE) -> 0
B115: 102 | C115: Normaal | D115: Restcategorie (VVI/UI) | E115: 01 Regionale leidingen | F115: =VLOOKUP('3. Investeringen'!E115,'2. Reguleringsparameters'!$B$9:$D$78,3,FALSE) -> TT-BT-AT | G115: 1 | H115: 0 | I115: =VLOOKUP(E115,'2. Reguleringsparameters'!$B$9:$C$78,2,FALSE) -> 55 | J115: 1970 | K115: 22954724.38 | L115: =VLOOKUP(E115,'2. Reguleringsparameters'!$B$9:$E$78,4,FALSE) -> 1
B116: 103 | C116: Normaal | D116: Restcategorie (VVI/UI) | E116: 02 Gasontvangststations | F116: =VLOOKUP('3. Investeringen'!E116,'2. Reguleringsparameters'!$B$9:$D$78,3,FALSE) -> TT-BT-AT | G116: 1 | H116: 0 | I116: =VLOOKUP(E116,'2. Reguleringsparameters'!$B$9:$C$78,2,FALSE) -> 30 | J116: 1970 | K116: 7578134 | L116: =VLOOKUP(E116,'2. Reguleringsparameters'!$B$9:$E$78,4,FALSE) -> 0
B117: 104 | C117: Normaal | D117: Restcategorie (VVI/UI) | E117: 03 Verremeting | F117: =VLOOKUP('3. Investeringen'!E117,'2. Reguleringsparameters'!$B$9:$D$78,3,FALSE) -> TT-BT-AT | G117: 1 | H117: 0 | I117: =VLOOKUP(E117,'2. Reguleringsparameters'!$B$9:$C$78,2,FALSE) -> 5 | J117: 1970 | K117: 444354 | L117: =VLOOKUP(E117,'2. Reguleringsparameters'!$B$9:$E$78,4,FALSE) -> 1
B118: 105 | C118: Normaal | D118: Restcategorie (VVI/UI) | E118: 04 Terreinen | F118: =VLOOKUP('3. Investeringen'!E118,'2. Reguleringsparameters'!$B$9:$D$78,3,FALSE) -> TT-BT-AT | G118: 1 | H118: 0 | I118: =VLOOKUP(E118,'2. Reguleringsparameters'!$B$9:$C$78,2,FALSE) -> 0 | J118: 1970 | K118: 255849 | L118: =VLOOKUP(E118,'2. Reguleringsparameters'!$B$9:$E$78,4,FALSE) -> 0
B119: 106 | C119: Normaal | D119: Restcategorie (VVI/UI) | E119: 05 Wegen en terreinvoorzieningen | F119: =VLOOKUP('3. Investeringen'!E119,'2. Reguleringsparameters'!$B$9:$D$78,3,FALSE) -> TT-BT-AT | G119: 1 | H119: 0 | I119: =VLOOKUP(E119,'2. Reguleringsparameters'!$B$9:$C$78,2,FALSE) -> 10 | J119: 1970 | K119: 157107 | L119: =VLOOKUP(E119,'2. Reguleringsparameters'!$B$9:$E$78,4,FALSE) -> 0
B120: 107 | C120: Normaal | D120: Restcategorie (VVI/UI) | E120: 06 Utiliteitsgebouwen | F120: =VLOOKUP('3. Investeringen'!E120,'2. Reguleringsparameters'!$B$9:$D$78,3,FALSE) -> TT-BT-AT | G120: 1 | H120: 0 | I120: =VLOOKUP(E120,'2. Reguleringsparameters'!$B$9:$C$78,2,FALSE) -> 30 | J120: 1970 | K120: 315894 | L120: =VLOOKUP(E120,'2. Reguleringsparameters'!$B$9:$E$78,4,FALSE) -> 0
B121: 108 | C121: Normaal | D121: Restcategorie (VVI/UI) | E121: 10 Gereedschap | F121: =VLOOKUP('3. Investeringen'!E121,'2. Reguleringsparameters'!$B$9:$D$78,3,FALSE) -> TT-BT-AT | G121: 1 | H121: 0 | I121: =VLOOKUP(E121,'2. Reguleringsparameters'!$B$9:$C$78,2,FALSE) -> 10 | J121: 1970 | K121: 48800.44107 | L121: =VLOOKUP(E121,'2. Reguleringsparameters'!$B$9:$E$78,4,FALSE) -> 1
B122: 109 | C122: Normaal | D122: Restcategorie (VVI/UI) | E122: 11 Werktuigen | F122: =VLOOKUP('3. Investeringen'!E122,'2. Reguleringsparameters'!$B$9:$D$78,3,FALSE) -> TT-BT-AT | G122: 1 | H122: 0 | I122: =VLOOKUP(E122,'2. Reguleringsparameters'!$B$9:$C$78,2,FALSE) -> 10 | J122: 1970 | K122: 349869.0889 | L122: =VLOOKUP(E122,'2. Reguleringsparameters'!$B$9:$E$78,4,FALSE) -> 1
B123: 110 | C123: Normaal | D123: Restcategorie (VVI/UI) | E123: 14 Overig rollend materieel | F123: =VLOOKUP('3. Investeringen'!E123,'2. Reguleringsparameters'!$B$9:$D$78,3,FALSE) -> TT-BT-AT | G123: 1 | H123: 0 | I123: =VLOOKUP(E123,'2. Reguleringsparameters'!$B$9:$C$78,2,FALSE) -> 10 | J123: 1970 | K123: 85490 | L123: =VLOOKUP(E123,'2. Reguleringsparameters'!$B$9:$E$78,4,FALSE) -> 1
B124: 111 | C124: Normaal | D124: Restcategorie (VVI/UI) | E124: 15 Compressorstations (TT-BT-AT) | F124: =VLOOKUP('3. Investeringen'!E124,'2. Reguleringsparameters'!$B$9:$D$78,3,FALSE) -> TT-BT-AT | G124: 1 | H124: 0 | I124: =VLOOKUP(E124,'2. Reguleringsparameters'!$B$9:$C$78,2,FALSE) -> 30 | J124: 1970 | K124: 25005797.48 | L124: =VLOOKUP(E124,'2. Reguleringsparameters'!$B$9:$E$78,4,FALSE) -> 1
B125: 112 | C125: Normaal | D125: Restcategorie (VVI/UI) | E125: 15 Compressorstations (KC) | F125: =VLOOKUP('3. Investeringen'!E125,'2. Reguleringsparameters'!$B$9:$D$78,3,FALSE) -> KC | G125: 0 | H125: 1 | I125: =VLOOKUP(E125,'2. Reguleringsparameters'!$B$9:$C$78,2,FALSE) -> 30 | J125: 1970 | K125: 1503476.486 | L125: =VLOOKUP(E125,'2. Reguleringsparameters'!$B$9:$E$78,4,FALSE) -> 0
B126: 113 | C126: Normaal | D126: Restcategorie (VVI/UI) | E126: 15 Compressorstations (TT-BT-AT) | F126: =VLOOKUP('3. Investeringen'!E126,'2. Reguleringsparameters'!$B$9:$D$78,3,FALSE) -> TT-BT-AT | G126: =IF(ISERROR(FIND(G$13,$F126)),0,1) -> 1 | H126: 0 | I126: =VLOOKUP(E126,'2. Reguleringsparameters'!$B$9:$C$78,2,FALSE) -> 30 | J126: 1970 | K126: 1077203.955 | L126: =VLOOKUP(E126,'2. Reguleringsparameters'!$B$9:$E$78,4,FALSE) -> 1
B127: 114 | C127: Normaal | D127: Restcategorie (VVI/UI) | E127: 21 Hoofdtransportleiding | F127: =VLOOKUP('3. Investeringen'!E127,'2. Reguleringsparameters'!$B$9:$D$78,3,FALSE) -> TT-BT-AT | G127: 1 | H127: 0 | I127: =VLOOKUP(E127,'2. Reguleringsparameters'!$B$9:$C$78,2,FALSE) -> 55 | J127: 1970 | K127: 56895867.89 | L127: =VLOOKUP(E127,'2. Reguleringsparameters'!$B$9:$E$78,4,FALSE) -> 1
B128: 115 | C128: Normaal | D128: Restcategorie (VVI/UI) | E128: 23 Brigittaleiding | F128: =VLOOKUP('3. Investeringen'!E128,'2. Reguleringsparameters'!$B$9:$D$78,3,FALSE) -> TT-BT-AT | G128: 1 | H128: 0 | I128: =VLOOKUP(E128,'2. Reguleringsparameters'!$B$9:$C$78,2,FALSE) -> 55 | J128: 1970 | K128: 306379 | L128: =VLOOKUP(E128,'2. Reguleringsparameters'!$B$9:$E$78,4,FALSE) -> 1
B129: 116 | C129: Normaal | D129: Restcategorie (VVI/UI) | E129: 32 M&R stations | F129: =VLOOKUP('3. Investeringen'!E129,'2. Reguleringsparameters'!$B$9:$D$78,3,FALSE) -> TT-BT-AT | G129: 1 | H129: 0 | I129: =VLOOKUP(E129,'2. Reguleringsparameters'!$B$9:$C$78,2,FALSE) -> 30 | J129: 1970 | K129: 1982595.129 | L129: =VLOOKUP(E129,'2. Reguleringsparameters'!$B$9:$E$78,4,FALSE) -> 1
B130: 117 | C130: Normaal | D130: Restcategorie (VVI/UI) | E130: 33 Exportstations | F130: =VLOOKUP('3. Investeringen'!E130,'2. Reguleringsparameters'!$B$9:$D$78,3,FALSE) -> TT-BT-AT | G130: 1 | H130: 0 | I130: =VLOOKUP(E130,'2. Reguleringsparameters'!$B$9:$C$78,2,FALSE) -> 30 | J130: 1970 | K130: 453703.981 | L130: =VLOOKUP(E130,'2. Reguleringsparameters'!$B$9:$E$78,4,FALSE) -> 1
B131: 118 | C131: Normaal | D131: Restcategorie (VVI/UI) | E131: 32 M&R stations (odorisatie) | F131: =VLOOKUP('3. Investeringen'!E131,'2. Reguleringsparameters'!$B$9:$D$78,3,FALSE) -> TT-BT-AT | G131: 1 | H131: 0 | I131: =VLOOKUP(E131,'2. Reguleringsparameters'!$B$9:$C$78,2,FALSE) -> 30 | J131: 1970 | K131: 1075560 | L131: =VLOOKUP(E131,'2. Reguleringsparameters'!$B$9:$E$78,4,FALSE) -> 0
B132: 119 | C132: Normaal | D132: Restcategorie (VVI/UI) | E132: 01 Regionale leidingen | F132: =VLOOKUP('3. Investeringen'!E132,'2. Reguleringsparameters'!$B$9:$D$78,3,FALSE) -> TT-BT-AT | G132: 1 | H132: 0 | I132: =VLOOKUP(E132,'2. Reguleringsparameters'!$B$9:$C$78,2,FALSE) -> 55 | J132: 1971 | K132: 20017004.78 | L132: =VLOOKUP(E132,'2. Reguleringsparameters'!$B$9:$E$78,4,FALSE) -> 1
B133: 120 | C133: Normaal | D133: Restcategorie (VVI/UI) | E133: 01 Regionale leidingen (Waterkruisingen) | F133: =VLOOKUP('3. Investeringen'!E133,'2. Reguleringsparameters'!$B$9:$D$78,3,FALSE) -> TT-BT-AT | G133: 1 | H133: 0 | I133: =VLOOKUP(E133,'2. Reguleringsparameters'!$B$9:$C$78,2,FALSE) -> 55 | J133: 1971 | K133: 2589453 | L133: =VLOOKUP(E133,'2. Reguleringsparameters'!$B$9:$E$78,4,FALSE) -> 0
B134: 121 | C134: Normaal | D134: Restcategorie (VVI/UI) | E134: 02 Gasontvangststations | F134: =VLOOKUP('3. Investeringen'!E134,'2. Reguleringsparameters'!$B$9:$D$78,3,FALSE) -> TT-BT-AT | G134: 1 | H134: 0 | I134: =VLOOKUP(E134,'2. Reguleringsparameters'!$B$9:$C$78,2,FALSE) -> 30 | J134: 1971 | K134: 8885929 | L134: =VLOOKUP(E134,'2. Reguleringsparameters'!$B$9:$E$78,4,FALSE) -> 0
B135: 122 | C135: Normaal | D135: Restcategorie (VVI/UI) | E135: 03 Verremeting | F135: =VLOOKUP('3. Investeringen'!E135,'2. Reguleringsparameters'!$B$9:$D$78,3,FALSE) -> TT-BT-AT | G135: 1 | H135: 0 | I135: =VLOOKUP(E135,'2. Reguleringsparameters'!$B$9:$C$78,2,FALSE) -> 5 | J135: 1971 | K135: 980544 | L135: =VLOOKUP(E135,'2. Reguleringsparameters'!$B$9:$E$78,4,FALSE) -> 1
B136: 123 | C136: Normaal | D136: Restcategorie (VVI/UI) | E136: 04 Terreinen | F136: =VLOOKUP('3. Investeringen'!E136,'2. Reguleringsparameters'!$B$9:$D$78,3,FALSE) -> TT-BT-AT | G136: 1 | H136: 0 | I136: =VLOOKUP(E136,'2. Reguleringsparameters'!$B$9:$C$78,2,FALSE) -> 0 | J136: 1971 | K136: 322042 | L136: =VLOOKUP(E136,'2. Reguleringsparameters'!$B$9:$E$78,4,FALSE) -> 0
B137: 124 | C137: Normaal | D137: Restcategorie (VVI/UI) | E137: 05 Wegen en terreinvoorzieningen | F137: =VLOOKUP('3. Investeringen'!E137,'2. Reguleringsparameters'!$B$9:$D$78,3,FALSE) -> TT-BT-AT | G137: 1 | H137: 0 | I137: =VLOOKUP(E137,'2. Reguleringsparameters'!$B$9:$C$78,2,FALSE) -> 10 | J137: 1971 | K137: 108040 | L137: =VLOOKUP(E137,'2. Reguleringsparameters'!$B$9:$E$78,4,FALSE) -> 0
B138: 125 | C138: Normaal | D138: Restcategorie (VVI/UI) | E138: 06 Utiliteitsgebouwen | F138: =VLOOKUP('3. Investeringen'!E138,'2. Reguleringsparameters'!$B$9:$D$78,3,FALSE) -> TT-BT-AT | G138: 1 | H138: 0 | I138: =VLOOKUP(E138,'2. Reguleringsparameters'!$B$9:$C$78,2,FALSE) -> 30 | J138: 1971 | K138: 1529520 | L138: =VLOOKUP(E138,'2. Reguleringsparameters'!$B$9:$E$78,4,FALSE) -> 0
B139: 126 | C139: Normaal | D139: Restcategorie (VVI/UI) | E139: 08 Inrichting gebouwen | F139: =VLOOKUP('3. Investeringen'!E139,'2. Reguleringsparameters'!$B$9:$D$78,3,FALSE) -> TT-BT-AT | G139: 1 | H139: 0 | I139: =VLOOKUP(E139,'2. Reguleringsparameters'!$B$9:$C$78,2,FALSE) -> 10 | J139: 1971 | K139: 6607 | L139: =VLOOKUP(E139,'2. Reguleringsparameters'!$B$9:$E$78,4,FALSE) -> 0
B140: 127 | C140: Normaal | D140: Restcategorie (VVI/UI) | E140: 11 Werktuigen | F140: =VLOOKUP('3. Investeringen'!E140,'2. Reguleringsparameters'!$B$9:$D$78,3,FALSE) -> TT-BT-AT | G140: 1 | H140: 0 | I140: =VLOOKUP(E140,'2. Reguleringsparameters'!$B$9:$C$78,2,FALSE) -> 10 | J140: 1971 | K140: 244172.3185 | L140: =VLOOKUP(E140,'2. Reguleringsparameters'!$B$9:$E$78,4,FALSE) -> 1
B141: 128 | C141: Normaal | D141: Restcategorie (VVI/UI) | E141: 14 Overig rollend materieel | F141: =VLOOKUP('3. Investeringen'!E141,'2. Reguleringsparameters'!$B$9:$D$78,3,FALSE) -> TT-BT-AT | G141: 1 | H141: 0 | I141: =VLOOKUP(E141,'2. Reguleringsparameters'!$B$9:$C$78,2,FALSE) -> 10 | J141: 1971 | K141: 249419 | L141: =VLOOKUP(E141,'2. Reguleringsparameters'!$B$9:$E$78,4,FALSE) -> 1
B142: 129 | C142: Normaal | D142: Restcategorie (VVI/UI) | E142: 15 Compressorstations (TT-BT-AT) | F142: =VLOOKUP('3. Investeringen'!E142,'2. Reguleringsparameters'!$B$9:$D$78,3,FALSE) -> TT-BT-AT | G142: 1 | H142: 0 | I142: =VLOOKUP(E142,'2. Reguleringsparameters'!$B$9:$C$78,2,FALSE) -> 30 | J142: 1971 | K142: 24191072.08 | L142: =VLOOKUP(E142,'2. Reguleringsparameters'!$B$9:$E$78,4,FALSE) -> 1
B143: 130 | C143: Normaal | D143: Restcategorie (VVI/UI) | E143: 15 Compressorstations (KC) | F143: =VLOOKUP('3. Investeringen'!E143,'2. Reguleringsparameters'!$B$9:$D$78,3,FALSE) -> KC | G143: 0 | H143: 1 | I143: =VLOOKUP(E143,'2. Reguleringsparameters'!$B$9:$C$78,2,FALSE) -> 30 | J143: 1971 | K143: 2362413.003 | L143: =VLOOKUP(E143,'2. Reguleringsparameters'!$B$9:$E$78,4,FALSE) -> 0
B144: 131 | C144: Normaal | D144: Restcategorie (VVI/UI) | E144: 21 Hoofdtransportleiding | F144: =VLOOKUP('3. Investeringen'!E144,'2. Reguleringsparameters'!$B$9:$D$78,3,FALSE) -> TT-BT-AT | G144: 1 | H144: 0 | I144: =VLOOKUP(E144,'2. Reguleringsparameters'!$B$9:$C$78,2,FALSE) -> 55 | J144: 1971 | K144: 136642960.6 | L144: =VLOOKUP(E144,'2. Reguleringsparameters'!$B$9:$E$78,4,FALSE) -> 1
B145: 132 | C145: Normaal | D145: Restcategorie (VVI/UI) | E145: 21 Hoofdtransportleiding (waterkruisingen) | F145: =VLOOKUP('3. Investeringen'!E145,'2. Reguleringsparameters'!$B$9:$D$78,3,FALSE) -> TT-BT-AT | G145: 1 | H145: 0 | I145: =VLOOKUP(E145,'2. Reguleringsparameters'!$B$9:$C$78,2,FALSE) -> 55 | J145: 1971 | K145: 28718331 | L145: =VLOOKUP(E145,'2. Reguleringsparameters'!$B$9:$E$78,4,FALSE) -> 0
B146: 133 | C146: Normaal | D146: Restcategorie (VVI/UI) | E146: 32 M&R stations | F146: =VLOOKUP('3. Investeringen'!E146,'2. Reguleringsparameters'!$B$9:$D$78,3,FALSE) -> TT-BT-AT | G146: 1 | H146: 0 | I146: =VLOOKUP(E146,'2. Reguleringsparameters'!$B$9:$C$78,2,FALSE) -> 30 | J146: 1971 | K146: 2241258.9 | L146: =VLOOKUP(E146,'2. Reguleringsparameters'!$B$9:$E$78,4,FALSE) -> 1
B147: 134 | C147: Normaal | D147: Restcategorie (VVI/UI) | E147: 33 Exportstations | F147: =VLOOKUP('3. Investeringen'!E147,'2. Reguleringsparameters'!$B$9:$D$78,3,FALSE) -> TT-BT-AT | G147: 1 | H147: 0 | I147: =VLOOKUP(E147,'2. Reguleringsparameters'!$B$9:$C$78,2,FALSE) -> 30 | J147: 1971 | K147: 376369.3998 | L147: =VLOOKUP(E147,'2. Reguleringsparameters'!$B$9:$E$78,4,FALSE) -> 1
B148: 135 | C148: Normaal | D148: Restcategorie (VVI/UI) | E148: 32 M&R stations (odorisatie) | F148: =VLOOKUP('3. Investeringen'!E148,'2. Reguleringsparameters'!$B$9:$D$78,3,FALSE) -> TT-BT-AT | G148: 1 | H148: 0 | I148: =VLOOKUP(E148,'2. Reguleringsparameters'!$B$9:$C$78,2,FALSE) -> 30 | J148: 1971 | K148: 725749 | L148: =VLOOKUP(E148,'2. Reguleringsparameters'!$B$9:$E$78,4,FALSE) -> 0
B149: 136 | C149: Normaal | D149: Restcategorie (VVI/UI) | E149: 01 Regionale leidingen | F149: =VLOOKUP('3. Investeringen'!E149,'2. Reguleringsparameters'!$B$9:$D$78,3,FALSE) -> TT-BT-AT | G149: 1 | H149: 0 | I149: =VLOOKUP(E149,'2. Reguleringsparameters'!$B$9:$C$78,2,FALSE) -> 55 | J149: 1972 | K149: 21267626.1 | L149: =VLOOKUP(E149,'2. Reguleringsparameters'!$B$9:$E$78,4,FALSE) -> 1
B150: 137 | C150: Normaal | D150: Restcategorie (VVI/UI) | E150: 01 Regionale leidingen (Waterkruisingen) | F150: =VLOOKUP('3. Investeringen'!E150,'2. Reguleringsparameters'!$B$9:$D$78,3,FALSE) -> TT-BT-AT | G150: 1 | H150: 0 | I150: =VLOOKUP(E150,'2. Reguleringsparameters'!$B$9:$C$78,2,FALSE) -> 55 | J150: 1972 | K150: 2104050.393 | L150: =VLOOKUP(E150,'2. Reguleringsparameters'!$B$9:$E$78,4,FALSE) -> 0
B151: 138 | C151: Normaal | D151: Restcategorie (VVI/UI) | E151: 02 Gasontvangststations | F151: =VLOOKUP('3. Investeringen'!E151,'2. Reguleringsparameters'!$B$9:$D$78,3,FALSE) -> TT-BT-AT | G151: 1 | H151: 0 | I151: =VLOOKUP(E151,'2. Reguleringsparameters'!$B$9:$C$78,2,FALSE) -> 30 | J151: 1972 | K151: 7293975 | L151: =VLOOKUP(E151,'2. Reguleringsparameters'!$B$9:$E$78,4,FALSE) -> 0
B152: 139 | C152: Normaal | D152: Restcategorie (VVI/UI) | E152: 03 Verremeting | F152: =VLOOKUP('3. Investeringen'!E152,'2. Reguleringsparameters'!$B$9:$D$78,3,FALSE) -> TT-BT-AT | G152: 1 | H152: 0 | I152: =VLOOKUP(E152,'2. Reguleringsparameters'!$B$9:$C$78,2,FALSE) -> 5 | J152: 1972 | K152: 1625125 | L152: =VLOOKUP(E152,'2. Reguleringsparameters'!$B$9:$E$78,4,FALSE) -> 1
B153: 140 | C153: Normaal | D153: Restcategorie (VVI/UI) | E153: 04 Terreinen | F153: =VLOOKUP('3. Investeringen'!E153,'2. Reguleringsparameters'!$B$9:$D$78,3,FALSE) -> TT-BT-AT | G153: 1 | H153: 0 | I153: =VLOOKUP(E153,'2. Reguleringsparameters'!$B$9:$C$78,2,FALSE) -> 0 | J153: 1972 | K153: 610031 | L153: =VLOOKUP(E153,'2. Reguleringsparameters'!$B$9:$E$78,4,FALSE) -> 0
B154: 141 | C154: Normaal | D154: Restcategorie (VVI/UI) | E154: 05 Wegen en terreinvoorzieningen | F154: =VLOOKUP('3. Investeringen'!E154,'2. Reguleringsparameters'!$B$9:$D$78,3,FALSE) -> TT-BT-AT | G154: 1 | H154: 0 | I154: =VLOOKUP(E154,'2. Reguleringsparameters'!$B$9:$C$78,2,FALSE) -> 10 | J154: 1972 | K154: 181957 | L154: =VLOOKUP(E154,'2. Reguleringsparameters'!$B$9:$E$78,4,FALSE) -> 0
B155: 142 | C155: Normaal | D155: Restcategorie (VVI/UI) | E155: 06 Utiliteitsgebouwen | F155: =VLOOKUP('3. Investeringen'!E155,'2. Reguleringsparameters'!$B$9:$D$78,3,FALSE) -> TT-BT-AT | G155: 1 | H155: 0 | I155: =VLOOKUP(E155,'2. Reguleringsparameters'!$B$9:$C$78,2,FALSE) -> 30 | J155: 1972 | K155: 470683 | L155: =VLOOKUP(E155,'2. Reguleringsparameters'!$B$9:$E$78,4,FALSE) -> 0
B156: 143 | C156: Normaal | D156: Restcategorie (VVI/UI) | E156: 13 Aanhangwagens | F156: =VLOOKUP('3. Investeringen'!E156,'2. Reguleringsparameters'!$B$9:$D$78,3,FALSE) -> TT-BT-AT | G156: 1 | H156: 0 | I156: =VLOOKUP(E156,'2. Reguleringsparameters'!$B$9:$C$78,2,FALSE) -> 10 | J156: 1972 | K156: 2580 | L156: =VLOOKUP(E156,'2. Reguleringsparameters'!$B$9:$E$78,4,FALSE) -> 1
B157: 144 | C157: Normaal | D157: Restcategorie (VVI/UI) | E157: 14 Overig rollend materieel | F157: =VLOOKUP('3. Investeringen'!E157,'2. Reguleringsparameters'!$B$9:$D$78,3,FALSE) -> TT-BT-AT | G157: 1 | H157: 0 | I157: =VLOOKUP(E157,'2. Reguleringsparameters'!$B$9:$C$78,2,FALSE) -> 10 | J157: 1972 | K157: 366238 | L157: =VLOOKUP(E157,'2. Reguleringsparameters'!$B$9:$E$78,4,FALSE) -> 1
B158: 145 | C158: Normaal | D158: Restcategorie (VVI/UI) | E158: 15 Compressorstations (TT-BT-AT) | F158: =VLOOKUP('3. Investeringen'!E158,'2. Reguleringsparameters'!$B$9:$D$78,3,FALSE) -> TT-BT-AT | G158: 1 | H158: 0 | I158: =VLOOKUP(E158,'2. Reguleringsparameters'!$B$9:$C$78,2,FALSE) -> 30 | J158: 1972 | K158: 19574040.28 | L158: =VLOOKUP(E158,'2. Reguleringsparameters'!$B$9:$E$78,4,FALSE) -> 1
B159: 146 | C159: Normaal | D159: Restcategorie (VVI/UI) | E159: 15 Compressorstations (KC) | F159: =VLOOKUP('3. Investeringen'!E159,'2. Reguleringsparameters'!$B$9:$D$78,3,FALSE) -> KC | G159: 0 | H159: 1 | I159: =VLOOKUP(E159,'2. Reguleringsparameters'!$B$9:$C$78,2,FALSE) -> 30 | J159: 1972 | K159: 1553095.852 | L159: =VLOOKUP(E159,'2. Reguleringsparameters'!$B$9:$E$78,4,FALSE) -> 0
B160: 147 | C160: Normaal | D160: Restcategorie (VVI/UI) | E160: 15 Compressorstations (TT-BT-AT) | F160: =VLOOKUP('3. Investeringen'!E160,'2. Reguleringsparameters'!$B$9:$D$78,3,FALSE) -> TT-BT-AT | G160: 1 | H160: 0 | I160: =VLOOKUP(E160,'2. Reguleringsparameters'!$B$9:$C$78,2,FALSE) -> 30 | J160: 1972 | K160: 344331.8996 | L160: =VLOOKUP(E160,'2. Reguleringsparameters'!$B$9:$E$78,4,FALSE) -> 1
B161: 148 | C161: Normaal | D161: Restcategorie (VVI/UI) | E161: 17 Mengstations | F161: =VLOOKUP('3. Investeringen'!E161,'2. Reguleringsparameters'!$B$9:$D$78,3,FALSE) -> KC | G161: 0 | H161: 1 | I161: =VLOOKUP(E161,'2. Reguleringsparameters'!$B$9:$C$78,2,FALSE) -> 30 | J161: 1972 | K161: 1051560 | L161: =VLOOKUP(E161,'2. Reguleringsparameters'!$B$9:$E$78,4,FALSE) -> 0
B162: 149 | C162: Normaal | D162: Restcategorie (VVI/UI) | E162: 21 Hoofdtransportleiding | F162: =VLOOKUP('3. Investeringen'!E162,'2. Reguleringsparameters'!$B$9:$D$78,3,FALSE) -> TT-BT-AT | G162: 1 | H162: 0 | I162: =VLOOKUP(E162,'2. Reguleringsparameters'!$B$9:$C$78,2,FALSE) -> 55 | J162: 1972 | K162: 192711070.9 | L162: =VLOOKUP(E162,'2. Reguleringsparameters'!$B$9:$E$78,4,FALSE) -> 1
B163: 150 | C163: Normaal | D163: Restcategorie (VVI/UI) | E163: 32 M&R stations | F163: =VLOOKUP('3. Investeringen'!E163,'2. Reguleringsparameters'!$B$9:$D$78,3,FALSE) -> TT-BT-AT | G163: 1 | H163: 0 | I163: =VLOOKUP(E163,'2. Reguleringsparameters'!$B$9:$C$78,2,FALSE) -> 30 | J163: 1972 | K163: 4109686.201 | L163: =VLOOKUP(E163,'2. Reguleringsparameters'!$B$9:$E$78,4,FALSE) -> 1
B164: 151 | C164: Normaal | D164: Restcategorie (VVI/UI) | E164: 33 Exportstations | F164: =VLOOKUP('3. Investeringen'!E164,'2. Reguleringsparameters'!$B$9:$D$78,3,FALSE) -> TT-BT-AT | G164: 1 | H164: 0 | I164: =VLOOKUP(E164,'2. Reguleringsparameters'!$B$9:$C$78,2,FALSE) -> 30 | J164: 1972 | K164: 2491533.809 | L164: =VLOOKUP(E164,'2. Reguleringsparameters'!$B$9:$E$78,4,FALSE) -> 1
B165: 152 | C165: Normaal | D165: Restcategorie (VVI/UI) | E165: 35 Injectiestations | F165: =VLOOKUP('3. Investeringen'!E165,'2. Reguleringsparameters'!$B$9:$D$78,3,FALSE) -> TT-BT-AT | G165: 1 | H165: 0 | I165: =VLOOKUP(E165,'2. Reguleringsparameters'!$B$9:$C$78,2,FALSE) -> 30 | J165: 1972 | K165: 136134 | L165: =VLOOKUP(E165,'2. Reguleringsparameters'!$B$9:$E$78,4,FALSE) -> 1
B166: 153 | C166: Normaal | D166: Restcategorie (VVI/UI) | E166: 32 M&R stations (odorisatie) | F166: =VLOOKUP('3. Investeringen'!E166,'2. Reguleringsparameters'!$B$9:$D$78,3,FALSE) -> TT-BT-AT | G166: 1 | H166: 0 | I166: =VLOOKUP(E166,'2. Reguleringsparameters'!$B$9:$C$78,2,FALSE) -> 30 | J166: 1972 | K166: 2387332 | L166: =VLOOKUP(E166,'2. Reguleringsparameters'!$B$9:$E$78,4,FALSE) -> 0
B167: 154 | C167: Normaal | D167: Restcategorie (VVI/UI) | E167: 01 Regionale leidingen | F167: =VLOOKUP('3. Investeringen'!E167,'2. Reguleringsparameters'!$B$9:$D$78,3,FALSE) -> TT-BT-AT | G167: 1 | H167: 0 | I167: =VLOOKUP(E167,'2. Reguleringsparameters'!$B$9:$C$78,2,FALSE) -> 55 | J167: 1973 | K167: 22715431.73 | L167: =VLOOKUP(E167,'2. Reguleringsparameters'!$B$9:$E$78,4,FALSE) -> 1
B168: 155 | C168: Normaal | D168: Restcategorie (VVI/UI) | E168: 01 Regionale leidingen (Waterkruisingen) | F168: =VLOOKUP('3. Investeringen'!E168,'2. Reguleringsparameters'!$B$9:$D$78,3,FALSE) -> TT-BT-AT | G168: 1 | H168: 0 | I168: =VLOOKUP(E168,'2. Reguleringsparameters'!$B$9:$C$78,2,FALSE) -> 55 | J168: 1973 | K168: 1400952 | L168: =VLOOKUP(E168,'2. Reguleringsparameters'!$B$9:$E$78,4,FALSE) -> 0
B169: 156 | C169: Normaal | D169: Restcategorie (VVI/UI) | E169: 02 Gasontvangststations | F169: =VLOOKUP('3. Investeringen'!E169,'2. Reguleringsparameters'!$B$9:$D$78,3,FALSE) -> TT-BT-AT | G169: 1 | H169: 0 | I169: =VLOOKUP(E169,'2. Reguleringsparameters'!$B$9:$C$78,2,FALSE) -> 30 | J169: 1973 | K169: 4426829 | L169: =VLOOKUP(E169,'2. Reguleringsparameters'!$B$9:$E$78,4,FALSE) -> 0
B170: 157 | C170: Normaal | D170: Restcategorie (VVI/UI) | E170: 03 Verremeting | F170: =VLOOKUP('3. Investeringen'!E170,'2. Reguleringsparameters'!$B$9:$D$78,3,FALSE) -> TT-BT-AT | G170: 1 | H170: 0 | I170: =VLOOKUP(E170,'2. Reguleringsparameters'!$B$9:$C$78,2,FALSE) -> 5 | J170: 1973 | K170: 1116647 | L170: =VLOOKUP(E170,'2. Reguleringsparameters'!$B$9:$E$78,4,FALSE) -> 1
B171: 158 | C171: Normaal | D171: Restcategorie (VVI/UI) | E171: 04 Terreinen | F171: =VLOOKUP('3. Investeringen'!E171,'2. Reguleringsparameters'!$B$9:$D$78,3,FALSE) -> TT-BT-AT | G171: 1 | H171: 0 | I171: =VLOOKUP(E171,'2. Reguleringsparameters'!$B$9:$C$78,2,FALSE) -> 0 | J171: 1973 | K171: 298679 | L171: =VLOOKUP(E171,'2. Reguleringsparameters'!$B$9:$E$78,4,FALSE) -> 0
B172: 159 | C172: Normaal | D172: Restcategorie (VVI/UI) | E172: 05 Wegen en terreinvoorzieningen | F172: =VLOOKUP('3. Investeringen'!E172,'2. Reguleringsparameters'!$B$9:$D$78,3,FALSE) -> TT-BT-AT | G172: 1 | H172: 0 | I172: =VLOOKUP(E172,'2. Reguleringsparameters'!$B$9:$C$78,2,FALSE) -> 10 | J172: 1973 | K172: 85983 | L172: =VLOOKUP(E172,'2. Reguleringsparameters'!$B$9:$E$78,4,FALSE) -> 0
B173: 160 | C173: Normaal | D173: Restcategorie (VVI/UI) | E173: 06 Utiliteitsgebouwen | F173: =VLOOKUP('3. Investeringen'!E173,'2. Reguleringsparameters'!$B$9:$D$78,3,FALSE) -> TT-BT-AT | G173: 1 | H173: 0 | I173: =VLOOKUP(E173,'2. Reguleringsparameters'!$B$9:$C$78,2,FALSE) -> 30 | J173: 1973 | K173: 145971 | L173: =VLOOKUP(E173,'2. Reguleringsparameters'!$B$9:$E$78,4,FALSE) -> 0
B174: 161 | C174: Normaal | D174: Restcategorie (VVI/UI) | E174: 13 Aanhangwagens | F174: =VLOOKUP('3. Investeringen'!E174,'2. Reguleringsparameters'!$B$9:$D$78,3,FALSE) -> TT-BT-AT | G174: 1 | H174: 0 | I174: =VLOOKUP(E174,'2. Reguleringsparameters'!$B$9:$C$78,2,FALSE) -> 10 | J174: 1973 | K174: 1091 | L174: =VLOOKUP(E174,'2. Reguleringsparameters'!$B$9:$E$78,4,FALSE) -> 1
B175: 162 | C175: Normaal | D175: Restcategorie (VVI/UI) | E175: 14 Overig rollend materieel | F175: =VLOOKUP('3. Investeringen'!E175,'2. Reguleringsparameters'!$B$9:$D$78,3,FALSE) -> TT-BT-AT | G175: 1 | H175: 0 | I175: =VLOOKUP(E175,'2. Reguleringsparameters'!$B$9:$C$78,2,FALSE) -> 10 | J175: 1973 | K175: 4501 | L175: =VLOOKUP(E175,'2. Reguleringsparameters'!$B$9:$E$78,4,FALSE) -> 1
B176: 163 | C176: Normaal | D176: Restcategorie (VVI/UI) | E176: 15 Compressorstations (TT-BT-AT) | F176: =VLOOKUP('3. Investeringen'!E176,'2. Reguleringsparameters'!$B$9:$D$78,3,FALSE) -> TT-BT-AT | G176: 1 | H176: 0 | I176: =VLOOKUP(E176,'2. Reguleringsparameters'!$B$9:$C$78,2,FALSE) -> 30 | J176: 1973 | K176: 5205870.485 | L176: =VLOOKUP(E176,'2. Reguleringsparameters'!$B$9:$E$78,4,FALSE) -> 1
B177: 164 | C177: Normaal | D177: Restcategorie (VVI/UI) | E177: 15 Compressorstations (KC) | F177: =VLOOKUP('3. Investeringen'!E177,'2. Reguleringsparameters'!$B$9:$D$78,3,FALSE) -> KC | G177: =IF(ISERROR(FIND(G$13,$F177)),0,1) -> 0 | H177: 1 | I177: =VLOOKUP(E177,'2. Reguleringsparameters'!$B$9:$C$78,2,FALSE) -> 30 | J177: 1973 | K177: 177778.9213 | L177: =VLOOKUP(E177,'2. Reguleringsparameters'!$B$9:$E$78,4,FALSE) -> 0
B178: 165 | C178: Normaal | D178: Restcategorie (VVI/UI) | E178: 15 Compressorstations (TT-BT-AT) | F178: =VLOOKUP('3. Investeringen'!E178,'2. Reguleringsparameters'!$B$9:$D$78,3,FALSE) -> TT-BT-AT | G178: 1 | H178: 0 | I178: =VLOOKUP(E178,'2. Reguleringsparameters'!$B$9:$C$78,2,FALSE) -> 30 | J178: 1973 | K178: 7036930.716 | L178: =VLOOKUP(E178,'2. Reguleringsparameters'!$B$9:$E$78,4,FALSE) -> 1
B179: 166 | C179: Normaal | D179: Restcategorie (VVI/UI) | E179: 21 Hoofdtransportleiding | F179: =VLOOKUP('3. Investeringen'!E179,'2. Reguleringsparameters'!$B$9:$D$78,3,FALSE) -> TT-BT-AT | G179: 1 | H179: 0 | I179: =VLOOKUP(E179,'2. Reguleringsparameters'!$B$9:$C$78,2,FALSE) -> 55 | J179: 1973 | K179: 92610619.01 | L179: =VLOOKUP(E179,'2. Reguleringsparameters'!$B$9:$E$78,4,FALSE) -> 1
B180: 167 | C180: Normaal | D180: Restcategorie (VVI/UI) | E180: 21 Hoofdtransportleiding (waterkruisingen) | F180: =VLOOKUP('3. Investeringen'!E180,'2. Reguleringsparameters'!$B$9:$D$78,3,FALSE) -> TT-BT-AT | G180: 1 | H180: 0 | I180: =VLOOKUP(E180,'2. Reguleringsparameters'!$B$9:$C$78,2,FALSE) -> 55 | J180: 1973 | K180: 1376265.849 | L180: =VLOOKUP(E180,'2. Reguleringsparameters'!$B$9:$E$78,4,FALSE) -> 0
B181: 168 | C181: Normaal | D181: Restcategorie (VVI/UI) | E181: 32 M&R stations | F181: =VLOOKUP('3. Investeringen'!E181,'2. Reguleringsparameters'!$B$9:$D$78,3,FALSE) -> TT-BT-AT | G181: 1 | H181: 0 | I181: =VLOOKUP(E181,'2. Reguleringsparameters'!$B$9:$C$78,2,FALSE) -> 30 | J181: 1973 | K181: 3960679.781 | L181: =VLOOKUP(E181,'2. Reguleringsparameters'!$B$9:$E$78,4,FALSE) -> 1
B182: 169 | C182: Normaal | D182: Restcategorie (VVI/UI) | E182: 33 Exportstations | F182: =VLOOKUP('3. Investeringen'!E182,'2. Reguleringsparameters'!$B$9:$D$78,3,FALSE) -> TT-BT-AT | G182: 1 | H182: 0 | I182: =VLOOKUP(E182,'2. Reguleringsparameters'!$B$9:$C$78,2,FALSE) -> 30 | J182: 1973 | K182: 666693.898 | L182: =VLOOKUP(E182,'2. Reguleringsparameters'!$B$9:$E$78,4,FALSE) -> 1
B183: 170 | C183: Normaal | D183: Restcategorie (VVI/UI) | E183: 34 Reduceerstations | F183: =VLOOKUP('3. Investeringen'!E183,'2. Reguleringsparameters'!$B$9:$D$78,3,FALSE) -> TT-BT-AT | G183: 1 | H183: 0 | I183: =VLOOKUP(E183,'2. Reguleringsparameters'!$B$9:$C$78,2,FALSE) -> 30 | J183: 1973 | K183: 29365.92837 | L183: =VLOOKUP(E183,'2. Reguleringsparameters'!$B$9:$E$78,4,FALSE) -> 1
B184: 171 | C184: Normaal | D184: Restcategorie (VVI/UI) | E184: 32 M&R stations (odorisatie) | F184: =VLOOKUP('3. Investeringen'!E184,'2. Reguleringsparameters'!$B$9:$D$78,3,FALSE) -> TT-BT-AT | G184: 1 | H184: 0 | I184: =VLOOKUP(E184,'2. Reguleringsparameters'!$B$9:$C$78,2,FALSE) -> 30 | J184: 1973 | K184: 743485 | L184: =VLOOKUP(E184,'2. Reguleringsparameters'!$B$9:$E$78,4,FALSE) -> 0
B185: 172 | C185: Normaal | D185: Restcategorie (VVI/UI) | E185: 01 Regionale leidingen | F185: =VLOOKUP('3. Investeringen'!E185,'2. Reguleringsparameters'!$B$9:$D$78,3,FALSE) -> TT-BT-AT | G185: 1 | H185: 0 | I185: =VLOOKUP(E185,'2. Reguleringsparameters'!$B$9:$C$78,2,FALSE) -> 55 | J185: 1974 | K185: 6875692.351 | L185: =VLOOKUP(E185,'2. Reguleringsparameters'!$B$9:$E$78,4,FALSE) -> 1
B186: 173 | C186: Normaal | D186: Restcategorie (VVI/UI) | E186: 02 Gasontvangststations | F186: =VLOOKUP('3. Investeringen'!E186,'2. Reguleringsparameters'!$B$9:$D$78,3,FALSE) -> TT-BT-AT | G186: 1 | H186: 0 | I186: =VLOOKUP(E186,'2. Reguleringsparameters'!$B$9:$C$78,2,FALSE) -> 30 | J186: 1974 | K186: 4000395 | L186: =VLOOKUP(E186,'2. Reguleringsparameters'!$B$9:$E$78,4,FALSE) -> 0
B187: 174 | C187: Normaal | D187: Restcategorie (VVI/UI) | E187: 03 Verremeting | F187: =VLOOKUP('3. Investeringen'!E187,'2. Reguleringsparameters'!$B$9:$D$78,3,FALSE) -> TT-BT-AT | G187: 1 | H187: 0 | I187: =VLOOKUP(E187,'2. Reguleringsparameters'!$B$9:$C$78,2,FALSE) -> 5 | J187: 1974 | K187: 1827697 | L187: =VLOOKUP(E187,'2. Reguleringsparameters'!$B$9:$E$78,4,FALSE) -> 1
B188: 175 | C188: Normaal | D188: Restcategorie (VVI/UI) | E188: 04 Terreinen | F188: =VLOOKUP('3. Investeringen'!E188,'2. Reguleringsparameters'!$B$9:$D$78,3,FALSE) -> TT-BT-AT | G188: 1 | H188: 0 | I188: =VLOOKUP(E188,'2. Reguleringsparameters'!$B$9:$C$78,2,FALSE) -> 0 | J188: 1974 | K188: 495568 | L188: =VLOOKUP(E188,'2. Reguleringsparameters'!$B$9:$E$78,4,FALSE) -> 0
B189: 176 | C189: Normaal | D189: Restcategorie (VVI/UI) | E189: 05 Wegen en terreinvoorzieningen | F189: =VLOOKUP('3. Investeringen'!E189,'2. Reguleringsparameters'!$B$9:$D$78,3,FALSE) -> TT-BT-AT | G189: 1 | H189: 0 | I189: =VLOOKUP(E189,'2. Reguleringsparameters'!$B$9:$C$78,2,FALSE) -> 10 | J189: 1974 | K189: 99833 | L189: =VLOOKUP(E189,'2. Reguleringsparameters'!$B$9:$E$78,4,FALSE) -> 0
B190: 177 | C190: Normaal | D190: Restcategorie (VVI/UI) | E190: 06 Utiliteitsgebouwen | F190: =VLOOKUP('3. Investeringen'!E190,'2. Reguleringsparameters'!$B$9:$D$78,3,FALSE) -> TT-BT-AT | G190: 1 | H190: 0 | I190: =VLOOKUP(E190,'2. Reguleringsparameters'!$B$9:$C$78,2,FALSE) -> 30 | J190: 1974 | K190: 2055400 | L190: =VLOOKUP(E190,'2. Reguleringsparameters'!$B$9:$E$78,4,FALSE) -> 0
B191: 178 | C191: Normaal | D191: Restcategorie (VVI/UI) | E191: 11 Werktuigen | F191: =VLOOKUP('3. Investeringen'!E191,'2. Reguleringsparameters'!$B$9:$D$78,3,FALSE) -> TT-BT-AT | G191: 1 | H191: 0 | I191: =VLOOKUP(E191,'2. Reguleringsparameters'!$B$9:$C$78,2,FALSE) -> 10 | J191: 1974 | K191: 14537.29846 | L191: =VLOOKUP(E191,'2. Reguleringsparameters'!$B$9:$E$78,4,FALSE) -> 1
B192: 179 | C192: Normaal | D192: Restcategorie (VVI/UI) | E192: 14 Overig rollend materieel | F192: =VLOOKUP('3. Investeringen'!E192,'2. Reguleringsparameters'!$B$9:$D$78,3,FALSE) -> TT-BT-AT | G192: 1 | H192: 0 | I192: =VLOOKUP(E192,'2. Reguleringsparameters'!$B$9:$C$78,2,FALSE) -> 10 | J192: 1974 | K192: 14917 | L192: =VLOOKUP(E192,'2. Reguleringsparameters'!$B$9:$E$78,4,FALSE) -> 1
B193: 180 | C193: Normaal | D193: Restcategorie (VVI/UI) | E193: 15 Compressorstations (TT-BT-AT) | F193: =VLOOKUP('3. Investeringen'!E193,'2. Reguleringsparameters'!$B$9:$D$78,3,FALSE) -> TT-BT-AT | G193: 1 | H193: 0 | I193: =VLOOKUP(E193,'2. Reguleringsparameters'!$B$9:$C$78,2,FALSE) -> 30 | J193: 1974 | K193: 43383990.55 | L193: =VLOOKUP(E193,'2. Reguleringsparameters'!$B$9:$E$78,4,FALSE) -> 1
B194: 181 | C194: Normaal | D194: Restcategorie (VVI/UI) | E194: 15 Compressorstations (KC) | F194: =VLOOKUP('3. Investeringen'!E194,'2. Reguleringsparameters'!$B$9:$D$78,3,FALSE) -> KC | G194: 0 | H194: 1 | I194: =VLOOKUP(E194,'2. Reguleringsparameters'!$B$9:$C$78,2,FALSE) -> 30 | J194: 1974 | K194: 2104902.803 | L194: =VLOOKUP(E194,'2. Reguleringsparameters'!$B$9:$E$78,4,FALSE) -> 0
B195: 182 | C195: Normaal | D195: Restcategorie (VVI/UI) | E195: 17 Mengstations | F195: =VLOOKUP('3. Investeringen'!E195,'2. Reguleringsparameters'!$B$9:$D$78,3,FALSE) -> KC | G195: 0 | H195: 1 | I195: =VLOOKUP(E195,'2. Reguleringsparameters'!$B$9:$C$78,2,FALSE) -> 30 | J195: 1974 | K195: 89234 | L195: =VLOOKUP(E195,'2. Reguleringsparameters'!$B$9:$E$78,4,FALSE) -> 0
B196: 183 | C196: Normaal | D196: Restcategorie (VVI/UI) | E196: 21 Hoofdtransportleiding | F196: =VLOOKUP('3. Investeringen'!E196,'2. Reguleringsparameters'!$B$9:$D$78,3,FALSE) -> TT-BT-AT | G196: 1 | H196: 0 | I196: =VLOOKUP(E196,'2. Reguleringsparameters'!$B$9:$C$78,2,FALSE) -> 55 | J196: 1974 | K196: 53494124.89 | L196: =VLOOKUP(E196,'2. Reguleringsparameters'!$B$9:$E$78,4,FALSE) -> 1
B197: 184 | C197: Normaal | D197: Restcategorie (VVI/UI) | E197: 32 M&R stations | F197: =VLOOKUP('3. Investeringen'!E197,'2. Reguleringsparameters'!$B$9:$D$78,3,FALSE) -> TT-BT-AT | G197: 1 | H197: 0 | I197: =VLOOKUP(E197,'2. Reguleringsparameters'!$B$9:$C$78,2,FALSE) -> 30 | J197: 1974 | K197: 2717147.798 | L197: =VLOOKUP(E197,'2. Reguleringsparameters'!$B$9:$E$78,4,FALSE) -> 1
B198: 185 | C198: Normaal | D198: Restcategorie (VVI/UI) | E198: 33 Exportstations | F198: =VLOOKUP('3. Investeringen'!E198,'2. Reguleringsparameters'!$B$9:$D$78,3,FALSE) -> TT-BT-AT | G198: 1 | H198: 0 | I198: =VLOOKUP(E198,'2. Reguleringsparameters'!$B$9:$C$78,2,FALSE) -> 30 | J198: 1974 | K198: 2556886.342 | L198: =VLOOKUP(E198,'2. Reguleringsparameters'!$B$9:$E$78,4,FALSE) -> 1
B199: 186 | C199: Normaal | D199: Restcategorie (VVI/UI) | E199: 34 Reduceerstations | F199: =VLOOKUP('3. Investeringen'!E199,'2. Reguleringsparameters'!$B$9:$D$78,3,FALSE) -> TT-BT-AT | G199: 1 | H199: 0 | I199: =VLOOKUP(E199,'2. Reguleringsparameters'!$B$9:$C$78,2,FALSE) -> 30 | J199: 1974 | K199: 32282.37835 | L199: =VLOOKUP(E199,'2. Reguleringsparameters'!$B$9:$E$78,4,FALSE) -> 1
B200: 187 | C200: Normaal | D200: Restcategorie (VVI/UI) | E200: 32 M&R stations (odorisatie) | F200: =VLOOKUP('3. Investeringen'!E200,'2. Reguleringsparameters'!$B$9:$D$78,3,FALSE) -> TT-BT-AT | G200: 1 | H200: 0 | I200: =VLOOKUP(E200,'2. Reguleringsparameters'!$B$9:$C$78,2,FALSE) -> 30 | J200: 1974 | K200: 564387 | L200: =VLOOKUP(E200,'2. Reguleringsparameters'!$B$9:$E$78,4,FALSE) -> 0
B201: 188 | C201: Normaal | D201: Restcategorie (VVI/UI) | E201: 01 Regionale leidingen | F201: =VLOOKUP('3. Investeringen'!E201,'2. Reguleringsparameters'!$B$9:$D$78,3,FALSE) -> TT-BT-AT | G201: 1 | H201: 0 | I201: =VLOOKUP(E201,'2. Reguleringsparameters'!$B$9:$C$78,2,FALSE) -> 55 | J201: 1975 | K201: 11450189.41 | L201: =VLOOKUP(E201,'2. Reguleringsparameters'!$B$9:$E$78,4,FALSE) -> 1
B202: 189 | C202: Normaal | D202: Restcategorie (VVI/UI) | E202: 01 Regionale leidingen (Waterkruisingen) | F202: =VLOOKUP('3. Investeringen'!E202,'2. Reguleringsparameters'!$B$9:$D$78,3,FALSE) -> TT-BT-AT | G202: 1 | H202: 0 | I202: =VLOOKUP(E202,'2. Reguleringsparameters'!$B$9:$C$78,2,FALSE) -> 55 | J202: 1975 | K202: 5744161 | L202: =VLOOKUP(E202,'2. Reguleringsparameters'!$B$9:$E$78,4,FALSE) -> 0
B203: 190 | C203: Normaal | D203: Restcategorie (VVI/UI) | E203: 02 Gasontvangststations | F203: =VLOOKUP('3. Investeringen'!E203,'2. Reguleringsparameters'!$B$9:$D$78,3,FALSE) -> TT-BT-AT | G203: 1 | H203: 0 | I203: =VLOOKUP(E203,'2. Reguleringsparameters'!$B$9:$C$78,2,FALSE) -> 30 | J203: 1975 | K203: 5194003 | L203: =VLOOKUP(E203,'2. Reguleringsparameters'!$B$9:$E$78,4,FALSE) -> 0
B204: 191 | C204: Normaal | D204: Restcategorie (VVI/UI) | E204: 03 Verremeting | F204: =VLOOKUP('3. Investeringen'!E204,'2. Reguleringsparameters'!$B$9:$D$78,3,FALSE) -> TT-BT-AT | G204: 1 | H204: 0 | I204: =VLOOKUP(E204,'2. Reguleringsparameters'!$B$9:$C$78,2,FALSE) -> 5 | J204: 1975 | K204: 734693 | L204: =VLOOKUP(E204,'2. Reguleringsparameters'!$B$9:$E$78,4,FALSE) -> 1
B205: 192 | C205: Normaal | D205: Restcategorie (VVI/UI) | E205: 04 Terreinen | F205: =VLOOKUP('3. Investeringen'!E205,'2. Reguleringsparameters'!$B$9:$D$78,3,FALSE) -> TT-BT-AT | G205: 1 | H205: 0 | I205: =VLOOKUP(E205,'2. Reguleringsparameters'!$B$9:$C$78,2,FALSE) -> 0 | J205: 1975 | K205: 58141 | L205: =VLOOKUP(E205,'2. Reguleringsparameters'!$B$9:$E$78,4,FALSE) -> 0
B206: 193 | C206: Normaal | D206: Restcategorie (VVI/UI) | E206: 05 Wegen en terreinvoorzieningen | F206: =VLOOKUP('3. Investeringen'!E206,'2. Reguleringsparameters'!$B$9:$D$78,3,FALSE) -> TT-BT-AT | G206: 1 | H206: 0 | I206: =VLOOKUP(E206,'2. Reguleringsparameters'!$B$9:$C$78,2,FALSE) -> 10 | J206: 1975 | K206: 72256 | L206: =VLOOKUP(E206,'2. Reguleringsparameters'!$B$9:$E$78,4,FALSE) -> 0
... 1475 more rows

Sheet Berekeningen -->

Sheet 4. CPI-tabel
B2: Tabel 4 - CPI-tabel
B4: Beschrijving berekening
B5: Dit tabblad toont het consumentenprijsindex (CPI) per jaar en de factor waarmee de CPI tussen de jaren verschilt. Alle CPI's worden opgehaald van het tabblad 'Parameters'.
F7: 1946 | G7: 1947 | H7: 1948 | I7: 1949 | J7: 1950 | K7: 1951 | L7: 1952 | M7: 1953 | N7: 1954 | O7: 1955 | P7: 1956 | Q7: 1957 | R7: 1958 | S7: 1959 | T7: 1960 | U7: 1961 | V7: 1962 | W7: 1963 | X7: 1964 | Y7: 1965 | Z7: 1966 | AA7: 1967 | AB7: 1968 | AC7: 1969 | AD7: 1970 | AE7: 1971 | AF7: 1972 | AG7: 1973 | AH7: 1974 | AI7: 1975 | AJ7: 1976 | AK7: 1977 | AL7: 1978 | AM7: 1979 | AN7: 1980 | AO7: 1981 | AP7: 1982 | AQ7: 1983 | AR7: 1984 | AS7: 1985 | AT7: 1986 | AU7: 1987 | AV7: 1988 | AW7: 1989 | AX7: 1990 | AY7: 1991 | AZ7: 1992 | BA7: 1993 | BB7: 1994 | BC7: 1995 | BD7: 1996 | BE7: 1997 | BF7: 1998 | BG7: 1999 | BH7: 2000 | BI7: 2001 | BJ7: 2002 | BK7: 2003 | BL7: 2004 | BM7: 2005 | BN7: 2006 | BO7: 2007 | BP7: 2008 | BQ7: 2009 | BR7: 2010 | BS7: 2011 | BT7: 2012 | BU7: 2013 | BV7: 2014 | BW7: 2015 | BX7: 2016 | BY7: 2017 | BZ7: 2018 | CA7: 2019 | CB7: 2020 | CC7: 2021 | CD7: 2022 | CE7: 2023 | CF7: 2024 | CG7: 2025 | CH7: 2026 | CJ7: Bron
B10: Ophalen CPI
B12: CPI jaar t | F12: ='2. Reguleringsparameters'!C110 -> 0.09083007388 | G12: ='2. Reguleringsparameters'!D110 -> 0.03625498008 | H12: ='2. Reguleringsparameters'!E110 -> 0.03537101115 | I12: ='2. Reguleringsparameters'!F110 -> 0.06312662458 | J12: ='2. Reguleringsparameters'!G110 -> 0.09116311561 | K12: ='2. Reguleringsparameters'!H110 -> 0.09635083227 | L12: ='2. Reguleringsparameters'!I110 -> 0 | M12: ='2. Reguleringsparameters'!J110 -> 0 | N12: ='2. Reguleringsparameters'!K110 -> 0.04 | O12: ='2. Reguleringsparameters'!L110 -> 0.01909039865 | P12: ='2. Reguleringsparameters'!M110 -> 0.01900826446 | Q12: ='2. Reguleringsparameters'!N110 -> 0.06488240065 | R12: ='2. Reguleringsparameters'!O110 -> 0.01726326479 | S12: ='2. Reguleringsparameters'!P110 -> 0.008485150986 | T12: ='2. Reguleringsparameters'!Q110 -> 0.02548874041 | U12: ='2. Reguleringsparameters'!R110 -> 0.01665057915 | V12: ='2. Reguleringsparameters'!S110 -> 0.0192262046 | W12: ='2. Reguleringsparameters'!T110 -> 0.0381928272 | X12: ='2. Reguleringsparameters'!U110 -> 0.019 | Y12: ='2. Reguleringsparameters'!V110 -> 0.084 | Z12: ='2. Reguleringsparameters'!W110 -> 0.043 | AA12: ='2. Reguleringsparameters'!X110 -> 0.058 | AB12: ='2. Reguleringsparameters'!Y110 -> 0.039 | AC12: ='2. Reguleringsparameters'!Z110 -> 0.033 | AD12: ='2. Reguleringsparameters'!AA110 -> 0.069 | AE12: ='2. Reguleringsparameters'!AB110 -> 0.054 | AF12: ='2. Reguleringsparameters'!AC110 -> 0.076 | AG12: ='2. Reguleringsparameters'!AD110 -> 0.074 | AH12: ='2. Reguleringsparameters'!AE110 -> 0.081 | AI12: ='2. Reguleringsparameters'!AF110 -> 0.098 | AJ12: ='2. Reguleringsparameters'!AG110 -> 0.107 | AK12: ='2. Reguleringsparameters'!AH110 -> 0.083 | AL12: ='2. Reguleringsparameters'!AI110 -> 0.068 | AM12: ='2. Reguleringsparameters'!AJ110 -> 0.042 | AN12: ='2. Reguleringsparameters'!AK110 -> 0.038 | AO12: ='2. Reguleringsparameters'!AL110 -> 0.071 | AP12: ='2. Reguleringsparameters'!AM110 -> 0.064 | AQ12: ='2. Reguleringsparameters'!AN110 -> 0.059 | AR12: ='2. Reguleringsparameters'!AO110 -> 0.026 | AS12: ='2. Reguleringsparameters'!AP110 -> 0.028 | AT12: ='2. Reguleringsparameters'!AQ110 -> 0.023 | AU12: ='2. Reguleringsparameters'!AR110 -> -0.005 | AV12: ='2. Reguleringsparameters'!AS110 -> 0.002 | AW12: ='2. Reguleringsparameters'!AT110 -> 0.009 | AX12: ='2. Reguleringsparameters'!AU110 -> 0.011 | AY12: ='2. Reguleringsparameters'!AV110 -> 0.024 | AZ12: ='2. Reguleringsparameters'!AW110 -> 0.046 | BA12: ='2. Reguleringsparameters'!AX110 -> 0.035 | BB12: ='2. Reguleringsparameters'!AY110 -> 0.02 | BC12: ='2. Reguleringsparameters'!AZ110 -> 0.026 | BD12: ='2. Reguleringsparameters'!BA110 -> 0.015 | BE12: ='2. Reguleringsparameters'!BB110 -> 0.019 | BF12: ='2. Reguleringsparameters'!BC110 -> 0.026 | BG12: ='2. Reguleringsparameters'!BD110 -> 0.017 | BH12: ='2. Reguleringsparameters'!BE110 -> 0.026 | BI12: ='2. Reguleringsparameters'!BF110 -> 0.025 | BJ12: ='2. Reguleringsparameters'!BG110 -> 0.047 | BK12: ='2. Reguleringsparameters'!BH110 -> 0.033 | BL12: ='2. Reguleringsparameters'!BI110 -> 0.021 | BM12: ='2. Reguleringsparameters'!BJ110 -> 0.011 | BN12: ='2. Reguleringsparameters'!BK110 -> 0.018 | BO12: ='2. Reguleringsparameters'!BL110 -> 0.014 | BP12: ='2. Reguleringsparameters'!BM110 -> 0.011 | BQ12: ='2. Reguleringsparameters'!BN110 -> 0.032 | BR12: ='2. Reguleringsparameters'!BO110 -> 0.003 | BS12: ='2. Reguleringsparameters'!BP110 -> 0.015 | BT12: ='2. Reguleringsparameters'!BQ110 -> 0.026 | BU12: ='2. Reguleringsparameters'!BR110 -> 0.023 | BV12: ='2. Reguleringsparameters'!BS110 -> 0.028 | BW12: ='2. Reguleringsparameters'!BT110 -> 0.01 | BX12: ='2. Reguleringsparameters'!BU110 -> 0.008 | BY12: ='2. Reguleringsparameters'!BV110 -> 0.002 | BZ12: ='2. Reguleringsparameters'!BW110 -> 0.014 | CA12: ='2. Reguleringsparameters'!BX110 -> 0.012 | CB12: ='2. Reguleringsparameters'!BY110 -> 0.026 | CC12: ='2. Reguleringsparameters'!BZ110 -> 0.016 | CD12: ='2. Reguleringsparameters'!CA110 -> 0.017 | CE12: ='2. Reguleringsparameters'!CB110 -> 0.017 | CF12: ='2. Reguleringsparameters'!CC110 -> 0.017 | CG12: ='2. Reguleringsparameters'!CD110 -> 0.017 | CH12: ='2. Reguleringsparameters'!CE110 -> 0.017 | CJ12: Tabblad 'Parameters'
B14: Berekening CPI-tabel | F14: 1946 | G14: 1947 | H14: 1948 | I14: 1949 | J14: 1950 | K14: 1951 | L14: 1952 | M14: 1953 | N14: 1954 | O14: 1955 | P14: 1956 | Q14: 1957 | R14: 1958 | S14: 1959 | T14: 1960 | U14: 1961 | V14: 1962 | W14: 1963 | X14: 1964 | Y14: 1965 | Z14: 1966 | AA14: 1967 | AB14: 1968 | AC14: 1969 | AD14: 1970 | AE14: 1971 | AF14: 1972 | AG14: 1973 | AH14: 1974 | AI14: 1975 | AJ14: 1976 | AK14: 1977 | AL14: 1978 | AM14: 1979 | AN14: 1980 | AO14: 1981 | AP14: 1982 | AQ14: 1983 | AR14: 1984 | AS14: 1985 | AT14: 1986 | AU14: 1987 | AV14: 1988 | AW14: 1989 | AX14: 1990 | AY14: 1991 | AZ14: 1992 | BA14: 1993 | BB14: 1994 | BC14: 1995 | BD14: 1996 | BE14: 1997 | BF14: 1998 | BG14: 1999 | BH14: 2000 | BI14: 2001 | BJ14: 2002 | BK14: 2003 | BL14: 2004 | BM14: 2005 | BN14: 2006 | BO14: 2007 | BP14: 2008 | BQ14: 2009 | BR14: 2010 | BS14: 2011 | BT14: 2012 | BU14: 2013 | BV14: 2014 | BW14: 2015 | BX14: 2016 | BY14: 2017 | BZ14: 2018 | CA14: 2019 | CB14: 2020 | CC14: 2021 | CD14: 2022 | CE14: 2023 | CF14: 2024 | CG14: 2025 | CH14: 2026
B16: CPI
B17: 1+CPI | F17: =1+F12 -> 1.090830074 | G17: 1.03625498 | H17: 1.035371011 | I17: 1.063126625 | J17: 1.091163116 | K17: 1.096350832 | L17: 1 | M17: 1 | N17: 1.04 | O17: 1.019090399 | P17: 1.019008264 | Q17: 1.064882401 | R17: 1.017263265 | S17: 1.008485151 | T17: 1.02548874 | U17: 1.016650579 | V17: 1.019226205 | W17: 1.038192827 | X17: 1.019 | Y17: 1.084 | Z17: 1.043 | AA17: 1.058 | AB17: 1.039 | AC17: 1.033 | AD17: 1.069 | AE17: 1.054 | AF17: 1.076 | AG17: 1.074 | AH17: 1.081 | AI17: 1.098 | AJ17: 1.107 | AK17: 1.083 | AL17: 1.068 | AM17: 1.042 | AN17: 1.038 | AO17: 1.071 | AP17: 1.064 | AQ17: 1.059 | AR17: 1.026 | AS17: 1.028 | AT17: 1.023 | AU17: 0.995 | AV17: 1.002 | AW17: 1.009 | AX17: 1.011 | AY17: 1.024 | AZ17: 1.046 | BA17: 1.035 | BB17: 1.02 | BC17: 1.026 | BD17: 1.015 | BE17: 1.019 | BF17: 1.026 | BG17: 1.017 | BH17: 1.026 | BI17: 1.025 | BJ17: 1.047 | BK17: 1.033 | BL17: 1.021 | BM17: 1.011 | BN17: 1.018 | BO17: 1.014 | BP17: 1.011 | BQ17: 1.032 | BR17: =1+BR12 -> 1.003 | BS17: 1.015 | BT17: 1.026 | BU17: 1.023 | BV17: 1.028 | BW17: 1.01 | BX17: 1.008 | BY17: 1.002 | BZ17: 1.014 | CA17: 1.012 | CB17: 1.026 | CC17: 1.016 | CD17: 1.017 | CE17: 1.017 | CF17: 1.017 | CG17: 1.017 | CH17: 1.017
B19: CPI van … naar …
B20: 1946 | F20: 1 | G20: =F20*G$17 -> 1.03625498 | H20: =G20*H$17 -> 1.072908367 | I20: =H20*I$17 -> 1.14063745 | J20: 1.244621514 | K20: 1.364541833 | L20: 1.364541833 | M20: 1.364541833 | N20: 1.419123506 | O20: 1.446215139 | P20: 1.473705179 | Q20: 1.569322709 | R20: 1.596414343 | S20: 1.609960159 | T20: 1.650996016 | U20: 1.678486056 | V20: 1.710756972 | W20: 1.776095618 | X20: 1.809841434 | Y20: =X20*Y$17 -> 1.961868115 | Z20: 2.046228444 | AA20: 2.164909693 | AB20: 2.249341171 | AC20: 2.32356943 | AD20: 2.483895721 | AE20: 2.61802609 | AF20: 2.816996073 | AG20: =AF20*AG$17 -> 3.025453782 | AH20: 3.270515538 | AI20: 3.591026061 | AJ20: 3.975265849 | AK20: 4.305212915 | AL20: 4.597967393 | AM20: 4.791082024 | AN20: 4.973143141 | AO20: =AN20*AO$17 -> 5.326236304 | AP20: 5.667115427 | AQ20: 6.001475237 | AR20: 6.157513593 | AS20: 6.329923974 | AT20: 6.475512225 | AU20: 6.443134664 | AV20: 6.456020934 | AW20: 6.514125122 | AX20: 6.585780498 | AY20: 6.74383923 | AZ20: 7.054055835 | BA20: 7.300947789 | BB20: 7.446966745 | BC20: 7.64058788 | BD20: 7.755196699 | BE20: =BD20*BE$17 -> 7.902545436 | BF20: 8.108011617 | BG20: 8.245847815 | BH20: 8.460239858 | BI20: 8.671745854 | BJ20: 9.079317909 | BK20: 9.3789354 | BL20: 9.575893044 | BM20: 9.681227867 | BN20: 9.855489969 | BO20: 9.993466828 | BP20: 10.10339496 | BQ20: 10.4267036 | BR20: 10.45798371 | BS20: 10.61485347 | BT20: 10.89083966 | BU20: =BT20*BU$17 -> 11.14132897 | BV20: 11.45328618 | BW20: 11.56781904 | BX20: 11.6603616 | BY20: 11.68368232 | BZ20: 11.84725387 | CA20: 11.98942092 | CB20: 12.30114586 | CC20: 12.4979642 | CD20: 12.71042959 | CE20: 12.92650689 | CF20: 13.14625751 | CG20: 13.36974389 | CH20: 13.59702953
B21: 1947 | G21: 1 | H21: =G21*H$17 -> 1.035371011 | I21: 1.100730488 | J21: 1.201076509 | K21: 1.31680123 | L21: 1.31680123 | M21: 1.31680123 | N21: 1.36947328 | O21: 1.39561707 | P21: 1.422145329 | Q21: 1.514417532 | R21: 1.540561323 | S21: 1.553633218 | T21: 1.593233372 | U21: 1.61976163 | V21: 1.650903499 | W21: 1.713956171 | X21: 1.746521338 | Y21: 1.89322913 | Z21: 1.974637983 | AA21: 2.089166986 | AB21: 2.170644498 | AC21: 2.242275767 | AD21: 2.396992795 | AE21: 2.526430406 | AF21: 2.718439117 | AG21: 2.919603611 | AH21: 3.156091504 | AI21: 3.465388471 | AJ21: 3.836185037 | AK21: 4.154588395 | AL21: 4.437100406 | AM21: 4.623458623 | AN21: 4.799150051 | AO21: 5.139889705 | AP21: 5.468842646 | AQ21: 5.791504362 | AR21: 5.942083475 | AS21: 6.108461813 | AT21: 6.248956434 | AU21: 6.217711652 | AV21: 6.230147076 | AW21: 6.286218399 | AX21: 6.355366802 | AY21: 6.507895605 | AZ21: 6.807258803 | BA21: 7.045512861 | BB21: 7.186423118 | BC21: 7.373270119 | BD21: 7.483869171 | BE21: 7.626062685 | BF21: 7.824340315 | BG21: 7.9573541 | BH21: 8.164245307 | BI21: 8.36835144 | BJ21: 8.761663957 | BK21: 9.050798868 | BL21: 9.240865644 | BM21: 9.342515166 | BN21: 9.510680439 | BO21: 9.643829965 | BP21: 9.749912095 | BQ21: 10.06190928 | BR21: 10.09209501 | BS21: 10.24347643 | BT21: 10.50980682 | BU21: 10.75153238 | BV21: 11.05257529 | BW21: 11.16310104 | BX21: 11.25240585 | BY21: 11.27491066 | BZ21: 11.43275941 | CA21: 11.56995252 | CB21: 11.87077129 | CC21: 12.06070363 | CD21: 12.26573559 | CE21: 12.47425309 | CF21: 12.6863154 | CG21: 12.90198276 | CH21: 13.12131646
B22: 1948 | H22: 1 | I22: 1.063126625 | J22: 1.16004456 | K22: 1.271815819 | L22: 1.271815819 | M22: 1.271815819 | N22: 1.322688452 | O22: 1.347939101 | P22: 1.373561084 | Q22: 1.462681025 | R22: 1.487931675 | S22: 1.500557 | T22: 1.538804307 | U22: 1.56442629 | V22: 1.59450427 | W22: 1.655402896 | X22: 1.686855551 | Y22: 1.828551418 | Z22: 1.907179129 | AA22: 2.017795518 | AB22: 2.096489543 | AC22: 2.165673698 | AD22: 2.315105184 | AE22: 2.440120863 | AF22: 2.625570049 | AG22: 2.819862233 | AH22: 3.048271074 | AI22: 3.347001639 | AJ22: 3.705130814 | AK22: 4.012656672 | AL22: 4.285517325 | AM22: 4.465509053 | AN22: 4.635198397 | AO22: 4.964297483 | AP22: 5.282012522 | AQ22: 5.593651261 | AR22: 5.739086194 | AS22: 5.899780607 | AT22: 6.035475561 | AU22: 6.005298183 | AV22: 6.01730878 | AW22: 6.071464559 | AX22: 6.138250669 | AY22: 6.285568685 | AZ22: 6.574704844 | BA22: 6.804819514 | BB22: 6.940915904 | BC22: 7.121379718 | BD22: 7.228200413 | BE22: 7.365536221 | BF22: 7.557040163 | BG22: 7.685509846 | BH22: 7.885333102 | BI22: 8.082466429 | BJ22: 8.462342352 | BK22: 8.741599649 | BL22: 8.925173242 | BM22: 9.023350147 | BN22: 9.18577045 | BO22: 9.314371236 | BP22: 9.41682932 | BQ22: 9.718167858 | BR22: 9.747322362 | BS22: 9.893532197 | BT22: 10.15076403 | BU22: 10.38423161 | BV22: 10.67499009 | BW22: 10.78173999 | BX22: 10.86799391 | BY22: 10.8897299 | BZ22: 11.04218612 | CA22: 11.17469235 | CB22: 11.46523435 | CC22: 11.6486781 | CD22: 11.84670563 | CE22: 12.04809963 | CF22: 12.25291732 | CG22: 12.46121692 | CH22: 12.6730576
B23: 1949 | I23: 1 | J23: 1.091163116 | K23: 1.19629759 | L23: 1.19629759 | M23: 1.19629759 | N23: 1.244149494 | O23: 1.267900803 | P23: 1.292001397 | Q23: 1.375829549 | R23: 1.399580859 | S23: 1.411456514 | T23: 1.447432763 | U23: 1.471533357 | V23: 1.499825358 | W23: 1.557107929 | X23: 1.586692979 | Y23: 1.71997519 | Z23: 1.793934123 | AA23: 1.897982302 | AB23: 1.972003612 | AC23: 2.037079731 | AD23: 2.177638232 | AE23: 2.295230697 | AF23: 2.46966823 | AG23: 2.652423679 | AH23: 2.867269997 | AI23: 3.148262457 | AJ23: 3.485126539 | AK23: 3.774392042 | AL23: 4.031050701 | AM23: 4.20035483 | AN23: 4.359968314 | AO23: 4.669526064 | AP23: 4.968375732 | AQ23: 5.261509901 | AR23: 5.398309158 | AS23: 5.549461814 | AT23: 5.677099436 | AU23: 5.648713939 | AV23: 5.660011367 | AW23: 5.710951469 | AX23: 5.773771935 | AY23: 5.912342462 | AZ23: 6.184310215 | BA23: 6.400761073 | BB23: 6.528776294 | BC23: 6.698524478 | BD23: 6.799002345 | BE23: 6.928183389 | BF23: 7.108316158 | BG23: 7.229157532 | BH23: 7.417115628 | BI23: 7.602543519 | BJ23: 7.959863064 | BK23: 8.222538545 | BL23: 8.395211855 | BM23: 8.487559185 | BN23: 8.64033525 | BO23: 8.761299944 | BP23: 8.857674243 | BQ23: 9.141119819 | BR23: 9.168543179 | BS23: 9.306071326 | BT23: 9.548029181 | BU23: 9.767633852 | BV23: 10.0411276 | BW23: 10.14153888 | BX23: 10.22267119 | BY23: 10.24311653 | BZ23: 10.38652016 | CA23: 10.5111584 | CB23: 10.78444852 | CC23: 10.9569997 | CD23: 11.14326869 | CE23: 11.33270426 | CF23: 11.52536023 | CG23: 11.72129136 | CH23: 11.92055331
B24: 1950 | J24: 1 | K24: =J24*K$17 -> 1.096350832 | L24: 1.096350832 | M24: 1.096350832 | N24: 1.140204866 | O24: 1.161971831 | P24: 1.184058899 | Q24: 1.260883483 | R24: 1.282650448 | S24: 1.293533931 | T24: 1.326504481 | U24: 1.348591549 | V24: 1.374519846 | W24: 1.427016645 | X24: 1.454129962 | Y24: 1.576276878 | Z24: 1.644056784 | AA24: 1.739412078 | AB24: 1.807249149 | AC24: 1.866888371 | AD24: 1.995703668 | AE24: 2.103471666 | AF24: 2.263335513 | AG24: 2.430822341 | AH24: 2.62771895 | AI24: 2.885235408 | AJ24: 3.193955596 | AK24: 3.459053911 | AL24: 3.694269577 | AM24: 3.849428899 | AN24: 3.995707197 | AO24: 4.279402408 | AP24: 4.553284162 | AQ24: 4.821927928 | AR24: 4.947298054 | AS24: 5.085822399 | AT24: 5.202796314 | AU24: 5.176782333 | AV24: 5.187135897 | AW24: 5.23382012 | AX24: 5.291392142 | AY24: 5.418385553 | AZ24: 5.667631289 | BA24: 5.865998384 | BB24: 5.983318351 | BC24: 6.138884629 | BD24: 6.230967898 | BE24: 6.349356288 | BF24: 6.514439552 | BG24: 6.625185024 | BH24: 6.797439835 | BI24: 6.96737583 | BJ24: 7.294842494 | BK24: 7.535572297 | BL24: 7.693819315 | BM24: 7.778451327 | BN24: 7.918463451 | BO24: 8.02932194 | BP24: 8.117644481 | BQ24: 8.377409104 | BR24: 8.402541332 | BS24: 8.528579452 | BT24: 8.750322517 | BU24: 8.951579935 | BV24: 9.202224174 | BW24: 9.294246415 | BX24: 9.368600387 | BY24: 9.387337587 | BZ24: 9.518760314 | CA24: 9.632985437 | CB24: 9.883443059 | CC24: 10.04157815 | CD24: 10.21228498 | CE24: 10.38589382 | CF24: 10.56245402 | CG24: 10.74201573 | CH24: 10.92463
B25: 1951 | K25: 1 | L25: 1 | M25: 1 | N25: 1.04 | O25: 1.059854015 | P25: 1.08 | Q25: 1.150072993 | R25: 1.169927007 | S25: 1.179854015 | T25: 1.209927007 | U25: 1.230072993 | V25: 1.253722628 | W25: 1.301605839 | X25: 1.32633635 | Y25: 1.437748604 | Z25: 1.499571794 | AA25: 1.586546958 | AB25: 1.648422289 | AC25: 1.702820225 | AD25: 1.82031482 | AE25: 1.91861182 | AF25: 2.064426319 | AG25: 2.217193866 | AH25: 2.39678657 | AI25: 2.631671653 | AJ25: 2.91326052 | AK25: 3.155061144 | AL25: 3.369605301 | AM25: 3.511128724 | AN25: 3.644551615 | AO25: 3.90331478 | AP25: 4.153126926 | AQ25: 4.398161415 | AR25: 4.512513612 | AS25: 4.638863993 | AT25: 4.745557864 | AU25: 4.721830075 | AV25: 4.731273735 | AW25: 4.773855199 | AX25: 4.826367606 | AY25: 4.942200429 | AZ25: 5.169541648 | BA25: 5.350475606 | BB25: 5.457485118 | BC25: 5.599379731 | BD25: 5.683370427 | BE25: 5.791354465 | BF25: 5.941929681 | BG25: 6.042942486 | BH25: 6.200058991 | BI25: 6.355060465 | BJ25: 6.653748307 | BK25: 6.873322001 | BL25: 7.017661763 | BM25: 7.094856043 | BN25: 7.222563452 | BO25: 7.32367934 | BP25: 7.404239813 | BQ25: 7.641175487 | BR25: 7.664099013 | BS25: 7.779060498 | BT25: 7.981316071 | BU25: 8.164886341 | BV25: 8.393503159 | BW25: 8.47743819 | BX25: 8.545257696 | BY25: 8.562348211 | BZ25: 8.682221086 | CA25: 8.786407739 | CB25: 9.01485434 | CC25: 9.15909201 | CD25: 9.314796574 | CE25: 9.473148116 | CF25: 9.634191634 | CG25: 9.797972891 | CH25: 9.96453843
B26: 1952 | L26: 1 | M26: 1 | N26: 1.04 | O26: 1.059854015 | P26: 1.08 | Q26: 1.150072993 | R26: 1.169927007 | S26: 1.179854015 | T26: 1.209927007 | U26: 1.230072993 | V26: 1.253722628 | W26: 1.301605839 | X26: 1.32633635 | Y26: 1.437748604 | Z26: 1.499571794 | AA26: 1.586546958 | AB26: 1.648422289 | AC26: 1.702820225 | AD26: 1.82031482 | AE26: 1.91861182 | AF26: 2.064426319 | AG26: 2.217193866 | AH26: 2.39678657 | AI26: 2.631671653 | AJ26: 2.91326052 | AK26: 3.155061144 | AL26: 3.369605301 | AM26: 3.511128724 | AN26: 3.644551615 | AO26: 3.90331478 | AP26: 4.153126926 | AQ26: 4.398161415 | AR26: 4.512513612 | AS26: 4.638863993 | AT26: 4.745557864 | AU26: 4.721830075 | AV26: 4.731273735 | AW26: 4.773855199 | AX26: 4.826367606 | AY26: 4.942200429 | AZ26: 5.169541648 | BA26: 5.350475606 | BB26: 5.457485118 | BC26: 5.599379731 | BD26: 5.683370427 | BE26: 5.791354465 | BF26: 5.941929681 | BG26: 6.042942486 | BH26: 6.200058991 | BI26: 6.355060465 | BJ26: 6.653748307 | BK26: 6.873322001 | BL26: 7.017661763 | BM26: 7.094856043 | BN26: 7.222563452 | BO26: 7.32367934 | BP26: 7.404239813 | BQ26: 7.641175487 | BR26: 7.664099013 | BS26: 7.779060498 | BT26: 7.981316071 | BU26: 8.164886341 | BV26: 8.393503159 | BW26: 8.47743819 | BX26: 8.545257696 | BY26: 8.562348211 | BZ26: 8.682221086 | CA26: 8.786407739 | CB26: 9.01485434 | CC26: 9.15909201 | CD26: 9.314796574 | CE26: 9.473148116 | CF26: 9.634191634 | CG26: 9.797972891 | CH26: 9.96453843
B27: 1953 | M27: 1 | N27: 1.04 | O27: 1.059854015 | P27: 1.08 | Q27: 1.150072993 | R27: 1.169927007 | S27: 1.179854015 | T27: 1.209927007 | U27: 1.230072993 | V27: 1.253722628 | W27: 1.301605839 | X27: 1.32633635 | Y27: 1.437748604 | Z27: 1.499571794 | AA27: 1.586546958 | AB27: 1.648422289 | AC27: 1.702820225 | AD27: 1.82031482 | AE27: 1.91861182 | AF27: 2.064426319 | AG27: 2.217193866 | AH27: 2.39678657 | AI27: 2.631671653 | AJ27: 2.91326052 | AK27: 3.155061144 | AL27: 3.369605301 | AM27: 3.511128724 | AN27: 3.644551615 | AO27: 3.90331478 | AP27: 4.153126926 | AQ27: 4.398161415 | AR27: 4.512513612 | AS27: 4.638863993 | AT27: 4.745557864 | AU27: 4.721830075 | AV27: 4.731273735 | AW27: 4.773855199 | AX27: 4.826367606 | AY27: 4.942200429 | AZ27: 5.169541648 | BA27: 5.350475606 | BB27: 5.457485118 | BC27: 5.599379731 | BD27: 5.683370427 | BE27: 5.791354465 | BF27: 5.941929681 | BG27: 6.042942486 | BH27: 6.200058991 | BI27: 6.355060465 | BJ27: 6.653748307 | BK27: 6.873322001 | BL27: 7.017661763 | BM27: 7.094856043 | BN27: 7.222563452 | BO27: 7.32367934 | BP27: 7.404239813 | BQ27: 7.641175487 | BR27: 7.664099013 | BS27: 7.779060498 | BT27: 7.981316071 | BU27: 8.164886341 | BV27: 8.393503159 | BW27: 8.47743819 | BX27: 8.545257696 | BY27: 8.562348211 | BZ27: 8.682221086 | CA27: 8.786407739 | CB27: 9.01485434 | CC27: 9.15909201 | CD27: 9.314796574 | CE27: 9.473148116 | CF27: 9.634191634 | CG27: 9.797972891 | CH27: 9.96453843
B28: 1954 | N28: 1 | O28: 1.019090399 | P28: 1.038461538 | Q28: 1.105839416 | R28: 1.124929815 | S28: 1.134475014 | T28: 1.163391353 | U28: 1.182762493 | V28: 1.205502527 | W28: 1.251544076 | X28: 1.275323414 | Y28: 1.382450581 | Z28: 1.441895956 | AA28: 1.525525921 | AB28: 1.585021432 | AC28: 1.637327139 | AD28: 1.750302712 | AE28: 1.844819058 | AF28: 1.985025307 | AG28: 2.131917179 | AH28: 2.304602471 | AI28: 2.530453513 | AJ28: 2.801212039 | AK28: 3.033712638 | AL28: 3.240005097 | AM28: 3.376085312 | AN28: 3.504376553 | AO28: 3.753187289 | AP28: 3.993391275 | AQ28: 4.22900136 | AR28: 4.338955396 | AS28: 4.460446147 | AT28: 4.563036408 | AU28: 4.540221226 | AV28: 4.549301669 | AW28: 4.590245384 | AX28: 4.640738083 | AY28: 4.752115797 | AZ28: 4.970713123 | BA28: 5.144688083 | BB28: 5.247581844 | BC28: 5.384018972 | BD28: 5.464779257 | BE28: 5.568610063 | BF28: 5.713393924 | BG28: 5.810521621 | BH28: 5.961595183 | BI28: 6.110635063 | BJ28: 6.397834911 | BK28: 6.608963463 | BL28: 6.747751696 | BM28: 6.821976964 | BN28: 6.94477255 | BO28: 7.041999365 | BP28: 7.119461358 | BQ28: 7.347284122 | BR28: 7.369325974 | BS28: 7.479865864 | BT28: 7.674342376 | BU28: 7.850852251 | BV28: 8.070676114 | BW28: 8.151382875 | BX28: 8.216593938 | BY28: 8.233027126 | BZ28: 8.348289506 | CA28: 8.44846898 | CB28: 8.668129173 | CC28: 8.80681924 | CD28: 8.956535167 | CE28: 9.108796265 | CF28: 9.263645802 | CG28: 9.42112778 | CH28: 9.581286952
B29: 1955 | O29: 1 | P29: =O29*P$17 -> 1.019008264 | Q29: =P29*Q$17 -> 1.085123967 | R29: 1.103856749 | S29: 1.11322314 | T29: 1.141597796 | U29: 1.160606061 | V29: 1.18292011 | W29: 1.228099174 | X29: 1.251433058 | Y29: 1.356553435 | Z29: 1.414885232 | AA29: 1.496948576 | AB29: 1.55532957 | AC29: 1.606655446 | AD29: 1.717514672 | AE29: 1.810260464 | AF29: 1.94784026 | AG29: 2.091980439 | AH29: 2.261430854 | AI29: 2.483051078 | AJ29: 2.748737543 | AK29: 2.976882759 | AL29: 3.179310787 | AM29: 3.31284184 | AN29: 3.43872983 | AO29: 3.682879648 | AP29: 3.918583945 | AQ29: 4.149780398 | AR29: 4.257674689 | AS29: 4.37688958 | AT29: 4.47755804 | AU29: 4.45517025 | AV29: 4.46408059 | AW29: 4.504257316 | AX29: 4.553804146 | AY29: 4.663095446 | AZ29: 4.877597836 | BA29: 5.048313761 | BB29: 5.149280036 | BC29: 5.283161317 | BD29: 5.362408736 | BE29: 5.464294502 | BF29: 5.60636616 | BG29: 5.701674384 | BH29: 5.849917918 | BI29: 5.996165866 | BJ29: 6.277985662 | BK29: 6.485159189 | BL29: 6.621347532 | BM29: 6.694182355 | BN29: 6.814677637 | BO29: 6.910083124 | BP29: 6.986094038 | BQ29: 7.209649047 | BR29: 7.231277995 | BS29: 7.339747164 | BT29: 7.530580591 | BU29: 7.703783944 | BV29: 7.919489895 | BW29: 7.998684794 | BX29: 8.062674272 | BY29: 8.078799621 | BZ29: 8.191902815 | CA29: 8.290205649 | CB29: 8.505750996 | CC29: 8.641843012 | CD29: 8.788754343 | CE29: 8.938163167 | CF29: 9.090111941 | CG29: 9.244643844 | CH29: 9.401802789
B30: 1956 | P30: 1 | Q30: 1.064882401 | R30: 1.083265747 | S30: 1.092457421 | T30: 1.120302785 | U30: 1.138956475 | V30: 1.160854285 | W30: 1.205190592 | X30: 1.228089213 | Y30: 1.331248707 | Z30: 1.388492402 | AA30: 1.469024961 | AB30: 1.526316934 | AC30: 1.576685393 | AD30: 1.685476685 | AE30: 1.776492426 | AF30: 1.911505851 | AG30: 2.052957284 | AH30: 2.219246824 | AI30: 2.436733012 | AJ30: 2.697463445 | AK30: 2.921352911 | AL30: 3.120004909 | AM30: 3.251045115 | AN30: 3.374584829 | AO30: 3.614180352 | AP30: 3.845487895 | AQ30: 4.07237168 | AR30: 4.178253344 | AS30: 4.295244438 | AT30: 4.39403506 | AU30: 4.372064884 | AV30: 4.380809014 | AW30: 4.420236295 | AX30: 4.468858895 | AY30: 4.576111508 | AZ30: 4.786612637 | BA30: 4.95414408 | BB30: 5.053226961 | BC30: 5.184610862 | BD30: 5.262380025 | BE30: 5.362365246 | BF30: 5.501786742 | BG30: 5.595317117 | BH30: 5.740795362 | BI30: 5.884315246 | BJ30: 6.160878062 | BK30: 6.364187038 | BL30: 6.497834966 | BM30: 6.569311151 | BN30: 6.687558752 | BO30: 6.781184574 | BP30: 6.855777604 | BQ30: 7.075162488 | BR30: 7.096387975 | BS30: 7.202833795 | BT30: 7.390107473 | BU30: 7.560079945 | BV30: 7.771762184 | BW30: 7.849479806 | BX30: 7.912275644 | BY30: 7.928100195 | BZ30: 8.039093598 | CA30: 8.135562721 | CB30: 8.347087352 | CC30: 8.48064075 | CD30: 8.624811642 | CE30: 8.77143344 | CF30: 8.920547809 | CG30: 9.072197122 | CH30: 9.226424473
B31: 1957 | Q31: 1 | R31: 1.017263265 | S31: 1.025894897 | T31: 1.052043666 | U31: 1.069560802 | V31: 1.090124397 | W31: 1.13175933 | X31: 1.153262757 | Y31: 1.250136829 | Z31: 1.303892712 | AA31: 1.37951849 | AB31: 1.433319711 | AC31: 1.480619261 | AD31: 1.58278199 | AE31: 1.668252218 | AF31: 1.795039386 | AG31: 1.927872301 | AH31: 2.084029957 | AI31: 2.288264893 | AJ31: 2.533109236 | AK31: 2.743357303 | AL31: 2.9299056 | AM31: 3.052961635 | AN31: 3.168974177 | AO31: 3.393971344 | AP31: 3.61118551 | AQ31: 3.824245455 | AR31: 3.923675836 | AS31: 4.03353876 | AT31: 4.126310151 | AU31: 4.105678601 | AV31: 4.113889958 | AW31: 4.150914967 | AX31: 4.196575032 | AY31: 4.297292833 | AZ31: 4.494968303 | BA31: 4.652292194 | BB31: 4.745338038 | BC31: 4.868716827 | BD31: 4.941747579 | BE31: 5.035640783 | BF31: 5.166567443 | BG31: 5.25439909 | BH31: 5.391013466 | BI31: 5.525788803 | BJ31: 5.785500877 | BK31: 5.976422405 | BL31: 6.101927276 | BM31: 6.169048476 | BN31: 6.280091349 | BO31: 6.368012627 | BP31: 6.438060766 | BQ31: 6.644078711 | BR31: 6.664010947 | BS31: 6.763971111 | BT31: 6.93983436 | BU31: 7.09945055 | BV31: 7.298235166 | BW31: 7.371217517 | BX31: 7.430187258 | BY31: 7.445047632 | BZ31: 7.549278299 | CA31: 7.639869639 | CB31: 7.838506249 | CC31: 7.963922349 | CD31: 8.099309029 | CE31: 8.236997283 | CF31: 8.377026236 | CG31: 8.519435682 | CH31: 8.664266089
B32: 1958 | R32: 1 | S32: 1.008485151 | T32: 1.034190167 | U32: 1.051410032 | V32: 1.071624657 | W32: 1.112553032 | X32: 1.13369154 | Y32: 1.228921629 | Z32: 1.281765259 | AA32: 1.356107644 | AB32: 1.408995842 | AC32: 1.455492705 | AD32: 1.555921702 | AE32: 1.639941474 | AF32: 1.764577026 | AG32: 1.895155726 | AH32: 2.048663339 | AI32: 2.249432347 | AJ32: 2.490121608 | AK32: 2.696801701 | AL32: 2.880184217 | AM32: 3.001151954 | AN32: 3.115195728 | AO32: 3.336374625 | AP32: 3.549902601 | AQ32: 3.759346854 | AR32: 3.857089873 | AS32: 3.965088389 | AT32: 4.056285422 | AU32: 4.036003995 | AV32: 4.044076003 | AW32: 4.080472687 | AX32: 4.125357886 | AY32: 4.224366476 | AZ32: 4.418687334 | BA32: 4.57334139 | BB32: 4.664808218 | BC32: 4.786093232 | BD32: 4.85788463 | BE32: 4.950184438 | BF32: 5.078889234 | BG32: 5.165230351 | BH32: 5.29952634 | BI32: 5.432014498 | BJ32: 5.68731918 | BK32: 5.875000713 | BL32: 5.998375727 | BM32: 6.06435786 | BN32: 6.173516302 | BO32: 6.25994553 | BP32: 6.328804931 | BQ32: 6.531326689 | BR32: 6.550920669 | BS32: 6.649184479 | BT32: 6.822063275 | BU32: 6.978970731 | BV32: 7.174381911 | BW32: 7.24612573 | BX32: 7.304094736 | BY32: 7.318702926 | BZ32: 7.421164767 | CA32: 7.510218744 | CB32: 7.705484431 | CC32: 7.828772182 | CD32: 7.961861309 | CE32: 8.097212951 | CF32: 8.234865571 | CG32: 8.374858286 | CH32: 8.517230877
B33: 1959 | S33: 1 | T33: 1.02548874 | U33: 1.042563722 | V33: 1.062608265 | W33: 1.103192279 | X33: 1.124152932 | Y33: 1.218581779 | Z33: 1.270980795 | AA33: 1.344697681 | AB33: 1.397140891 | AC33: 1.44324654 | AD33: 1.542830552 | AE33: 1.626143401 | AF33: 1.7497303 | AG33: 1.879210342 | AH33: 2.03142638 | AI33: 2.230506165 | AJ33: 2.469170325 | AK33: 2.674111462 | AL33: 2.855951041 | AM33: 2.975900985 | AN33: 3.088985222 | AO33: 3.308303173 | AP33: 3.520034576 | AQ33: 3.727716616 | AR33: 3.824637248 | AS33: 3.931727091 | AT33: 4.022156814 | AU33: 4.00204603 | AV33: 4.010050122 | AW33: 4.046140573 | AX33: 4.09064812 | AY33: 4.188823674 | AZ33: 4.381509563 | BA33: 4.534862398 | BB33: 4.625559646 | BC33: 4.745824197 | BD33: 4.81701156 | BE33: 4.908534779 | BF33: 5.036156684 | BG33: 5.121771347 | BH33: 5.254937402 | BI33: 5.386310837 | BJ33: 5.639467447 | BK33: 5.825569873 | BL33: 5.94790684 | BM33: 6.013333815 | BN33: 6.121573824 | BO33: 6.207275857 | BP33: 6.275555892 | BQ33: 6.47637368 | BR33: 6.495802801 | BS33: 6.593239843 | BT33: 6.764664079 | BU33: 6.920251353 | BV33: 7.114018391 | BW33: 7.185158575 | BX33: 7.242639844 | BY33: 7.257125123 | BZ33: 7.358724875 | CA33: 7.447029573 | CB33: 7.640652342 | CC33: 7.76290278 | CD33: 7.894872127 | CE33: 8.029084953 | CF33: 8.165579397 | CG33: 8.304394247 | CH33: 8.445568949
B34: 1960 | T34: 1 | U34: 1.016650579 | V34: 1.036196911 | W34: 1.075772201 | X34: 1.096211873 | Y34: 1.18829367 | Z34: 1.239390298 | AA34: 1.311274935 | AB34: 1.362414657 | AC34: 1.407374341 | AD34: 1.504483171 | AE34: 1.585725262 | AF34: 1.706240382 | AG34: 1.83250217 | AH34: 1.980934846 | AI34: 2.175066461 | AJ34: 2.407798572 | AK34: 2.607645853 | AL34: 2.784965771 | AM34: 2.901934334 | AN34: 3.012207839 | AO34: 3.226074595 | AP34: 3.432543369 | AQ34: 3.635063428 | AR34: 3.729575077 | AS34: 3.834003179 | AT34: 3.922185252 | AU34: 3.902574326 | AV34: 3.910379475 | AW34: 3.94557289 | AX34: 3.988974192 | AY34: 4.084709572 | AZ34: 4.272606213 | BA34: 4.42214743 | BB34: 4.510590379 | BC34: 4.627865729 | BD34: 4.697283715 | BE34: 4.786532105 | BF34: 4.91098194 | BG34: 4.994468633 | BH34: 5.124324817 | BI34: 5.252432938 | BJ34: 5.499297286 | BK34: 5.680774096 | BL34: 5.800070352 | BM34: 5.863871126 | BN34: 5.969420806 | BO34: 6.052992698 | BP34: 6.119575617 | BQ34: 6.315402037 | BR34: 6.334348243 | BS34: 6.429363467 | BT34: 6.596526917 | BU34: 6.748247036 | BV34: 6.937197953 | BW34: 7.006569933 | BX34: 7.062622492 | BY34: 7.076747737 | BZ34: 7.175822205 | CA34: 7.261932072 | CB34: 7.450742306 | CC34: 7.569954183 | CD34: 7.698643404 | CE34: 7.829520342 | CF34: 7.962622187 | CG34: 8.097986765 | CH34: 8.23565254
B35: 1961 | U35: 1 | V35: 1.019226205 | W35: 1.058153335 | X35: 1.078258248 | Y35: 1.168831941 | Z35: 1.219091715 | AA35: 1.289799034 | AB35: 1.340101196 | AC35: 1.384324536 | AD35: 1.479842929 | AE35: 1.559754447 | AF35: 1.678295785 | AG35: 1.802489673 | AH35: 1.948491337 | AI35: 2.139443488 | AJ35: 2.368363941 | AK35: 2.564938148 | AL35: 2.739353942 | AM35: 2.854406807 | AN35: 2.962874266 | AO35: 3.173238339 | AP35: 3.376325593 | AQ35: 3.575528803 | AR35: 3.668492552 | AS35: 3.771210343 | AT35: 3.857948181 | AU35: 3.83865844 | AV35: 3.846335757 | AW35: 3.880952779 | AX35: 3.923643259 | AY35: 4.017810697 | AZ35: 4.202629989 | BA35: 4.349722039 | BB35: 4.43671648 | BC35: 4.552071108 | BD35: =BC35*BD$17 -> 4.620352175 | BE35: 4.708138866 | BF35: 4.830550477 | BG35: 4.912669835 | BH35: 5.040399251 | BI35: 5.166409232 | BJ35: 5.409230466 | BK35: 5.587735071 | BL35: 5.705077508 | BM35: 5.76783336 | BN35: 5.871654361 | BO35: 5.953857522 | BP35: 6.019349955 | BQ35: 6.211969153 | BR35: 6.230605061 | BS35: 6.324064136 | BT35: 6.488489804 | BU35: 6.63772507 | BV35: 6.823581371 | BW35: 6.891817185 | BX35: 6.946951723 | BY35: 6.960845626 | BZ35: 7.058297465 | CA35: 7.142997034 | CB35: 7.328714957 | CC35: 7.445974397 | CD35: 7.572555961 | CE35: 7.701289413 | CF35: 7.832211333 | CG35: 7.965358925 | CH35: 8.100770027
B36: 1962 | V36: 1 | W36: =V36*W$17 -> 1.038192827 | X36: 1.057918491 | Y36: 1.146783644 | Z36: 1.196095341 | AA36: 1.265468871 | AB36: 1.314822157 | AC36: 1.358211288 | AD36: 1.451927867 | AE36: 1.530331971 | AF36: 1.646637201 | AG36: 1.768488354 | AH36: 1.911735911 | AI36: 2.09908603 | AJ36: 2.323688235 | AK36: 2.516554359 | AL36: 2.687680055 | AM36: =AL36*AM$17 -> 2.800562618 | AN36: 2.906983997 | AO36: 3.113379861 | AP36: 3.312636172 | AQ36: 3.508081706 | AR36: 3.59929183 | AS36: 3.700072002 | AT36: 3.785173658 | AU36: 3.766247789 | AV36: 3.773780285 | AW36: 3.807744307 | AX36: 3.849629495 | AY36: 3.942020603 | AZ36: 4.12335355 | BA36: 4.267670925 | BB36: 4.353024343 | BC36: =BB36*BC$17 -> 4.466202976 | BD36: 4.533196021 | BE36: 4.619326745 | BF36: 4.739429241 | BG36: 4.819999538 | BH36: 4.945319526 | BI36: 5.068952514 | BJ36: 5.307193282 | BK36: 5.48233066 | BL36: 5.597459604 | BM36: 5.65903166 | BN36: 5.76089423 | BO36: 5.841546749 | BP36: 5.905803763 | BQ36: 6.094789483 | BR36: 6.113073852 | BS36: =BR36*BS$17 -> 6.20476996 | BT36: 6.366093979 | BU36: 6.51251414 | BV36: 6.694864536 | BW36: 6.761813181 | BX36: 6.815907687 | BY36: 6.829539502 | BZ36: 6.925153055 | CA36: 7.008254892 | CB36: 7.190469519 | CC36: 7.305517031 | CD36: 7.429710821 | CE36: 7.556015905 | CF36: 7.684468175 | CG36: 7.815104134 | CH36: 7.947960905
B37: 1963 | W37: 1 | X37: 1.019 | Y37: 1.104596 | Z37: 1.152093628 | AA37: 1.218915058 | AB37: 1.266452746 | AC37: 1.308245686 | AD37: 1.398514639 | AE37: 1.474034429 | AF37: 1.586061046 | AG37: 1.703429563 | AH37: 1.841407358 | AI37: 2.021865279 | AJ37: 2.238204864 | AK37: 2.423975867 | AL37: 2.588806226 | AM37: 2.697536088 | AN37: 2.800042459 | AO37: 2.998845474 | AP37: 3.190771584 | AQ37: 3.379027108 | AR37: 3.466881812 | AS37: 3.563954503 | AT37: 3.645925457 | AU37: 3.627695829 | AV37: 3.634951221 | AW37: 3.667665782 | AX37: 3.708010106 | AY37: 3.797002348 | AZ37: 3.971664456 | BA37: 4.110672712 | BB37: 4.192886166 | BC37: 4.301901207 | BD37: 4.366429725 | BE37: 4.44939189 | BF37: 4.565076079 | BG37: 4.642682372 | BH37: 4.763392114 | BI37: 4.882476917 | BJ37: 5.111953332 | BK37: 5.280647792 | BL37: 5.391541395 | BM37: 5.450848351 | BN37: 5.548963621 | BO37: 5.626649112 | BP37: 5.688542252 | BQ37: 5.870575604 | BR37: 5.888187331 | BS37: 5.976510141 | BT37: 6.131899404 | BU37: 6.272933091 | BV37: 6.448575217 | BW37: 6.513060969 | BX37: 6.565165457 | BY37: 6.578295788 | BZ37: 6.670391929 | CA37: 6.750436632 | CB37: 6.925947985 | CC37: 7.036763152 | CD37: 7.156388126 | CE37: 7.278046724 | CF37: 7.401773518 | CG37: 7.527603668 | CH37: 7.655572931
B38: 1964 | X38: 1 | Y38: 1.084 | Z38: 1.130612 | AA38: 1.196187496 | AB38: 1.242838808 | AC38: 1.283852489 | AD38: 1.372438311 | AE38: 1.44654998 | AF38: 1.556487778 | AG38: 1.671667874 | AH38: 1.807072971 | AI38: 1.984166123 | AJ38: 2.196471898 | AK38: 2.378779065 | AL38: 2.540536042 | AM38: 2.647238555 | AN38: 2.74783362 | AO38: 2.942929807 | AP38: 3.131277315 | AQ38: 3.316022677 | AR38: 3.402239266 | AS38: 3.497501966 | AT38: 3.577944511 | AU38: 3.560054788 | AV38: 3.567174898 | AW38: 3.599279472 | AX38: 3.638871546 | AY38: 3.726204463 | AZ38: 3.897609869 | BA38: 4.034026214 | BB38: 4.114706738 | BC38: 4.221689114 | BD38: 4.28501445 | BE38: 4.366429725 | BF38: 4.479956898 | BG38: 4.556116165 | BH38: 4.674575185 | BI38: 4.791439565 | BJ38: 5.016637224 | BK38: 5.182186253 | BL38: 5.291012164 | BM38: 5.349213298 | BN38: 5.445499137 | BO38: 5.521736125 | BP38: 5.582475223 | BQ38: 5.76111443 | BR38: 5.778397773 | BS38: 5.86507374 | BT38: 6.017565657 | BU38: 6.155969667 | BV38: 6.328336818 | BW38: 6.391620186 | BX38: 6.442753147 | BY38: 6.455638654 | BZ38: 6.546017595 | CA38: 6.624569806 | CB38: 6.796808621 | CC38: 6.905557559 | CD38: 7.022952037 | CE38: 7.142342222 | CF38: 7.26376204 | CG38: 7.387245994 | CH38: 7.512829176
B39: 1965 | Y39: 1 | Z39: 1.043 | AA39: 1.103494 | AB39: 1.146530266 | AC39: 1.184365765 | AD39: 1.266087003 | AE39: 1.334455701 | AF39: 1.435874334 | AG39: 1.542129035 | AH39: 1.667041486 | AI39: 1.830411552 | AJ39: 2.026265588 | AK39: 2.194445632 | AL39: 2.343667935 | AM39: 2.442101988 | AN39: 2.534901864 | AO39: 2.714879896 | AP39: 2.88863221 | AQ39: 3.05906151 | AR39: 3.138597109 | AS39: 3.226477828 | AT39: 3.300686818 | AU39: 3.284183384 | AV39: 3.290751751 | AW39: 3.320368517 | AX39: 3.35689257 | AY39: 3.437457992 | AZ39: 3.59558106 | BA39: 3.721426397 | BB39: 3.795854925 | BC39: 3.894547153 | BD39: 3.95296536 | BE39: 4.028071702 | BF39: 4.132801566 | BG39: 4.203059193 | BH39: 4.312338732 | BI39: 4.4201472 | BJ39: 4.627894118 | BK39: 4.780614624 | BL39: 4.881007531 | BM39: 4.934698614 | BN39: 5.023523189 | BO39: 5.093852514 | BP39: 5.149884892 | BQ39: 5.314681208 | BR39: 5.330625252 | BS39: 5.410584631 | BT39: 5.551259831 | BU39: 5.678938807 | BV39: 5.837949094 | BW39: 5.896328585 | BX39: 5.943499213 | BY39: 5.955386212 | BZ39: 6.038761619 | CA39: 6.111226758 | CB39: 6.270118654 | CC39: 6.370440552 | CD39: 6.478738042 | CE39: 6.588876588 | CF39: 6.70088749 | CG39: 6.814802578 | CH39: 6.930654222
B40: 1966 | Z40: 1 | AA40: 1.058 | AB40: 1.099262 | AC40: 1.135537646 | AD40: 1.213889744 | AE40: 1.27943979 | AF40: 1.376677214 | AG40: 1.478551328 | AH40: 1.598313985 | AI40: 1.754948756 | AJ40: 1.942728272 | AK40: 2.103974719 | AL40: 2.247045 | AM40: 2.34142089 | AN40: 2.430394884 | AO40: 2.602952921 | AP40: 2.769541907 | AQ40: 2.93294488 | AR40: 3.009201447 | AS40: 3.093459087 | AT40: 3.164608646 | AU40: 3.148785603 | AV40: 3.155083174 | AW40: 3.183478923 | AX40: 3.218497191 | AY40: 3.295741124 | AZ40: 3.447345215 | BA40: 3.568002298 | BB40: 3.639362344 | BC40: 3.733985765 | BD40: 3.789995551 | BE40: 3.862005467 | BF40: 3.962417609 | BG40: 4.029778708 | BH40: 4.134552955 | BI40: 4.237916779 | BJ40: 4.437098867 | BK40: 4.58352313 | BL40: 4.679777116 | BM40: 4.731254664 | BN40: 4.816417248 | BO40: 4.883847089 | BP40: 4.937569407 | BQ40: 5.095571628 | BR40: 5.110858343 | BS40: 5.187521218 | BT40: 5.32239677 | BU40: 5.444811896 | BV40: 5.597266629 | BW40: 5.653239295 | BX40: 5.698465209 | BY40: 5.70986214 | BZ40: 5.78980021 | CA40: 5.859277812 | CB40: 6.011619035 | CC40: 6.10780494 | CD40: 6.211637624 | CE40: 6.317235464 | CF40: 6.424628466 | CG40: 6.53384715 | CH40: 6.644922552
B41: 1967 | AA41: 1 | AB41: 1.039 | AC41: 1.073287 | AD41: 1.147343803 | AE41: 1.209300368 | AF41: 1.301207196 | AG41: 1.397496529 | AH41: 1.510693748 | AI41: 1.658741735 | AJ41: 1.836227101 | AK41: 1.98863395 | AL41: 2.123861059 | AM41: 2.213063223 | AN41: 2.297159626 | AO41: 2.460257959 | AP41: 2.617714468 | AQ41: 2.772159622 | AR41: 2.844235772 | AS41: 2.923874374 | AT41: 2.991123484 | AU41: 2.976167867 | AV41: 2.982120203 | AW41: 3.008959284 | AX41: 3.042057837 | AY41: 3.115067225 | AZ41: 3.258360317 | BA41: 3.372402928 | BB41: 3.439850987 | BC41: 3.529287112 | BD41: 3.582226419 | BE41: 3.650288721 | BF41: 3.745196228 | BG41: 3.808864564 | BH41: 3.907895042 | BI41: 4.005592418 | BJ41: 4.193855262 | BK41: 4.332252486 | BL41: 4.423229788 | BM41: 4.471885315 | BN41: 4.552379251 | BO41: 4.616112561 | BP41: 4.666889799 | BQ41: 4.816230272 | BR41: 4.830678963 | BS41: 4.903139148 | BT41: 5.030620766 | BU41: 5.146325043 | BV41: 5.290422144 | BW41: 5.343326366 | BX41: 5.386072977 | BY41: 5.396845123 | BZ41: 5.472400954 | CA41: 5.538069766 | CB41: 5.68205958 | CC41: 5.772972533 | CD41: 5.871113066 | CE41: 5.970921988 | CF41: 6.072427662 | CG41: 6.175658932 | CH41: 6.280645134
B42: 1968 | AB42: 1 | AC42: 1.033 | AD42: 1.104277 | AE42: 1.163907958 | AF42: 1.252364963 | AG42: 1.34503997 | AH42: 1.453988208 | AI42: 1.596479052 | AJ42: 1.767302311 | AK42: 1.913988402 | AL42: 2.044139614 | AM42: 2.129993477 | AN42: 2.21093323 | AO42: 2.367909489 | AP42: 2.519455696 | AQ42: 2.668103582 | AR42: 2.737474275 | AS42: 2.814123555 | AT42: 2.878848397 | AU42: 2.864454155 | AV42: 2.870183063 | AW42: 2.896014711 | AX42: 2.927870873 | AY42: 2.998139774 | AZ42: 3.136054203 | BA42: 3.2458161 | BB42: 3.310732422 | BC42: 3.396811465 | BD42: 3.447763637 | BE42: 3.513271146 | BF42: 3.604616196 | BG42: 3.665894671 | BH42: 3.761207933 | BI42: 3.855238131 | BJ42: 4.036434323 | BK42: 4.169636656 | BL42: 4.257199026 | BM42: 4.304028215 | BN42: 4.381500723 | BO42: 4.442841733 | BP42: 4.491712992 | BQ42: 4.635447808 | BR42: 4.649354151 | BS42: 4.719094464 | BT42: 4.84179092 | BU42: 4.953152111 | BV42: 5.09184037 | BW42: 5.142758774 | BX42: 5.183900844 | BY42: 5.194268645 | BZ42: 5.266988407 | CA42: 5.330192267 | CB42: 5.468777266 | CC42: 5.556277703 | CD42: 5.650734424 | CE42: 5.746796909 | CF42: 5.844492456 | CG42: 5.943848828 | CH42: 6.044894258
B43: 1969 | AC43: 1 | AD43: 1.069 | AE43: 1.126726 | AF43: 1.212357176 | AG43: 1.302071607 | AH43: 1.407539407 | AI43: 1.545478269 | AJ43: 1.710844444 | AK43: 1.852844533 | AL43: 1.978837961 | AM43: 2.061949155 | AN43: 2.140303223 | AO43: 2.292264752 | AP43: 2.438969696 | AQ43: 2.582868908 | AR43: 2.6500235 | AS43: 2.724224158 | AT43: 2.786881314 | AU43: 2.772946907 | AV43: 2.778492801 | AW43: 2.803499236 | AX43: 2.834337728 | AY43: 2.902361833 | AZ43: 3.035870477 | BA43: 3.142125944 | BB43: 3.204968463 | BC43: 3.288297643 | BD43: 3.337622108 | BE43: 3.401036928 | BF43: 3.489463888 | BG43: 3.548784774 | BH43: 3.641053178 | BI43: 3.732079507 | BJ43: 3.907487244 | BK43: 4.036434323 | BL43: 4.121199444 | BM43: 4.166532638 | BN43: 4.241530226 | BO43: 4.300911649 | BP43: 4.348221677 | BQ43: 4.48736477 | BR43: 4.500826865 | BS43: 4.568339268 | BT43: 4.687116089 | BU43: 4.794919759 | BV43: 4.929177512 | BW43: 4.978469287 | BX43: 5.018297041 | BY43: 5.028333636 | BZ43: 5.098730306 | CA43: 5.15991507 | CB43: 5.294072862 | CC43: 5.378778028 | CD43: 5.470217254 | CE43: 5.563210947 | CF43: 5.657785534 | CG43: 5.753967888 | CH43: 5.851785342
B44: 1970 | AD44: 1 | AE44: 1.054 | AF44: 1.134104 | AG44: 1.218027696 | AH44: 1.316687939 | AI44: 1.445723357 | AJ44: 1.600415757 | AK44: 1.733250264 | AL44: 1.851111282 | AM44: 1.928857956 | AN44: 2.002154559 | AO44: 2.144307532 | AP44: 2.281543214 | AQ44: 2.416154264 | AR44: 2.478974275 | AS44: 2.548385555 | AT44: 2.606998422 | AU44: 2.59396343 | AV44: 2.599151357 | AW44: 2.622543719 | AX44: 2.6513917 | AY44: 2.715025101 | AZ44: 2.839916256 | BA44: 2.939313325 | BB44: 2.998099591 | BC44: 3.076050181 | BD44: 3.122190933 | BE44: 3.181512561 | BF44: 3.264231888 | BG44: 3.31972383 | BH44: 3.406036649 | BI44: 3.491187565 | BJ44: 3.655273381 | BK44: 3.775897403 | BL44: 3.855191248 | BM44: 3.897598352 | BN44: 3.967755122 | BO44: 4.023303694 | BP44: 4.067560034 | BQ44: 4.197721956 | BR44: 4.210315121 | BS44: 4.273469848 | BT44: 4.384580064 | BU44: 4.485425406 | BV44: 4.611017317 | BW44: 4.65712749 | BX44: 4.69438451 | BY44: 4.703773279 | BZ44: 4.769626105 | CA44: 4.826861618 | CB44: 4.95236002 | CC44: 5.031597781 | CD44: 5.117134943 | CE44: 5.204126237 | CF44: 5.292596383 | CG44: 5.382570522 | CH44: 5.474074221
B45: 1971 | AE45: 1 | AF45: 1.076 | AG45: 1.155624 | AH45: 1.249229544 | AI45: 1.371654039 | AJ45: 1.518421022 | AK45: 1.644449966 | AL45: 1.756272564 | AM45: 1.830036012 | AN45: 1.89957738 | AO45: 2.034447374 | AP45: 2.164652006 | AQ45: 2.292366474 | AR45: 2.351968003 | AS45: 2.417823107 | AT45: 2.473433038 | AU45: 2.461065873 | AV45: 2.465988005 | AW45: 2.488181897 | AX45: 2.515551898 | AY45: 2.575925143 | AZ45: 2.6944177 | BA45: 2.788722319 | BB45: 2.844496766 | BC45: 2.918453682 | BD45: 2.962230487 | BE45: 3.018512866 | BF45: 3.096994201 | BG45: 3.149643102 | BH45: 3.231533823 | BI45: 3.312322168 | BJ45: 3.46800131 | BK45: 3.582445353 | BL45: 3.657676706 | BM45: 3.69791115 | BN45: 3.76447355 | BO45: 3.81717618 | BP45: 3.859165118 | BQ45: 3.982658402 | BR45: 3.994606377 | BS45: 4.054525473 | BT45: 4.159943135 | BU45: 4.255621827 | BV45: 4.374779238 | BW45: 4.418527031 | BX45: 4.453875247 | BY45: 4.462782997 | BZ45: 4.525261959 | CA45: 4.579565103 | CB45: 4.698633796 | CC45: 4.773811936 | CD45: 4.854966739 | CE45: 4.937501174 | CF45: 5.021438694 | CG45: 5.106803151 | CH45: 5.193618805
B46: 1972 | AF46: 1 | AG46: 1.074 | AH46: 1.160994 | AI46: 1.274771412 | AJ46: 1.411171953 | AK46: 1.528299225 | AL46: 1.632223573 | AM46: 1.700776963 | AN46: 1.765406487 | AO46: 1.890750348 | AP46: 2.01175837 | AQ46: 2.130452114 | AR46: 2.185843869 | AS46: 2.247047497 | AT46: 2.29872959 | AU46: 2.287235942 | AV46: 2.291810413 | AW46: 2.312436707 | AX46: 2.337873511 | AY46: 2.393982475 | AZ46: 2.504105669 | BA46: 2.591749367 | BB46: 2.643584355 | BC46: 2.712317548 | BD46: 2.753002311 | BE46: 2.805309355 | BF46: 2.878247398 | BG46: 2.927177604 | BH46: 3.003284222 | BI46: 3.078366327 | BJ46: 3.223049545 | BK46: 3.32941018 | BL46: 3.399327794 | BM46: 3.436720399 | BN46: 3.498581367 | BO46: 3.547561506 | BP46: 3.586584682 | BQ46: 3.701355392 | BR46: 3.712459458 | BS46: 3.76814635 | BT46: 3.866118155 | BU46: 3.955038873 | BV46: 4.065779961 | BW46: 4.106437761 | BX46: 4.139289263 | BY46: 4.147567841 | BZ46: 4.205633791 | CA46: 4.256101397 | CB46: 4.366760033 | CC46: 4.436628194 | CD46: 4.512050873 | CE46: 4.588755738 | CF46: 4.666764585 | CG46: 4.746099583 | CH46: 4.826783276
B47: 1973 | AG47: 1 | AH47: 1.081 | AI47: 1.186938 | AJ47: 1.313940366 | AK47: 1.422997416 | AL47: 1.519761241 | AM47: 1.583591213 | AN47: 1.643767679 | AO47: 1.760475184 | AP47: 1.873145596 | AQ47: 1.983661186 | AR47: 2.035236377 | AS47: 2.092222995 | AT47: 2.140344124 | AU47: 2.129642404 | AV47: 2.133901688 | AW47: 2.153106804 | AX47: 2.176790979 | AY47: 2.229033962 | AZ47: 2.331569524 | BA47: 2.413174458 | BB47: 2.461437947 | BC47: 2.525435333 | BD47: 2.563316863 | BE47: 2.612019884 | BF47: 2.679932401 | BG47: 2.725491252 | BH47: 2.796354024 | BI47: 2.866262875 | BJ47: 3.00097723 | BK47: 3.100009478 | BL47: 3.165109677 | BM47: 3.199925884 | BN47: 3.25752455 | BO47: 3.303129894 | BP47: 3.339464322 | BQ47: 3.446327181 | BR47: 3.456666162 | BS47: 3.508516155 | BT47: 3.599737575 | BU47: 3.682531539 | BV47: 3.785642422 | BW47: 3.823498846 | BX47: 3.854086837 | BY47: 3.861795011 | BZ47: 3.915860141 | CA47: 3.962850462 | CB47: 4.065884575 | CC47: 4.130938728 | CD47: 4.201164686 | CE47: 4.272584486 | CF47: 4.345218422 | CG47: 4.419087135 | CH47: 4.494211616
B48: 1974 | AH48: 1 | AI48: 1.098 | AJ48: 1.215486 | AK48: 1.316371338 | AL48: 1.405884589 | AM48: 1.464931742 | AN48: 1.520599148 | AO48: 1.628561687 | AP48: 1.732789635 | AQ48: 1.835024224 | AR48: 1.882734854 | AS48: 1.93545143 | AT48: 1.979966812 | AU48: 1.970066978 | AV48: 1.974007112 | AW48: 1.991773176 | AX48: 2.013682681 | AY48: 2.062011066 | AZ48: 2.156863575 | BA48: 2.2323538 | BB48: 2.277000876 | BC48: 2.336202899 | BD48: 2.371245942 | BE48: 2.416299615 | BF48: 2.479123405 | BG48: 2.521268503 | BH48: 2.586821484 | BI48: 2.651492021 | BJ48: 2.776112146 | BK48: 2.867723847 | BL48: 2.927946048 | BM48: 2.960153454 | BN48: 3.013436216 | BO48: 3.055624323 | BP48: 3.089236191 | BQ48: 3.188091749 | BR48: 3.197656024 | BS48: 3.245620865 | BT48: 3.330007007 | BU48: 3.406597168 | BV48: 3.501981889 | BW48: 3.537001708 | BX48: 3.565297722 | BY48: 3.572428317 | BZ48: 3.622442313 | CA48: 3.665911621 | CB48: =CA48*CB$17 -> 3.761225323 | CC48: 3.821404928 | CD48: 3.886368812 | CE48: 3.952437082 | CF48: 4.019628512 | CG48: 4.087962197 | CH48: 4.157457555
B49: 1975 | AI49: 1 | AJ49: 1.107 | AK49: 1.198881 | AL49: 1.280404908 | AM49: 1.334181914 | AN49: 1.384880827 | AO49: 1.483207366 | AP49: 1.578132637 | AQ49: 1.671242463 | AR49: 1.714694767 | AS49: 1.76270622 | AT49: 1.803248463 | AU49: 1.794232221 | AV49: 1.797820685 | AW49: 1.814001071 | AX49: 1.833955083 | AY49: 1.877970005 | AZ49: 1.964356625 | BA49: 2.033109107 | BB49: 2.073771289 | BC49: 2.127689343 | BD49: 2.159604683 | BE49: 2.200637172 | BF49: 2.257853739 | BG49: 2.296237252 | BH49: 2.355939421 | BI49: 2.414837906 | BJ49: 2.528335288 | BK49: 2.611770352 | BL49: 2.66661753 | BM49: 2.695950323 | BN49: 2.744477428 | BO49: 2.782900112 | BP49: 2.813512014 | BQ49: 2.903544398 | BR49: 2.912255031 | BS49: 2.955938857 | BT49: 3.032793267 | BU49: 3.102547512 | BV49: 3.189418842 | BW49: 3.221313031 | BX49: 3.247083535 | BY49: 3.253577702 | BZ49: 3.29912779 | CA49: 3.338717323 | CB49: 3.425523974 | CC49: 3.480332357 | CD49: 3.539498008 | CE49: 3.599669474 | CF49: 3.660863855 | CG49: 3.72309854 | CH49: 3.786391215
B50: 1976 | AJ50: 1 | AK50: 1.083 | AL50: 1.156644 | AM50: 1.205223048 | AN50: 1.251021524 | AO50: 1.339844052 | AP50: 1.425594071 | AQ50: 1.509704122 | AR50: 1.548956429 | AS50: 1.592327209 | AT50: 1.628950735 | AU50: 1.620805981 | AV50: 1.624047593 | AW50: 1.638664021 | AX50: 1.656689325 | AY50: 1.696449869 | AZ50: 1.774486563 | BA50: 1.836593593 | BB50: 1.873325465 | BC50: 1.922031927 | BD50: 1.950862406 | BE50: 1.987928791 | BF50: 2.03961494 | BG50: 2.074288394 | BH50: 2.128219892 | BI50: 2.18142539 | BJ50: 2.283952383 | BK50: 2.359322811 | BL50: 2.408868591 | BM50: 2.435366145 | BN50: 2.479202736 | BO50: 2.513911574 | BP50: 2.541564601 | BQ50: 2.622894668 | BR50: 2.630763352 | BS50: 2.670224803 | BT50: 2.739650648 | BU50: 2.802662613 | BV50: 2.881137166 | BW50: 2.909948537 | BX50: 2.933228126 | BY50: 2.939094582 | BZ50: 2.980241906 | CA50: 3.016004809 | CB50: 3.094420934 | CC50: 3.143931669 | CD50: 3.197378507 | CE50: 3.251733942 | CF50: 3.307013419 | CG50: 3.363232647 | CH50: 3.420407602
B51: 1977 | AK51: 1 | AL51: 1.068 | AM51: 1.112856 | AN51: 1.155144528 | AO51: 1.237159789 | AP51: 1.316338016 | AQ51: 1.394001959 | AR51: 1.43024601 | AS51: 1.470292898 | AT51: 1.504109635 | AU51: 1.496589087 | AV51: 1.499582265 | AW51: 1.513078505 | AX51: 1.529722369 | AY51: 1.566435706 | AZ51: 1.638491748 | BA51: 1.695838959 | BB51: =BA51*BB$17 -> 1.729755738 | BC51: 1.774729388 | BD51: 1.801350328 | BE51: 1.835575985 | BF51: 1.88330096 | BG51: 1.915317077 | BH51: 1.965115321 | BI51: 2.014243204 | BJ51: 2.108912634 | BK51: 2.178506751 | BL51: 2.224255393 | BM51: 2.248722202 | BN51: 2.289199202 | BO51: 2.321247991 | BP51: 2.346781719 | BQ51: 2.421878734 | BR51: =BQ51*BR$17 -> 2.42914437 | BS51: 2.465581535 | BT51: 2.529686655 | BU51: 2.587869448 | BV51: 2.660329793 | BW51: 2.686933091 | BX51: 2.708428556 | BY51: 2.713845413 | BZ51: 2.751839248 | CA51: 2.784861319 | CB51: 2.857267714 | CC51: 2.902983997 | CD51: 2.952334725 | CE51: 3.002524415 | CF51: 3.05356733 | CG51: 3.105477975 | CH51: 3.158271101
B52: 1978 | AL52: 1 | AM52: =AL52*AM$17 -> 1.042 | AN52: 1.081596 | AO52: 1.158389316 | AP52: 1.232526232 | AQ52: 1.30524528 | AR52: 1.339181657 | AS52: 1.376678744 | AT52: 1.408342355 | AU52: 1.401300643 | AV52: 1.404103244 | AW52: 1.416740173 | AX52: 1.432324315 | AY52: 1.466700099 | AZ52: 1.534168303 | BA52: 1.587864194 | BB52: 1.619621478 | BC52: 1.661731636 | BD52: 1.686657611 | BE52: 1.718704106 | BF52: 1.763390412 | BG52: 1.793368049 | BH52: 1.839995619 | BI52: 1.885995509 | BJ52: 1.974637298 | BK52: 2.039800329 | BL52: 2.082636136 | BM52: 2.105545133 | BN52: 2.143444946 | BO52: 2.173453175 | BP52: 2.19736116 | BQ52: 2.267676717 | BR52: 2.274479747 | BS52: 2.308596943 | BT52: 2.368620464 | BU52: 2.423098734 | BV52: 2.490945499 | BW52: 2.515854954 | BX52: 2.535981794 | BY52: 2.541053757 | BZ52: 2.57662851 | CA52: 2.607548052 | CB52: 2.675344301 | CC52: 2.71814981 | CD52: 2.764358357 | CE52: 2.811352449 | CF52: 2.859145441 | CG52: =CF52*CG$17 -> 2.907750913 | CH52: 2.957182679
B53: 1979 | AM53: 1 | AN53: 1.038 | AO53: 1.111698 | AP53: 1.182846672 | AQ53: 1.252634626 | AR53: 1.285203126 | AS53: 1.321188813 | AT53: 1.351576156 | AU53: 1.344818275 | AV53: 1.347507912 | AW53: 1.359635483 | AX53: 1.374591473 | AY53: 1.407581669 | AZ53: 1.472330426 | BA53: 1.52386199 | BB53: 1.55433923 | BC53: 1.59475205 | BD53: 1.618673331 | BE53: 1.649428124 | BF53: 1.692313256 | BG53: 1.721082581 | BH53: 1.765830728 | BI53: 1.809976496 | BJ53: 1.895045392 | BK53: 1.957581889 | BL53: 1.998691109 | BM53: 2.020676711 | BN53: 2.057048892 | BO53: 2.085847577 | BP53: 2.1087919 | BQ53: 2.176273241 | BR53: 2.18280206 | BS53: 2.215544091 | BT53: 2.273148238 | BU53: 2.325430647 | BV53: 2.390542705 | BW53: 2.414448132 | BX53: 2.433763717 | BY53: 2.438631245 | BZ53: 2.472772082 | CA53: 2.502445347 | CB53: 2.567508926 | CC53: 2.608589069 | CD53: 2.652935083 | CE53: 2.69803498 | CF53: 2.743901574 | CG53: 2.790547901 | CH53: 2.837987215
B54: 1980 | AN54: 1 | AO54: 1.071 | AP54: 1.139544 | AQ54: 1.206777096 | AR54: 1.2381533 | AS54: 1.272821593 | AT54: 1.30209649 | AU54: 1.295586007 | AV54: 1.298177179 | AW54: 1.309860774 | AX54: 1.324269242 | AY54: 1.356051704 | AZ54: 1.418430082 | BA54: 1.468075135 | BB54: 1.497436638 | BC54: 1.536369991 | BD54: 1.55941554 | BE54: 1.589044436 | BF54: 1.630359591 | BG54: 1.658075704 | BH54: 1.701185672 | BI54: 1.743715314 | BJ54: 1.825669934 | BK54: 1.885917042 | BL54: 1.9255213 | BM54: 1.946702034 | BN54: 1.981742671 | BO54: 2.009487068 | BP54: 2.031591426 | BQ54: 2.096602351 | BR54: 2.102892158 | BS54: 2.134435541 | BT54: 2.189930865 | BU54: 2.240299275 | BV54: 2.303027654 | BW54: 2.326057931 | BX54: 2.344666394 | BY54: 2.349355727 | BZ54: 2.382246707 | CA54: 2.410833668 | CB54: 2.473515343 | CC54: 2.513091589 | CD54: 2.555814146 | CE54: 2.599262986 | CF54: 2.643450457 | CG54: 2.688389115 | CH54: 2.73409173
B55: 1981 | AO55: 1 | AP55: 1.064 | AQ55: 1.126776 | AR55: 1.156072176 | AS55: 1.188442197 | AT55: 1.215776367 | AU55: 1.209697486 | AV55: 1.212116881 | AW55: 1.223025933 | AX55: 1.236479218 | AY55: 1.266154719 | AZ55: 1.324397836 | BA55: 1.37075176 | BB55: 1.398166796 | BC55: 1.434519132 | BD55: 1.456036919 | BE55: 1.483701621 | BF55: 1.522277863 | BG55: 1.548156586 | BH55: 1.588408658 | BI55: 1.628118874 | BJ55: 1.704640461 | BK55: 1.760893596 | BL55: 1.797872362 | BM55: 1.817648958 | BN55: 1.850366639 | BO55: 1.876271772 | BP55: 1.896910762 | BQ55: 1.957611906 | BR55: 1.963484742 | BS55: 1.992937013 | BT55: 2.044753375 | BU55: 2.091782703 | BV55: 2.150352619 | BW55: 2.171856145 | BX55: 2.189230994 | BY55: 2.193609456 | BZ55: 2.224319988 | CA55: 2.251011828 | CB55: 2.309538136 | CC55: 2.346490746 | CD55: 2.386381088 | CE55: 2.426949567 | CF55: 2.46820771 | CG55: 2.510167241 | CH55: 2.552840084
B56: 1982 | AP56: 1 | AQ56: 1.059 | AR56: 1.086534 | AS56: 1.116956952 | AT56: 1.142646962 | AU56: 1.136933727 | AV56: 1.139207595 | AW56: 1.149460463 | AX56: 1.162104528 | AY56: 1.189995037 | AZ56: 1.244734808 | BA56: 1.288300527 | BB56: 1.314066537 | BC56: 1.348232267 | BD56: 1.368455751 | BE56: 1.39445641 | BF56: 1.430712277 | BG56: 1.455034386 | BH56: 1.49286528 | BI56: 1.530186912 | BJ56: 1.602105697 | BK56: 1.654975185 | BL56: 1.689729664 | BM56: 1.70831669 | BN56: 1.73906639 | BO56: 1.76341332 | BP56: 1.782810866 | BQ56: 1.839860814 | BR56: 1.845380396 | BS56: 1.873061102 | BT56: 1.921760691 | BU56: 1.965961187 | BV56: 2.0210081 | BW56: 2.041218181 | BX56: 2.057547927 | BY56: 2.061663022 | BZ56: 2.090526305 | CA56: 2.11561262 | CB56: 2.170618549 | CC56: 2.205348445 | CD56: 2.242839369 | CE56: 2.280967638 | CF56: 2.319744088 | CG56: 2.359179738 | CH56: 2.399285793
B57: 1983 | AQ57: 1 | AR57: 1.026 | AS57: 1.054728 | AT57: 1.078986744 | AU57: 1.07359181 | AV57: 1.075738994 | AW57: 1.085420645 | AX57: 1.097360272 | AY57: 1.123696918 | AZ57: 1.175386977 | BA57: 1.216525521 | BB57: 1.240856031 | BC57: 1.273118288 | BD57: 1.292215062 | BE57: 1.316767149 | BF57: 1.351003095 | BG57: 1.373970147 | BH57: 1.409693371 | BI57: 1.444935705 | BJ57: 1.512847683 | BK57: 1.562771657 | BL57: 1.595589862 | BM57: 1.61314135 | BN57: 1.642177894 | BO57: 1.665168385 | BP57: 1.683485237 | BQ57: 1.737356765 | BR57: 1.742568835 | BS57: 1.768707368 | BT57: 1.814693759 | BU57: 1.856431716 | BV57: 1.908411804 | BW57: 1.927495922 | BX57: 1.942915889 | BY57: 1.946801721 | BZ57: 1.974056945 | CA57: 1.997745628 | CB57: 2.049687015 | CC57: 2.082482007 | CD57: 2.117884201 | CE57: 2.153888232 | CF57: 2.190504332 | CG57: 2.227742906 | CH57: 2.265614535
B58: 1984 | AR58: 1 | AS58: 1.028 | AT58: 1.051644 | AU58: 1.04638578 | AV58: 1.048478552 | AW58: 1.057914859 | AX58: 1.069551922 | AY58: 1.095221168 | AZ58: 1.145601342 | BA58: 1.185697389 | BB58: 1.209411337 | BC58: 1.240856031 | BD58: 1.259468872 | BE58: 1.28339878 | BF58: 1.316767149 | BG58: 1.33915219 | BH58: 1.373970147 | BI58: 1.408319401 | BJ58: 1.474510413 | BK58: 1.523169256 | BL58: 1.555155811 | BM58: 1.572262525 | BN58: 1.60056325 | BO58: 1.622971135 | BP58: 1.640823818 | BQ58: 1.69333018 | BR58: 1.698410171 | BS58: 1.723886323 | BT58: 1.768707368 | BU58: 1.809387637 | BV58: 1.860050491 | BW58: 1.878650996 | BX58: 1.893680204 | BY58: 1.897467564 | BZ58: 1.92403211 | CA58: 1.947120495 | CB58: 1.997745628 | CC58: 2.029709558 | CD58: 2.064214621 | CE58: 2.099306269 | CF58: 2.134994476 | CG58: 2.171289382 | CH58: 2.208201302
B59: 1985 | AS59: 1 | AT59: 1.023 | AU59: 1.017885 | AV59: 1.01992077 | AW59: 1.029100057 | AX59: 1.040420158 | AY59: 1.065390241 | AZ59: 1.114398192 | BA59: 1.153402129 | BB59: 1.176470172 | BC59: 1.207058396 | BD59: 1.225164272 | BE59: 1.248442393 | BF59: 1.280901896 | BG59: 1.302677228 | BH59: 1.336546836 | BI59: 1.369960507 | BJ59: 1.43434865 | BK59: 1.481682156 | BL59: 1.512797481 | BM59: 1.529438253 | BN59: 1.556968142 | BO59: 1.578765696 | BP59: 1.596132119 | BQ59: 1.647208346 | BR59: 1.652149971 | BS59: 1.676932221 | BT59: 1.720532459 | BU59: 1.760104705 | BV59: 1.809387637 | BW59: 1.827481513 | BX59: 1.842101366 | BY59: 1.845785568 | BZ59: 1.871626566 | CA59: 1.894086085 | CB59: 1.943332323 | CC59: 1.97442564 | CD59: 2.007990876 | CE59: 2.042126721 | CF59: 2.076842876 | CG59: 2.112149204 | CH59: 2.148055741
B60: 1986 | AT60: 1 | AU60: 0.995 | AV60: 0.99699 | AW60: 1.00596291 | AX60: 1.017028502 | AY60: 1.041437186 | AZ60: 1.089343297 | BA60: 1.127470312 | BB60: 1.150019718 | BC60: 1.179920231 | BD60: 1.197619034 | BE60: 1.220373796 | BF60: 1.252103515 | BG60: 1.273389274 | BH60: 1.306497396 | BI60: 1.339159831 | BJ60: 1.402100343 | BK60: 1.448369654 | BL60: 1.478785417 | BM60: 1.495052056 | BN60: 1.521962993 | BO60: 1.543270475 | BP60: 1.56024645 | BQ60: 1.610174337 | BR60: 1.61500486 | BS60: 1.639229933 | BT60: 1.681849911 | BU60: 1.720532459 | BV60: 1.768707368 | BW60: 1.786394441 | BX60: 1.800685597 | BY60: 1.804286968 | BZ60: 1.829546986 | CA60: 1.851501549 | CB60: 1.89964059 | CC60: 1.930034839 | CD60: 1.962845431 | CE60: 1.996213804 | CF60: 2.030149438 | CG60: 2.064661979 | CH60: 2.099761233
B61: 1987 | AU61: 1 | AV61: 1.002 | AW61: 1.011018 | AX61: 1.022139198 | AY61: 1.046670539 | AZ61: 1.094817384 | BA61: 1.133135992 | BB61: 1.155798712 | BC61: 1.185849478 | BD61: 1.20363722 | BE61: 1.226506328 | BF61: 1.258395492 | BG61: 1.279788216 | BH61: 1.313062709 | BI61: 1.345889277 | BJ61: 1.409146073 | BK61: 1.455647893 | BL61: 1.486216499 | BM61: 1.502564881 | BN61: 1.529611048 | BO61: 1.551025603 | BP61: 1.568086885 | BQ61: 1.618265665 | BR61: 1.623120462 | BS61: 1.647467269 | BT61: 1.690301418 | BU61: 1.729178351 | BV61: 1.777595344 | BW61: 1.795371298 | BX61: 1.809734268 | BY61: 1.813353737 | BZ61: 1.838740689 | CA61: 1.860805577 | CB61: 1.909186522 | CC61: 1.939733507 | CD61: 1.972708976 | CE61: 2.006245029 | CF61: 2.040351194 | CG61: 2.075037165 | CH61: 2.110312796
B62: 1988 | AV62: 1 | AW62: 1.009 | AX62: 1.020099 | AY62: 1.044581376 | AZ62: 1.092632119 | BA62: 1.130874243 | BB62: 1.153491728 | BC62: 1.183482513 | BD62: 1.201234751 | BE62: 1.224058211 | BF62: 1.255883725 | BG62: 1.277233748 | BH62: 1.310441826 | BI62: 1.343202871 | BJ62: 1.406333406 | BK62: 1.452742408 | BL62: 1.483249999 | BM62: 1.499565749 | BN62: 1.526557933 | BO62: 1.547929744 | BP62: 1.564956971 | BQ62: 1.615035594 | BR62: 1.619880701 | BS62: 1.644178911 | BT62: 1.686927563 | BU62: 1.725726897 | BV62: 1.77404725 | BW62: 1.791787722 | BX62: 1.806122024 | BY62: 1.809734268 | BZ62: 1.835070548 | CA62: 1.857091395 | CB62: 1.905375771 | CC62: 1.935861783 | CD62: 1.968771433 | CE62: 2.002240548 | CF62: 2.036278637 | CG62: 2.070895374 | CH62: 2.106100595
B63: 1989 | AW63: 1 | AX63: 1.011 | AY63: 1.035264 | AZ63: 1.082886144 | BA63: 1.120787159 | BB63: 1.143202902 | BC63: 1.172926178 | BD63: 1.19052007 | BE63: 1.213139952 | BF63: 1.24468159 | BG63: 1.265841177 | BH63: 1.298753048 | BI63: 1.331221874 | BJ63: 1.393789302 | BK63: 1.439784349 | BL63: 1.470019821 | BM63: 1.486190039 | BN63: 1.512941459 | BO63: 1.53412264 | BP63: 1.550997989 | BQ63: 1.600629925 | BR63: 1.605431814 | BS63: 1.629513292 | BT63: 1.671880637 | BU63: 1.710333892 | BV63: 1.758223241 | BW63: 1.775805473 | BX63: 1.790011917 | BY63: 1.793591941 | BZ63: 1.818702228 | CA63: 1.840526655 | CB63: 1.888380348 | CC63: 1.918594433 | CD63: 1.951210539 | CE63: 1.984381118 | CF63: 2.018115597 | CG63: 2.052423562 | CH63: 2.087314762
B64: 1990 | AX64: 1 | AY64: 1.024 | AZ64: 1.071104 | BA64: 1.10859264 | BB64: 1.130764493 | BC64: 1.16016437 | BD64: 1.177566835 | BE64: 1.199940605 | BF64: 1.231139061 | BG64: 1.252068425 | BH64: 1.284622204 | BI64: 1.316737759 | BJ64: 1.378624434 | BK64: 1.42411904 | BL64: 1.45402554 | BM64: 1.470019821 | BN64: 1.496480177 | BO64: 1.5174309 | BP64: 1.53412264 | BQ64: 1.583214564 | BR64: 1.587964208 | BS64: 1.611783671 | BT64: 1.653690047 | BU64: 1.691724918 | BV64: 1.739093215 | BW64: 1.756484147 | BX64: 1.770536021 | BY64: 1.774077093 | BZ64: 1.798914172 | CA64: 1.820501142 | CB64: 1.867834172 | CC64: 1.897719519 | CD64: 1.92998075 | CE64: 1.962790423 | CF64: 1.99615786 | CG64: 2.030092544 | CH64: 2.064604117
B65: 1991 | AY65: 1 | AZ65: 1.046 | BA65: 1.08261 | BB65: 1.1042622 | BC65: 1.132973017 | BD65: 1.149967612 | BE65: 1.171816997 | BF65: 1.202284239 | BG65: 1.222723071 | BH65: 1.254513871 | BI65: 1.285876718 | BJ65: 1.346312923 | BK65: 1.39074125 | BL65: 1.419946816 | BM65: 1.435566231 | BN65: 1.461406423 | BO65: 1.481866113 | BP65: 1.49816664 | BQ65: 1.546107973 | BR65: 1.550746297 | BS65: 1.574007491 | BT65: 1.614931686 | BU65: 1.652075115 | BV65: 1.698333218 | BW65: 1.71531655 | BX65: 1.729039083 | BY65: 1.732497161 | BZ65: 1.756752121 | CA65: 1.777833147 | CB65: 1.824056808 | CC65: 1.853241717 | CD65: 1.884746826 | CE65: 1.916787523 | CF65: 1.94937291 | CG65: 1.98251225 | CH65: 2.016214958
B66: 1992 | AZ66: 1 | BA66: 1.035 | BB66: 1.0557 | BC66: 1.0831482 | BD66: 1.099395423 | BE66: 1.120283936 | BF66: 1.149411318 | BG66: 1.168951311 | BH66: 1.199344045 | BI66: 1.229327646 | BJ66: 1.287106045 | BK66: 1.329580545 | BL66: 1.357501736 | BM66: 1.372434255 | BN66: 1.397138072 | BO66: 1.416698005 | BP66: 1.432281683 | BQ66: 1.478114697 | BR66: 1.482549041 | BS66: 1.504787277 | BT66: 1.543911746 | BU66: 1.579421716 | BV66: 1.623645524 | BW66: 1.639881979 | BX66: 1.653001035 | BY66: 1.656307037 | BZ66: 1.679495336 | CA66: 1.69964928 | CB66: 1.743840161 | CC66: 1.771741604 | CD66: 1.801861211 | CE66: 1.832492851 | CF66: 1.86364523 | CG66: 1.895327199 | CH66: 1.927547761
B67: 1993 | BA67: 1 | BB67: 1.02 | BC67: 1.04652 | BD67: 1.0622178 | BE67: 1.082399938 | BF67: 1.110542337 | BG67: 1.129421556 | BH67: 1.158786517 | BI67: 1.18775618 | BJ67: 1.24358072 | BK67: 1.284618884 | BL67: 1.31159588 | BM67: 1.326023435 | BN67: 1.349891857 | BO67: 1.368790343 | BP67: 1.383847037 | BQ67: 1.428130142 | BR67: 1.432414532 | BS67: 1.45390075 | BT67: 1.49170217 | BU67: 1.52601132 | BV67: 1.568739637 | BW67: 1.584427033 | BX67: 1.597102449 | BY67: 1.600296654 | BZ67: 1.622700807 | CA67: 1.642173217 | CB67: 1.684869721 | CC67: 1.711827636 | CD67: 1.740928706 | CE67: =CD67*CE$17 -> 1.770524494 | CF67: 1.80062341 | CG67: 1.831234008 | CH67: 1.862364987
B68: 1994 | BB68: 1 | BC68: =BB68*BC$17 -> 1.026 | BD68: 1.04139 | BE68: 1.06117641 | BF68: 1.088766997 | BG68: 1.107276036 | BH68: 1.136065213 | BI68: 1.164466843 | BJ68: 1.219196784 | BK68: 1.259430278 | BL68: 1.285878314 | BM68: 1.300022976 | BN68: 1.323423389 | BO68: 1.341951317 | BP68: 1.356712781 | BQ68: 1.40012759 | BR68: 1.404327973 | BS68: =BR68*BS$17 -> 1.425392892 | BT68: 1.462453108 | BU68: 1.496089529 | BV68: 1.537980036 | BW68: 1.553359836 | BX68: 1.565786715 | BY68: 1.568918288 | BZ68: 1.590883145 | CA68: 1.609973742 | CB68: 1.65183306 | CC68: 1.678262389 | CD68: 1.706792849 | CE68: 1.735808328 | CF68: 1.765317069 | CG68: 1.795327459 | CH68: 1.825848026
B69: 1995 | BC69: 1 | BD69: 1.015 | BE69: 1.034285 | BF69: 1.06117641 | BG69: 1.079216409 | BH69: 1.107276036 | BI69: 1.134957936 | BJ69: 1.18830096 | BK69: 1.227514891 | BL69: 1.253292704 | BM69: 1.267078924 | BN69: 1.289886344 | BO69: 1.307944753 | BP69: 1.322332145 | BQ69: 1.364646774 | BR69: 1.368740714 | BS69: 1.389271825 | BT69: 1.425392892 | BU69: 1.458176929 | BV69: 1.499005883 | BW69: 1.513995942 | BX69: 1.526107909 | BY69: 1.529160125 | BZ69: 1.550568367 | CA69: 1.569175187 | CB69: 1.609973742 | CC69: 1.635733322 | CD69: 1.663540789 | CE69: 1.691820982 | CF69: 1.720581939 | CG69: 1.749831832 | CH69: 1.779578973
B70: 1996 | BD70: 1 | BE70: 1.019 | BF70: 1.045494 | BG70: 1.063267398 | BH70: 1.09091235 | BI70: 1.118185159 | BJ70: 1.170739862 | BK70: 1.209374277 | BL70: 1.234771137 | BM70: 1.248353619 | BN70: 1.270823984 | BO70: 1.28861552 | BP70: 1.302790291 | BQ70: 1.34447958 | BR70: 1.348513019 | BS70: 1.368740714 | BT70: 1.404327973 | BU70: 1.436627516 | BV70: 1.476853087 | BW70: 1.491621618 | BX70: 1.503554591 | BY70: 1.5065617 | BZ70: 1.527653564 | CA70: 1.545985406 | CB70: 1.586181027 | CC70: 1.611559923 | CD70: 1.638956442 | CE70: 1.666818701 | CF70: 1.695154619 | CG70: 1.723972248 | CH70: 1.753279776
B71: 1997 | BE71: 1 | BF71: 1.026 | BG71: 1.043442 | BH71: 1.070571492 | BI71: 1.097335779 | BJ71: 1.148910561 | BK71: 1.186824609 | BL71: 1.211747926 | BM71: 1.225077153 | BN71: 1.247128542 | BO71: 1.264588342 | BP71: 1.278498814 | BQ71: 1.319410776 | BR71: 1.323369008 | BS71: 1.343219543 | BT71: 1.378143251 | BU71: 1.409840546 | BV71: 1.449316081 | BW71: 1.463809242 | BX71: 1.475519716 | BY71: 1.478470755 | BZ71: 1.499169346 | CA71: 1.517159378 | CB71: 1.556605522 | CC71: 1.58151121 | CD71: 1.608396901 | CE71: 1.635739648 | CF71: 1.663547222 | CG71: 1.691827525 | CH71: 1.720588593
B72: 1998 | BF72: 1 | BG72: 1.017 | BH72: 1.043442 | BI72: 1.06952805 | BJ72: 1.119795868 | BK72: 1.156749132 | BL72: 1.181040864 | BM72: 1.194032313 | BN72: 1.215524895 | BO72: 1.232542243 | BP72: 1.246100208 | BQ72: 1.285975415 | BR72: 1.289833341 | BS72: 1.309180841 | BT72: 1.343219543 | BU72: 1.374113593 | BV72: 1.412588773 | BW72: 1.426714661 | BX72: 1.438128378 | BY72: 1.441004635 | BZ72: 1.4611787 | CA72: 1.478712844 | CB72: 1.517159378 | CC72: 1.541433928 | CD72: 1.567638305 | CE72: 1.594288156 | CF72: 1.621391055 | CG72: 1.648954703 | CH72: 1.676986933
B73: 1999 | BG73: 1 | BH73: 1.026 | BI73: 1.05165 | BJ73: 1.10107755 | BK73: 1.137413109 | BL73: 1.161298784 | BM73: 1.174073071 | BN73: 1.195206386 | BO73: 1.211939276 | BP73: 1.225270608 | BQ73: 1.264479267 | BR73: 1.268272705 | BS73: 1.287296796 | BT73: 1.320766512 | BU73: 1.351144142 | BV73: 1.388976178 | BW73: 1.40286594 | BX73: 1.414088867 | BY73: 1.416917045 | BZ73: 1.436753884 | CA73: 1.45399493 | CB73: 1.491798799 | CC73: 1.515667579 | CD73: 1.541433928 | CE73: 1.567638305 | CF73: 1.594288156 | CG73: 1.621391055 | CH73: 1.648954703
B74: 2000 | BH74: 1 | BI74: 1.025 | BJ74: 1.073175 | BK74: 1.108589775 | BL74: 1.13187016 | BM74: 1.144320732 | BN74: 1.164918505 | BO74: 1.181227364 | BP74: 1.194220865 | BQ74: 1.232435933 | BR74: 1.236133241 | BS74: 1.254675239 | BT74: 1.287296796 | BU74: 1.316904622 | BV74: 1.353777951 | BW74: 1.367315731 | BX74: 1.378254257 | BY74: 1.381010765 | BZ74: 1.400344916 | CA74: 1.417149055 | CB74: 1.45399493 | CC74: 1.477258849 | CD74: 1.50237225 | CE74: 1.527912578 | CF74: 1.553887092 | CG74: 1.580303172 | CH74: 1.607168326
B75: 2001 | BI75: 1 | BJ75: 1.047 | BK75: 1.081551 | BL75: 1.104263571 | BM75: 1.11641047 | BN75: 1.136505859 | BO75: 1.152416941 | BP75: 1.165093527 | BQ75: 1.20237652 | BR75: 1.20598365 | BS75: 1.224073404 | BT75: 1.255899313 | BU75: 1.284784997 | BV75: 1.320758977 | BW75: 1.333966567 | BX75: 1.344638299 | BY75: 1.347327576 | BZ75: 1.366190162 | CA75: 1.382584444 | CB75: 1.418531639 | CC75: 1.441228146 | CD75: 1.465729024 | CE75: 1.490646417 | CF75: 1.515987407 | CG75: 1.541759192 | CH75: 1.567969099
B76: 2002 | BJ76: 1 | BK76: 1.033 | BL76: 1.054693 | BM76: 1.066294623 | BN76: 1.085487926 | BO76: 1.100684757 | BP76: 1.11279229 | BQ76: 1.148401643 | BR76: 1.151846848 | BS76: 1.16912455 | BT76: 1.199521789 | BU76: 1.22711079 | BV76: 1.261469892 | BW76: 1.274084591 | BX76: 1.284277268 | BY76: 1.286845822 | BZ76: 1.304861664 | CA76: 1.320520004 | CB76: 1.354853524 | CC76: 1.37653118 | CD76: 1.39993221 | CE76: 1.423731058 | CF76: 1.447934486 | CG76: 1.472549372 | CH76: 1.497582711
B77: 2003 | BK77: 1 | BL77: 1.021 | BM77: 1.032231 | BN77: 1.050811158 | BO77: 1.065522514 | BP77: 1.077243262 | BQ77: 1.111715046 | BR77: 1.115050191 | BS77: 1.131775944 | BT77: 1.161202119 | BU77: 1.187909768 | BV77: 1.221171241 | BW77: 1.233382953 | BX77: 1.243250017 | BY77: 1.245736517 | BZ77: 1.263176828 | CA77: 1.27833495 | CB77: 1.311571659 | CC77: 1.332556806 | CD77: 1.355210271 | CE77: 1.378248846 | CF77: 1.401679076 | CG77: 1.425507621 | CH77: 1.44974125
B78: 2004 | BL78: 1 | BM78: 1.011 | BN78: 1.029198 | BO78: 1.043606772 | BP78: 1.055086446 | BQ78: 1.088849213 | BR78: 1.09211576 | BS78: 1.108497497 | BT78: 1.137318432 | BU78: 1.163476756 | BV78: 1.196054105 | BW78: 1.208014646 | BX78: 1.217678763 | BY78: 1.220114121 | BZ78: 1.237195718 | CA78: 1.252042067 | CB78: 1.284595161 | CC78: 1.305148683 | CD78: 1.327336211 | CE78: 1.349900926 | CF78: 1.372849242 | CG78: 1.396187679 | CH78: 1.41992287
B79: 2005 | BM79: 1 | BN79: 1.018 | BO79: 1.032252 | BP79: 1.043606772 | BQ79: 1.077002189 | BR79: 1.080233195 | BS79: 1.096436693 | BT79: 1.124944047 | BU79: 1.15081776 | BV79: 1.183040658 | BW79: 1.194871064 | BX79: 1.204430033 | BY79: 1.206838893 | BZ79: 1.223734637 | CA79: 1.238419453 | CB79: 1.270618359 | CC79: 1.290948252 | CD79: 1.312894373 | CE79: 1.335213577 | CF79: 1.357912208 | CG79: 1.380996715 | CH79: 1.40447366
B80: 2006 | BN80: 1 | BO80: 1.014 | BP80: 1.025154 | BQ80: 1.057958928 | BR80: 1.061132805 | BS80: 1.077049797 | BT80: 1.105053092 | BU80: 1.130469313 | BV80: 1.162122453 | BW80: 1.173743678 | BX80: 1.183133627 | BY80: 1.185499895 | BZ80: 1.202096893 | CA80: 1.216522056 | CB80: 1.248151629 | CC80: 1.268122055 | CD80: 1.28968013 | CE80: 1.311604693 | CF80: 1.333901972 | CG80: 1.356578306 | CH80: 1.379640137
B81: 2007 | BO81: 1 | BP81: 1.011 | BQ81: 1.043352 | BR81: 1.046482056 | BS81: 1.062179287 | BT81: 1.089795948 | BU81: 1.114861255 | BV81: 1.14607737 | BW81: 1.157538144 | BX81: 1.166798449 | BY81: 1.169132046 | BZ81: 1.185499895 | CA81: 1.199725893 | CB81: 1.230918767 | CC81: 1.250613467 | CD81: 1.271873896 | CE81: 1.293495752 | CF81: 1.31548518 | CG81: 1.337848428 | CH81: 1.360591851
B82: 2008 | BP82: 1 | BQ82: 1.032 | BR82: 1.035096 | BS82: 1.05062244 | BT82: 1.077938623 | BU82: 1.102731212 | BV82: 1.133607686 | BW82: 1.144943763 | BX82: 1.154103313 | BY82: 1.156411519 | BZ82: 1.172601281 | CA82: 1.186672496 | CB82: 1.217525981 | CC82: 1.237006397 | CD82: 1.258035505 | CE82: 1.279422109 | CF82: 1.301172285 | CG82: 1.323292214 | CH82: 1.345788181
B83: 2009 | BQ83: 1 | BR83: 1.003 | BS83: 1.018045 | BT83: 1.04451417 | BU83: 1.068537996 | BV83: 1.09845706 | BW83: 1.10944163 | BX83: 1.118317163 | BY83: 1.120553798 | BZ83: 1.136241551 | CA83: 1.14987645 | CB83: 1.179773237 | CC83: 1.198649609 | CD83: 1.219026652 | CE83: 1.239750105 | CF83: 1.260825857 | CG83: 1.282259897 | CH83: 1.304058315
B84: 2010 | BR84: 1 | BS84: 1.015 | BT84: 1.04139 | BU84: 1.06534197 | BV84: 1.095171545 | BW84: 1.106123261 | BX84: 1.114972247 | BY84: 1.117202191 | BZ84: 1.132843022 | CA84: 1.146437138 | CB84: 1.176244504 | CC84: 1.195064416 | CD84: 1.215380511 | CE84: 1.23604198 | CF84: 1.257054693 | CG84: 1.278424623 | CH84: 1.300157842
B85: 2011 | BS85: 1 | BT85: 1.026 | BU85: 1.049598 | BV85: 1.078986744 | BW85: 1.089776611 | BX85: 1.098494824 | BY85: 1.100691814 | BZ85: 1.116101499 | CA85: 1.129494717 | CB85: 1.15886158 | CC85: 1.177403365 | CD85: 1.197419223 | CE85: 1.217775349 | CF85: 1.23847753 | CG85: 1.259531648 | CH85: 1.280943686
B86: 2012 | BT86: 1 | BU86: 1.023 | BV86: 1.051644 | BW86: 1.06216044 | BX86: 1.070657724 | BY86: 1.072799039 | BZ86: 1.087818226 | CA86: 1.100872044 | CB86: 1.129494717 | CC86: 1.147566633 | CD86: 1.167075266 | CE86: 1.186915545 | CF86: 1.207093109 | CG86: 1.227613692 | CH86: 1.248483125
B87: 2013 | BU87: 1 | BV87: 1.028 | BW87: 1.03828 | BX87: 1.04658624 | BY87: 1.048679412 | BZ87: 1.063360924 | CA87: 1.076121255 | CB87: 1.104100408 | CC87: 1.121766015 | CD87: 1.140836037 | CE87: 1.160230249 | CF87: 1.179954164 | CG87: 1.200013384 | CH87: 1.220413612
B88: 2014 | BV88: 1 | BW88: 1.01 | BX88: 1.01808 | BY88: 1.02011616 | BZ88: 1.034397786 | CA88: 1.04681056 | CB88: 1.074027634 | CC88: 1.091212076 | CD88: 1.109762682 | CE88: 1.128628647 | CF88: 1.147815334 | CG88: 1.167328195 | CH88: 1.187172774
B89: 2015 | BW89: 1 | BX89: 1.008 | BY89: 1.010016 | BZ89: 1.024156224 | CA89: 1.036446099 | CB89: 1.063393697 | CC89: 1.080407996 | CD89: 1.098774932 | CE89: 1.117454106 | CF89: 1.136450826 | CG89: 1.15577049 | CH89: 1.175418588
B90: 2016 | BX90: 1 | BY90: 1.002 | BZ90: 1.016028 | CA90: 1.028220336 | CB90: 1.054954065 | CC90: 1.07183333 | CD90: 1.090054496 | CE90: 1.108585423 | CF90: 1.127431375 | CG90: 1.146597708 | CH90: 1.166089869
B91: 2017 | BY91: 1 | BZ91: 1.014 | CA91: 1.026168 | CB91: 1.052848368 | CC91: 1.069693942 | CD91: 1.087878739 | CE91: 1.106372677 | CF91: 1.125181013 | CG91: 1.14430909 | CH91: 1.163762345
B92: 2018 | BZ92: 1 | CA92: 1.012 | CB92: 1.038312 | CC92: 1.054924992 | CD92: 1.072858717 | CE92: 1.091097315 | CF92: 1.109645969 | CG92: 1.128509951 | CH92: 1.14769462
B93: 2019 | CA93: 1 | CB93: 1.026 | CC93: 1.042416 | CD93: 1.060137072 | CE93: 1.078159402 | CF93: 1.096488112 | CG93: 1.11512841 | CH93: 1.134085593
B94: 2020 | CB94: 1 | CC94: 1.016 | CD94: 1.033272 | CE94: 1.050837624 | CF94: 1.068701864 | CG94: 1.086869795 | CH94: 1.105346582
B95: 2021 | CC95: 1 | CD95: 1.017 | CE95: 1.034289 | CF95: 1.051871913 | CG95: 1.069753736 | CH95: 1.087939549
B96: 2022 | CD96: 1 | CE96: =CD96*CE$17 -> 1.017 | CF96: =CE96*CF$17 -> 1.034289 | CG96: =CF96*CG$17 -> 1.051871913 | CH96: 1.069753736
B97: 2023 | CE97: 1 | CF97: =CE97*CF$17 -> 1.017 | CG97: 1.034289 | CH97: 1.051871913
B98: 2024 | CF98: 1 | CG98: 1.017 | CH98: 1.034289
B99: 2025 | CG99: 1 | CH99: 1.017
B100: 2026 | CH100: 1

Sheet 5. CPI-tabel nominaal
B2: Tabel 5 - CPI-tabel nominaal
B4: Beschrijving berekening
B5: Dit tabblad toont de consumentenprijsindex (CPI) per jaar en de factor waarmee de CPI tussen de jaren verschilt. Alle CPI's worden opgehaald van het tabblad 'Parameters'. Vanaf 2022 staat het CPI op 0 vanwege de implementatie van het nominale stelsel in de reguleringsperiode 2022-2026.
F7: 1946 | G7: 1947 | H7: 1948 | I7: 1949 | J7: 1950 | K7: 1951 | L7: 1952 | M7: 1953 | N7: 1954 | O7: 1955 | P7: 1956 | Q7: 1957 | R7: 1958 | S7: 1959 | T7: 1960 | U7: 1961 | V7: 1962 | W7: 1963 | X7: 1964 | Y7: 1965 | Z7: 1966 | AA7: 1967 | AB7: 1968 | AC7: 1969 | AD7: 1970 | AE7: 1971 | AF7: 1972 | AG7: 1973 | AH7: 1974 | AI7: 1975 | AJ7: 1976 | AK7: 1977 | AL7: 1978 | AM7: 1979 | AN7: 1980 | AO7: 1981 | AP7: 1982 | AQ7: 1983 | AR7: 1984 | AS7: 1985 | AT7: 1986 | AU7: 1987 | AV7: 1988 | AW7: 1989 | AX7: 1990 | AY7: 1991 | AZ7: 1992 | BA7: 1993 | BB7: 1994 | BC7: 1995 | BD7: 1996 | BE7: 1997 | BF7: 1998 | BG7: 1999 | BH7: 2000 | BI7: 2001 | BJ7: 2002 | BK7: 2003 | BL7: 2004 | BM7: 2005 | BN7: 2006 | BO7: 2007 | BP7: 2008 | BQ7: 2009 | BR7: 2010 | BS7: 2011 | BT7: 2012 | BU7: 2013 | BV7: 2014 | BW7: 2015 | BX7: 2016 | BY7: 2017 | BZ7: 2018 | CA7: 2019 | CB7: 2020 | CC7: 2021 | CD7: 2022 | CE7: 2023 | CF7: 2024 | CG7: 2025 | CH7: 2026 | CJ7: Bron
B10: Ophalen CPI
B12: CPI jaar t | F12: ='2. Reguleringsparameters'!C110 -> 0.09083007388 | G12: ='2. Reguleringsparameters'!D110 -> 0.03625498008 | H12: ='2. Reguleringsparameters'!E110 -> 0.03537101115 | I12: ='2. Reguleringsparameters'!F110 -> 0.06312662458 | J12: ='2. Reguleringsparameters'!G110 -> 0.09116311561 | K12: ='2. Reguleringsparameters'!H110 -> 0.09635083227 | L12: ='2. Reguleringsparameters'!I110 -> 0 | M12: ='2. Reguleringsparameters'!J110 -> 0 | N12: ='2. Reguleringsparameters'!K110 -> 0.04 | O12: ='2. Reguleringsparameters'!L110 -> 0.01909039865 | P12: ='2. Reguleringsparameters'!M110 -> 0.01900826446 | Q12: ='2. Reguleringsparameters'!N110 -> 0.06488240065 | R12: ='2. Reguleringsparameters'!O110 -> 0.01726326479 | S12: ='2. Reguleringsparameters'!P110 -> 0.008485150986 | T12: ='2. Reguleringsparameters'!Q110 -> 0.02548874041 | U12: ='2. Reguleringsparameters'!R110 -> 0.01665057915 | V12: ='2. Reguleringsparameters'!S110 -> 0.0192262046 | W12: ='2. Reguleringsparameters'!T110 -> 0.0381928272 | X12: ='2. Reguleringsparameters'!U110 -> 0.019 | Y12: ='2. Reguleringsparameters'!V110 -> 0.084 | Z12: ='2. Reguleringsparameters'!W110 -> 0.043 | AA12: ='2. Reguleringsparameters'!X110 -> 0.058 | AB12: ='2. Reguleringsparameters'!Y110 -> 0.039 | AC12: ='2. Reguleringsparameters'!Z110 -> 0.033 | AD12: ='2. Reguleringsparameters'!AA110 -> 0.069 | AE12: ='2. Reguleringsparameters'!AB110 -> 0.054 | AF12: ='2. Reguleringsparameters'!AC110 -> 0.076 | AG12: ='2. Reguleringsparameters'!AD110 -> 0.074 | AH12: ='2. Reguleringsparameters'!AE110 -> 0.081 | AI12: ='2. Reguleringsparameters'!AF110 -> 0.098 | AJ12: ='2. Reguleringsparameters'!AG110 -> 0.107 | AK12: ='2. Reguleringsparameters'!AH110 -> 0.083 | AL12: ='2. Reguleringsparameters'!AI110 -> 0.068 | AM12: ='2. Reguleringsparameters'!AJ110 -> 0.042 | AN12: ='2. Reguleringsparameters'!AK110 -> 0.038 | AO12: ='2. Reguleringsparameters'!AL110 -> 0.071 | AP12: ='2. Reguleringsparameters'!AM110 -> 0.064 | AQ12: ='2. Reguleringsparameters'!AN110 -> 0.059 | AR12: ='2. Reguleringsparameters'!AO110 -> 0.026 | AS12: ='2. Reguleringsparameters'!AP110 -> 0.028 | AT12: ='2. Reguleringsparameters'!AQ110 -> 0.023 | AU12: ='2. Reguleringsparameters'!AR110 -> -0.005 | AV12: ='2. Reguleringsparameters'!AS110 -> 0.002 | AW12: ='2. Reguleringsparameters'!AT110 -> 0.009 | AX12: ='2. Reguleringsparameters'!AU110 -> 0.011 | AY12: ='2. Reguleringsparameters'!AV110 -> 0.024 | AZ12: ='2. Reguleringsparameters'!AW110 -> 0.046 | BA12: ='2. Reguleringsparameters'!AX110 -> 0.035 | BB12: ='2. Reguleringsparameters'!AY110 -> 0.02 | BC12: ='2. Reguleringsparameters'!AZ110 -> 0.026 | BD12: ='2. Reguleringsparameters'!BA110 -> 0.015 | BE12: ='2. Reguleringsparameters'!BB110 -> 0.019 | BF12: ='2. Reguleringsparameters'!BC110 -> 0.026 | BG12: ='2. Reguleringsparameters'!BD110 -> 0.017 | BH12: ='2. Reguleringsparameters'!BE110 -> 0.026 | BI12: ='2. Reguleringsparameters'!BF110 -> 0.025 | BJ12: ='2. Reguleringsparameters'!BG110 -> 0.047 | BK12: ='2. Reguleringsparameters'!BH110 -> 0.033 | BL12: ='2. Reguleringsparameters'!BI110 -> 0.021 | BM12: ='2. Reguleringsparameters'!BJ110 -> 0.011 | BN12: ='2. Reguleringsparameters'!BK110 -> 0.018 | BO12: ='2. Reguleringsparameters'!BL110 -> 0.014 | BP12: ='2. Reguleringsparameters'!BM110 -> 0.011 | BQ12: ='2. Reguleringsparameters'!BN110 -> 0.032 | BR12: ='2. Reguleringsparameters'!BO110 -> 0.003 | BS12: ='2. Reguleringsparameters'!BP110 -> 0.015 | BT12: ='2. Reguleringsparameters'!BQ110 -> 0.026 | BU12: ='2. Reguleringsparameters'!BR110 -> 0.023 | BV12: ='2. Reguleringsparameters'!BS110 -> 0.028 | BW12: ='2. Reguleringsparameters'!BT110 -> 0.01 | BX12: ='2. Reguleringsparameters'!BU110 -> 0.008 | BY12: ='2. Reguleringsparameters'!BV110 -> 0.002 | BZ12: ='2. Reguleringsparameters'!BW110 -> 0.014 | CA12: ='2. Reguleringsparameters'!BX110 -> 0.012 | CB12: ='2. Reguleringsparameters'!BY110 -> 0.026 | CC12: ='2. Reguleringsparameters'!BZ110 -> 0.016 | CD12: 0 | CE12: 0 | CF12: 0 | CG12: 0 | CH12: 0 | CJ12: Tabblad 'Parameters'
B14: Berekening CPI-tabel | F14: 1946 | G14: 1947 | H14: 1948 | I14: 1949 | J14: 1950 | K14: 1951 | L14: 1952 | M14: 1953 | N14: 1954 | O14: 1955 | P14: 1956 | Q14: 1957 | R14: 1958 | S14: 1959 | T14: 1960 | U14: 1961 | V14: 1962 | W14: 1963 | X14: 1964 | Y14: 1965 | Z14: 1966 | AA14: 1967 | AB14: 1968 | AC14: 1969 | AD14: 1970 | AE14: 1971 | AF14: 1972 | AG14: 1973 | AH14: 1974 | AI14: 1975 | AJ14: 1976 | AK14: 1977 | AL14: 1978 | AM14: 1979 | AN14: 1980 | AO14: 1981 | AP14: 1982 | AQ14: 1983 | AR14: 1984 | AS14: 1985 | AT14: 1986 | AU14: 1987 | AV14: 1988 | AW14: 1989 | AX14: 1990 | AY14: 1991 | AZ14: 1992 | BA14: 1993 | BB14: 1994 | BC14: 1995 | BD14: 1996 | BE14: 1997 | BF14: 1998 | BG14: 1999 | BH14: 2000 | BI14: 2001 | BJ14: 2002 | BK14: 2003 | BL14: 2004 | BM14: 2005 | BN14: 2006 | BO14: 2007 | BP14: 2008 | BQ14: 2009 | BR14: 2010 | BS14: 2011 | BT14: 2012 | BU14: 2013 | BV14: 2014 | BW14: 2015 | BX14: 2016 | BY14: 2017 | BZ14: 2018 | CA14: 2019 | CB14: 2020 | CC14: 2021 | CD14: 2022 | CE14: 2023 | CF14: 2024 | CG14: 2025 | CH14: 2026
B16: CPI
B17: 1+CPI | F17: =1+F12 -> 1.090830074 | G17: 1.03625498 | H17: 1.035371011 | I17: 1.063126625 | J17: 1.091163116 | K17: 1.096350832 | L17: 1 | M17: 1 | N17: 1.04 | O17: 1.019090399 | P17: 1.019008264 | Q17: 1.064882401 | R17: 1.017263265 | S17: 1.008485151 | T17: 1.02548874 | U17: 1.016650579 | V17: 1.019226205 | W17: 1.038192827 | X17: 1.019 | Y17: 1.084 | Z17: 1.043 | AA17: 1.058 | AB17: 1.039 | AC17: 1.033 | AD17: 1.069 | AE17: 1.054 | AF17: 1.076 | AG17: 1.074 | AH17: 1.081 | AI17: 1.098 | AJ17: 1.107 | AK17: 1.083 | AL17: 1.068 | AM17: 1.042 | AN17: 1.038 | AO17: 1.071 | AP17: 1.064 | AQ17: 1.059 | AR17: 1.026 | AS17: 1.028 | AT17: 1.023 | AU17: 0.995 | AV17: 1.002 | AW17: 1.009 | AX17: 1.011 | AY17: 1.024 | AZ17: 1.046 | BA17: 1.035 | BB17: 1.02 | BC17: 1.026 | BD17: 1.015 | BE17: 1.019 | BF17: 1.026 | BG17: 1.017 | BH17: 1.026 | BI17: 1.025 | BJ17: 1.047 | BK17: 1.033 | BL17: 1.021 | BM17: 1.011 | BN17: 1.018 | BO17: 1.014 | BP17: 1.011 | BQ17: 1.032 | BR17: =1+BR12 -> 1.003 | BS17: 1.015 | BT17: 1.026 | BU17: 1.023 | BV17: 1.028 | BW17: 1.01 | BX17: 1.008 | BY17: 1.002 | BZ17: 1.014 | CA17: 1.012 | CB17: 1.026 | CC17: 1.016 | CD17: 1 | CE17: 1 | CF17: 1 | CG17: 1 | CH17: 1
B19: CPI van … naar …
B20: 1946 | F20: 1 | G20: =F20*G$17 -> 1.03625498 | H20: =G20*H$17 -> 1.072908367 | I20: =H20*I$17 -> 1.14063745 | J20: 1.244621514 | K20: 1.364541833 | L20: 1.364541833 | M20: 1.364541833 | N20: 1.419123506 | O20: 1.446215139 | P20: 1.473705179 | Q20: 1.569322709 | R20: 1.596414343 | S20: 1.609960159 | T20: 1.650996016 | U20: 1.678486056 | V20: 1.710756972 | W20: 1.776095618 | X20: =W20*X$17 -> 1.809841434 | Y20: 1.961868115 | Z20: 2.046228444 | AA20: 2.164909693 | AB20: 2.249341171 | AC20: 2.32356943 | AD20: 2.483895721 | AE20: 2.61802609 | AF20: 2.816996073 | AG20: =AF20*AG$17 -> 3.025453782 | AH20: 3.270515538 | AI20: 3.591026061 | AJ20: 3.975265849 | AK20: 4.305212915 | AL20: 4.597967393 | AM20: 4.791082024 | AN20: =AM20*AN$17 -> 4.973143141 | AO20: 5.326236304 | AP20: 5.667115427 | AQ20: 6.001475237 | AR20: 6.157513593 | AS20: 6.329923974 | AT20: 6.475512225 | AU20: 6.443134664 | AV20: 6.456020934 | AW20: 6.514125122 | AX20: 6.585780498 | AY20: 6.74383923 | AZ20: 7.054055835 | BA20: 7.300947789 | BB20: 7.446966745 | BC20: 7.64058788 | BD20: =BC20*BD$17 -> 7.755196699 | BE20: 7.902545436 | BF20: 8.108011617 | BG20: 8.245847815 | BH20: 8.460239858 | BI20: 8.671745854 | BJ20: 9.079317909 | BK20: 9.3789354 | BL20: 9.575893044 | BM20: 9.681227867 | BN20: 9.855489969 | BO20: 9.993466828 | BP20: 10.10339496 | BQ20: 10.4267036 | BR20: 10.45798371 | BS20: 10.61485347 | BT20: =BS20*BT$17 -> 10.89083966 | BU20: 11.14132897 | BV20: 11.45328618 | BW20: 11.56781904 | BX20: 11.6603616 | BY20: 11.68368232 | BZ20: 11.84725387 | CA20: 11.98942092 | CB20: 12.30114586 | CC20: 12.4979642 | CD20: 12.4979642 | CE20: 12.4979642 | CF20: 12.4979642 | CG20: 12.4979642 | CH20: 12.4979642
B21: 1947 | G21: 1 | H21: =G21*H$17 -> 1.035371011 | I21: 1.100730488 | J21: 1.201076509 | K21: 1.31680123 | L21: 1.31680123 | M21: 1.31680123 | N21: 1.36947328 | O21: 1.39561707 | P21: 1.422145329 | Q21: 1.514417532 | R21: 1.540561323 | S21: 1.553633218 | T21: 1.593233372 | U21: 1.61976163 | V21: 1.650903499 | W21: 1.713956171 | X21: 1.746521338 | Y21: 1.89322913 | Z21: 1.974637983 | AA21: 2.089166986 | AB21: 2.170644498 | AC21: 2.242275767 | AD21: 2.396992795 | AE21: 2.526430406 | AF21: 2.718439117 | AG21: 2.919603611 | AH21: 3.156091504 | AI21: 3.465388471 | AJ21: 3.836185037 | AK21: 4.154588395 | AL21: 4.437100406 | AM21: 4.623458623 | AN21: 4.799150051 | AO21: 5.139889705 | AP21: 5.468842646 | AQ21: 5.791504362 | AR21: 5.942083475 | AS21: 6.108461813 | AT21: 6.248956434 | AU21: 6.217711652 | AV21: 6.230147076 | AW21: 6.286218399 | AX21: 6.355366802 | AY21: 6.507895605 | AZ21: 6.807258803 | BA21: 7.045512861 | BB21: 7.186423118 | BC21: 7.373270119 | BD21: 7.483869171 | BE21: 7.626062685 | BF21: 7.824340315 | BG21: 7.9573541 | BH21: 8.164245307 | BI21: 8.36835144 | BJ21: 8.761663957 | BK21: 9.050798868 | BL21: 9.240865644 | BM21: 9.342515166 | BN21: 9.510680439 | BO21: 9.643829965 | BP21: 9.749912095 | BQ21: 10.06190928 | BR21: 10.09209501 | BS21: 10.24347643 | BT21: =BS21*BT$17 -> 10.50980682 | BU21: 10.75153238 | BV21: 11.05257529 | BW21: 11.16310104 | BX21: 11.25240585 | BY21: 11.27491066 | BZ21: 11.43275941 | CA21: 11.56995252 | CB21: 11.87077129 | CC21: 12.06070363 | CD21: 12.06070363 | CE21: 12.06070363 | CF21: 12.06070363 | CG21: 12.06070363 | CH21: 12.06070363
B22: 1948 | H22: 1 | I22: 1.063126625 | J22: 1.16004456 | K22: 1.271815819 | L22: 1.271815819 | M22: 1.271815819 | N22: 1.322688452 | O22: 1.347939101 | P22: 1.373561084 | Q22: 1.462681025 | R22: 1.487931675 | S22: 1.500557 | T22: 1.538804307 | U22: 1.56442629 | V22: 1.59450427 | W22: 1.655402896 | X22: 1.686855551 | Y22: 1.828551418 | Z22: 1.907179129 | AA22: 2.017795518 | AB22: 2.096489543 | AC22: 2.165673698 | AD22: 2.315105184 | AE22: 2.440120863 | AF22: 2.625570049 | AG22: 2.819862233 | AH22: 3.048271074 | AI22: 3.347001639 | AJ22: 3.705130814 | AK22: 4.012656672 | AL22: 4.285517325 | AM22: 4.465509053 | AN22: 4.635198397 | AO22: 4.964297483 | AP22: 5.282012522 | AQ22: 5.593651261 | AR22: 5.739086194 | AS22: 5.899780607 | AT22: 6.035475561 | AU22: 6.005298183 | AV22: 6.01730878 | AW22: 6.071464559 | AX22: 6.138250669 | AY22: 6.285568685 | AZ22: 6.574704844 | BA22: 6.804819514 | BB22: 6.940915904 | BC22: 7.121379718 | BD22: 7.228200413 | BE22: 7.365536221 | BF22: 7.557040163 | BG22: 7.685509846 | BH22: 7.885333102 | BI22: 8.082466429 | BJ22: 8.462342352 | BK22: 8.741599649 | BL22: 8.925173242 | BM22: 9.023350147 | BN22: 9.18577045 | BO22: 9.314371236 | BP22: 9.41682932 | BQ22: 9.718167858 | BR22: 9.747322362 | BS22: 9.893532197 | BT22: =BS22*BT$17 -> 10.15076403 | BU22: 10.38423161 | BV22: 10.67499009 | BW22: 10.78173999 | BX22: 10.86799391 | BY22: 10.8897299 | BZ22: 11.04218612 | CA22: 11.17469235 | CB22: 11.46523435 | CC22: 11.6486781 | CD22: 11.6486781 | CE22: 11.6486781 | CF22: 11.6486781 | CG22: 11.6486781 | CH22: 11.6486781
B23: 1949 | I23: 1 | J23: 1.091163116 | K23: 1.19629759 | L23: 1.19629759 | M23: 1.19629759 | N23: 1.244149494 | O23: 1.267900803 | P23: 1.292001397 | Q23: 1.375829549 | R23: 1.399580859 | S23: 1.411456514 | T23: 1.447432763 | U23: 1.471533357 | V23: 1.499825358 | W23: 1.557107929 | X23: 1.586692979 | Y23: 1.71997519 | Z23: 1.793934123 | AA23: 1.897982302 | AB23: 1.972003612 | AC23: 2.037079731 | AD23: 2.177638232 | AE23: 2.295230697 | AF23: 2.46966823 | AG23: 2.652423679 | AH23: 2.867269997 | AI23: 3.148262457 | AJ23: 3.485126539 | AK23: 3.774392042 | AL23: 4.031050701 | AM23: 4.20035483 | AN23: 4.359968314 | AO23: 4.669526064 | AP23: 4.968375732 | AQ23: 5.261509901 | AR23: 5.398309158 | AS23: 5.549461814 | AT23: 5.677099436 | AU23: 5.648713939 | AV23: 5.660011367 | AW23: 5.710951469 | AX23: 5.773771935 | AY23: 5.912342462 | AZ23: 6.184310215 | BA23: 6.400761073 | BB23: 6.528776294 | BC23: 6.698524478 | BD23: 6.799002345 | BE23: 6.928183389 | BF23: 7.108316158 | BG23: 7.229157532 | BH23: 7.417115628 | BI23: 7.602543519 | BJ23: 7.959863064 | BK23: 8.222538545 | BL23: 8.395211855 | BM23: 8.487559185 | BN23: 8.64033525 | BO23: 8.761299944 | BP23: 8.857674243 | BQ23: 9.141119819 | BR23: 9.168543179 | BS23: 9.306071326 | BT23: =BS23*BT$17 -> 9.548029181 | BU23: 9.767633852 | BV23: 10.0411276 | BW23: 10.14153888 | BX23: 10.22267119 | BY23: 10.24311653 | BZ23: 10.38652016 | CA23: 10.5111584 | CB23: 10.78444852 | CC23: 10.9569997 | CD23: 10.9569997 | CE23: 10.9569997 | CF23: 10.9569997 | CG23: 10.9569997 | CH23: 10.9569997
B24: 1950 | J24: 1 | K24: =J24*K$17 -> 1.096350832 | L24: 1.096350832 | M24: 1.096350832 | N24: 1.140204866 | O24: 1.161971831 | P24: 1.184058899 | Q24: 1.260883483 | R24: 1.282650448 | S24: 1.293533931 | T24: 1.326504481 | U24: 1.348591549 | V24: 1.374519846 | W24: 1.427016645 | X24: 1.454129962 | Y24: 1.576276878 | Z24: 1.644056784 | AA24: 1.739412078 | AB24: 1.807249149 | AC24: 1.866888371 | AD24: 1.995703668 | AE24: 2.103471666 | AF24: 2.263335513 | AG24: 2.430822341 | AH24: 2.62771895 | AI24: 2.885235408 | AJ24: 3.193955596 | AK24: 3.459053911 | AL24: 3.694269577 | AM24: 3.849428899 | AN24: 3.995707197 | AO24: 4.279402408 | AP24: 4.553284162 | AQ24: 4.821927928 | AR24: 4.947298054 | AS24: 5.085822399 | AT24: 5.202796314 | AU24: 5.176782333 | AV24: 5.187135897 | AW24: 5.23382012 | AX24: 5.291392142 | AY24: 5.418385553 | AZ24: 5.667631289 | BA24: 5.865998384 | BB24: 5.983318351 | BC24: 6.138884629 | BD24: 6.230967898 | BE24: 6.349356288 | BF24: 6.514439552 | BG24: 6.625185024 | BH24: 6.797439835 | BI24: 6.96737583 | BJ24: 7.294842494 | BK24: 7.535572297 | BL24: 7.693819315 | BM24: 7.778451327 | BN24: 7.918463451 | BO24: 8.02932194 | BP24: 8.117644481 | BQ24: 8.377409104 | BR24: 8.402541332 | BS24: 8.528579452 | BT24: =BS24*BT$17 -> 8.750322517 | BU24: 8.951579935 | BV24: 9.202224174 | BW24: 9.294246415 | BX24: 9.368600387 | BY24: 9.387337587 | BZ24: 9.518760314 | CA24: 9.632985437 | CB24: 9.883443059 | CC24: 10.04157815 | CD24: 10.04157815 | CE24: 10.04157815 | CF24: 10.04157815 | CG24: 10.04157815 | CH24: 10.04157815
B25: 1951 | K25: 1 | L25: 1 | M25: 1 | N25: 1.04 | O25: 1.059854015 | P25: 1.08 | Q25: 1.150072993 | R25: 1.169927007 | S25: 1.179854015 | T25: 1.209927007 | U25: 1.230072993 | V25: 1.253722628 | W25: 1.301605839 | X25: 1.32633635 | Y25: 1.437748604 | Z25: 1.499571794 | AA25: 1.586546958 | AB25: 1.648422289 | AC25: 1.702820225 | AD25: 1.82031482 | AE25: 1.91861182 | AF25: 2.064426319 | AG25: 2.217193866 | AH25: 2.39678657 | AI25: 2.631671653 | AJ25: 2.91326052 | AK25: 3.155061144 | AL25: 3.369605301 | AM25: 3.511128724 | AN25: 3.644551615 | AO25: 3.90331478 | AP25: 4.153126926 | AQ25: 4.398161415 | AR25: 4.512513612 | AS25: 4.638863993 | AT25: 4.745557864 | AU25: 4.721830075 | AV25: 4.731273735 | AW25: 4.773855199 | AX25: 4.826367606 | AY25: 4.942200429 | AZ25: 5.169541648 | BA25: 5.350475606 | BB25: 5.457485118 | BC25: 5.599379731 | BD25: 5.683370427 | BE25: 5.791354465 | BF25: 5.941929681 | BG25: 6.042942486 | BH25: 6.200058991 | BI25: 6.355060465 | BJ25: 6.653748307 | BK25: 6.873322001 | BL25: 7.017661763 | BM25: 7.094856043 | BN25: 7.222563452 | BO25: 7.32367934 | BP25: 7.404239813 | BQ25: 7.641175487 | BR25: 7.664099013 | BS25: 7.779060498 | BT25: =BS25*BT$17 -> 7.981316071 | BU25: 8.164886341 | BV25: 8.393503159 | BW25: 8.47743819 | BX25: 8.545257696 | BY25: 8.562348211 | BZ25: 8.682221086 | CA25: 8.786407739 | CB25: 9.01485434 | CC25: 9.15909201 | CD25: 9.15909201 | CE25: 9.15909201 | CF25: 9.15909201 | CG25: 9.15909201 | CH25: 9.15909201
B26: 1952 | L26: 1 | M26: 1 | N26: 1.04 | O26: 1.059854015 | P26: 1.08 | Q26: 1.150072993 | R26: 1.169927007 | S26: 1.179854015 | T26: 1.209927007 | U26: 1.230072993 | V26: 1.253722628 | W26: 1.301605839 | X26: 1.32633635 | Y26: 1.437748604 | Z26: 1.499571794 | AA26: 1.586546958 | AB26: 1.648422289 | AC26: 1.702820225 | AD26: 1.82031482 | AE26: 1.91861182 | AF26: 2.064426319 | AG26: 2.217193866 | AH26: 2.39678657 | AI26: 2.631671653 | AJ26: 2.91326052 | AK26: 3.155061144 | AL26: 3.369605301 | AM26: 3.511128724 | AN26: 3.644551615 | AO26: 3.90331478 | AP26: 4.153126926 | AQ26: 4.398161415 | AR26: 4.512513612 | AS26: 4.638863993 | AT26: 4.745557864 | AU26: 4.721830075 | AV26: 4.731273735 | AW26: 4.773855199 | AX26: 4.826367606 | AY26: 4.942200429 | AZ26: 5.169541648 | BA26: 5.350475606 | BB26: 5.457485118 | BC26: 5.599379731 | BD26: 5.683370427 | BE26: 5.791354465 | BF26: 5.941929681 | BG26: 6.042942486 | BH26: 6.200058991 | BI26: 6.355060465 | BJ26: 6.653748307 | BK26: 6.873322001 | BL26: 7.017661763 | BM26: 7.094856043 | BN26: 7.222563452 | BO26: 7.32367934 | BP26: 7.404239813 | BQ26: 7.641175487 | BR26: 7.664099013 | BS26: 7.779060498 | BT26: =BS26*BT$17 -> 7.981316071 | BU26: 8.164886341 | BV26: 8.393503159 | BW26: 8.47743819 | BX26: 8.545257696 | BY26: 8.562348211 | BZ26: 8.682221086 | CA26: 8.786407739 | CB26: 9.01485434 | CC26: 9.15909201 | CD26: 9.15909201 | CE26: 9.15909201 | CF26: 9.15909201 | CG26: 9.15909201 | CH26: 9.15909201
B27: 1953 | M27: 1 | N27: 1.04 | O27: 1.059854015 | P27: 1.08 | Q27: 1.150072993 | R27: 1.169927007 | S27: 1.179854015 | T27: 1.209927007 | U27: 1.230072993 | V27: 1.253722628 | W27: 1.301605839 | X27: 1.32633635 | Y27: 1.437748604 | Z27: 1.499571794 | AA27: 1.586546958 | AB27: 1.648422289 | AC27: 1.702820225 | AD27: 1.82031482 | AE27: 1.91861182 | AF27: 2.064426319 | AG27: 2.217193866 | AH27: 2.39678657 | AI27: 2.631671653 | AJ27: 2.91326052 | AK27: 3.155061144 | AL27: 3.369605301 | AM27: 3.511128724 | AN27: 3.644551615 | AO27: 3.90331478 | AP27: 4.153126926 | AQ27: 4.398161415 | AR27: 4.512513612 | AS27: 4.638863993 | AT27: 4.745557864 | AU27: 4.721830075 | AV27: 4.731273735 | AW27: 4.773855199 | AX27: 4.826367606 | AY27: 4.942200429 | AZ27: 5.169541648 | BA27: 5.350475606 | BB27: 5.457485118 | BC27: 5.599379731 | BD27: 5.683370427 | BE27: 5.791354465 | BF27: 5.941929681 | BG27: 6.042942486 | BH27: 6.200058991 | BI27: 6.355060465 | BJ27: 6.653748307 | BK27: 6.873322001 | BL27: 7.017661763 | BM27: 7.094856043 | BN27: 7.222563452 | BO27: 7.32367934 | BP27: 7.404239813 | BQ27: 7.641175487 | BR27: 7.664099013 | BS27: 7.779060498 | BT27: =BS27*BT$17 -> 7.981316071 | BU27: 8.164886341 | BV27: 8.393503159 | BW27: 8.47743819 | BX27: 8.545257696 | BY27: 8.562348211 | BZ27: 8.682221086 | CA27: 8.786407739 | CB27: 9.01485434 | CC27: 9.15909201 | CD27: 9.15909201 | CE27: 9.15909201 | CF27: 9.15909201 | CG27: 9.15909201 | CH27: 9.15909201
B28: 1954 | N28: 1 | O28: 1.019090399 | P28: 1.038461538 | Q28: 1.105839416 | R28: 1.124929815 | S28: 1.134475014 | T28: 1.163391353 | U28: 1.182762493 | V28: 1.205502527 | W28: 1.251544076 | X28: 1.275323414 | Y28: 1.382450581 | Z28: 1.441895956 | AA28: 1.525525921 | AB28: 1.585021432 | AC28: 1.637327139 | AD28: 1.750302712 | AE28: 1.844819058 | AF28: 1.985025307 | AG28: 2.131917179 | AH28: 2.304602471 | AI28: 2.530453513 | AJ28: 2.801212039 | AK28: 3.033712638 | AL28: 3.240005097 | AM28: 3.376085312 | AN28: 3.504376553 | AO28: 3.753187289 | AP28: 3.993391275 | AQ28: 4.22900136 | AR28: 4.338955396 | AS28: 4.460446147 | AT28: 4.563036408 | AU28: 4.540221226 | AV28: 4.549301669 | AW28: 4.590245384 | AX28: 4.640738083 | AY28: 4.752115797 | AZ28: 4.970713123 | BA28: 5.144688083 | BB28: 5.247581844 | BC28: 5.384018972 | BD28: 5.464779257 | BE28: 5.568610063 | BF28: 5.713393924 | BG28: 5.810521621 | BH28: 5.961595183 | BI28: 6.110635063 | BJ28: 6.397834911 | BK28: 6.608963463 | BL28: 6.747751696 | BM28: 6.821976964 | BN28: 6.94477255 | BO28: 7.041999365 | BP28: 7.119461358 | BQ28: 7.347284122 | BR28: 7.369325974 | BS28: 7.479865864 | BT28: =BS28*BT$17 -> 7.674342376 | BU28: 7.850852251 | BV28: 8.070676114 | BW28: 8.151382875 | BX28: 8.216593938 | BY28: 8.233027126 | BZ28: 8.348289506 | CA28: 8.44846898 | CB28: 8.668129173 | CC28: 8.80681924 | CD28: 8.80681924 | CE28: 8.80681924 | CF28: 8.80681924 | CG28: 8.80681924 | CH28: 8.80681924
B29: 1955 | O29: 1 | P29: =O29*P$17 -> 1.019008264 | Q29: =P29*Q$17 -> 1.085123967 | R29: 1.103856749 | S29: 1.11322314 | T29: 1.141597796 | U29: 1.160606061 | V29: 1.18292011 | W29: 1.228099174 | X29: 1.251433058 | Y29: 1.356553435 | Z29: 1.414885232 | AA29: 1.496948576 | AB29: 1.55532957 | AC29: 1.606655446 | AD29: 1.717514672 | AE29: 1.810260464 | AF29: 1.94784026 | AG29: 2.091980439 | AH29: 2.261430854 | AI29: 2.483051078 | AJ29: 2.748737543 | AK29: 2.976882759 | AL29: 3.179310787 | AM29: 3.31284184 | AN29: 3.43872983 | AO29: 3.682879648 | AP29: 3.918583945 | AQ29: 4.149780398 | AR29: 4.257674689 | AS29: 4.37688958 | AT29: 4.47755804 | AU29: 4.45517025 | AV29: 4.46408059 | AW29: 4.504257316 | AX29: 4.553804146 | AY29: 4.663095446 | AZ29: 4.877597836 | BA29: 5.048313761 | BB29: 5.149280036 | BC29: 5.283161317 | BD29: 5.362408736 | BE29: 5.464294502 | BF29: 5.60636616 | BG29: 5.701674384 | BH29: 5.849917918 | BI29: 5.996165866 | BJ29: 6.277985662 | BK29: 6.485159189 | BL29: 6.621347532 | BM29: 6.694182355 | BN29: 6.814677637 | BO29: 6.910083124 | BP29: 6.986094038 | BQ29: 7.209649047 | BR29: 7.231277995 | BS29: 7.339747164 | BT29: =BS29*BT$17 -> 7.530580591 | BU29: 7.703783944 | BV29: 7.919489895 | BW29: 7.998684794 | BX29: 8.062674272 | BY29: 8.078799621 | BZ29: 8.191902815 | CA29: 8.290205649 | CB29: 8.505750996 | CC29: 8.641843012 | CD29: 8.641843012 | CE29: 8.641843012 | CF29: 8.641843012 | CG29: 8.641843012 | CH29: 8.641843012
B30: 1956 | P30: 1 | Q30: 1.064882401 | R30: 1.083265747 | S30: 1.092457421 | T30: 1.120302785 | U30: 1.138956475 | V30: 1.160854285 | W30: 1.205190592 | X30: 1.228089213 | Y30: 1.331248707 | Z30: 1.388492402 | AA30: 1.469024961 | AB30: 1.526316934 | AC30: 1.576685393 | AD30: 1.685476685 | AE30: 1.776492426 | AF30: 1.911505851 | AG30: 2.052957284 | AH30: 2.219246824 | AI30: 2.436733012 | AJ30: 2.697463445 | AK30: 2.921352911 | AL30: 3.120004909 | AM30: 3.251045115 | AN30: 3.374584829 | AO30: 3.614180352 | AP30: 3.845487895 | AQ30: 4.07237168 | AR30: 4.178253344 | AS30: 4.295244438 | AT30: 4.39403506 | AU30: 4.372064884 | AV30: 4.380809014 | AW30: 4.420236295 | AX30: 4.468858895 | AY30: 4.576111508 | AZ30: 4.786612637 | BA30: 4.95414408 | BB30: 5.053226961 | BC30: 5.184610862 | BD30: 5.262380025 | BE30: 5.362365246 | BF30: 5.501786742 | BG30: 5.595317117 | BH30: 5.740795362 | BI30: 5.884315246 | BJ30: 6.160878062 | BK30: 6.364187038 | BL30: 6.497834966 | BM30: 6.569311151 | BN30: 6.687558752 | BO30: 6.781184574 | BP30: 6.855777604 | BQ30: 7.075162488 | BR30: 7.096387975 | BS30: 7.202833795 | BT30: =BS30*BT$17 -> 7.390107473 | BU30: 7.560079945 | BV30: 7.771762184 | BW30: 7.849479806 | BX30: 7.912275644 | BY30: 7.928100195 | BZ30: 8.039093598 | CA30: 8.135562721 | CB30: 8.347087352 | CC30: 8.48064075 | CD30: 8.48064075 | CE30: 8.48064075 | CF30: 8.48064075 | CG30: 8.48064075 | CH30: 8.48064075
B31: 1957 | Q31: 1 | R31: 1.017263265 | S31: 1.025894897 | T31: 1.052043666 | U31: 1.069560802 | V31: 1.090124397 | W31: 1.13175933 | X31: 1.153262757 | Y31: 1.250136829 | Z31: 1.303892712 | AA31: 1.37951849 | AB31: 1.433319711 | AC31: 1.480619261 | AD31: 1.58278199 | AE31: 1.668252218 | AF31: 1.795039386 | AG31: 1.927872301 | AH31: 2.084029957 | AI31: 2.288264893 | AJ31: 2.533109236 | AK31: 2.743357303 | AL31: 2.9299056 | AM31: 3.052961635 | AN31: 3.168974177 | AO31: 3.393971344 | AP31: 3.61118551 | AQ31: 3.824245455 | AR31: 3.923675836 | AS31: 4.03353876 | AT31: 4.126310151 | AU31: 4.105678601 | AV31: 4.113889958 | AW31: 4.150914967 | AX31: 4.196575032 | AY31: 4.297292833 | AZ31: 4.494968303 | BA31: 4.652292194 | BB31: 4.745338038 | BC31: 4.868716827 | BD31: 4.941747579 | BE31: 5.035640783 | BF31: 5.166567443 | BG31: 5.25439909 | BH31: 5.391013466 | BI31: 5.525788803 | BJ31: 5.785500877 | BK31: 5.976422405 | BL31: 6.101927276 | BM31: 6.169048476 | BN31: 6.280091349 | BO31: 6.368012627 | BP31: 6.438060766 | BQ31: 6.644078711 | BR31: 6.664010947 | BS31: 6.763971111 | BT31: =BS31*BT$17 -> 6.93983436 | BU31: 7.09945055 | BV31: 7.298235166 | BW31: 7.371217517 | BX31: 7.430187258 | BY31: 7.445047632 | BZ31: 7.549278299 | CA31: 7.639869639 | CB31: 7.838506249 | CC31: 7.963922349 | CD31: 7.963922349 | CE31: 7.963922349 | CF31: 7.963922349 | CG31: 7.963922349 | CH31: 7.963922349
B32: 1958 | R32: 1 | S32: 1.008485151 | T32: 1.034190167 | U32: 1.051410032 | V32: 1.071624657 | W32: 1.112553032 | X32: 1.13369154 | Y32: 1.228921629 | Z32: 1.281765259 | AA32: 1.356107644 | AB32: 1.408995842 | AC32: 1.455492705 | AD32: 1.555921702 | AE32: 1.639941474 | AF32: 1.764577026 | AG32: 1.895155726 | AH32: 2.048663339 | AI32: 2.249432347 | AJ32: 2.490121608 | AK32: 2.696801701 | AL32: 2.880184217 | AM32: 3.001151954 | AN32: 3.115195728 | AO32: 3.336374625 | AP32: 3.549902601 | AQ32: 3.759346854 | AR32: 3.857089873 | AS32: 3.965088389 | AT32: 4.056285422 | AU32: 4.036003995 | AV32: 4.044076003 | AW32: 4.080472687 | AX32: 4.125357886 | AY32: 4.224366476 | AZ32: 4.418687334 | BA32: 4.57334139 | BB32: 4.664808218 | BC32: 4.786093232 | BD32: 4.85788463 | BE32: 4.950184438 | BF32: 5.078889234 | BG32: 5.165230351 | BH32: 5.29952634 | BI32: 5.432014498 | BJ32: 5.68731918 | BK32: 5.875000713 | BL32: 5.998375727 | BM32: 6.06435786 | BN32: 6.173516302 | BO32: 6.25994553 | BP32: 6.328804931 | BQ32: 6.531326689 | BR32: 6.550920669 | BS32: 6.649184479 | BT32: =BS32*BT$17 -> 6.822063275 | BU32: 6.978970731 | BV32: 7.174381911 | BW32: 7.24612573 | BX32: 7.304094736 | BY32: 7.318702926 | BZ32: 7.421164767 | CA32: 7.510218744 | CB32: 7.705484431 | CC32: 7.828772182 | CD32: 7.828772182 | CE32: 7.828772182 | CF32: 7.828772182 | CG32: 7.828772182 | CH32: 7.828772182
B33: 1959 | S33: 1 | T33: 1.02548874 | U33: 1.042563722 | V33: 1.062608265 | W33: 1.103192279 | X33: 1.124152932 | Y33: 1.218581779 | Z33: 1.270980795 | AA33: 1.344697681 | AB33: 1.397140891 | AC33: 1.44324654 | AD33: 1.542830552 | AE33: 1.626143401 | AF33: 1.7497303 | AG33: 1.879210342 | AH33: 2.03142638 | AI33: 2.230506165 | AJ33: 2.469170325 | AK33: 2.674111462 | AL33: 2.855951041 | AM33: 2.975900985 | AN33: 3.088985222 | AO33: 3.308303173 | AP33: 3.520034576 | AQ33: 3.727716616 | AR33: 3.824637248 | AS33: 3.931727091 | AT33: 4.022156814 | AU33: 4.00204603 | AV33: 4.010050122 | AW33: 4.046140573 | AX33: 4.09064812 | AY33: 4.188823674 | AZ33: 4.381509563 | BA33: 4.534862398 | BB33: 4.625559646 | BC33: 4.745824197 | BD33: 4.81701156 | BE33: 4.908534779 | BF33: 5.036156684 | BG33: 5.121771347 | BH33: 5.254937402 | BI33: 5.386310837 | BJ33: 5.639467447 | BK33: 5.825569873 | BL33: 5.94790684 | BM33: 6.013333815 | BN33: 6.121573824 | BO33: 6.207275857 | BP33: 6.275555892 | BQ33: 6.47637368 | BR33: 6.495802801 | BS33: 6.593239843 | BT33: =BS33*BT$17 -> 6.764664079 | BU33: 6.920251353 | BV33: 7.114018391 | BW33: 7.185158575 | BX33: 7.242639844 | BY33: 7.257125123 | BZ33: 7.358724875 | CA33: 7.447029573 | CB33: 7.640652342 | CC33: 7.76290278 | CD33: 7.76290278 | CE33: 7.76290278 | CF33: 7.76290278 | CG33: 7.76290278 | CH33: 7.76290278
B34: 1960 | T34: 1 | U34: 1.016650579 | V34: 1.036196911 | W34: 1.075772201 | X34: 1.096211873 | Y34: 1.18829367 | Z34: 1.239390298 | AA34: 1.311274935 | AB34: 1.362414657 | AC34: 1.407374341 | AD34: 1.504483171 | AE34: 1.585725262 | AF34: 1.706240382 | AG34: 1.83250217 | AH34: 1.980934846 | AI34: 2.175066461 | AJ34: 2.407798572 | AK34: 2.607645853 | AL34: 2.784965771 | AM34: 2.901934334 | AN34: 3.012207839 | AO34: 3.226074595 | AP34: 3.432543369 | AQ34: 3.635063428 | AR34: 3.729575077 | AS34: 3.834003179 | AT34: 3.922185252 | AU34: 3.902574326 | AV34: 3.910379475 | AW34: 3.94557289 | AX34: 3.988974192 | AY34: 4.084709572 | AZ34: 4.272606213 | BA34: 4.42214743 | BB34: 4.510590379 | BC34: 4.627865729 | BD34: 4.697283715 | BE34: 4.786532105 | BF34: 4.91098194 | BG34: 4.994468633 | BH34: 5.124324817 | BI34: 5.252432938 | BJ34: 5.499297286 | BK34: 5.680774096 | BL34: 5.800070352 | BM34: 5.863871126 | BN34: 5.969420806 | BO34: 6.052992698 | BP34: 6.119575617 | BQ34: 6.315402037 | BR34: 6.334348243 | BS34: 6.429363467 | BT34: =BS34*BT$17 -> 6.596526917 | BU34: 6.748247036 | BV34: 6.937197953 | BW34: 7.006569933 | BX34: 7.062622492 | BY34: 7.076747737 | BZ34: 7.175822205 | CA34: 7.261932072 | CB34: 7.450742306 | CC34: 7.569954183 | CD34: 7.569954183 | CE34: 7.569954183 | CF34: 7.569954183 | CG34: 7.569954183 | CH34: 7.569954183
B35: 1961 | U35: 1 | V35: 1.019226205 | W35: 1.058153335 | X35: 1.078258248 | Y35: 1.168831941 | Z35: 1.219091715 | AA35: 1.289799034 | AB35: 1.340101196 | AC35: 1.384324536 | AD35: 1.479842929 | AE35: 1.559754447 | AF35: 1.678295785 | AG35: 1.802489673 | AH35: 1.948491337 | AI35: 2.139443488 | AJ35: 2.368363941 | AK35: 2.564938148 | AL35: 2.739353942 | AM35: 2.854406807 | AN35: 2.962874266 | AO35: 3.173238339 | AP35: 3.376325593 | AQ35: 3.575528803 | AR35: 3.668492552 | AS35: 3.771210343 | AT35: 3.857948181 | AU35: 3.83865844 | AV35: 3.846335757 | AW35: 3.880952779 | AX35: 3.923643259 | AY35: 4.017810697 | AZ35: 4.202629989 | BA35: 4.349722039 | BB35: 4.43671648 | BC35: =BB35*BC$17 -> 4.552071108 | BD35: 4.620352175 | BE35: 4.708138866 | BF35: 4.830550477 | BG35: 4.912669835 | BH35: 5.040399251 | BI35: 5.166409232 | BJ35: 5.409230466 | BK35: 5.587735071 | BL35: 5.705077508 | BM35: 5.76783336 | BN35: 5.871654361 | BO35: 5.953857522 | BP35: 6.019349955 | BQ35: 6.211969153 | BR35: 6.230605061 | BS35: =BR35*BS$17 -> 6.324064136 | BT35: =BS35*BT$17 -> 6.488489804 | BU35: 6.63772507 | BV35: 6.823581371 | BW35: 6.891817185 | BX35: 6.946951723 | BY35: 6.960845626 | BZ35: 7.058297465 | CA35: 7.142997034 | CB35: 7.328714957 | CC35: 7.445974397 | CD35: 7.445974397 | CE35: 7.445974397 | CF35: 7.445974397 | CG35: 7.445974397 | CH35: 7.445974397
B36: 1962 | V36: 1 | W36: =V36*W$17 -> 1.038192827 | X36: 1.057918491 | Y36: 1.146783644 | Z36: 1.196095341 | AA36: 1.265468871 | AB36: 1.314822157 | AC36: 1.358211288 | AD36: 1.451927867 | AE36: 1.530331971 | AF36: 1.646637201 | AG36: 1.768488354 | AH36: 1.911735911 | AI36: 2.09908603 | AJ36: 2.323688235 | AK36: 2.516554359 | AL36: 2.687680055 | AM36: =AL36*AM$17 -> 2.800562618 | AN36: 2.906983997 | AO36: 3.113379861 | AP36: 3.312636172 | AQ36: 3.508081706 | AR36: 3.59929183 | AS36: 3.700072002 | AT36: 3.785173658 | AU36: 3.766247789 | AV36: 3.773780285 | AW36: 3.807744307 | AX36: 3.849629495 | AY36: 3.942020603 | AZ36: 4.12335355 | BA36: 4.267670925 | BB36: 4.353024343 | BC36: 4.466202976 | BD36: 4.533196021 | BE36: 4.619326745 | BF36: 4.739429241 | BG36: 4.819999538 | BH36: 4.945319526 | BI36: 5.068952514 | BJ36: 5.307193282 | BK36: 5.48233066 | BL36: 5.597459604 | BM36: 5.65903166 | BN36: 5.76089423 | BO36: 5.841546749 | BP36: 5.905803763 | BQ36: 6.094789483 | BR36: 6.113073852 | BS36: 6.20476996 | BT36: 6.366093979 | BU36: 6.51251414 | BV36: 6.694864536 | BW36: 6.761813181 | BX36: 6.815907687 | BY36: 6.829539502 | BZ36: 6.925153055 | CA36: 7.008254892 | CB36: 7.190469519 | CC36: 7.305517031 | CD36: 7.305517031 | CE36: 7.305517031 | CF36: 7.305517031 | CG36: 7.305517031 | CH36: 7.305517031
B37: 1963 | W37: 1 | X37: 1.019 | Y37: 1.104596 | Z37: 1.152093628 | AA37: 1.218915058 | AB37: 1.266452746 | AC37: 1.308245686 | AD37: 1.398514639 | AE37: 1.474034429 | AF37: 1.586061046 | AG37: 1.703429563 | AH37: 1.841407358 | AI37: 2.021865279 | AJ37: 2.238204864 | AK37: 2.423975867 | AL37: 2.588806226 | AM37: 2.697536088 | AN37: 2.800042459 | AO37: 2.998845474 | AP37: 3.190771584 | AQ37: 3.379027108 | AR37: 3.466881812 | AS37: 3.563954503 | AT37: 3.645925457 | AU37: 3.627695829 | AV37: 3.634951221 | AW37: 3.667665782 | AX37: 3.708010106 | AY37: 3.797002348 | AZ37: 3.971664456 | BA37: 4.110672712 | BB37: 4.192886166 | BC37: 4.301901207 | BD37: 4.366429725 | BE37: 4.44939189 | BF37: 4.565076079 | BG37: 4.642682372 | BH37: 4.763392114 | BI37: 4.882476917 | BJ37: 5.111953332 | BK37: 5.280647792 | BL37: 5.391541395 | BM37: 5.450848351 | BN37: 5.548963621 | BO37: 5.626649112 | BP37: 5.688542252 | BQ37: 5.870575604 | BR37: 5.888187331 | BS37: 5.976510141 | BT37: 6.131899404 | BU37: 6.272933091 | BV37: 6.448575217 | BW37: 6.513060969 | BX37: 6.565165457 | BY37: 6.578295788 | BZ37: 6.670391929 | CA37: 6.750436632 | CB37: 6.925947985 | CC37: 7.036763152 | CD37: 7.036763152 | CE37: 7.036763152 | CF37: 7.036763152 | CG37: 7.036763152 | CH37: 7.036763152
B38: 1964 | X38: 1 | Y38: 1.084 | Z38: 1.130612 | AA38: 1.196187496 | AB38: 1.242838808 | AC38: 1.283852489 | AD38: 1.372438311 | AE38: 1.44654998 | AF38: 1.556487778 | AG38: 1.671667874 | AH38: 1.807072971 | AI38: 1.984166123 | AJ38: 2.196471898 | AK38: 2.378779065 | AL38: 2.540536042 | AM38: 2.647238555 | AN38: 2.74783362 | AO38: 2.942929807 | AP38: 3.131277315 | AQ38: 3.316022677 | AR38: 3.402239266 | AS38: 3.497501966 | AT38: 3.577944511 | AU38: 3.560054788 | AV38: 3.567174898 | AW38: 3.599279472 | AX38: 3.638871546 | AY38: 3.726204463 | AZ38: 3.897609869 | BA38: 4.034026214 | BB38: 4.114706738 | BC38: 4.221689114 | BD38: 4.28501445 | BE38: 4.366429725 | BF38: 4.479956898 | BG38: 4.556116165 | BH38: 4.674575185 | BI38: 4.791439565 | BJ38: 5.016637224 | BK38: 5.182186253 | BL38: 5.291012164 | BM38: 5.349213298 | BN38: 5.445499137 | BO38: 5.521736125 | BP38: 5.582475223 | BQ38: 5.76111443 | BR38: 5.778397773 | BS38: 5.86507374 | BT38: 6.017565657 | BU38: 6.155969667 | BV38: 6.328336818 | BW38: 6.391620186 | BX38: 6.442753147 | BY38: 6.455638654 | BZ38: 6.546017595 | CA38: 6.624569806 | CB38: 6.796808621 | CC38: 6.905557559 | CD38: 6.905557559 | CE38: 6.905557559 | CF38: 6.905557559 | CG38: 6.905557559 | CH38: 6.905557559
B39: 1965 | Y39: 1 | Z39: 1.043 | AA39: 1.103494 | AB39: 1.146530266 | AC39: 1.184365765 | AD39: 1.266087003 | AE39: 1.334455701 | AF39: 1.435874334 | AG39: 1.542129035 | AH39: 1.667041486 | AI39: 1.830411552 | AJ39: 2.026265588 | AK39: 2.194445632 | AL39: 2.343667935 | AM39: 2.442101988 | AN39: 2.534901864 | AO39: 2.714879896 | AP39: 2.88863221 | AQ39: 3.05906151 | AR39: 3.138597109 | AS39: 3.226477828 | AT39: 3.300686818 | AU39: 3.284183384 | AV39: 3.290751751 | AW39: 3.320368517 | AX39: 3.35689257 | AY39: 3.437457992 | AZ39: 3.59558106 | BA39: 3.721426397 | BB39: 3.795854925 | BC39: 3.894547153 | BD39: 3.95296536 | BE39: 4.028071702 | BF39: 4.132801566 | BG39: 4.203059193 | BH39: 4.312338732 | BI39: 4.4201472 | BJ39: 4.627894118 | BK39: 4.780614624 | BL39: 4.881007531 | BM39: 4.934698614 | BN39: 5.023523189 | BO39: 5.093852514 | BP39: 5.149884892 | BQ39: 5.314681208 | BR39: 5.330625252 | BS39: 5.410584631 | BT39: 5.551259831 | BU39: 5.678938807 | BV39: 5.837949094 | BW39: 5.896328585 | BX39: 5.943499213 | BY39: 5.955386212 | BZ39: 6.038761619 | CA39: 6.111226758 | CB39: 6.270118654 | CC39: 6.370440552 | CD39: 6.370440552 | CE39: 6.370440552 | CF39: 6.370440552 | CG39: 6.370440552 | CH39: 6.370440552
B40: 1966 | Z40: 1 | AA40: 1.058 | AB40: 1.099262 | AC40: 1.135537646 | AD40: 1.213889744 | AE40: 1.27943979 | AF40: 1.376677214 | AG40: 1.478551328 | AH40: 1.598313985 | AI40: 1.754948756 | AJ40: 1.942728272 | AK40: 2.103974719 | AL40: 2.247045 | AM40: 2.34142089 | AN40: 2.430394884 | AO40: 2.602952921 | AP40: 2.769541907 | AQ40: 2.93294488 | AR40: 3.009201447 | AS40: 3.093459087 | AT40: 3.164608646 | AU40: 3.148785603 | AV40: 3.155083174 | AW40: 3.183478923 | AX40: 3.218497191 | AY40: 3.295741124 | AZ40: 3.447345215 | BA40: 3.568002298 | BB40: 3.639362344 | BC40: 3.733985765 | BD40: 3.789995551 | BE40: 3.862005467 | BF40: 3.962417609 | BG40: 4.029778708 | BH40: 4.134552955 | BI40: 4.237916779 | BJ40: 4.437098867 | BK40: 4.58352313 | BL40: 4.679777116 | BM40: 4.731254664 | BN40: 4.816417248 | BO40: 4.883847089 | BP40: 4.937569407 | BQ40: 5.095571628 | BR40: 5.110858343 | BS40: 5.187521218 | BT40: 5.32239677 | BU40: 5.444811896 | BV40: 5.597266629 | BW40: 5.653239295 | BX40: 5.698465209 | BY40: 5.70986214 | BZ40: 5.78980021 | CA40: 5.859277812 | CB40: 6.011619035 | CC40: 6.10780494 | CD40: 6.10780494 | CE40: 6.10780494 | CF40: 6.10780494 | CG40: 6.10780494 | CH40: 6.10780494
B41: 1967 | AA41: 1 | AB41: 1.039 | AC41: 1.073287 | AD41: 1.147343803 | AE41: 1.209300368 | AF41: 1.301207196 | AG41: 1.397496529 | AH41: 1.510693748 | AI41: 1.658741735 | AJ41: 1.836227101 | AK41: 1.98863395 | AL41: 2.123861059 | AM41: 2.213063223 | AN41: 2.297159626 | AO41: 2.460257959 | AP41: 2.617714468 | AQ41: 2.772159622 | AR41: 2.844235772 | AS41: 2.923874374 | AT41: 2.991123484 | AU41: 2.976167867 | AV41: 2.982120203 | AW41: 3.008959284 | AX41: 3.042057837 | AY41: 3.115067225 | AZ41: 3.258360317 | BA41: 3.372402928 | BB41: 3.439850987 | BC41: 3.529287112 | BD41: 3.582226419 | BE41: 3.650288721 | BF41: 3.745196228 | BG41: 3.808864564 | BH41: 3.907895042 | BI41: 4.005592418 | BJ41: 4.193855262 | BK41: 4.332252486 | BL41: 4.423229788 | BM41: 4.471885315 | BN41: 4.552379251 | BO41: 4.616112561 | BP41: 4.666889799 | BQ41: 4.816230272 | BR41: 4.830678963 | BS41: 4.903139148 | BT41: 5.030620766 | BU41: 5.146325043 | BV41: 5.290422144 | BW41: 5.343326366 | BX41: 5.386072977 | BY41: 5.396845123 | BZ41: 5.472400954 | CA41: 5.538069766 | CB41: 5.68205958 | CC41: 5.772972533 | CD41: 5.772972533 | CE41: 5.772972533 | CF41: 5.772972533 | CG41: 5.772972533 | CH41: 5.772972533
B42: 1968 | AB42: 1 | AC42: 1.033 | AD42: 1.104277 | AE42: 1.163907958 | AF42: 1.252364963 | AG42: 1.34503997 | AH42: 1.453988208 | AI42: 1.596479052 | AJ42: 1.767302311 | AK42: 1.913988402 | AL42: 2.044139614 | AM42: 2.129993477 | AN42: 2.21093323 | AO42: 2.367909489 | AP42: 2.519455696 | AQ42: 2.668103582 | AR42: 2.737474275 | AS42: 2.814123555 | AT42: 2.878848397 | AU42: 2.864454155 | AV42: 2.870183063 | AW42: 2.896014711 | AX42: 2.927870873 | AY42: 2.998139774 | AZ42: 3.136054203 | BA42: 3.2458161 | BB42: 3.310732422 | BC42: 3.396811465 | BD42: 3.447763637 | BE42: 3.513271146 | BF42: 3.604616196 | BG42: 3.665894671 | BH42: 3.761207933 | BI42: 3.855238131 | BJ42: 4.036434323 | BK42: 4.169636656 | BL42: 4.257199026 | BM42: 4.304028215 | BN42: 4.381500723 | BO42: 4.442841733 | BP42: 4.491712992 | BQ42: 4.635447808 | BR42: 4.649354151 | BS42: 4.719094464 | BT42: 4.84179092 | BU42: 4.953152111 | BV42: 5.09184037 | BW42: 5.142758774 | BX42: 5.183900844 | BY42: 5.194268645 | BZ42: 5.266988407 | CA42: 5.330192267 | CB42: 5.468777266 | CC42: 5.556277703 | CD42: 5.556277703 | CE42: 5.556277703 | CF42: 5.556277703 | CG42: 5.556277703 | CH42: 5.556277703
B43: 1969 | AC43: 1 | AD43: 1.069 | AE43: 1.126726 | AF43: 1.212357176 | AG43: 1.302071607 | AH43: 1.407539407 | AI43: 1.545478269 | AJ43: 1.710844444 | AK43: 1.852844533 | AL43: 1.978837961 | AM43: 2.061949155 | AN43: 2.140303223 | AO43: 2.292264752 | AP43: 2.438969696 | AQ43: 2.582868908 | AR43: 2.6500235 | AS43: 2.724224158 | AT43: 2.786881314 | AU43: 2.772946907 | AV43: 2.778492801 | AW43: 2.803499236 | AX43: 2.834337728 | AY43: 2.902361833 | AZ43: 3.035870477 | BA43: 3.142125944 | BB43: 3.204968463 | BC43: 3.288297643 | BD43: 3.337622108 | BE43: 3.401036928 | BF43: 3.489463888 | BG43: 3.548784774 | BH43: 3.641053178 | BI43: 3.732079507 | BJ43: 3.907487244 | BK43: 4.036434323 | BL43: 4.121199444 | BM43: 4.166532638 | BN43: 4.241530226 | BO43: 4.300911649 | BP43: 4.348221677 | BQ43: 4.48736477 | BR43: 4.500826865 | BS43: 4.568339268 | BT43: 4.687116089 | BU43: 4.794919759 | BV43: 4.929177512 | BW43: 4.978469287 | BX43: 5.018297041 | BY43: 5.028333636 | BZ43: 5.098730306 | CA43: 5.15991507 | CB43: 5.294072862 | CC43: 5.378778028 | CD43: 5.378778028 | CE43: 5.378778028 | CF43: 5.378778028 | CG43: 5.378778028 | CH43: 5.378778028
B44: 1970 | AD44: 1 | AE44: 1.054 | AF44: 1.134104 | AG44: 1.218027696 | AH44: 1.316687939 | AI44: 1.445723357 | AJ44: 1.600415757 | AK44: 1.733250264 | AL44: 1.851111282 | AM44: 1.928857956 | AN44: 2.002154559 | AO44: 2.144307532 | AP44: 2.281543214 | AQ44: 2.416154264 | AR44: 2.478974275 | AS44: 2.548385555 | AT44: 2.606998422 | AU44: 2.59396343 | AV44: 2.599151357 | AW44: 2.622543719 | AX44: 2.6513917 | AY44: 2.715025101 | AZ44: 2.839916256 | BA44: 2.939313325 | BB44: 2.998099591 | BC44: 3.076050181 | BD44: 3.122190933 | BE44: 3.181512561 | BF44: 3.264231888 | BG44: 3.31972383 | BH44: 3.406036649 | BI44: 3.491187565 | BJ44: 3.655273381 | BK44: 3.775897403 | BL44: 3.855191248 | BM44: 3.897598352 | BN44: 3.967755122 | BO44: 4.023303694 | BP44: 4.067560034 | BQ44: 4.197721956 | BR44: 4.210315121 | BS44: 4.273469848 | BT44: 4.384580064 | BU44: 4.485425406 | BV44: 4.611017317 | BW44: 4.65712749 | BX44: 4.69438451 | BY44: 4.703773279 | BZ44: 4.769626105 | CA44: 4.826861618 | CB44: 4.95236002 | CC44: 5.031597781 | CD44: 5.031597781 | CE44: 5.031597781 | CF44: 5.031597781 | CG44: 5.031597781 | CH44: 5.031597781
B45: 1971 | AE45: 1 | AF45: 1.076 | AG45: 1.155624 | AH45: 1.249229544 | AI45: 1.371654039 | AJ45: 1.518421022 | AK45: 1.644449966 | AL45: 1.756272564 | AM45: 1.830036012 | AN45: 1.89957738 | AO45: 2.034447374 | AP45: 2.164652006 | AQ45: 2.292366474 | AR45: 2.351968003 | AS45: 2.417823107 | AT45: 2.473433038 | AU45: 2.461065873 | AV45: 2.465988005 | AW45: 2.488181897 | AX45: 2.515551898 | AY45: 2.575925143 | AZ45: 2.6944177 | BA45: 2.788722319 | BB45: 2.844496766 | BC45: 2.918453682 | BD45: 2.962230487 | BE45: 3.018512866 | BF45: 3.096994201 | BG45: 3.149643102 | BH45: 3.231533823 | BI45: 3.312322168 | BJ45: 3.46800131 | BK45: 3.582445353 | BL45: 3.657676706 | BM45: 3.69791115 | BN45: 3.76447355 | BO45: 3.81717618 | BP45: 3.859165118 | BQ45: 3.982658402 | BR45: 3.994606377 | BS45: 4.054525473 | BT45: 4.159943135 | BU45: 4.255621827 | BV45: 4.374779238 | BW45: 4.418527031 | BX45: 4.453875247 | BY45: 4.462782997 | BZ45: 4.525261959 | CA45: 4.579565103 | CB45: 4.698633796 | CC45: 4.773811936 | CD45: 4.773811936 | CE45: 4.773811936 | CF45: 4.773811936 | CG45: 4.773811936 | CH45: 4.773811936
B46: 1972 | AF46: 1 | AG46: 1.074 | AH46: 1.160994 | AI46: 1.274771412 | AJ46: 1.411171953 | AK46: 1.528299225 | AL46: 1.632223573 | AM46: 1.700776963 | AN46: 1.765406487 | AO46: 1.890750348 | AP46: 2.01175837 | AQ46: 2.130452114 | AR46: 2.185843869 | AS46: 2.247047497 | AT46: 2.29872959 | AU46: 2.287235942 | AV46: 2.291810413 | AW46: 2.312436707 | AX46: 2.337873511 | AY46: 2.393982475 | AZ46: 2.504105669 | BA46: 2.591749367 | BB46: 2.643584355 | BC46: 2.712317548 | BD46: 2.753002311 | BE46: 2.805309355 | BF46: 2.878247398 | BG46: 2.927177604 | BH46: 3.003284222 | BI46: 3.078366327 | BJ46: 3.223049545 | BK46: 3.32941018 | BL46: 3.399327794 | BM46: 3.436720399 | BN46: 3.498581367 | BO46: 3.547561506 | BP46: 3.586584682 | BQ46: 3.701355392 | BR46: 3.712459458 | BS46: 3.76814635 | BT46: 3.866118155 | BU46: 3.955038873 | BV46: 4.065779961 | BW46: 4.106437761 | BX46: 4.139289263 | BY46: 4.147567841 | BZ46: 4.205633791 | CA46: 4.256101397 | CB46: 4.366760033 | CC46: 4.436628194 | CD46: 4.436628194 | CE46: 4.436628194 | CF46: 4.436628194 | CG46: 4.436628194 | CH46: 4.436628194
B47: 1973 | AG47: 1 | AH47: 1.081 | AI47: 1.186938 | AJ47: 1.313940366 | AK47: 1.422997416 | AL47: 1.519761241 | AM47: 1.583591213 | AN47: 1.643767679 | AO47: 1.760475184 | AP47: 1.873145596 | AQ47: 1.983661186 | AR47: 2.035236377 | AS47: 2.092222995 | AT47: 2.140344124 | AU47: 2.129642404 | AV47: 2.133901688 | AW47: 2.153106804 | AX47: 2.176790979 | AY47: 2.229033962 | AZ47: 2.331569524 | BA47: 2.413174458 | BB47: 2.461437947 | BC47: 2.525435333 | BD47: 2.563316863 | BE47: 2.612019884 | BF47: 2.679932401 | BG47: 2.725491252 | BH47: 2.796354024 | BI47: 2.866262875 | BJ47: 3.00097723 | BK47: 3.100009478 | BL47: 3.165109677 | BM47: 3.199925884 | BN47: 3.25752455 | BO47: 3.303129894 | BP47: 3.339464322 | BQ47: 3.446327181 | BR47: 3.456666162 | BS47: 3.508516155 | BT47: 3.599737575 | BU47: 3.682531539 | BV47: 3.785642422 | BW47: 3.823498846 | BX47: 3.854086837 | BY47: 3.861795011 | BZ47: 3.915860141 | CA47: 3.962850462 | CB47: 4.065884575 | CC47: 4.130938728 | CD47: 4.130938728 | CE47: 4.130938728 | CF47: 4.130938728 | CG47: 4.130938728 | CH47: 4.130938728
B48: 1974 | AH48: 1 | AI48: 1.098 | AJ48: 1.215486 | AK48: 1.316371338 | AL48: 1.405884589 | AM48: 1.464931742 | AN48: 1.520599148 | AO48: 1.628561687 | AP48: 1.732789635 | AQ48: 1.835024224 | AR48: 1.882734854 | AS48: 1.93545143 | AT48: 1.979966812 | AU48: 1.970066978 | AV48: 1.974007112 | AW48: 1.991773176 | AX48: 2.013682681 | AY48: 2.062011066 | AZ48: 2.156863575 | BA48: 2.2323538 | BB48: 2.277000876 | BC48: 2.336202899 | BD48: 2.371245942 | BE48: 2.416299615 | BF48: 2.479123405 | BG48: 2.521268503 | BH48: 2.586821484 | BI48: 2.651492021 | BJ48: 2.776112146 | BK48: 2.867723847 | BL48: 2.927946048 | BM48: 2.960153454 | BN48: 3.013436216 | BO48: 3.055624323 | BP48: 3.089236191 | BQ48: 3.188091749 | BR48: 3.197656024 | BS48: 3.245620865 | BT48: 3.330007007 | BU48: 3.406597168 | BV48: 3.501981889 | BW48: 3.537001708 | BX48: 3.565297722 | BY48: 3.572428317 | BZ48: 3.622442313 | CA48: 3.665911621 | CB48: =CA48*CB$17 -> 3.761225323 | CC48: 3.821404928 | CD48: 3.821404928 | CE48: 3.821404928 | CF48: 3.821404928 | CG48: 3.821404928 | CH48: 3.821404928
B49: 1975 | AI49: 1 | AJ49: 1.107 | AK49: 1.198881 | AL49: 1.280404908 | AM49: 1.334181914 | AN49: 1.384880827 | AO49: 1.483207366 | AP49: 1.578132637 | AQ49: 1.671242463 | AR49: 1.714694767 | AS49: 1.76270622 | AT49: 1.803248463 | AU49: 1.794232221 | AV49: 1.797820685 | AW49: 1.814001071 | AX49: 1.833955083 | AY49: 1.877970005 | AZ49: 1.964356625 | BA49: 2.033109107 | BB49: 2.073771289 | BC49: 2.127689343 | BD49: 2.159604683 | BE49: 2.200637172 | BF49: 2.257853739 | BG49: 2.296237252 | BH49: 2.355939421 | BI49: 2.414837906 | BJ49: 2.528335288 | BK49: 2.611770352 | BL49: 2.66661753 | BM49: 2.695950323 | BN49: 2.744477428 | BO49: 2.782900112 | BP49: 2.813512014 | BQ49: 2.903544398 | BR49: 2.912255031 | BS49: 2.955938857 | BT49: 3.032793267 | BU49: 3.102547512 | BV49: 3.189418842 | BW49: 3.221313031 | BX49: 3.247083535 | BY49: 3.253577702 | BZ49: 3.29912779 | CA49: 3.338717323 | CB49: 3.425523974 | CC49: 3.480332357 | CD49: 3.480332357 | CE49: 3.480332357 | CF49: 3.480332357 | CG49: 3.480332357 | CH49: 3.480332357
B50: 1976 | AJ50: 1 | AK50: 1.083 | AL50: 1.156644 | AM50: 1.205223048 | AN50: 1.251021524 | AO50: 1.339844052 | AP50: 1.425594071 | AQ50: 1.509704122 | AR50: 1.548956429 | AS50: 1.592327209 | AT50: 1.628950735 | AU50: 1.620805981 | AV50: 1.624047593 | AW50: 1.638664021 | AX50: 1.656689325 | AY50: 1.696449869 | AZ50: 1.774486563 | BA50: 1.836593593 | BB50: 1.873325465 | BC50: 1.922031927 | BD50: 1.950862406 | BE50: 1.987928791 | BF50: 2.03961494 | BG50: 2.074288394 | BH50: 2.128219892 | BI50: 2.18142539 | BJ50: 2.283952383 | BK50: 2.359322811 | BL50: 2.408868591 | BM50: 2.435366145 | BN50: 2.479202736 | BO50: 2.513911574 | BP50: 2.541564601 | BQ50: 2.622894668 | BR50: 2.630763352 | BS50: 2.670224803 | BT50: 2.739650648 | BU50: 2.802662613 | BV50: 2.881137166 | BW50: 2.909948537 | BX50: 2.933228126 | BY50: 2.939094582 | BZ50: 2.980241906 | CA50: 3.016004809 | CB50: 3.094420934 | CC50: 3.143931669 | CD50: 3.143931669 | CE50: 3.143931669 | CF50: 3.143931669 | CG50: 3.143931669 | CH50: 3.143931669
B51: 1977 | AK51: 1 | AL51: 1.068 | AM51: 1.112856 | AN51: 1.155144528 | AO51: 1.237159789 | AP51: 1.316338016 | AQ51: 1.394001959 | AR51: 1.43024601 | AS51: 1.470292898 | AT51: 1.504109635 | AU51: 1.496589087 | AV51: 1.499582265 | AW51: 1.513078505 | AX51: 1.529722369 | AY51: 1.566435706 | AZ51: 1.638491748 | BA51: 1.695838959 | BB51: =BA51*BB$17 -> 1.729755738 | BC51: 1.774729388 | BD51: 1.801350328 | BE51: 1.835575985 | BF51: 1.88330096 | BG51: 1.915317077 | BH51: 1.965115321 | BI51: 2.014243204 | BJ51: 2.108912634 | BK51: 2.178506751 | BL51: 2.224255393 | BM51: 2.248722202 | BN51: 2.289199202 | BO51: 2.321247991 | BP51: 2.346781719 | BQ51: =BP51*BQ$17 -> 2.421878734 | BR51: 2.42914437 | BS51: 2.465581535 | BT51: 2.529686655 | BU51: 2.587869448 | BV51: 2.660329793 | BW51: 2.686933091 | BX51: 2.708428556 | BY51: 2.713845413 | BZ51: 2.751839248 | CA51: 2.784861319 | CB51: 2.857267714 | CC51: 2.902983997 | CD51: 2.902983997 | CE51: 2.902983997 | CF51: 2.902983997 | CG51: 2.902983997 | CH51: =CG51*CH$17 -> 2.902983997
B52: 1978 | AL52: 1 | AM52: =AL52*AM$17 -> 1.042 | AN52: 1.081596 | AO52: 1.158389316 | AP52: 1.232526232 | AQ52: 1.30524528 | AR52: 1.339181657 | AS52: 1.376678744 | AT52: 1.408342355 | AU52: 1.401300643 | AV52: 1.404103244 | AW52: 1.416740173 | AX52: 1.432324315 | AY52: 1.466700099 | AZ52: 1.534168303 | BA52: 1.587864194 | BB52: 1.619621478 | BC52: 1.661731636 | BD52: 1.686657611 | BE52: 1.718704106 | BF52: 1.763390412 | BG52: 1.793368049 | BH52: 1.839995619 | BI52: 1.885995509 | BJ52: 1.974637298 | BK52: 2.039800329 | BL52: 2.082636136 | BM52: 2.105545133 | BN52: 2.143444946 | BO52: 2.173453175 | BP52: 2.19736116 | BQ52: 2.267676717 | BR52: 2.274479747 | BS52: 2.308596943 | BT52: 2.368620464 | BU52: 2.423098734 | BV52: 2.490945499 | BW52: 2.515854954 | BX52: 2.535981794 | BY52: 2.541053757 | BZ52: 2.57662851 | CA52: 2.607548052 | CB52: 2.675344301 | CC52: 2.71814981 | CD52: 2.71814981 | CE52: 2.71814981 | CF52: 2.71814981 | CG52: =CF52*CG$17 -> 2.71814981 | CH52: 2.71814981
B53: 1979 | AM53: 1 | AN53: 1.038 | AO53: 1.111698 | AP53: 1.182846672 | AQ53: 1.252634626 | AR53: 1.285203126 | AS53: 1.321188813 | AT53: 1.351576156 | AU53: 1.344818275 | AV53: 1.347507912 | AW53: 1.359635483 | AX53: 1.374591473 | AY53: 1.407581669 | AZ53: 1.472330426 | BA53: 1.52386199 | BB53: 1.55433923 | BC53: 1.59475205 | BD53: 1.618673331 | BE53: 1.649428124 | BF53: 1.692313256 | BG53: 1.721082581 | BH53: 1.765830728 | BI53: 1.809976496 | BJ53: 1.895045392 | BK53: 1.957581889 | BL53: 1.998691109 | BM53: 2.020676711 | BN53: 2.057048892 | BO53: 2.085847577 | BP53: 2.1087919 | BQ53: 2.176273241 | BR53: 2.18280206 | BS53: 2.215544091 | BT53: 2.273148238 | BU53: 2.325430647 | BV53: 2.390542705 | BW53: 2.414448132 | BX53: 2.433763717 | BY53: 2.438631245 | BZ53: 2.472772082 | CA53: 2.502445347 | CB53: 2.567508926 | CC53: 2.608589069 | CD53: 2.608589069 | CE53: 2.608589069 | CF53: 2.608589069 | CG53: 2.608589069 | CH53: 2.608589069
B54: 1980 | AN54: 1 | AO54: 1.071 | AP54: 1.139544 | AQ54: 1.206777096 | AR54: 1.2381533 | AS54: 1.272821593 | AT54: 1.30209649 | AU54: 1.295586007 | AV54: 1.298177179 | AW54: 1.309860774 | AX54: 1.324269242 | AY54: 1.356051704 | AZ54: 1.418430082 | BA54: 1.468075135 | BB54: 1.497436638 | BC54: 1.536369991 | BD54: 1.55941554 | BE54: 1.589044436 | BF54: 1.630359591 | BG54: 1.658075704 | BH54: 1.701185672 | BI54: 1.743715314 | BJ54: 1.825669934 | BK54: 1.885917042 | BL54: 1.9255213 | BM54: 1.946702034 | BN54: 1.981742671 | BO54: 2.009487068 | BP54: 2.031591426 | BQ54: 2.096602351 | BR54: 2.102892158 | BS54: 2.134435541 | BT54: 2.189930865 | BU54: 2.240299275 | BV54: 2.303027654 | BW54: 2.326057931 | BX54: 2.344666394 | BY54: 2.349355727 | BZ54: 2.382246707 | CA54: 2.410833668 | CB54: 2.473515343 | CC54: 2.513091589 | CD54: 2.513091589 | CE54: 2.513091589 | CF54: 2.513091589 | CG54: 2.513091589 | CH54: 2.513091589
B55: 1981 | AO55: 1 | AP55: 1.064 | AQ55: 1.126776 | AR55: 1.156072176 | AS55: 1.188442197 | AT55: 1.215776367 | AU55: 1.209697486 | AV55: 1.212116881 | AW55: 1.223025933 | AX55: 1.236479218 | AY55: 1.266154719 | AZ55: 1.324397836 | BA55: 1.37075176 | BB55: 1.398166796 | BC55: 1.434519132 | BD55: 1.456036919 | BE55: 1.483701621 | BF55: 1.522277863 | BG55: 1.548156586 | BH55: 1.588408658 | BI55: 1.628118874 | BJ55: 1.704640461 | BK55: 1.760893596 | BL55: 1.797872362 | BM55: 1.817648958 | BN55: 1.850366639 | BO55: 1.876271772 | BP55: 1.896910762 | BQ55: 1.957611906 | BR55: 1.963484742 | BS55: 1.992937013 | BT55: 2.044753375 | BU55: 2.091782703 | BV55: 2.150352619 | BW55: 2.171856145 | BX55: 2.189230994 | BY55: 2.193609456 | BZ55: 2.224319988 | CA55: 2.251011828 | CB55: 2.309538136 | CC55: 2.346490746 | CD55: 2.346490746 | CE55: 2.346490746 | CF55: 2.346490746 | CG55: 2.346490746 | CH55: 2.346490746
B56: 1982 | AP56: 1 | AQ56: 1.059 | AR56: 1.086534 | AS56: 1.116956952 | AT56: 1.142646962 | AU56: 1.136933727 | AV56: 1.139207595 | AW56: 1.149460463 | AX56: 1.162104528 | AY56: 1.189995037 | AZ56: 1.244734808 | BA56: 1.288300527 | BB56: 1.314066537 | BC56: 1.348232267 | BD56: 1.368455751 | BE56: 1.39445641 | BF56: 1.430712277 | BG56: 1.455034386 | BH56: 1.49286528 | BI56: 1.530186912 | BJ56: 1.602105697 | BK56: 1.654975185 | BL56: 1.689729664 | BM56: 1.70831669 | BN56: 1.73906639 | BO56: 1.76341332 | BP56: 1.782810866 | BQ56: 1.839860814 | BR56: 1.845380396 | BS56: 1.873061102 | BT56: 1.921760691 | BU56: 1.965961187 | BV56: 2.0210081 | BW56: 2.041218181 | BX56: 2.057547927 | BY56: 2.061663022 | BZ56: 2.090526305 | CA56: 2.11561262 | CB56: 2.170618549 | CC56: 2.205348445 | CD56: 2.205348445 | CE56: 2.205348445 | CF56: 2.205348445 | CG56: 2.205348445 | CH56: 2.205348445
B57: 1983 | AQ57: 1 | AR57: 1.026 | AS57: 1.054728 | AT57: 1.078986744 | AU57: 1.07359181 | AV57: 1.075738994 | AW57: 1.085420645 | AX57: 1.097360272 | AY57: 1.123696918 | AZ57: 1.175386977 | BA57: 1.216525521 | BB57: 1.240856031 | BC57: 1.273118288 | BD57: 1.292215062 | BE57: 1.316767149 | BF57: 1.351003095 | BG57: 1.373970147 | BH57: 1.409693371 | BI57: 1.444935705 | BJ57: 1.512847683 | BK57: 1.562771657 | BL57: 1.595589862 | BM57: 1.61314135 | BN57: 1.642177894 | BO57: 1.665168385 | BP57: 1.683485237 | BQ57: 1.737356765 | BR57: 1.742568835 | BS57: 1.768707368 | BT57: 1.814693759 | BU57: 1.856431716 | BV57: 1.908411804 | BW57: 1.927495922 | BX57: 1.942915889 | BY57: 1.946801721 | BZ57: 1.974056945 | CA57: 1.997745628 | CB57: 2.049687015 | CC57: 2.082482007 | CD57: 2.082482007 | CE57: 2.082482007 | CF57: 2.082482007 | CG57: 2.082482007 | CH57: 2.082482007
B58: 1984 | AR58: 1 | AS58: 1.028 | AT58: 1.051644 | AU58: 1.04638578 | AV58: 1.048478552 | AW58: 1.057914859 | AX58: 1.069551922 | AY58: 1.095221168 | AZ58: 1.145601342 | BA58: 1.185697389 | BB58: 1.209411337 | BC58: 1.240856031 | BD58: 1.259468872 | BE58: 1.28339878 | BF58: 1.316767149 | BG58: 1.33915219 | BH58: 1.373970147 | BI58: 1.408319401 | BJ58: 1.474510413 | BK58: 1.523169256 | BL58: 1.555155811 | BM58: 1.572262525 | BN58: 1.60056325 | BO58: 1.622971135 | BP58: 1.640823818 | BQ58: 1.69333018 | BR58: 1.698410171 | BS58: 1.723886323 | BT58: 1.768707368 | BU58: 1.809387637 | BV58: 1.860050491 | BW58: 1.878650996 | BX58: 1.893680204 | BY58: 1.897467564 | BZ58: 1.92403211 | CA58: 1.947120495 | CB58: 1.997745628 | CC58: 2.029709558 | CD58: 2.029709558 | CE58: 2.029709558 | CF58: 2.029709558 | CG58: 2.029709558 | CH58: 2.029709558
B59: 1985 | AS59: 1 | AT59: 1.023 | AU59: 1.017885 | AV59: 1.01992077 | AW59: 1.029100057 | AX59: 1.040420158 | AY59: 1.065390241 | AZ59: 1.114398192 | BA59: 1.153402129 | BB59: 1.176470172 | BC59: 1.207058396 | BD59: 1.225164272 | BE59: 1.248442393 | BF59: 1.280901896 | BG59: 1.302677228 | BH59: 1.336546836 | BI59: 1.369960507 | BJ59: 1.43434865 | BK59: 1.481682156 | BL59: 1.512797481 | BM59: 1.529438253 | BN59: 1.556968142 | BO59: 1.578765696 | BP59: 1.596132119 | BQ59: 1.647208346 | BR59: 1.652149971 | BS59: 1.676932221 | BT59: 1.720532459 | BU59: 1.760104705 | BV59: 1.809387637 | BW59: 1.827481513 | BX59: 1.842101366 | BY59: 1.845785568 | BZ59: 1.871626566 | CA59: 1.894086085 | CB59: 1.943332323 | CC59: 1.97442564 | CD59: 1.97442564 | CE59: 1.97442564 | CF59: 1.97442564 | CG59: 1.97442564 | CH59: 1.97442564
B60: 1986 | AT60: 1 | AU60: 0.995 | AV60: 0.99699 | AW60: 1.00596291 | AX60: 1.017028502 | AY60: 1.041437186 | AZ60: 1.089343297 | BA60: 1.127470312 | BB60: 1.150019718 | BC60: 1.179920231 | BD60: 1.197619034 | BE60: 1.220373796 | BF60: 1.252103515 | BG60: 1.273389274 | BH60: 1.306497396 | BI60: 1.339159831 | BJ60: 1.402100343 | BK60: 1.448369654 | BL60: 1.478785417 | BM60: 1.495052056 | BN60: 1.521962993 | BO60: 1.543270475 | BP60: 1.56024645 | BQ60: 1.610174337 | BR60: 1.61500486 | BS60: 1.639229933 | BT60: 1.681849911 | BU60: 1.720532459 | BV60: 1.768707368 | BW60: 1.786394441 | BX60: 1.800685597 | BY60: 1.804286968 | BZ60: 1.829546986 | CA60: 1.851501549 | CB60: 1.89964059 | CC60: 1.930034839 | CD60: 1.930034839 | CE60: 1.930034839 | CF60: 1.930034839 | CG60: 1.930034839 | CH60: 1.930034839
B61: 1987 | AU61: 1 | AV61: 1.002 | AW61: 1.011018 | AX61: 1.022139198 | AY61: 1.046670539 | AZ61: 1.094817384 | BA61: 1.133135992 | BB61: 1.155798712 | BC61: 1.185849478 | BD61: 1.20363722 | BE61: 1.226506328 | BF61: 1.258395492 | BG61: 1.279788216 | BH61: 1.313062709 | BI61: 1.345889277 | BJ61: 1.409146073 | BK61: 1.455647893 | BL61: 1.486216499 | BM61: 1.502564881 | BN61: 1.529611048 | BO61: 1.551025603 | BP61: 1.568086885 | BQ61: 1.618265665 | BR61: 1.623120462 | BS61: 1.647467269 | BT61: 1.690301418 | BU61: 1.729178351 | BV61: 1.777595344 | BW61: 1.795371298 | BX61: 1.809734268 | BY61: 1.813353737 | BZ61: 1.838740689 | CA61: 1.860805577 | CB61: 1.909186522 | CC61: 1.939733507 | CD61: 1.939733507 | CE61: 1.939733507 | CF61: 1.939733507 | CG61: 1.939733507 | CH61: 1.939733507
B62: 1988 | AV62: 1 | AW62: 1.009 | AX62: 1.020099 | AY62: 1.044581376 | AZ62: 1.092632119 | BA62: 1.130874243 | BB62: 1.153491728 | BC62: 1.183482513 | BD62: 1.201234751 | BE62: 1.224058211 | BF62: 1.255883725 | BG62: 1.277233748 | BH62: 1.310441826 | BI62: 1.343202871 | BJ62: 1.406333406 | BK62: 1.452742408 | BL62: 1.483249999 | BM62: 1.499565749 | BN62: 1.526557933 | BO62: 1.547929744 | BP62: 1.564956971 | BQ62: 1.615035594 | BR62: 1.619880701 | BS62: 1.644178911 | BT62: 1.686927563 | BU62: 1.725726897 | BV62: 1.77404725 | BW62: 1.791787722 | BX62: 1.806122024 | BY62: 1.809734268 | BZ62: 1.835070548 | CA62: 1.857091395 | CB62: 1.905375771 | CC62: 1.935861783 | CD62: 1.935861783 | CE62: 1.935861783 | CF62: 1.935861783 | CG62: 1.935861783 | CH62: 1.935861783
B63: 1989 | AW63: 1 | AX63: 1.011 | AY63: 1.035264 | AZ63: 1.082886144 | BA63: 1.120787159 | BB63: 1.143202902 | BC63: 1.172926178 | BD63: 1.19052007 | BE63: 1.213139952 | BF63: 1.24468159 | BG63: 1.265841177 | BH63: 1.298753048 | BI63: 1.331221874 | BJ63: 1.393789302 | BK63: 1.439784349 | BL63: 1.470019821 | BM63: 1.486190039 | BN63: 1.512941459 | BO63: 1.53412264 | BP63: 1.550997989 | BQ63: 1.600629925 | BR63: 1.605431814 | BS63: 1.629513292 | BT63: 1.671880637 | BU63: 1.710333892 | BV63: 1.758223241 | BW63: 1.775805473 | BX63: 1.790011917 | BY63: 1.793591941 | BZ63: 1.818702228 | CA63: 1.840526655 | CB63: 1.888380348 | CC63: 1.918594433 | CD63: 1.918594433 | CE63: 1.918594433 | CF63: 1.918594433 | CG63: 1.918594433 | CH63: 1.918594433
B64: 1990 | AX64: 1 | AY64: 1.024 | AZ64: 1.071104 | BA64: 1.10859264 | BB64: 1.130764493 | BC64: 1.16016437 | BD64: 1.177566835 | BE64: 1.199940605 | BF64: 1.231139061 | BG64: 1.252068425 | BH64: 1.284622204 | BI64: 1.316737759 | BJ64: 1.378624434 | BK64: 1.42411904 | BL64: 1.45402554 | BM64: 1.470019821 | BN64: 1.496480177 | BO64: 1.5174309 | BP64: 1.53412264 | BQ64: 1.583214564 | BR64: 1.587964208 | BS64: 1.611783671 | BT64: 1.653690047 | BU64: 1.691724918 | BV64: 1.739093215 | BW64: 1.756484147 | BX64: 1.770536021 | BY64: 1.774077093 | BZ64: 1.798914172 | CA64: 1.820501142 | CB64: 1.867834172 | CC64: 1.897719519 | CD64: 1.897719519 | CE64: 1.897719519 | CF64: 1.897719519 | CG64: 1.897719519 | CH64: 1.897719519
B65: 1991 | AY65: 1 | AZ65: 1.046 | BA65: 1.08261 | BB65: 1.1042622 | BC65: 1.132973017 | BD65: 1.149967612 | BE65: 1.171816997 | BF65: 1.202284239 | BG65: 1.222723071 | BH65: 1.254513871 | BI65: 1.285876718 | BJ65: 1.346312923 | BK65: 1.39074125 | BL65: 1.419946816 | BM65: 1.435566231 | BN65: 1.461406423 | BO65: 1.481866113 | BP65: 1.49816664 | BQ65: 1.546107973 | BR65: 1.550746297 | BS65: 1.574007491 | BT65: 1.614931686 | BU65: 1.652075115 | BV65: 1.698333218 | BW65: 1.71531655 | BX65: 1.729039083 | BY65: 1.732497161 | BZ65: 1.756752121 | CA65: 1.777833147 | CB65: 1.824056808 | CC65: 1.853241717 | CD65: 1.853241717 | CE65: 1.853241717 | CF65: 1.853241717 | CG65: 1.853241717 | CH65: 1.853241717
B66: 1992 | AZ66: 1 | BA66: 1.035 | BB66: 1.0557 | BC66: 1.0831482 | BD66: 1.099395423 | BE66: 1.120283936 | BF66: 1.149411318 | BG66: 1.168951311 | BH66: 1.199344045 | BI66: 1.229327646 | BJ66: 1.287106045 | BK66: 1.329580545 | BL66: 1.357501736 | BM66: 1.372434255 | BN66: 1.397138072 | BO66: 1.416698005 | BP66: 1.432281683 | BQ66: 1.478114697 | BR66: 1.482549041 | BS66: 1.504787277 | BT66: 1.543911746 | BU66: 1.579421716 | BV66: 1.623645524 | BW66: 1.639881979 | BX66: 1.653001035 | BY66: 1.656307037 | BZ66: 1.679495336 | CA66: 1.69964928 | CB66: 1.743840161 | CC66: 1.771741604 | CD66: 1.771741604 | CE66: 1.771741604 | CF66: 1.771741604 | CG66: 1.771741604 | CH66: 1.771741604
B67: 1993 | BA67: 1 | BB67: 1.02 | BC67: 1.04652 | BD67: 1.0622178 | BE67: 1.082399938 | BF67: 1.110542337 | BG67: 1.129421556 | BH67: 1.158786517 | BI67: 1.18775618 | BJ67: 1.24358072 | BK67: 1.284618884 | BL67: 1.31159588 | BM67: 1.326023435 | BN67: 1.349891857 | BO67: 1.368790343 | BP67: 1.383847037 | BQ67: 1.428130142 | BR67: 1.432414532 | BS67: 1.45390075 | BT67: 1.49170217 | BU67: 1.52601132 | BV67: 1.568739637 | BW67: 1.584427033 | BX67: 1.597102449 | BY67: 1.600296654 | BZ67: 1.622700807 | CA67: 1.642173217 | CB67: 1.684869721 | CC67: 1.711827636 | CD67: =CC67*CD$17 -> 1.711827636 | CE67: 1.711827636 | CF67: 1.711827636 | CG67: 1.711827636 | CH67: 1.711827636
B68: 1994 | BB68: 1 | BC68: =BB68*BC$17 -> 1.026 | BD68: 1.04139 | BE68: 1.06117641 | BF68: 1.088766997 | BG68: 1.107276036 | BH68: 1.136065213 | BI68: 1.164466843 | BJ68: 1.219196784 | BK68: 1.259430278 | BL68: 1.285878314 | BM68: 1.300022976 | BN68: 1.323423389 | BO68: 1.341951317 | BP68: 1.356712781 | BQ68: 1.40012759 | BR68: 1.404327973 | BS68: =BR68*BS$17 -> 1.425392892 | BT68: 1.462453108 | BU68: 1.496089529 | BV68: 1.537980036 | BW68: 1.553359836 | BX68: 1.565786715 | BY68: 1.568918288 | BZ68: 1.590883145 | CA68: 1.609973742 | CB68: 1.65183306 | CC68: 1.678262389 | CD68: 1.678262389 | CE68: 1.678262389 | CF68: 1.678262389 | CG68: 1.678262389 | CH68: 1.678262389
B69: 1995 | BC69: 1 | BD69: 1.015 | BE69: 1.034285 | BF69: 1.06117641 | BG69: 1.079216409 | BH69: 1.107276036 | BI69: 1.134957936 | BJ69: 1.18830096 | BK69: 1.227514891 | BL69: 1.253292704 | BM69: 1.267078924 | BN69: 1.289886344 | BO69: 1.307944753 | BP69: 1.322332145 | BQ69: 1.364646774 | BR69: 1.368740714 | BS69: 1.389271825 | BT69: 1.425392892 | BU69: 1.458176929 | BV69: 1.499005883 | BW69: 1.513995942 | BX69: 1.526107909 | BY69: 1.529160125 | BZ69: 1.550568367 | CA69: 1.569175187 | CB69: 1.609973742 | CC69: 1.635733322 | CD69: 1.635733322 | CE69: 1.635733322 | CF69: 1.635733322 | CG69: 1.635733322 | CH69: 1.635733322
B70: 1996 | BD70: 1 | BE70: 1.019 | BF70: 1.045494 | BG70: 1.063267398 | BH70: 1.09091235 | BI70: 1.118185159 | BJ70: 1.170739862 | BK70: 1.209374277 | BL70: 1.234771137 | BM70: 1.248353619 | BN70: 1.270823984 | BO70: 1.28861552 | BP70: 1.302790291 | BQ70: 1.34447958 | BR70: 1.348513019 | BS70: 1.368740714 | BT70: 1.404327973 | BU70: 1.436627516 | BV70: 1.476853087 | BW70: 1.491621618 | BX70: 1.503554591 | BY70: 1.5065617 | BZ70: 1.527653564 | CA70: 1.545985406 | CB70: 1.586181027 | CC70: 1.611559923 | CD70: 1.611559923 | CE70: 1.611559923 | CF70: 1.611559923 | CG70: 1.611559923 | CH70: 1.611559923
B71: 1997 | BE71: 1 | BF71: 1.026 | BG71: 1.043442 | BH71: 1.070571492 | BI71: 1.097335779 | BJ71: 1.148910561 | BK71: 1.186824609 | BL71: 1.211747926 | BM71: 1.225077153 | BN71: 1.247128542 | BO71: 1.264588342 | BP71: 1.278498814 | BQ71: 1.319410776 | BR71: 1.323369008 | BS71: 1.343219543 | BT71: 1.378143251 | BU71: 1.409840546 | BV71: 1.449316081 | BW71: 1.463809242 | BX71: 1.475519716 | BY71: 1.478470755 | BZ71: 1.499169346 | CA71: 1.517159378 | CB71: 1.556605522 | CC71: 1.58151121 | CD71: 1.58151121 | CE71: 1.58151121 | CF71: 1.58151121 | CG71: 1.58151121 | CH71: 1.58151121
B72: 1998 | BF72: 1 | BG72: 1.017 | BH72: 1.043442 | BI72: 1.06952805 | BJ72: 1.119795868 | BK72: 1.156749132 | BL72: 1.181040864 | BM72: 1.194032313 | BN72: 1.215524895 | BO72: 1.232542243 | BP72: 1.246100208 | BQ72: 1.285975415 | BR72: 1.289833341 | BS72: 1.309180841 | BT72: 1.343219543 | BU72: 1.374113593 | BV72: 1.412588773 | BW72: 1.426714661 | BX72: 1.438128378 | BY72: 1.441004635 | BZ72: 1.4611787 | CA72: 1.478712844 | CB72: 1.517159378 | CC72: 1.541433928 | CD72: 1.541433928 | CE72: 1.541433928 | CF72: 1.541433928 | CG72: 1.541433928 | CH72: 1.541433928
B73: 1999 | BG73: 1 | BH73: 1.026 | BI73: 1.05165 | BJ73: 1.10107755 | BK73: 1.137413109 | BL73: 1.161298784 | BM73: 1.174073071 | BN73: 1.195206386 | BO73: 1.211939276 | BP73: 1.225270608 | BQ73: 1.264479267 | BR73: 1.268272705 | BS73: 1.287296796 | BT73: 1.320766512 | BU73: 1.351144142 | BV73: 1.388976178 | BW73: 1.40286594 | BX73: 1.414088867 | BY73: 1.416917045 | BZ73: 1.436753884 | CA73: 1.45399493 | CB73: 1.491798799 | CC73: 1.515667579 | CD73: 1.515667579 | CE73: 1.515667579 | CF73: 1.515667579 | CG73: 1.515667579 | CH73: 1.515667579
B74: 2000 | BH74: 1 | BI74: 1.025 | BJ74: 1.073175 | BK74: 1.108589775 | BL74: 1.13187016 | BM74: 1.144320732 | BN74: 1.164918505 | BO74: 1.181227364 | BP74: 1.194220865 | BQ74: 1.232435933 | BR74: 1.236133241 | BS74: 1.254675239 | BT74: 1.287296796 | BU74: 1.316904622 | BV74: 1.353777951 | BW74: 1.367315731 | BX74: 1.378254257 | BY74: 1.381010765 | BZ74: 1.400344916 | CA74: 1.417149055 | CB74: 1.45399493 | CC74: 1.477258849 | CD74: 1.477258849 | CE74: 1.477258849 | CF74: 1.477258849 | CG74: 1.477258849 | CH74: 1.477258849
B75: 2001 | BI75: 1 | BJ75: 1.047 | BK75: 1.081551 | BL75: 1.104263571 | BM75: 1.11641047 | BN75: 1.136505859 | BO75: 1.152416941 | BP75: 1.165093527 | BQ75: 1.20237652 | BR75: 1.20598365 | BS75: 1.224073404 | BT75: 1.255899313 | BU75: 1.284784997 | BV75: 1.320758977 | BW75: 1.333966567 | BX75: 1.344638299 | BY75: 1.347327576 | BZ75: 1.366190162 | CA75: 1.382584444 | CB75: 1.418531639 | CC75: 1.441228146 | CD75: 1.441228146 | CE75: 1.441228146 | CF75: 1.441228146 | CG75: 1.441228146 | CH75: 1.441228146
B76: 2002 | BJ76: 1 | BK76: 1.033 | BL76: 1.054693 | BM76: 1.066294623 | BN76: 1.085487926 | BO76: 1.100684757 | BP76: 1.11279229 | BQ76: 1.148401643 | BR76: 1.151846848 | BS76: 1.16912455 | BT76: 1.199521789 | BU76: 1.22711079 | BV76: 1.261469892 | BW76: 1.274084591 | BX76: 1.284277268 | BY76: 1.286845822 | BZ76: 1.304861664 | CA76: 1.320520004 | CB76: 1.354853524 | CC76: 1.37653118 | CD76: 1.37653118 | CE76: 1.37653118 | CF76: 1.37653118 | CG76: 1.37653118 | CH76: 1.37653118
B77: 2003 | BK77: 1 | BL77: 1.021 | BM77: 1.032231 | BN77: 1.050811158 | BO77: 1.065522514 | BP77: 1.077243262 | BQ77: 1.111715046 | BR77: 1.115050191 | BS77: 1.131775944 | BT77: 1.161202119 | BU77: 1.187909768 | BV77: 1.221171241 | BW77: 1.233382953 | BX77: 1.243250017 | BY77: 1.245736517 | BZ77: 1.263176828 | CA77: 1.27833495 | CB77: 1.311571659 | CC77: 1.332556806 | CD77: 1.332556806 | CE77: 1.332556806 | CF77: 1.332556806 | CG77: 1.332556806 | CH77: 1.332556806
B78: 2004 | BL78: 1 | BM78: 1.011 | BN78: 1.029198 | BO78: 1.043606772 | BP78: 1.055086446 | BQ78: 1.088849213 | BR78: 1.09211576 | BS78: 1.108497497 | BT78: 1.137318432 | BU78: 1.163476756 | BV78: 1.196054105 | BW78: 1.208014646 | BX78: 1.217678763 | BY78: 1.220114121 | BZ78: 1.237195718 | CA78: 1.252042067 | CB78: 1.284595161 | CC78: 1.305148683 | CD78: 1.305148683 | CE78: 1.305148683 | CF78: 1.305148683 | CG78: 1.305148683 | CH78: 1.305148683
B79: 2005 | BM79: 1 | BN79: 1.018 | BO79: 1.032252 | BP79: 1.043606772 | BQ79: 1.077002189 | BR79: 1.080233195 | BS79: 1.096436693 | BT79: 1.124944047 | BU79: 1.15081776 | BV79: 1.183040658 | BW79: 1.194871064 | BX79: 1.204430033 | BY79: 1.206838893 | BZ79: 1.223734637 | CA79: 1.238419453 | CB79: 1.270618359 | CC79: 1.290948252 | CD79: 1.290948252 | CE79: 1.290948252 | CF79: 1.290948252 | CG79: 1.290948252 | CH79: 1.290948252
B80: 2006 | BN80: 1 | BO80: 1.014 | BP80: 1.025154 | BQ80: 1.057958928 | BR80: 1.061132805 | BS80: 1.077049797 | BT80: 1.105053092 | BU80: 1.130469313 | BV80: 1.162122453 | BW80: 1.173743678 | BX80: 1.183133627 | BY80: 1.185499895 | BZ80: 1.202096893 | CA80: 1.216522056 | CB80: 1.248151629 | CC80: 1.268122055 | CD80: 1.268122055 | CE80: 1.268122055 | CF80: 1.268122055 | CG80: 1.268122055 | CH80: 1.268122055
B81: 2007 | BO81: 1 | BP81: 1.011 | BQ81: 1.043352 | BR81: 1.046482056 | BS81: 1.062179287 | BT81: 1.089795948 | BU81: 1.114861255 | BV81: 1.14607737 | BW81: 1.157538144 | BX81: 1.166798449 | BY81: 1.169132046 | BZ81: 1.185499895 | CA81: 1.199725893 | CB81: 1.230918767 | CC81: 1.250613467 | CD81: 1.250613467 | CE81: 1.250613467 | CF81: 1.250613467 | CG81: 1.250613467 | CH81: 1.250613467
B82: 2008 | BP82: 1 | BQ82: 1.032 | BR82: 1.035096 | BS82: 1.05062244 | BT82: 1.077938623 | BU82: 1.102731212 | BV82: 1.133607686 | BW82: 1.144943763 | BX82: 1.154103313 | BY82: 1.156411519 | BZ82: 1.172601281 | CA82: 1.186672496 | CB82: 1.217525981 | CC82: 1.237006397 | CD82: 1.237006397 | CE82: 1.237006397 | CF82: 1.237006397 | CG82: 1.237006397 | CH82: 1.237006397
B83: 2009 | BQ83: 1 | BR83: 1.003 | BS83: 1.018045 | BT83: 1.04451417 | BU83: 1.068537996 | BV83: 1.09845706 | BW83: 1.10944163 | BX83: 1.118317163 | BY83: 1.120553798 | BZ83: 1.136241551 | CA83: 1.14987645 | CB83: 1.179773237 | CC83: 1.198649609 | CD83: 1.198649609 | CE83: 1.198649609 | CF83: 1.198649609 | CG83: 1.198649609 | CH83: =CG83*CH$17 -> 1.198649609
B84: 2010 | BR84: 1 | BS84: 1.015 | BT84: 1.04139 | BU84: 1.06534197 | BV84: 1.095171545 | BW84: 1.106123261 | BX84: 1.114972247 | BY84: 1.117202191 | BZ84: 1.132843022 | CA84: 1.146437138 | CB84: 1.176244504 | CC84: 1.195064416 | CD84: 1.195064416 | CE84: 1.195064416 | CF84: 1.195064416 | CG84: =CF84*CG$17 -> 1.195064416 | CH84: 1.195064416
B85: 2011 | BS85: 1 | BT85: 1.026 | BU85: 1.049598 | BV85: 1.078986744 | BW85: 1.089776611 | BX85: 1.098494824 | BY85: 1.100691814 | BZ85: 1.116101499 | CA85: 1.129494717 | CB85: 1.15886158 | CC85: 1.177403365 | CD85: 1.177403365 | CE85: 1.177403365 | CF85: 1.177403365 | CG85: 1.177403365 | CH85: 1.177403365
B86: 2012 | BT86: 1 | BU86: 1.023 | BV86: 1.051644 | BW86: 1.06216044 | BX86: 1.070657724 | BY86: 1.072799039 | BZ86: 1.087818226 | CA86: 1.100872044 | CB86: 1.129494717 | CC86: 1.147566633 | CD86: 1.147566633 | CE86: 1.147566633 | CF86: 1.147566633 | CG86: 1.147566633 | CH86: 1.147566633
B87: 2013 | BU87: 1 | BV87: 1.028 | BW87: 1.03828 | BX87: 1.04658624 | BY87: 1.048679412 | BZ87: 1.063360924 | CA87: 1.076121255 | CB87: 1.104100408 | CC87: 1.121766015 | CD87: 1.121766015 | CE87: 1.121766015 | CF87: 1.121766015 | CG87: 1.121766015 | CH87: 1.121766015
B88: 2014 | BV88: 1 | BW88: 1.01 | BX88: 1.01808 | BY88: 1.02011616 | BZ88: 1.034397786 | CA88: 1.04681056 | CB88: 1.074027634 | CC88: 1.091212076 | CD88: 1.091212076 | CE88: 1.091212076 | CF88: 1.091212076 | CG88: 1.091212076 | CH88: 1.091212076
B89: 2015 | BW89: 1 | BX89: 1.008 | BY89: 1.010016 | BZ89: 1.024156224 | CA89: 1.036446099 | CB89: 1.063393697 | CC89: 1.080407996 | CD89: 1.080407996 | CE89: 1.080407996 | CF89: 1.080407996 | CG89: 1.080407996 | CH89: 1.080407996
B90: 2016 | BX90: 1 | BY90: 1.002 | BZ90: 1.016028 | CA90: 1.028220336 | CB90: 1.054954065 | CC90: 1.07183333 | CD90: 1.07183333 | CE90: 1.07183333 | CF90: 1.07183333 | CG90: 1.07183333 | CH90: 1.07183333
B91: 2017 | BY91: 1 | BZ91: 1.014 | CA91: 1.026168 | CB91: 1.052848368 | CC91: 1.069693942 | CD91: 1.069693942 | CE91: 1.069693942 | CF91: 1.069693942 | CG91: 1.069693942 | CH91: 1.069693942
B92: 2018 | BZ92: 1 | CA92: 1.012 | CB92: 1.038312 | CC92: 1.054924992 | CD92: 1.054924992 | CE92: 1.054924992 | CF92: 1.054924992 | CG92: 1.054924992 | CH92: 1.054924992
B93: 2019 | CA93: 1 | CB93: 1.026 | CC93: 1.042416 | CD93: 1.042416 | CE93: 1.042416 | CF93: 1.042416 | CG93: 1.042416 | CH93: 1.042416
B94: 2020 | CB94: 1 | CC94: 1.016 | CD94: 1.016 | CE94: 1.016 | CF94: 1.016 | CG94: 1.016 | CH94: 1.016
B95: 2021 | CC95: 1 | CD95: 1 | CE95: 1 | CF95: 1 | CG95: 1 | CH95: 1
B96: 2022 | CD96: 1 | CE96: =CD96*CE$17 -> 1 | CF96: =CE96*CF$17 -> 1 | CG96: 1 | CH96: 1
B97: 2023 | CE97: 1 | CF97: =CE97*CF$17 -> 1 | CG97: 1 | CH97: 1
B98: 2024 | CF98: 1 | CG98: 1 | CH98: 1
B99: 2025 | CG99: 1 | CH99: 1
B100: 2026 | CH100: 1

Sheet 6. Selectie
B2: Tabel 6 - Selectie van investeringen
B4: Beschrijving berekening
B5: Op dit tabblad haalt de ACM de input voor de selectie op van het tabblad "Resultaat". Aan de hand van deze selectie berekent de ACM voor elke regel in de dataset met investeringen of deze regel mee moet in de berekening van het resultaat. Dit komt tot uitdrukking in de parameter "aan/uit" in kolom P, waarbij een 1 betekent dat de regel mee gaat in de berekening en een 0 dat de regel niet mee gaat in de berekening. Een regel gaat alleen mee in de berekening wanneer de regel aan alle selectiecriteria in kolommen J tot en met N voldoet.
B7: Toelichting bij bijzonderheden
B8: Zie het tabblad "Toelichting" voor een uitleg van de Excel-functies "Index" en "Vergelijken".
B10: Ophalen input voor selectie van investeringen
B12: Van jaar … t/m jaar …
B13: Activeringen vanaf jaar | C13: ='1. Resultaat'!C13 -> 1946
B14: Activeringen tot en met jaar | C14: ='1. Resultaat'!C14 -> 2026
B16: Bijzonderheden
B17: Normaal | C17: ='1. Resultaat'!C21 -> 1
B18: Bijschatten | C18: ='1. Resultaat'!C22 -> 1
B20: Type investering
B21: VVI | C21: ='1. Resultaat'!C25 -> 1
B22: RUI | C22: ='1. Resultaat'!C26 -> 1
B23: WUI | C23: ='1. Resultaat'!C27 -> 1
B24: WUI/RUI | C24: ='1. Resultaat'!C28 -> 1
B25: Restcategorie (VVI/UI) | C25: ='1. Resultaat'!C29 -> 1
B27: Taak
B28: TT-BT-AT | C28: ='1. Resultaat'!C17 -> 1
B29: KC | C29: ='1. Resultaat'!C18 -> 1
B31: Activacategorie
B32: 01 Regionale leidingen | C32: ='1. Resultaat'!C32 -> 1
B33: 01 Regionale leidingen (Waterkruisingen) | C33: ='1. Resultaat'!C33 -> 1
B34: 01 Regionale leidingen (gaschromatografen en comptabele meters) | C34: ='1. Resultaat'!C34 -> 1
B35: 02 Gasontvangststations | C35: ='1. Resultaat'!C35 -> 1
B36: 02 Gasontvangststations (EHD) | C36: ='1. Resultaat'!C36 -> 1
B37: 03 Verremeting | C37: ='1. Resultaat'!C37 -> 1
B38: 04 Terreinen | C38: ='1. Resultaat'!C38 -> 1
B39: 04 Terreinen (EHD) | C39: ='1. Resultaat'!C39 -> 1
B40: 05 Wegen en terreinvoorzieningen | C40: ='1. Resultaat'!C40 -> 1
B41: 05 Wegen en terreinvoorzieningen (LNG) | C41: ='1. Resultaat'!C41 -> 1
B42: 06 Utiliteitsgebouwen | C42: ='1. Resultaat'!C42 -> 1
B43: 06 Utiliteitsgebouwen (EHD) | C43: ='1. Resultaat'!C43 -> 1
B44: 06 Utiliteitsgebouwen (LNG) | C44: ='1. Resultaat'!C44 -> 1
B45: 07 Dienstwoningen | C45: ='1. Resultaat'!C45 -> 1
B46: 08 Inrichting gebouwen | C46: ='1. Resultaat'!C46 -> 1
B47: 09 Bedrijfsinventaris | C47: ='1. Resultaat'!C47 -> 1
B48: 10 Gereedschap | C48: ='1. Resultaat'!C48 -> 1
B49: 10 Gereedschap (LNG) | C49: ='1. Resultaat'!C49 -> 1
B50: 10 Gereedschap (odorisatie) | C50: ='1. Resultaat'!C50 -> 1
B51: 10 Gereedschap (gaschromatografen en comptabele meters) | C51: ='1. Resultaat'!C51 -> 1
B52: 11 Werktuigen | C52: ='1. Resultaat'!C52 -> 1
B53: 11 Werktuigen (gaschromatografen en comptabele meters) | C53: ='1. Resultaat'!C53 -> 1
B54: 11 Werktuigen (odorisatie) | C54: ='1. Resultaat'!C54 -> 1
B55: 11 Werktuigen (KC) | C55: ='1. Resultaat'!C55 -> 1
B56: 12 Motorvoertuigen | C56: ='1. Resultaat'!C56 -> 1
B57: 13 Aanhangwagens | C57: ='1. Resultaat'!C57 -> 1
B58: 13 Aanhangwagens (gaschromatografen en comptabele meters) | C58: ='1. Resultaat'!C58 -> 1
B59: 14 Overig rollend materieel | C59: ='1. Resultaat'!C59 -> 1
B60: 14 Overig rollend materieel (odorisatie) | C60: ='1. Resultaat'!C60 -> 1
B61: 14 Overig rollend materieel (gaschromatografen en comptabele meters) | C61: ='1. Resultaat'!C61 -> 1
B62: 15 Compressorstations (TT-BT-AT) | C62: ='1. Resultaat'!C62 -> 1
B63: 15 Compressorstations (TT-BT-AT) (gaschromatografen en comptabele meters) | C63: ='1. Resultaat'!C63 -> 1
B64: 15 Compressorstations (KC) | C64: ='1. Resultaat'!C64 -> 1
B65: 16 LNG installaties | C65: ='1. Resultaat'!C65 -> 1
B66: 17 Mengstations | C66: ='1. Resultaat'!C66 -> 1
B67: 18 Ijkinstallaties | C67: ='1. Resultaat'!C67 -> 1
B68: 19 Stortgasinstallaties | C68: ='1. Resultaat'!C68 -> 1
B69: 20 Kantoorgebouwen | C69: ='1. Resultaat'!C69 -> 1
B70: 21 Hoofdtransportleiding | C70: ='1. Resultaat'!C70 -> 1
B71: 21 Hoofdtransportleiding (waterkruisingen) | C71: ='1. Resultaat'!C71 -> 1
B72: 21 Hoofdtransportleiding (gaschromatografen en comptabele meting) | C72: ='1. Resultaat'!C72 -> 1
B73: 21 Hoofdtransportleiding (EHD) | C73: ='1. Resultaat'!C73 -> 1
B74: 22 Regionaal hoofdtransportnet | C74: ='1. Resultaat'!C74 -> 1
B75: 23 Brigittaleiding | C75: ='1. Resultaat'!C75 -> 1
B76: 32 M&R stations | C76: ='1. Resultaat'!C76 -> 1
B77: 32 M&R stations (gaschromatografen en comptabele meting) | C77: ='1. Resultaat'!C77 -> 1
B78: 32 M&R stations (odorisatie) | C78: ='1. Resultaat'!C78 -> 1
B79: 33 Exportstations | C79: ='1. Resultaat'!C79 -> 1
B80: 33 Exportstations (gaschromatografen en comptabele meting) | C80: ='1. Resultaat'!C80 -> 1
B81: 34 Reduceerstations | C81: ='1. Resultaat'!C81 -> 1
B82: 34 Reduceerstations (gaschromatografen en comptabele meting) | C82: ='1. Resultaat'!C82 -> 1
B83: 34 Reduceerstations (EHD) | C83: ='1. Resultaat'!C83 -> 1
B84: 35 Injectiestations | C84: ='1. Resultaat'!C84 -> 1
B85: 36 Luchtscheidingsunit | C85: ='1. Resultaat'!C85 -> 1
B86: 37 ICT middelen 1 | C86: ='1. Resultaat'!C86 -> 1
B87: 37 ICT middelen 1 (transparency) | C87: ='1. Resultaat'!C87 -> 1
